Workbook

Sheet Bruger
A1: ***Foretag kun ændringer i de farvede felter*** | E1: ***Tryk Beregn*** | F1: Vandbalance for opland + LAR | M1: Gentagelsesperiode for overløb og regndybde
N2: Gentagelsesperiode for overløb [år] | O2: Regndybde [mm] | AB2: Regnbed | AC2: Faskine | AD2: Regnbed med faskine | AE2: Regnbed med faskine og hævet drosselledning | AF2: Regnbed med drænet faskine og tæt bund | AG2: Grønt tag | AH2: Vådt bassin
A3: Årsmiddelnedbør (valgfrit) | B3: 630 | C3: mm | D3: benyttes til grønt tag | M3: =AB2 -> Regnbed | N3: =G24 -> 0.671 | O3: =G25 -> 41.488125 | AA3: Nedsivning | AB3: =G21 -> 63.4 | AC3: =G29 -> 72.1 | AD3: =G43 -> 68.25 | AE3: =G55 -> 34.94
M4: =AC2 -> Faskine | N4: =G32 -> 8.427 | O4: =G33 -> 93.45954861 | AA4: Fordampning | AB4: =G22 -> 31.6 | AC4: =G30 -> 27.6 | AD4: =G44 -> 31.5 | AE4: =G56 -> 31.52 | AF4: =G69 -> 31.5 | AG4: =G81 -> 27.13513514 | AH4: =G90 -> 26.62
A5: Vandopland | M5: =AD2 -> Regnbed med faskine | N5: =G46 -> 21.7426 | O5: =G47 -> 136.237066 | AA5: Forsinket afledning via drosselledning | AE5: =G57 -> 33.58 | AF5: =G70 -> 68.5 | AG5: =G82 -> 5.374517375 | AH5: =G91 -> 73.41
A6: Vandoplandsareal | B6: 0.0222 | C6: ha | M6: =AE2 -> Regnbed med faskine og hævet drosselledning | N6: =G72 -> 30.7416 | O6: =G73 -> 140.7532118 | AA6: Overløb | AB6: =G23 -> 5.4 | AC6: =G31 -> 1 | AD6: =G45 -> 0.5 | AE6: =G58 -> 0 | AF6: =G71 -> 0 | AG6: =G83 -> 0 | AH6: =G92 -> 0
A7: Befæstelsesgrad | B7: 35 | C7: % | M7: =AF2 -> Regnbed med drænet faskine og tæt bund | N7: =G59 -> 30.7416 | O7: =G60 -> 139.8499826 | AA7: Direkte afledning | AG7: =G84 -> 67.49034749
A8: Befæstet areal | B8: =B6*(B7/100) -> 0.00777 | C8: ha | M8: =AG2 -> Grønt tag | N8: =G85 -> 13.663 | O8: =G86 -> 45 | AA8: Sum | AB8: =SUM(AB3:AB6) -> 100.4 | AC8: =SUM(AC3:AC6) -> 100.7 | AD8: 100.25 | AE8: =SUM(AE3:AE6) -> 100.04 | AF8: =SUM(AF3:AF6) -> 100 | AG8: =SUM(AG3:AG7) -> 100 | AH8: =SUM(AH3:AH7) -> 100.03
M9: =AH2 -> Vådt bassin | N9: =G93 -> >41 | O9: =G94 -> 87.96296296
A10: LAR-element
A11: Areal | B11: 8.7 | C11: m²
A12: Arealforhold | B12: =B11/(B8*10000) -> 0.111969112 | C12: -
A15: Hydraulisk ledningsevne i undergrund | B15: =2*10^-7 -> 2e-07 | C15: m/s
A19: Regnbed
A20: Konstant overfladefordybning på 300 mm og filtermuld på 500 mm | F20: Effekt
D21: Gyldighedsområde | F21: Årlig nedsivning | G21: =IF(Beregn1!$C$44=TRUE,(Beregn1!B55*100),"-") -> 63.4 | H21: % | I21: =IF(G21="-","-",Beregn1!$B$36*(G21/100)) -> 31.034934 | J21: m³
A22: Hydraulisk ledningsevne i undergrund | B22: =B15 -> 2e-07 | C22: m/s | D22: (2.78E-08 - 3.34E-05) | F22: Årlig fordampning | G22: =IF(Beregn1!$C$44=TRUE,(Beregn1!B56*100),"-") -> 31.6 | H22: % | I22: =IF(G22="-","-",Beregn1!$B$36*(G22/100)) -> 15.468516 | J22: m³
F23: Årlig overløb | G23: =IF(Beregn1!$C$44=TRUE,(Beregn1!B58*100),"-") -> 5.4 | H23: % | I23: =IF(G23="-","-",Beregn1!$B$36*(G23/100)) -> 2.643354 | J23: m³
A24: Arealforhold | B24: =$B$12 -> 0.111969112 | D24: (0.02 - 0.4) | F24: Gentagelsesperiod for overløb | G24: =IF(Beregn1!$C$44=TRUE,Beregn1!B59,"-") -> 0.671 | H24: år
F25: Regndybde håndteret før overløb | G25: =IF(Beregn1!$C$44=TRUE,Beregn1!O61,"-") -> 41.488125 | H25: mm
A27: Faskine
A28: Konstant faskinedybde på 1000 mm | F28: Effekt
D29: Gyldighedsområde | F29: Årlig nedsivning | G29: =IF(Beregn1!$C$44=TRUE,(Beregn1!C55*100),"-") -> 72.1 | H29: % | I29: =IF(G29="-","-",Beregn1!$B$36*(G29/100)) -> 35.293671 | J29: m³
A30: Hydraulisk ledningsevne i undergrund | B30: =B15 -> 2e-07 | C30: m/s | D30: (2.78E-08 - 3.34E-05) | F30: Årlig fordampning | G30: =IF(Beregn1!$C$44=TRUE,(Beregn1!C56*100),"-") -> 27.6 | H30: % | I30: =IF(G30="-","-",Beregn1!$B$36*(G30/100)) -> 13.510476 | J30: m³
F31: Årlig overløb | G31: =IF(Beregn1!$C$44=TRUE,(Beregn1!C58*100),"-") -> 1 | H31: % | I31: =IF(G31="-","-",Beregn1!$B$36*(G31/100)) -> 0.48951 | J31: m³
A32: Arealforhold | B32: =$B$12 -> 0.111969112 | D32: (0.02 - 0.4) | F32: Gentagelsesperiod for overløb | G32: =IF(Beregn1!$C$44=TRUE,Beregn1!C59,"-") -> 8.427 | H32: år
F33: Regndybde håndteret før overløb | G33: =IF(Beregn1!$C$44=TRUE,Beregn1!P61,"-") -> 93.45954861 | H33: mm
A41: Regnbed med faskine
A42: Dybder | D42: Gyldighedsområde | F42: Effekt
A43: Overfladefordybning | B43: 300 | C43: mm | D43: (100 - 600) | F43: Årlig nedsivning | G43: =IF(Beregn1!$D$52=TRUE,(Beregn1!D55*100),"-") -> 68.25 | H43: % | I43: =IF(G43="-","-",Beregn1!$B$36*(G43/100)) -> 33.4090575 | J43: m³
A44: Filtermuld | B44: 500 | C44: mm | D44: (300 - 600) | F44: Årlig fordampning | G44: =IF(Beregn1!$D$52=TRUE,(Beregn1!D56*100),"-") -> 31.5 | H44: % | I44: =IF(G44="-","-",Beregn1!$B$36*(G44/100)) -> 15.419565 | J44: m³
A45: Faskine | B45: 1000 | C45: mm | D45: (400 - 1000) | F45: Årlig overløb | G45: =IF(Beregn1!$D$52=TRUE,(Beregn1!D58*100),"-") -> 0.5 | H45: % | I45: =IF(G45="-","-",Beregn1!$B$36*(G45/100)) -> 0.244755 | J45: m³
F46: Gentagelsesperiod for overløb | G46: =IF(Beregn1!$D$52=TRUE,Beregn1!D59,"-") -> 21.7426 | H46: år
A47: Hydraulisk ledningsevne i undergrund | B47: =B15 -> 2e-07 | C47: m/s | D47: (1.39E-07 - 3.34E-05) | F47: Regndybde håndteret før overløb | G47: =IF(Beregn1!$D$52=TRUE,Beregn1!Q61,"-") -> 136.237066 | H47: mm
A49: Arealforhold | B49: =$B$12 -> 0.111969112 | D49: (0.02 - 0.2)
A53: Regnbed med faskine og hævet drosselledning
A54: Dybder | D54: Gyldighedsområde | F54: Effekt
A55: Overfladefordybning | B55: 300 | C55: mm | D55: (100 - 600) | F55: Årlig nedsivning | G55: =IF(Beregn1!$F$52=TRUE,(Beregn1!F55*100),"-") -> 34.94 | H55: % | I55: =IF(G55="-","-",Beregn1!$B$36*(G55/100)) -> 17.1034794 | J55: m³
A56: Filtermuld | B56: 500 | C56: mm | D56: (300 - 600) | F56: Årlig fordampning | G56: =IF(Beregn1!$F$52=TRUE,(Beregn1!F56*100),"-") -> 31.52 | H56: % | I56: =IF(G56="-","-",Beregn1!$B$36*(G56/100)) -> 15.4293552 | J56: m³
A57: Faskine | B57: 1000 | C57: mm | D57: (400 - 1000) | F57: Årlig forsinket afledning | G57: =IF(Beregn1!$F$52=TRUE,(Beregn1!F57*100),"-") -> 33.58 | H57: % | I57: =IF(G57="-","-",Beregn1!$B$36*(G57/100)) -> 16.4377458 | J57: m³
F58: Årlig overløb | G58: =IF(Beregn1!$F$52=TRUE,(Beregn1!F58*100),"-") -> 0 | H58: % | I58: =IF(G58="-","-",Beregn1!$B$36*(G58/100)) -> 0 | J58: m³
A59: Drosselledning | F59: Gentagelsesperiod for overløb | G59: =IF(Beregn1!$F$52=TRUE,Beregn1!F59,"-") -> 30.7416 | H59: år
A60: Afløbstal for drosselledning | B60: 5 | C60: L/s/ha | D60: (5 - 100) | F60: Regndybde håndteret før overløb | G60: =IF(Beregn1!$F$52=TRUE,Beregn1!S61,"-") -> 139.8499826 | H60: mm
A61: Hævet drosselledning over faskinebund | B61: 500 | C61: mm | D61: (0 - 1000)
A63: Hydraulisk ledningsevne i undergrund | B63: =B15 -> 2e-07 | C63: m/s | D63: (1.39E-07 - 3.34E-05)
A65: Arealforhold | B65: =$B$12 -> 0.111969112 | D65: (0.02 - 0.2)
A67: Regnbed med drænet faskine og tæt bund
A68: Dybder | D68: Gyldighedsområde | F68: Effekt
A69: Overfladefordybning | B69: 300 | C69: mm | D69: (100 - 600) | F69: Årlig fordampning | G69: =IF(Beregn1!$E$52=TRUE,(Beregn1!E56*100),"-") -> 31.5 | H69: % | I69: =IF(G69="-","-",Beregn1!$B$36*(G69/100)) -> 15.419565 | J69: m³
A70: Filtermuld | B70: 500 | C70: mm | D70: (300 - 600) | F70: Årlig forsinket afledning | G70: =IF(Beregn1!$E$52=TRUE,(Beregn1!E57*100),"-") -> 68.5 | H70: % | I70: =IF(G70="-","-",Beregn1!$B$36*(G70/100)) -> 33.531435 | J70: m³
A71: Faskine | B71: 1000 | C71: mm | D71: (400 - 1000) | F71: Årlig overløb | G71: =IF(Beregn1!$E$52=TRUE,(Beregn1!E58*100),"-") -> 0 | H71: % | I71: =IF(G71="-","-",Beregn1!$B$36*(G71/100)) -> 0 | J71: m³
F72: Gentagelsesperiod for overløb | G72: =IF(Beregn1!$E$52=TRUE,Beregn1!E59,"-") -> 30.7416 | H72: år
A73: Drosselledning | F73: Regndybde håndteret før overløb | G73: =IF(Beregn1!$E$52=TRUE,Beregn1!R61,"-") -> 140.7532118 | H73: mm
A74: Afløbstal for drosselledning | B74: 5 | C74: L/s/ha | D74: (5 - 100)
A77: Arealforhold | B77: =$B$12 -> 0.111969112 | D77: (0.02 - 0.2)
A79: Grønt tag
A80: Konstant drænlæg på 30 mm | D80: Gyldighedsområde | F80: Effekt
A81: Tykkelse (vækstmedie) | B81: 60 | C81: mm | D81: (30 - 80) | F81: Årlig fordampning | G81: =Beregn1!L56 -> 27.13513514 | H81: % | I81: =Beregn1!K56 -> 13.28292 | J81: m³
F82: Årlig forsinket afledning | G82: =Beregn1!L57 -> 5.374517375 | H82: % | I82: =Beregn1!K57 -> 2.63088 | J82: m³
F83: Årlig overløb | G83: =Beregn1!L58 -> 0 | H83: % | I83: =Beregn1!K58 -> 0 | J83: m³
F84: Årlige direkte afledning | G84: =Beregn1!L61 -> 67.49034749 | H84: % | I84: =Beregn1!K61 -> 33.0372 | J84: m³
F85: Gentagelsesperiod for overløb | G85: =IF(Beregn1!$G$52=TRUE,Beregn1!H59,"-") -> 13.663 | H85: år
F86: Regndybde håndteret før overløb | G86: =IF(Beregn1!$G$52=TRUE,Beregn1!T61,"-") -> 45 | H86: mm
A88: Vådt bassin
D89: Gyldighedsområde | F89: Effekt
A90: Drosselledning | F90: Årlig fordampning | G90: =IF(Beregn1!$H$52=TRUE,(Beregn1!G56),"-") -> 26.62 | H90: % | I90: =IF(G90="-","-",Beregn1!$B$36*(G90/100)) -> 13.0307562 | J90: m³
A91: Afløbstal for drosselledning | B91: 5 | C91: L/s/ha | D91: (0.5 - 100) | F91: Årlig forsinket afledning | G91: =IF(Beregn1!$H$52=TRUE,(Beregn1!G57),"-") -> 73.41 | H91: % | I91: =IF(G91="-","-",Beregn1!$B$36*(G91/100)) -> 35.9349291 | J91: m³
F92: Årlig overløb | G92: =IF(Beregn1!$H$52=TRUE,(Beregn1!G58),"-") -> 0 | H92: % | I92: =IF(G92="-","-",Beregn1!$B$36*(G92/100)) -> 0 | J92: m³
A93: Arealforhold | B93: =$B$12 -> 0.111969112 | D93: (0.04 - 0.87) | F93: Gentagelsesperiod for overløb | G93: =IF(Beregn1!$H$52=TRUE,Beregn1!G59,"-") -> >41 | H93: år
F94: Regndybde håndteret før overløb | G94: =IF(Beregn1!$H$52=TRUE,Beregn1!U61,"-") -> 87.96296296 | H94: mm
B95: min | C95: max
A96: Volume interval [m³] | B96: =Beregn1!C134 -> 2.0202 | C96: =Beregn1!C135 -> 7.6146
A98: Volume | B98: 7.6 | C98: m³ | D98: (min - max)

Sheet Beregn1 (hidden)
A1: Note: Nogle celler er i formen array, så hvis der laves ændringer skal man trykke Ctrl+Shift+Enter i feltet
A2: Oversigt over Excel faner og forkortelser
A3: Navngivning af LAR i database | B3: Forkortelse | C3: Dansk betegnelse | D3: Tilhørende faner | E3: Databehandling i (1) faner
E4: Data | F4: Kriterietable/-r for filtering | G4: Dataudtræk | H4: Korrigering af T_overflow | I4: Lineær interpolation
A5: Rain_Garden | B5: RG | C5: Regnbed | D5: RG_d (1), Rain_Garden (2) | E5: 2 | F5: 1 | G5: 1 | H5: 1 | I5: 1
A6: Soakaway_no_drain | B6: SA | C6: Faskine | D6: SA_d (1), Soakaway_no_drain (2) | E6: 2 | F6: 1 | G6: 1 | H6: 1 | I6: 1
A7: Bio_Retention_cell_no_drain | B7: BR1 | C7: Regnbed med faskine | D7: BR1_d (1), Bio_Retention_cell_no_drain (2) | E7: 2 | F7: 1 | G7: 1 | H7: 1 | I7: 1
A8: Bio_Retention_cell_no_exfiltration | B8: BR2 | C8: Regnbed med drænet faskine og tæt bund | D8: BR2_d (1), Bio_Retention_cell_no_exfiltrat (2) | E8: 2 | F8: 1 | G8: 1 | H8: 1 | I8: 1 | AC8: Bio_Retention_cell_no_drain | AD8: Bio_Retention_cell_no_exfiltration | AE8: Bio_Retention_cell_offset | AF8: Green_Roof | AG8: Rain_Garden | AH8: Soakaway_no_drain | AI8: Basin
A9: Bio_Retention_cell_offset | B9: BR3 | C9: Regnbed med faskine og hævet dræn | D9: BR3_d (1), Bio_Retention_cell_offset (2) | E9: 2 | F9: 1 | G9: 1 | H9: 1 | I9: 1 | AB9: K | AC9: x | AE9: x | AG9: x | AH9: x
A10: Green_Roof | B10: GR | C10: Grønt tag | D10: GR_d (1), Green_Roof (2) | E10: 2 | F10: 1 | G10: 1 | H10: 1 | I10: 1 | AB10: A_ratio | AC10: x | AD10: x | AE10: x | AG10: x | AH10: x
A11: Detention_Pond | B11: BA | C11: Vådt bassin | D11: BA_d (1), Detention_Pond (2) | E11: 2 | F11: 1 | G11: 1 | H11: 1 | I11: 1 | AB11: surface_depth | AC11: x | AD11: x | AE11: x
AB12: soil_depth | AC12: x | AD12: x | AE12: x
AB13: storage_depth | AC13: x | AD13: x | AE13: x
A14: Oversigt over bruger inputs & lineær interpolation | AB14: drain_coefficient | AD14: x | AE14: x
C15: RG | D15: SA | E15: BR1 | F15: BR2 | G15: BR3 | H15: GR | I15: BA | J15: Noter | AB15: drain_offset | AD15: x | AE15: x
A16: Hydraulisk konduktivitet (K) [mm/hr] | C16: =Bruger!B22*(1000)*((60*60)) -> 0.72 | D16: =Bruger!B30*(1000)*((60*60)) -> 0.72 | E16: =Bruger!B47*(1000)*((60*60)) -> 0.72 | F16: - | G16: =Bruger!B63*(1000)*((60*60)) -> 0.72 | H16: - | I16: - | AG16: x | AH16: x
A17: A_ratio | C17: =ROUND(Bruger!$B$12,3) -> 0.112 | D17: =ROUND(Bruger!$B$12,3) -> 0.112 | E17: =ROUND(Bruger!$B$12,3) -> 0.112 | F17: =ROUND(Bruger!$B$12,3) -> 0.112 | G17: =ROUND(Bruger!$B$12,3) -> 0.112 | H17: - | I17: =ROUND(Bruger!$B$12,3) -> 0.112 | AB17: Infiltrated | AC17: x | AE17: x | AG17: x | AH17: x
A18: Overfladefordybning [mm] | C18: 300 | D18: - | E18: =Bruger!B43 -> 300 | F18: =Bruger!B69 -> 300 | G18: =Bruger!B55 -> 300 | H18: - | J18: Fastholdte værdier | AB18: Evaporated | AC18: x | AD18: x | AE18: x | AG18: x | AH18: x
A19: Filtermuld [mm] | C19: 500 | D19: - | E19: =Bruger!B44 -> 500 | F19: =Bruger!B70 -> 500 | G19: =Bruger!B56 -> 500 | H19: =Bruger!B81 -> 60 | AB19: Drained | AD19: x | AE19: x
A20: Faskine / drænlag (GR) [mm] | C20: - | D20: =1000*2 -> 2000 | E20: =Bruger!B45*2 -> 2000 | F20: =Bruger!B71*2 -> 2000 | G20: =Bruger!B57*2 -> 2000 | H20: 30 | J20: i SWMM benyttes "void ratio" for faskinen i BR (hvis max er 0.475), så for at opnå en porøsitet på 0.95 i faskinen skal dybden ganges med 2. | AB20: Overflow | AC20: x | AD20: x | AE20: x | AG20: x | AH20: x
A21: Afløbstal [L/s/ha] | C21: - | D21: - | E21: - | F21: =Bruger!B74 -> 5 | G21: =Bruger!B60 -> 5 | H21: - | I21: =Bruger!B91 -> 5 | AB21: T_overflow | AC21: x | AD21: x | AE21: x | AG21: x | AH21: x
A22: Hævet dræn [mm] | C22: - | D22: - | E22: - | F22: =Bruger!B75 -> 0 | G22: =Bruger!B61 -> 500 | H22: - | I22: - | AB22: Available_Volume | AC22: x | AD22: x | AE22: x | AG22: x | AH22: x
A23: Bassin volumen [m3] | I23: =IF(Bruger!B98>0,Bruger!B98,"-") -> 7.6
A29: Lineær interpolation | B29: antal | C29: =COUNT(RG_d!J2:J10) -> 4 | D29: =COUNT(SA_d!J2:J10) -> 4 | E29: =COUNT(BR1_d!N2:N70) -> 4 | F29: =COUNT(BR2_d!T2:T440) -> 4 | G29: =COUNT(BR3_d!W2:W440) -> 16 | H29: =COUNT(GR_d!J2:J10) -> 1 | I29: =COUNT(BA_d!P2:P300) -> 2
B30: vægt | C30: =1/C29 -> 0.25 | D30: =1/D29 -> 0.25 | E30: 0.25 | F30: =1/F29 -> 0.25 | G30: 0.0625 | H30: =1/H29 -> 1 | I30: 0.5
A35: Nedbørsvolumen | D35: Regnserie brugt i simulationer
A36: Nedbørsvolumen [m3] | B36: =(Bruger!B3/1000)*(Bruger!B8*10000) -> 48.951 | D36: Regnseriens længde [år] | E36: 41
A37: Nedbørsvolumen på grønne tage [m3] | B37: =(Bruger!B3/1000)*Bruger!B11 -> 5.481
A39: Check om inputs værdierne er indenfor interval i data
C40: Er input værdien indenfor interval?
D41: BR1 | E41: BR2 | F41: BR3 | G41: GR | H41: BA
A42: RG & SA | B42: K | C42: =IF(AND(C16>=MIN(A151:A190),C16<=MAX(A151:A190)),TRUE,FALSE) -> TRUE
B43: A_ratio | C43: =IF(AND(C17>=MIN(B151:B190),C17<=MAX(B151:B190)),TRUE,FALSE) -> TRUE
B44: Overordnet | C44: =IF(AND(C42=TRUE,C43=TRUE),TRUE,FALSE) -> TRUE
A45: BRs & GR & BA | B45: K | C45: =IF(AND(E16>=MIN(E151:E190),E16<=MAX(E151:E190)),TRUE,FALSE) -> TRUE
B46: A_ratio | C46: =IF(AND(E17>=MIN(F151:F190),E17<=MAX(F151:F190)),TRUE,FALSE) -> TRUE | D46: =IF(AND(E17>=MIN(F151:F190),E17<=MAX(F151:F190)),TRUE,FALSE) -> TRUE | E46: =IF(AND(F17>=MIN(J151:J190),F17<=MAX(J151:J190)),TRUE,FALSE) -> TRUE | F46: =IF(AND(G17>=MIN(Q151:Q190),G17<=MAX(Q151:Q190)),TRUE,FALSE) -> TRUE | H46: =IF(AND(I17>=MIN(W151:W240),I17<=MAX(W151:W240)),TRUE,FALSE) -> TRUE | I46: Bruges i VBA kode til overordnet se om A_ratio for BRs er indenfor intervallet
B47: surface_depth | D47: =IF(AND(E18>=MIN(G151:G190),E18<=MAX(G151:G190)),TRUE,FALSE) -> TRUE | E47: =IF(AND(F18>=MIN(K151:K190),F18<=MAX(K151:K190)),TRUE,FALSE) -> TRUE | F47: =IF(AND(G18>=MIN(R151:R190),G18<=MAX(R151:R190)),TRUE,FALSE) -> TRUE
B48: soil_depth / thickness (GR) | D48: =IF(AND(E19>=MIN(H151:H190),E19<=MAX(H151:H190)),TRUE,FALSE) -> TRUE | E48: =IF(AND(F19>=MIN(L151:L190),F19<=MAX(L151:L190)),TRUE,FALSE) -> TRUE | F48: =IF(AND(G19>=MIN(S151:S190),G19<=MAX(S151:S190)),TRUE,FALSE) -> TRUE | G48: =IF(AND(H19>=MIN(AA151:AA190),H19<=MAX(AA151:AA190)),TRUE,FALSE) -> TRUE
B49: storage_depth | D49: =IF(AND(E20>=MIN(I151:I190),E20<=MAX(I151:I190)),TRUE,FALSE) -> TRUE | E49: =IF(AND(F20>=MIN(M151:M190),F20<=MAX(M151:M190)),TRUE,FALSE) -> TRUE | F49: =IF(AND(G20>=MIN(T151:T190),G20<=MAX(T151:T190)),TRUE,FALSE) -> TRUE
B50: Volume (BA) | H50: =IF(AND(D127>=MIN(X151:X240),D127<=MAX(X151:X240)),TRUE,FALSE) -> TRUE
B51: Afløbstal (BA) | H51: =IF(AND(I21>=MIN(X113:X129),I21<=MAX(X113:X129)),TRUE,FALSE) -> TRUE
B52: Overordnet | D52: =IF(AND(C45=TRUE,D46=TRUE,D47=TRUE,D48=TRUE,D49=TRUE),TRUE,FALSE) -> TRUE | E52: =IF(AND(C45=TRUE,E46=TRUE,E47=TRUE,E48=TRUE,E49=TRUE),TRUE,FALSE) -> TRUE | F52: =IF(AND(C45=TRUE,F46=TRUE,F47=TRUE,F48=TRUE,F49=TRUE),TRUE,FALSE) -> TRUE | G52: =IF(G48=TRUE,TRUE,FALSE) -> TRUE | H52: =IF(AND(H50=TRUE,H51=TRUE),TRUE,FALSE) -> TRUE
A53: Output | N53: Udregn uniform regndybde
A54: Effekten | B54: RG | C54: SA | D54: BR1 | E54: BR2 | F54: BR3 | G54: BA | H54: GR (kun for LAR areal) | I54: check GR (kun LAR) | J54: GR (kun LAR) [m3] | K54: GR (opland +evap + LAR) [m3] | L54: GR (opland+LAR) [%] | O54: RG | P54: SA | Q54: BR1 | R54: BR2 | S54: BR3 | T54: GR | U54: BA
A55: Nedsivning [-] | B55: =RG_d!AH2 -> 0.634 | C55: =SA_d!AH2 -> 0.721 | D55: =BR1_d!AO2 -> 0.6825 | F55: =BR3_d!BC2 -> 0.3494 | N55: Overfladelag, beplantning [-] | O55: =5/100 -> 0.05 | Q55: =5/100 -> 0.05 | R55: =5/100 -> 0.05 | S55: =5/100 -> 0.05
A56: Fordampning [-] | B56: =RG_d!AI2 -> 0.316 | C56: =SA_d!AI2 -> 0.276 | D56: =BR1_d!AP2 -> 0.315 | E56: =BR2_d!AV2 -> 0.315 | F56: =BR3_d!BD2 -> 0.3152 | G56: =IFERROR(BA_d!AP2,"-") -> 26.62 | H56: =GR_d!AG2 -> 0.52 | I56: =IF(Beregn1!$G$52=TRUE,Beregn1!H56,"-") -> 0.52 | J56: =Bruger!$B$12*(Bruger!$B$8*10000)*(Bruger!$B$3/1000)*I56 -> 2.85012 | K56: =J56+(J61*K63) -> 13.28292 | L56: =(K56/$K$62)*100 -> 27.13513514 | N56: Filtermuld, porositet [-] | O56: =52/100 -> 0.52 | Q56: =52/100 -> 0.52 | R56: =52/100 -> 0.52 | S56: =52/100 -> 0.52 | T56: 0.5
A57: Forsinket afledning [-] | E57: =BR2_d!AW2 -> 0.685 | F57: =BR3_d!BE2 -> 0.3358 | G57: =IFERROR(BA_d!AQ2,"-") -> 73.41 | H57: =GR_d!AH2 -> 0.48 | I57: =IF(Beregn1!$G$52=TRUE,Beregn1!H57,"-") -> 0.48 | J57: =Bruger!$B$12*(Bruger!$B$8*10000)*(Bruger!$B$3/1000)*I57 -> 2.63088 | K57: =J57 -> 2.63088 | L57: =(K57/$K$62)*100 -> 5.374517375 | N57: Faskine, porositet [-] | P57: =95/100/2 -> 0.475 | Q57: =95/100/2 -> 0.475 | R57: =95/100/2 -> 0.475 | S57: =95/100/2 -> 0.475 | T57: 0.5
A58: Overløb [-] | B58: =RG_d!AJ2 -> 0.054 | C58: =SA_d!AJ2 -> 0.01 | D58: =BR1_d!AQ2 -> 0.005 | E58: =BR2_d!AX2 -> 0 | F58: =BR3_d!BF2 -> 0 | G58: =IFERROR(BA_d!AR2,"-") -> 0 | H58: =GR_d!AI2 -> 0 | I58: =IF(Beregn1!$G$52=TRUE,Beregn1!H58,"-") -> 0 | J58: =Bruger!$B$12*(Bruger!$B$8*10000)*(Bruger!$B$3/1000)*I58 -> 0 | K58: =J58 -> 0 | L58: =(K58/$K$62)*100 -> 0 | N58: Effektive dybde [m] | O58: =((C18*(1-O55))+(C19*O56))/1000 -> 0.545 | P58: =(D20*P57)/1000 -> 0.95 | Q58: =((E18*(1-Q55))+(E19*Q56)+(E20*Q57))/1000 -> 1.495 | R58: =((F18*(1-R55))+(F19*R56)+(F20*R57))/1000 -> 1.495 | S58: =((G18*(1-S55))+(G19*S56)+(G20*S57))/1000 -> 1.495 | T58: =((H19*T56)+(H20*T57))/1000 -> 0.045
A59: Gentagelsesperiode for overløb [år] | B59: =IF(RG_d!AK2=E36,">"&E36,RG_d!AK2) -> 0.671 | C59: =IF(SA_d!AK2=E36,">"&E36,SA_d!AK2) -> 8.427 | D59: =IF(BR1_d!AR2=E36,">"&E36,BR1_d!AR2) -> 21.7426 | E59: =IF(BR2_d!AY2=E36,">"&E36,BR2_d!AY2) -> 30.7416 | F59: =IF(BR3_d!BG2=E36,">"&E36,BR3_d!BG2) -> 30.7416 | G59: =IFERROR(G62,G63) -> >41 | H59: =IF(GR_d!AJ2=E36,">"&E36,GR_d!AJ2) -> 13.663 | I59: =IF(Beregn1!$G$52=TRUE,Beregn1!H59,"-") -> 13.663 | N59: Effektive volume [m3] | O59: =O58*Bruger!$B$11 -> 4.7415 | P59: =P58*Bruger!$B$11 -> 8.265 | Q59: =Q58*Bruger!$B$11 -> 13.0065 | R59: =R58*Bruger!$B$11 -> 13.0065 | S59: =S58*Bruger!$B$11 -> 13.0065 | T59: =T58*Bruger!$B$11 -> 0.3915 | U59: =I23 -> 7.6
A60: AVL_vol [-] | B60: =RG_d!AL2 -> 0.756 | C60: =SA_d!AL2 -> 0.977 | D60: =BR1_d!AS2 -> 0.905 | E60: =BR2_d!AZ2 -> 0.935 | F60: =BR3_d!BH2 -> 0.929 | G60: =IFERROR(BA_d!AT2,"-") -> 1 | H60: =GR_d!AK2 -> 1 | I60: =IF(Beregn1!$G$52=TRUE,Beregn1!H60,"-") -> 1 | N60: Effektive AVL volume [m3] | O60: =O59*B60 -> 3.584574 | P60: =P59*C60 -> 8.074905 | Q60: =Q59*D60 -> 11.7708825 | R60: =R59*E60 -> 12.1610775 | S60: =S59*F60 -> 12.0830385 | T60: =T59*H60 -> 0.3915 | U60: =IF(G60="-","-",U59*G60) -> 7.6
A61: Direkte afledning (kun for GR!) [-] | J61: =(1-Bruger!$B$12)*(Bruger!$B$8*10000)*(Bruger!$B$3/1000) -> 43.47 | K61: =J61*(1-K63) -> 33.0372 | L61: =(K61/$K$62)*100 -> 67.49034749 | N61: Regndybde [mm] | O61: =(O60/$O$62)*1000 -> 41.488125 | P61: =(P60/$O$62)*1000 -> 93.45954861 | Q61: =(Q60/$O$62)*1000 -> 136.237066 | R61: =(R60/$O$62)*1000 -> 140.7532118 | S61: =(S60/$O$62)*1000 -> 139.8499826 | T61: =(T60/$T$62)*1000 -> 45 | U61: =IF(U60="-","-",(U60/$U$62)*1000) -> 87.96296296
F62: For BA | G62: =IF(BA_d!AS2=E36,">"&E36,BA_d!AS2) -> >41 | I62: Sum | J62: =SUM(J56:J61) -> 48.951 | K62: =SUM(K56:K61) -> 48.951 | L62: =SUM(L56:L61) -> 100 | N62: Total areal (befæstet+LAR) [m2] | O62: =(Bruger!$B$8*10000)+Bruger!$B$11 -> 86.4 | T62: =Bruger!$B$11 -> 8.7 | U62: =(Bruger!$B$8*10000)+Bruger!$B$11 -> 86.4
G63: =IFERROR(BA_d!AS2,"-") -> 41 | J63: evap fra opland (GR) [-] | K63: 0.24
A66: Nedenstående er til brug i dataudtræk og yderligere filtrering af data for LAR-elementerne
A67: Regnbed & Faskine | B67: Regnbed & Faskine
B68: K | C68: A_ratio
A69: Input værdi | B69: =C16 -> 0.72 | C69: =C17 -> 0.112
A70: Er værdien en del af datasættet? | B70: =IF(ISNUMBER(MATCH(B69,A151:A190,0)),TRUE,FALSE) -> FALSE | C70: =IF(ISNUMBER(MATCH(C69,B151:B190,0)),TRUE,FALSE) -> FALSE
A71: Største nærmeste værdi (array) | B71: =(IF(B70=FALSE,MIN(IF(A151:A190>B69,A151:A190)),FALSE)) -> 0.8 | C71: =(IF(C70=FALSE,MIN(IF(B151:B190>C69,B151:B190)),FALSE)) -> 0.15
A72: Mindste nærmeste værdi (array) | B72: =IF(B70=FALSE,MAX(IF(A151:A190<B69,A151:A190)),FALSE) -> 0.7 | C72: =IF(C70=FALSE,MAX(IF(B151:B190<C69,B151:B190)),FALSE) -> 0.1
A73: høj/input | B73: =IF(B70=TRUE,B69,B71) -> 0.8 | C73: =IF(C70=TRUE,C69,C71) -> 0.15
A74: lav | B74: =IF(B70=TRUE,0,B72) -> 0.7 | C74: =IF(C70=TRUE,0,C72) -> 0.1
A76: Regnbed med faskine (BR1)
B77: K | C77: A_ratio | D77: surface_depth | E77: soil_depth | F77: storage_depth
A78: Input værdi | B78: =E16 -> 0.72 | C78: =E17 -> 0.112 | D78: =E18 -> 300 | E78: =E19 -> 500 | F78: =E20 -> 2000
A79: Er værdien en del af datasættet? | B79: =IF(ISNUMBER(MATCH(B78,E151:E190,0)),TRUE,FALSE) -> FALSE | C79: =IF(ISNUMBER(MATCH(C78,F151:F190,0)),TRUE,FALSE) -> FALSE | D79: =IF(ISNUMBER(MATCH(D78,G151:G190,0)),TRUE,FALSE) -> TRUE | E79: TRUE | F79: TRUE
A80: Største nærmeste værdi (array) | B80: =(IF(B79=FALSE,MIN(IF(E151:E190>B78,E151:E190)),FALSE)) -> 0.8 | C80: =(IF(C79=FALSE,MIN(IF(F151:F190>C78,F151:F190)),FALSE)) -> 0.15 | D80: =(IF(D79=FALSE,MIN(IF(G151:G190>D78,G151:G190)),FALSE)) -> FALSE | E80: =(IF(E79=FALSE,MIN(IF(H151:H190>E78,H151:H190)),FALSE)) -> FALSE | F80: =(IF(F79=FALSE,MIN(IF(I151:I190>F78,I151:I190)),FALSE)) -> FALSE
A81: Mindste nærmeste værdi (array) | B81: =IF(B79=FALSE,MAX(IF(E151:E190<B78,E151:E190)),FALSE) -> 0.7 | C81: =IF(C79=FALSE,MAX(IF(F151:F190<C78,F151:F190)),FALSE) -> 0.1 | D81: =IF(D79=FALSE,MAX(IF(G151:G190<D78,G151:G190)),FALSE) -> FALSE | E81: =IF(E79=FALSE,MAX(IF(H151:H190<E78,H151:H190)),FALSE) -> FALSE | F81: =IF(F79=FALSE,MAX(IF(I151:I190<F78,I151:I190)),FALSE) -> FALSE
A82: høj/input | B82: =IF(B79=TRUE,B78,B80) -> 0.8 | C82: =IF(C79=TRUE,C78,C80) -> 0.15 | D82: =IF(D79=TRUE,D78,D80) -> 300 | E82: 500 | F82: 2000
A83: lav | B83: =IF(B79=TRUE,0,B81) -> 0.7 | C83: =IF(C79=TRUE,0,C81) -> 0.1 | D83: =IF(D79=TRUE,0,D81) -> 0 | E83: 0 | F83: 0
A85: Regnbed med drænet faskine og tæt bund (BR2)
C87: A_ratio | D87: surface_depth | E87: soil_depth | F87: storage_depth | G87: drain_offset | H87: drain_coefficient, C | I87: a [L/s/ha] | J87: C when A_ratio and a are NOT part of dataset | L87: C when A_ratio is part of dataset | M87: C when a is part of lookup table | N87: C when both a and A_ratio is part of dataset
A88: Input værdi | C88: =F17 -> 0.112 | D88: =F18 -> 300 | E88: =F19 -> 500 | F88: =F20 -> 2000 | G88: =F22 -> 0 | I88: =F21 -> 5
A89: Er værdien en del af datasættet? | C89: =IF(ISNUMBER(MATCH(C88,J151:J190,0)),TRUE,FALSE) -> FALSE | D89: =IF(ISNUMBER(MATCH(D88,K151:K190,0)),TRUE,FALSE) -> TRUE | E89: FALSE | F89: TRUE | G89: =IF(ISNUMBER(MATCH(G88,O151:O190,0)),TRUE,FALSE) -> TRUE | I89: =IF(ISNUMBER(MATCH(I88,AA113:AA117,0)),TRUE,FALSE) -> TRUE | J89: =IF(J90=FALSE,FALSE,TRUE) -> FALSE | L89: =IF(L90=FALSE,FALSE,TRUE) -> FALSE | M89: =IF(M90=FALSE,FALSE,TRUE) -> TRUE | N89: =IF(N90=FALSE,FALSE,TRUE) -> FALSE
A90: Største nærmeste værdi (array) | C90: =(IF(C89=FALSE,MIN(IF(J151:J190>C88,J151:J190)),FALSE)) -> 0.15 | D90: =(IF(D89=FALSE,MIN(IF(K151:K190>D88,K151:K190)),FALSE)) -> FALSE | E90: =(IF(E89=FALSE,MIN(IF(L151:L190>E88,L151:L190)),FALSE)) -> 600 | F90: =(IF(F89=FALSE,MIN(IF(M151:M190>F88,M151:M190)),FALSE)) -> FALSE | G90: =(IF(G89=FALSE,MIN(IF(O151:O190>G88,O151:O190)),FALSE)) -> FALSE | I90: =(IF(I89=FALSE,MIN(IF(AA113:AA117>I88,AA113:AA117)),FALSE)) -> FALSE | J90: =IF(OR(C90=FALSE,I90=FALSE),FALSE,INDEX($AA$112:$AF$117,MATCH(I90,$AA$112:$AA$117,0),MATCH(C90,$AA$112:$AF$112,0))) -> FALSE | K90: =IF(OR(C90=FALSE,I90=FALSE),FALSE,INDEX($AA$112:$AF$117,MATCH(I91,$AA$112:$AA$117,0),MATCH(C90,$AA$112:$AF$112,0))) -> FALSE | L90: =IF(AND(C89=TRUE,I89=FALSE),INDEX($AA$112:$AF$117,MATCH(I90,$AA$112:$AA$117,0),MATCH(C88,$AA$112:$AF$112,0)),FALSE) -> FALSE | M90: =IF(AND(C89=FALSE,I89=TRUE),INDEX($AA$112:$AF$117,MATCH(I88,$AA$112:$AA$117,0),MATCH(C90,$AA$112:$AF$112,0)),FALSE) -> 12 | N90: =IF(AND(C89=TRUE,I89=TRUE),INDEX($AA$112:$AF$117,MATCH(I88,$AA$112:$AA$117,0),MATCH(C88,$AA$112:$AF$112,0)),FALSE) -> FALSE
A91: Mindste nærmeste værdi (array) | C91: =IF(C89=FALSE,MAX(IF(J151:J190<C88,J151:J190)),FALSE) -> 0.1 | D91: =IF(D89=FALSE,MAX(IF(K151:K190<D88,K151:K190)),FALSE) -> FALSE | E91: =IF(E89=FALSE,MAX(IF(L151:L190<E88,L151:L190)),FALSE) -> 450 | F91: =IF(F89=FALSE,MAX(IF(M151:M190<F88,M151:M190)),FALSE) -> FALSE | G91: =IF(G89=FALSE,MAX(IF(O151:O190<G88,O151:O190)),FALSE) -> FALSE | I91: =IF(I89=FALSE,MAX(IF(AA113:AA117<I88,AA113:AA117)),FALSE) -> FALSE | J91: =IF(OR(C90=FALSE,I90=FALSE),FALSE,INDEX($AA$112:$AF$117,MATCH(I90,$AA$112:$AA$117,0),MATCH(C91,$AA$112:$AF$112,0))) -> FALSE | K91: =IF(OR(C90=FALSE,I90=FALSE),FALSE,INDEX($AA$112:$AF$117,MATCH(I91,$AA$112:$AA$117,0),MATCH(C91,$AA$112:$AF$112,0))) -> FALSE | L91: =IF(AND(C89=TRUE,I89=FALSE),INDEX($AA$112:$AF$117,MATCH(I91,$AA$112:$AA$117,0),MATCH(C88,$AA$112:$AF$112,0)),FALSE) -> FALSE | M91: =IF(AND(C89=FALSE,I89=TRUE),INDEX($AA$112:$AF$117,MATCH(I88,$AA$112:$AA$117,0),MATCH(C91,$AA$112:$AF$112,0)),FALSE) -> 18
A92: høj/input | C92: =IF(C89=TRUE,C88,C90) -> 0.15 | D92: =IF(D89=TRUE,D88,D90) -> 300 | E92: 600 | F92: 2000 | G92: 0 | H92: 12 | I92: 0 | J92: ↓
A93: lav | C93: =IF(C89=TRUE,0,C91) -> 0.1 | D93: =IF(D89=TRUE,0,D91) -> 0 | E93: 450 | F93: 0 | G93: 0 | H93: 18 | I93: 0
J94: (A_ratio,a)
J95: (max,max) | K95: (max,min)
J96: (min,max) | K96: (min,min)
A98: Regnbed med faskine og hævet dræn (BR3)
B100: K | C100: A_ratio | D100: surface_depth | E100: soil_depth | F100: storage_depth | G100: drain_offset | H100: drain_coefficient, C | I100: a [L/s/ha] | J100: C when A_ratio and a are NOT part of dataset | L100: C when A_ratio is part of dataset | M100: C when a is part of lookup table | N100: C when both a and A_ratio is part of dataset
A101: Input værdi | B101: =G16 -> 0.72 | C101: =G17 -> 0.112 | D101: =G18 -> 300 | E101: =G19 -> 500 | F101: =G20 -> 2000 | G101: =G22 -> 500 | I101: =G21 -> 5
A102: Er værdien en del af datasættet? | B102: =IF(ISNUMBER(MATCH(B101,P151:P190,0)),TRUE,FALSE) -> FALSE | C102: =IF(ISNUMBER(MATCH(C101,Q151:Q190,0)),TRUE,FALSE) -> FALSE | D102: TRUE | E102: FALSE | F102: TRUE | G102: =IF(ISNUMBER(MATCH(G101,V151:V190,0)),TRUE,FALSE) -> TRUE | I102: =IF(ISNUMBER(MATCH(I101,AA113:AA117,0)),TRUE,FALSE) -> TRUE | J102: =IF(J103=FALSE,FALSE,TRUE) -> FALSE | L102: =IF(L103=FALSE,FALSE,TRUE) -> FALSE | M102: =IF(M103=FALSE,FALSE,TRUE) -> TRUE | N102: =IF(N103=FALSE,FALSE,TRUE) -> FALSE
A103: Største nærmeste værdi (array) | B103: =(IF(B102=FALSE,MIN(IF(P151:P190>B101,P151:P190)),FALSE)) -> 1 | C103: =(IF(C102=FALSE,MIN(IF(Q151:Q190>C101,Q151:Q190)),FALSE)) -> 0.15 | D103: =(IF(D102=FALSE,MIN(IF(R151:R190>D101,R151:R190)),FALSE)) -> FALSE | E103: =(IF(E102=FALSE,MIN(IF(S151:S190>E101,S151:S190)),FALSE)) -> 600 | F103: =(IF(F102=FALSE,MIN(IF(T151:T190>F101,T151:T190)),FALSE)) -> FALSE | G103: =(IF(G102=FALSE,MIN(IF(V151:V190>G101,V151:V190)),FALSE)) -> FALSE | I103: =(IF(I102=FALSE,MIN(IF(AA113:AA117>I101,AA113:AA117)),FALSE)) -> FALSE | J103: =IF(OR(C103=FALSE,I103=FALSE),FALSE,INDEX($AA$112:$AF$117,MATCH(I103,$AA$112:$AA$117,0),MATCH(C103,$AA$112:$AF$112,0))) -> FALSE | K103: =IF(OR(C103=FALSE,I103=FALSE),FALSE,INDEX($AA$112:$AF$117,MATCH(I104,$AA$112:$AA$117,0),MATCH(C103,$AA$112:$AF$112,0))) -> FALSE | L103: =IF(AND(C102=TRUE,I102=FALSE),INDEX($AA$112:$AF$117,MATCH(I103,$AA$112:$AA$117,0),MATCH(C101,$AA$112:$AF$112,0)),FALSE) -> FALSE | M103: =IF(AND(C102=FALSE,I102=TRUE),INDEX($AA$112:$AF$117,MATCH(I101,$AA$112:$AA$117,0),MATCH(C103,$AA$112:$AF$112,0)),FALSE) -> 12 | N103: =IF(AND(C102=TRUE,I102=TRUE),INDEX($AA$112:$AF$117,MATCH(I101,$AA$112:$AA$117,0),MATCH(C101,$AA$112:$AF$112,0)),FALSE) -> FALSE
A104: Mindste nærmeste værdi (array) | B104: =IF(B102=FALSE,MAX(IF(P151:P190<B101,P151:P190)),FALSE) -> 0.7 | C104: =IF(C102=FALSE,MAX(IF(Q151:Q190<C101,Q151:Q190)),FALSE) -> 0.1 | D104: =IF(D102=FALSE,MAX(IF(R151:R190<D101,R151:R190)),FALSE) -> FALSE | E104: =IF(E102=FALSE,MAX(IF(S151:S190<E101,S151:S190)),FALSE) -> 450 | F104: =IF(F102=FALSE,MAX(IF(T151:T190<F101,T151:T190)),FALSE) -> FALSE | G104: =IF(G102=FALSE,MAX(IF(V151:V190<G101,V151:V190)),FALSE) -> FALSE | I104: =IF(I102=FALSE,MAX(IF(AA113:AA117<I101,AA113:AA117)),FALSE) -> FALSE | J104: =IF(OR(C103=FALSE,I103=FALSE),FALSE,INDEX($AA$112:$AF$117,MATCH(I103,$AA$112:$AA$117,0),MATCH(C104,$AA$112:$AF$112,0))) -> FALSE | K104: =IF(OR(C103=FALSE,I103=FALSE),FALSE,INDEX($AA$112:$AF$117,MATCH(I104,$AA$112:$AA$117,0),MATCH(C104,$AA$112:$AF$112,0))) -> FALSE | L104: =IF(AND(C102=TRUE,I102=FALSE),INDEX($AA$112:$AF$117,MATCH(I104,$AA$112:$AA$117,0),MATCH(C101,$AA$112:$AF$112,0)),FALSE) -> FALSE | M104: =IF(AND(C102=FALSE,I102=TRUE),INDEX($AA$112:$AF$117,MATCH(I101,$AA$112:$AA$117,0),MATCH(C104,$AA$112:$AF$112,0)),FALSE) -> 18
A105: høj/input | B105: =IF(B102=TRUE,B101,B103) -> 1 | C105: =IF(C102=TRUE,C101,C103) -> 0.15 | D105: =IF(D102=TRUE,D101,D103) -> 300 | E105: 600 | F105: 2000 | G105: 500 | H105: 12 | I105: 0 | J105: ↓
A106: lav | B106: =IF(B102=TRUE,0,B104) -> 0.7 | C106: =IF(C102=TRUE,0,C104) -> 0.1 | D106: =IF(D102=TRUE,0,D104) -> 0 | E106: 450 | F106: 0 | G106: 0 | H106: 18 | I106: 0
J107: (A_ratio,a)
J108: (max,max) | K108: (max,min)
J109: (min,max) | K109: (min,min)
V110: LOOKUP TABLE for Vådt Bassin | AA110: LOOKUP TABLE for BR2 & BR3
A111: Grønt tag | AB111: C for A_ratio listed below [mm/hr]
V112: A_red [m2] | X112: Afløbstal [L/s/ha] | Y112: C [mm/hr] | AA112: Afløbstal [L/s/ha] | AB112: 0.02 | AC112: 0.05 | AD112: 0.1 | AE112: 0.15 | AF112: 0.2
B113: Thickness | V113: 10000 | X113: 0.5 | Y113: =(X113*1/$V$113)*3600 -> 0.18 | AA113: 5 | AB113: =AA113*1/($AB$112*$V$113)*3600 -> 90 | AC113: =AA113*1/($AC$112*$V$113)*3600 -> 36 | AD113: =AA113*1/($AD$112*$V$113)*3600 -> 18 | AE113: =AA113*1/($AE$112*$V$113)*3600 -> 12 | AF113: =AA113*1/($AF$112*$V$113)*3600 -> 9
A114: Input værdi | B114: =H19 -> 60 | X114: 0.75 | Y114: =(X114*1/$V$113)*3600 -> 0.27 | AA114: 10 | AB114: =AA114*1/($AB$112*$V$113)*3600 -> 180 | AC114: =AA114*1/($AC$112*$V$113)*3600 -> 72 | AD114: =AA114*1/($AD$112*$V$113)*3600 -> 36 | AE114: =AA114*1/($AE$112*$V$113)*3600 -> 24 | AF114: =AA114*1/($AF$112*$V$113)*3600 -> 18
A115: Er værdien en del af datasættet? | B115: =IF(ISNUMBER(MATCH(B114,AA151:AA190,0)),TRUE,FALSE) -> TRUE | V115: A_r [ha] | X115: 1 | Y115: 0.36 | AA115: 20 | AB115: =AA115*1/($AB$112*$V$113)*3600 -> 360 | AC115: =AA115*1/($AC$112*$V$113)*3600 -> 144 | AD115: =AA115*1/($AD$112*$V$113)*3600 -> 72 | AE115: =AA115*1/($AE$112*$V$113)*3600 -> 48 | AF115: =AA115*1/($AF$112*$V$113)*3600 -> 36
A116: Største nærmeste værdi (array) | B116: =(IF(B115=FALSE,MIN(IF(AA151:AA190>B114,AA151:AA190)),FALSE)) -> FALSE | V116: 1 | X116: 1.25 | Y116: 0.45 | AA116: 50 | AB116: =AA116*1/($AB$112*$V$113)*3600 -> 900 | AC116: =AA116*1/($AC$112*$V$113)*3600 -> 360 | AD116: =AA116*1/($AD$112*$V$113)*3600 -> 180 | AE116: =AA116*1/($AE$112*$V$113)*3600 -> 120 | AF116: =AA116*1/($AF$112*$V$113)*3600 -> 90
A117: Mindste nærmeste værdi (array) | B117: =IF(B115=FALSE,MAX(IF(AA151:AA190<B114,AA151:AA190)),FALSE) -> FALSE | X117: 1.5 | Y117: 0.54 | AA117: 100 | AB117: =AA117*1/($AB$112*$V$113)*3600 -> 1800 | AC117: =AA117*1/($AC$112*$V$113)*3600 -> 720 | AD117: =AA117*1/($AD$112*$V$113)*3600 -> 360 | AE117: =AA117*1/($AE$112*$V$113)*3600 -> 240 | AF117: =AA117*1/($AF$112*$V$113)*3600 -> 180
A118: høj/input | B118: =IF(B115=TRUE,B114,B116) -> 60 | X118: 1.75 | Y118: 0.63
A119: lav | B119: =IF(B115=TRUE,0,B117) -> 0 | X119: 2 | Y119: 0.72
X120: 3 | Y120: 1.08
X121: 4 | Y121: 1.44 | AA121: A_r [ha] | AB121: a [L/s/ha] | AC121: A_ratio [-] | AD121: q_drain [L/s] | AE121: C [mm/hr]
X122: 5 | Y122: =(X122*1/$V$113)*3600 -> 1.8 | AA122: 5 | AB122: 6 | AC122: 0.1 | AD122: =AB122*AA122 -> 30 | AE122: =(AD122/(AA122*10000*AC122))*3600 -> 21.6
X123: 10 | Y123: 3.6
A124: Vådt bassin | X124: 20 | Y124: 7.2
X125: 30 | Y125: 10.8
B126: A_ratio | C126: volume [m3] | D126: storage_volume [m3/ha] | E126: a [L/s/ha] | F126: drain_coefficient, C | G126: C when a is NOT part of dataset | H126: C when a is part of dataset | X126: 40 | Y126: 14.4
A127: Input værdi | B127: =I17 -> 0.112 | C127: =I23 -> 7.6 | D127: =C127/Bruger!B8 -> 978.1209781 | E127: =I21 -> 5 | G127: =IF(ISERROR(G129),FALSE,TRUE) -> TRUE | X127: 50 | Y127: 18
A128: Er værdien en del af datasættet? | B128: =IF(ISNUMBER(MATCH(B127,W151:W240,0)),TRUE,FALSE) -> FALSE | D128: =IF(ISNUMBER(MATCH(D127,BA_d!G2:G300,0)),TRUE,FALSE) -> FALSE | E128: =IF(ISNUMBER(MATCH(E127,X113:X129,0)),TRUE,FALSE) -> TRUE | G128: =IF(G127=FALSE,FALSE,TRUE) -> TRUE | H128: =IF(H129=FALSE,FALSE,TRUE) -> TRUE | X128: 75 | Y128: 27
A129: Største nærmeste værdi (array) | B129: =(IF(B128=FALSE,MIN(IF(W151:W240>B127,W151:W240)),FALSE)) -> 0.12 | D129: =(IF(D128=FALSE,MIN(IF(BA_d!G2:G300>D127,BA_d!G2:G300)),FALSE)) -> 980 | E129: =(IF(E128=FALSE,MIN(IF(X113:X129>E127,X113:X129)),FALSE)) -> FALSE | G129: =IF(E128=FALSE,INDEX($Y$113:$Y$129,MATCH(E129,$X$113:$X$129,0)),FALSE) -> FALSE | H129: =IF(E128=TRUE,INDEX($Y$113:$Y$129,MATCH(E127,$X$113:$X$129,0)),FALSE) -> 1.8 | X129: 100 | Y129: 36
A130: Mindste nærmeste værdi (array) | B130: =IF(B128=FALSE,MAX(IF(W151:W240<B127,W151:W240)),FALSE) -> 0.11 | D130: =IF(D128=FALSE,MAX(IF(BA_d!G2:G300<D127,BA_d!G2:G300)),FALSE) -> 960 | E130: =IF(E128=FALSE,MAX(IF(X113:X129<E127,X113:X129)),FALSE) -> FALSE | G130: =IF(E128=FALSE,INDEX($Y$113:$Y$129,MATCH(E130,$X$113:$X$129,0)),FALSE) -> FALSE
A131: høj/input | B131: =IF(B128=TRUE,B127,B129) -> 0.12 | D131: =IF(D128=TRUE,D127,D129) -> 980 | F131: 1.8
A132: lav | B132: =IF(B128=TRUE,0,B130) -> 0.11 | D132: =IF(D128=TRUE,0,D130) -> 960 | F132: 0
B133: Interval for storage volumen [m3/ha] | C133: volume [m3] | V133: DELETE ↓
A134: min | B134: 260 | C134: =B134*Bruger!$B$8 -> 2.0202 | V134: A_tot [m2] | X134: ↓ [L/s/ha] | Y134: L/s | Z134: C [mm/hr] for A_ratio listed below
A135: max | B135: 980 | C135: =B135*Bruger!$B$8 -> 7.6146 | V135: 1000 | X135: Afløbstal | Y135: q_drain | Z135: 0.02 | AA135: 0.05 | AB135: 0.1 | AC135: 0.15 | AD135: 0.2
X136: 0 | Y136: =X136*$V$138 -> 0 | Z136: =Y136/($Z$135*$V$135)*3600 -> 0 | AA136: =Y136/($AA$135*$V$135)*3600 -> 0 | AB136: =Y136/($AB$135*$V$135)*3600 -> 0 | AC136: =Y136/($AC$135*$V$135)*3600 -> 0 | AD136: =Y136/($AD$135*$V$135)*3600 -> 0
V137: A_r [ha] | X137: 5 | Y137: =X137*$V$138 -> 0.5 | Z137: =Y137/($Z$135*$V$135)*3600 -> 90 | AA137: 36 | AB137: 18 | AC137: 12 | AD137: 9
V138: 0.1 | X138: 10 | Y138: 1 | Z138: 180 | AA138: 72 | AB138: 36 | AC138: 24 | AD138: 18
X139: 20 | Y139: 2 | Z139: 360 | AA139: 144 | AB139: 72 | AC139: 48 | AD139: 36
X140: 50 | Y140: 5 | Z140: 900 | AA140: 360 | AB140: 180 | AC140: 120 | AD140: 90
X141: 100 | Y141: 10 | Z141: 1800 | AA141: 720 | AB141: 360 | AC141: 240 | AD141: 180
AN144: 0.79
AN146: 0.81
AN147: 0.82
A148: Unikke værdier for hver LAR-element
A149: Regnbed | C149: Faskine | E149: Regnbed med faskine (BR1) | J149: Regnbed med drænet faskine og tæt bund (BR2) | P149: Regnbed med faskine og hævet dræn (BR3) | W149: Vådt bassin | AA149: Grønt tag | AN149: 0.84
A150: K | B150: A_ratio | C150: K | D150: A_ratio | E150: K | F150: A_ratio | G150: surface_depth | H150: soil_depth | I150: storage_depth | J150: A_ratio | K150: surface_depth | L150: soil_depth | M150: storage_depth | N150: drain_coefficient | O150: drain_offset | P150: K | Q150: A_ratio | R150: surface_depth | S150: soil_depth | T150: storage_depth | U150: drain_coefficient | V150: drain_offset | W150: A_ratio | X150: storage_volume | Y150: storage_side_slope | Z150: drain_coefficient | AA150: Thickness
A151: 120 | B151: 0.02 | C151: 120 | D151: 0.02 | E151: 120 | F151: 0.02 | G151: 100 | H151: 300 | I151: 800 | J151: 0.02 | K151: 100 | L151: 300 | M151: 800 | N151: 90 | O151: 0 | P151: 120 | Q151: 0.02 | R151: 100 | S151: 300 | T151: 800 | U151: 90 | V151: 0 | W151: 0.04 | X151: 20 | Y151: 0.33 | Z151: 0.18 | AA151: 30 | AN151: 0.86
A152: 110 | B152: 0.05 | C152: 110 | D152: 0.05 | E152: 110 | F152: 0.05 | G152: 200 | H152: 400 | I152: 1000 | J152: 0.05 | K152: 300 | L152: 450 | M152: 1200 | N152: 180 | O152: 500 | P152: 100 | Q152: 0.05 | R152: 300 | S152: 450 | T152: 1200 | U152: 180 | V152: 500 | W152: 0.05 | X152: 40 | Y152: 0.17 | Z152: 0.27 | AA152: 35 | AN152: 0.87
A153: 100 | B153: 0.07 | C153: 100 | D153: 0.07 | E153: 100 | F153: 0.07 | G153: 300 | H153: 500 | I153: 1200 | J153: 0.1 | K153: 600 | L153: 600 | M153: 2000 | N153: 360 | O153: 1000 | P153: 80 | Q153: 0.1 | R153: 600 | S153: 600 | T153: 2000 | U153: 360 | V153: 1000 | W153: 0.06 | X153: 60 | Y153: 0.11 | Z153: 0.36 | AA153: 40
A154: 90 | B154: 0.1 | C154: 90 | D154: 0.1 | E154: 90 | F154: 0.1 | G154: 400 | H154: 600 | I154: 1600 | J154: 0.15 | N154: 900 | P154: 60 | Q154: 0.15 | U154: 900 | W154: 0.07 | X154: 80 | Z154: 0.45 | AA154: 45
A155: 80 | B155: 0.15 | C155: 80 | D155: 0.15 | E155: 80 | F155: 0.15 | G155: 500 | I155: 2000 | J155: 0.2 | N155: 1800 | P155: 40 | Q155: 0.2 | U155: 1800 | W155: 0.08 | X155: 100 | Z155: 0.54 | AA155: 50
A156: 70 | B156: 0.18 | C156: 70 | D156: 0.18 | E156: 70 | F156: 0.18 | G156: 600 | N156: 36 | P156: 20 | U156: 36 | W156: 0.09 | X156: 120 | Z156: 0.63 | AA156: 55
A157: 60 | B157: 0.2 | C157: 60 | D157: 0.2 | E157: 60 | F157: 0.2 | N157: 72 | P157: 10 | U157: 72 | W157: 0.1 | X157: 140 | Z157: 0.72 | AA157: 60
A158: 50 | B158: 0.25 | C158: 50 | D158: 0.25 | E158: 50 | N158: 144 | P158: 8 | U158: 144 | W158: 0.11 | X158: 160 | Z158: 1.08 | AA158: 65
A159: 40 | B159: 0.3 | C159: 40 | D159: 0.3 | E159: 40 | N159: 720 | P159: 6 | U159: 720 | W159: 0.12 | X159: 180 | Z159: 1.44 | AA159: 70
A160: 30 | B160: 0.35 | C160: 30 | D160: 0.35 | E160: 30 | N160: 18 | P160: 4 | U160: 18 | W160: 0.13 | X160: 200 | Z160: 1.8 | AA160: 75
A161: 20 | B161: 0.4 | C161: 20 | D161: 0.4 | E161: 20 | N161: 12 | P161: 2 | U161: 12 | W161: 0.14 | X161: 220 | Z161: 3.6 | AA161: 80
A162: 10 | C162: 10 | E162: 10 | N162: 24 | P162: 1 | U162: 24 | W162: 0.15 | X162: 240 | Z162: 7.2
A163: 9 | C163: 9 | E163: 9 | N163: 48 | P163: 0.7 | U163: 48 | W163: 0.16 | X163: 260 | Z163: 10.8
A164: 8 | C164: 8 | E164: 8 | N164: 120 | P164: 0.5 | U164: 120 | W164: 0.17 | X164: 280 | Z164: 14.4
A165: 7 | C165: 7 | E165: 7 | N165: 240 | U165: 240 | W165: 0.18 | X165: 300 | Z165: 18
A166: 6 | C166: 6 | E166: 6 | N166: 9 | U166: 9 | W166: 0.19 | X166: 320 | Z166: 27
A167: 5 | C167: 5 | E167: 5 | W167: 0.2 | X167: 340 | Z167: 36
A168: 4 | C168: 4 | E168: 4 | W168: 0.21 | X168: 360
A169: 3 | C169: 3 | E169: 3 | W169: 0.22 | X169: 380
A170: 2 | C170: 2 | E170: 2 | W170: 0.23 | X170: 400
A171: 1 | C171: 1 | E171: 1 | W171: 0.24 | X171: 420
A172: 0.9 | C172: 0.9 | E172: 0.9 | W172: 0.25 | X172: 440
A173: 0.8 | C173: 0.8 | E173: 0.8 | W173: 0.26 | X173: 460
A174: 0.7 | C174: 0.7 | E174: 0.7 | W174: 0.27 | X174: 480
A175: 0.6 | C175: 0.6 | E175: 0.6 | W175: 0.28 | X175: 500
A176: 0.5 | C176: 0.5 | E176: 0.5 | W176: 0.3 | X176: 520
W177: 0.31 | X177: 540
W178: 0.32 | X178: 560
W179: 0.33 | X179: 580
W180: 0.34 | X180: 600
W181: 0.35 | X181: 620
W182: 0.36 | X182: 640
W183: 0.37 | X183: 660
W184: 0.38 | X184: 680
W185: 0.39 | X185: 700
W186: 0.4 | X186: 720
W187: 0.41 | X187: 740
W188: 0.42 | X188: 760
W189: 0.43 | X189: 780
W190: 0.44 | X190: 800
W191: 0.45 | X191: 820
W192: 0.46 | X192: 840
W193: 0.29 | X193: 860
W194: 0.48 | X194: 880
W195: 0.49 | X195: 900
W196: 0.51 | X196: 920
W197: 0.53 | X197: 940
W198: 0.54 | X198: 960
W199: 0.55 | X199: 980
W200: 0.57 | X200: 1000
W201: 0.58 | X201: 1020
W202: 0.6 | X202: 1040
W203: 0.61 | X203: 1060
W204: 0.63 | X204: 1080
W205: 0.64 | X205: 1100
W206: 0.66 | X206: 1120
W207: 0.67 | X207: 1140
W208: 0.69 | X208: 1160
W209: 0.72 | X209: 1180
W210: 0.74 | X210: 1200
W211: 0.76 | X211: 1220
W212: 0.77 | X212: 1240
W213: 0.79 | X213: 1260
W214: 0.81 | X214: 1280
W215: 0.82 | X215: 1300
W216: 0.84 | X216: 1320
W217: 0.86 | X217: 1340
W218: 0.87 | X218: 1360
X219: 1380
X220: 1400
... 4 more rows

Sheet RG_d (hidden)
A1: K | B1: A_ratio | I1: Dataudtræk ↓ | J1: K | K1: A_ratio | L1: Infiltrated | M1: Evaporated | N1: Overflow | O1: T_overflow | P1: Available_Volume | Q1: Ret T_overflow ↓ | R1: =O1 -> T_overflow | S1: =O1 -> T_overflow | T1: =O1 -> T_overflow | U1: Output ↓ | V1: =INDEX($J1:$P1,MATCH("Infiltrated",$J$1:$P$1,0)) -> Infiltrated | W1: =INDEX($J1:$P1,MATCH("Evaporated",$J$1:$P$1,0)) -> Evaporated | X1: =INDEX($J1:$P1,MATCH("Overflow",$J$1:$P$1,0)) -> Overflow | Y1: =INDEX($J1:$P1,MATCH("T_overflow",$J$1:$P$1,0)) -> T_overflow | Z1: =INDEX($J1:$P1,MATCH("Available_Volume",$J$1:$P$1,0)) -> Available_Volume | AA1: Lineær interpolation ↓ | AB1: Infiltrated_w | AC1: Evaporated_w | AD1: Overflow_w | AE1: T_overflow_w | AF1: Available_Volume_w | AH1: Infiltrated_sum | AI1: Evaporated_sum | AJ1: Overflow_sum | AK1: T_overflow_sum | AL1: Available_Volume_sum
A2: =Beregn1!B73 -> 0.8 | B2: =Beregn1!C73 -> 0.15 | J2: 0.8 | K2: 0.1 | L2: 0.63 | M2: 0.3 | N2: 0.07 | O2: 0.295 | P2: 0.73 | R2: =IF(OR(O2=0,O2=-1),Beregn1!$E$36,O2) -> 0.295 | S2: =ISBLANK(O2) -> FALSE | T2: =IF(AND(R2=41,S2=FALSE),Beregn1!$E$36,O2) -> 0.295 | V2: =INDEX($J2:$P2,MATCH("Infiltrated",$J$1:$P$1,0)) -> 0.63 | W2: =INDEX($J2:$P2,MATCH("Evaporated",$J$1:$P$1,0)) -> 0.3 | X2: =INDEX($J2:$P2,MATCH("Overflow",$J$1:$P$1,0)) -> 0.07 | Y2: =T2 -> 0.295 | Z2: =INDEX($J2:$P2,MATCH("Available_Volume",$J$1:$P$1,0)) -> 0.73 | AB2: =ROUND(V2*Beregn1!$C$30,3) -> 0.158 | AC2: =ROUND(W2*Beregn1!$C$30,3) -> 0.075 | AD2: =ROUND(X2*Beregn1!$C$30,3) -> 0.018 | AE2: =ROUND(Y2*Beregn1!$C$30,3) -> 0.074 | AF2: =ROUND(Z2*Beregn1!$C$30,3) -> 0.183 | AH2: =ROUND(SUM(AB2:AB10),3) -> 0.634 | AI2: =ROUND(SUM(AC2:AC10),3) -> 0.316 | AJ2: =ROUND(SUM(AD2:AD10),3) -> 0.054 | AK2: =ROUND(SUM(AE2:AE10),3) -> 0.671 | AL2: =ROUND(SUM(AF2:AF10),3) -> 0.756
A3: =Beregn1!B73 -> 0.8 | B3: =Beregn1!C74 -> 0.1 | J3: 0.8 | K3: 0.15 | L3: 0.65 | M3: 0.33 | N3: 0.02 | O3: 1.206 | P3: 0.8 | R3: =IF(OR(O3=0,O3=-1),Beregn1!$E$36,O3) -> 1.206 | S3: =ISBLANK(O3) -> FALSE | T3: =IF(AND(R3=41,S3=FALSE),Beregn1!$E$36,O3) -> 1.206 | V3: 0.65 | W3: 0.33 | X3: 0.02 | Y3: =T3 -> 1.206 | Z3: 0.8 | AB3: =ROUND(V3*Beregn1!$C$30,3) -> 0.163 | AC3: =ROUND(W3*Beregn1!$C$30,3) -> 0.083 | AD3: =ROUND(X3*Beregn1!$C$30,3) -> 0.005 | AE3: =ROUND(Y3*Beregn1!$C$30,3) -> 0.302 | AF3: =ROUND(Z3*Beregn1!$C$30,3) -> 0.2
A4: =Beregn1!B74 -> 0.7 | B4: =Beregn1!C73 -> 0.15 | J4: 0.7 | K4: 0.1 | L4: 0.61 | M4: 0.3 | N4: 0.09 | O4: 0.226 | P4: 0.7 | R4: =IF(OR(O4=0,O4=-1),Beregn1!$E$36,O4) -> 0.226 | S4: FALSE | T4: =IF(AND(R4=41,S4=FALSE),Beregn1!$E$36,O4) -> 0.226 | V4: 0.61 | W4: 0.3 | X4: 0.09 | Y4: 0.226 | Z4: 0.7 | AB4: =ROUND(V4*Beregn1!$C$30,3) -> 0.153 | AC4: =ROUND(W4*Beregn1!$C$30,3) -> 0.075 | AD4: =ROUND(X4*Beregn1!$C$30,3) -> 0.023 | AE4: =ROUND(Y4*Beregn1!$C$30,3) -> 0.057 | AF4: =ROUND(Z4*Beregn1!$C$30,3) -> 0.175
A5: =Beregn1!B74 -> 0.7 | B5: =Beregn1!C74 -> 0.1 | J5: 0.7 | K5: 0.15 | L5: 0.64 | M5: 0.33 | N5: 0.03 | O5: 0.953 | P5: 0.79 | R5: =IF(OR(O5=0,O5=-1),Beregn1!$E$36,O5) -> 0.953 | S5: FALSE | T5: =IF(AND(R5=41,S5=FALSE),Beregn1!$E$36,O5) -> 0.953 | V5: 0.64 | W5: 0.33 | X5: 0.03 | Y5: 0.953 | Z5: 0.79 | AB5: =ROUND(V5*Beregn1!$C$30,3) -> 0.16 | AC5: =ROUND(W5*Beregn1!$C$30,3) -> 0.083 | AD5: =ROUND(X5*Beregn1!$C$30,3) -> 0.008 | AE5: =ROUND(Y5*Beregn1!$C$30,3) -> 0.238 | AF5: =ROUND(Z5*Beregn1!$C$30,3) -> 0.198
R6: =IF(OR(O6=0,O6=-1),Beregn1!$E$36,O6) -> 41 | S6: TRUE | T6: =IF(AND(R6=41,S6=FALSE),Beregn1!$E$36,O6) -> 0 | V6: 0 | W6: 0 | X6: 0 | Y6: 0 | Z6: 0 | AB6: =ROUND(V6*Beregn1!$C$30,3) -> 0 | AC6: =ROUND(W6*Beregn1!$C$30,3) -> 0 | AD6: =ROUND(X6*Beregn1!$C$30,3) -> 0 | AE6: =ROUND(Y6*Beregn1!$C$30,3) -> 0 | AF6: =ROUND(Z6*Beregn1!$C$30,3) -> 0
R7: =IF(OR(O7=0,O7=-1),Beregn1!$E$36,O7) -> 41 | S7: TRUE | T7: =IF(AND(R7=41,S7=FALSE),Beregn1!$E$36,O7) -> 0 | V7: 0 | W7: 0 | X7: 0 | Y7: 0 | Z7: 0 | AB7: =ROUND(V7*Beregn1!$C$30,3) -> 0 | AC7: =ROUND(W7*Beregn1!$C$30,3) -> 0 | AD7: =ROUND(X7*Beregn1!$C$30,3) -> 0 | AE7: =ROUND(Y7*Beregn1!$C$30,3) -> 0 | AF7: =ROUND(Z7*Beregn1!$C$30,3) -> 0
R8: =IF(OR(O8=0,O8=-1),Beregn1!$E$36,O8) -> 41 | S8: TRUE | T8: =IF(AND(R8=41,S8=FALSE),Beregn1!$E$36,O8) -> 0 | V8: 0 | W8: 0 | X8: 0 | Y8: 0 | Z8: 0 | AB8: =ROUND(V8*Beregn1!$C$30,3) -> 0 | AC8: =ROUND(W8*Beregn1!$C$30,3) -> 0 | AD8: =ROUND(X8*Beregn1!$C$30,3) -> 0 | AE8: =ROUND(Y8*Beregn1!$C$30,3) -> 0 | AF8: =ROUND(Z8*Beregn1!$C$30,3) -> 0
R9: =IF(OR(O9=0,O9=-1),Beregn1!$E$36,O9) -> 41 | S9: TRUE | T9: =IF(AND(R9=41,S9=FALSE),Beregn1!$E$36,O9) -> 0 | V9: 0 | W9: 0 | X9: 0 | Y9: 0 | Z9: =INDEX($J9:$P9,MATCH("Available_Volume",$J$1:$P$1,0)) -> 0 | AB9: =ROUND(V9*Beregn1!$C$30,3) -> 0 | AC9: =ROUND(W9*Beregn1!$C$30,3) -> 0 | AD9: =ROUND(X9*Beregn1!$C$30,3) -> 0 | AE9: =ROUND(Y9*Beregn1!$C$30,3) -> 0 | AF9: =ROUND(Z9*Beregn1!$C$30,3) -> 0
R10: =IF(OR(O10=0,O10=-1),Beregn1!$E$36,O10) -> 41 | S10: TRUE | T10: =IF(AND(R10=41,S10=FALSE),Beregn1!$E$36,O10) -> 0 | V10: 0 | W10: 0 | X10: 0 | Y10: 0 | Z10: 0 | AB10: =ROUND(V10*Beregn1!$C$30,3) -> 0 | AC10: =ROUND(W10*Beregn1!$C$30,3) -> 0 | AD10: =ROUND(X10*Beregn1!$C$30,3) -> 0 | AE10: =ROUND(Y10*Beregn1!$C$30,3) -> 0 | AF10: =ROUND(Z10*Beregn1!$C$30,3) -> 0

Sheet SA_d (hidden)
A1: K | B1: A_ratio | I1: Dataudtræk ↓ | J1: K | K1: A_ratio | L1: Infiltrated | M1: Evaporated | N1: Overflow | O1: T_overflow | P1: Available_Volume | Q1: Ret T_overflow ↓ | R1: =O1 -> T_overflow | S1: =O1 -> T_overflow | T1: =O1 -> T_overflow | U1: Output ↓ | V1: =INDEX($J1:$Q1,MATCH("Infiltrated",$J$1:$Q$1,0)) -> Infiltrated | W1: =INDEX($J1:$Q1,MATCH("Evaporated",$J$1:$Q$1,0)) -> Evaporated | X1: =INDEX($J1:$Q1,MATCH("Overflow",$J$1:$Q$1,0)) -> Overflow | Y1: =INDEX($J1:$Q1,MATCH("T_overflow",$J$1:$Q$1,0)) -> T_overflow | Z1: =INDEX($J1:$Q1,MATCH("Available_Volume",$J$1:$Q$1,0)) -> Available_Volume | AA1: Lineær interpolation ↓ | AB1: Infiltrated_w | AC1: Evaporated_w | AD1: Overflow_w | AE1: T_overflow_w | AF1: Available_Volume_w | AH1: Infiltrated_sum | AI1: Evaporated_sum | AJ1: Overflow_sum | AK1: T_overflow_sum | AL1: Available_Volume_sum
A2: =Beregn1!B73 -> 0.8 | B2: =Beregn1!C73 -> 0.15 | J2: 0.8 | K2: 0.1 | L2: 0.72 | M2: 0.27 | N2: 0.02 | O2: 1.64 | P2: 0.97 | R2: =IF(OR(O2=0,O2=-1),Beregn1!$E$36,O2) -> 1.64 | S2: =ISBLANK(O2) -> FALSE | T2: =IF(AND(R2=41,S2=FALSE),Beregn1!$E$36,O2) -> 1.64 | V2: =INDEX($J2:$Q2,MATCH("Infiltrated",$J$1:$Q$1,0)) -> 0.72 | W2: =INDEX($J2:$Q2,MATCH("Evaporated",$J$1:$Q$1,0)) -> 0.27 | X2: =INDEX($J2:$Q2,MATCH("Overflow",$J$1:$Q$1,0)) -> 0.02 | Y2: =T2 -> 1.64 | Z2: =INDEX($J2:$Q2,MATCH("Available_Volume",$J$1:$Q$1,0)) -> 0.97 | AB2: =ROUND(V2*Beregn1!$D$30,3) -> 0.18 | AC2: =ROUND(W2*Beregn1!$D$30,3) -> 0.068 | AD2: =ROUND(X2*Beregn1!$D$30,3) -> 0.005 | AE2: =ROUND(Y2*Beregn1!$D$30,3) -> 0.41 | AF2: =ROUND(Z2*Beregn1!$D$30,3) -> 0.243 | AH2: =ROUND(SUM(AB2:AB10),3) -> 0.721 | AI2: =ROUND(SUM(AC2:AC10),3) -> 0.276 | AJ2: =ROUND(SUM(AD2:AD10),3) -> 0.01 | AK2: =ROUND(SUM(AE2:AE10),3) -> 8.427 | AL2: =ROUND(SUM(AF2:AF10),3) -> 0.977
A3: =Beregn1!B73 -> 0.8 | B3: =Beregn1!C74 -> 0.1 | J3: 0.8 | K3: 0.15 | L3: 0.73 | M3: 0.28 | N3: 0 | O3: 20.494 | P3: 0.99 | R3: =IF(OR(O3=0,O3=-1),Beregn1!$E$36,O3) -> 20.494 | S3: FALSE | T3: =IF(AND(R3=41,S3=FALSE),Beregn1!$E$36,O3) -> 20.494 | V3: =INDEX($J3:$Q3,MATCH("Infiltrated",$J$1:$Q$1,0)) -> 0.73 | W3: 0.28 | X3: 0 | Y3: =T3 -> 20.494 | Z3: 0.99 | AB3: =ROUND(V3*Beregn1!$D$30,3) -> 0.183 | AC3: =ROUND(W3*Beregn1!$D$30,3) -> 0.07 | AD3: =ROUND(X3*Beregn1!$D$30,3) -> 0 | AE3: =ROUND(Y3*Beregn1!$D$30,3) -> 5.124 | AF3: =ROUND(Z3*Beregn1!$D$30,3) -> 0.248
A4: =Beregn1!B74 -> 0.7 | B4: =Beregn1!C73 -> 0.15 | J4: 0.7 | K4: 0.1 | L4: 0.71 | M4: 0.27 | N4: 0.02 | O4: 1.322 | P4: 0.95 | R4: =IF(OR(O4=0,O4=-1),Beregn1!$E$36,O4) -> 1.322 | S4: FALSE | T4: =IF(AND(R4=41,S4=FALSE),Beregn1!$E$36,O4) -> 1.322 | V4: 0.71 | W4: 0.27 | X4: 0.02 | Y4: 1.322 | Z4: 0.95 | AB4: =ROUND(V4*Beregn1!$D$30,3) -> 0.178 | AC4: =ROUND(W4*Beregn1!$D$30,3) -> 0.068 | AD4: =ROUND(X4*Beregn1!$D$30,3) -> 0.005 | AE4: =ROUND(Y4*Beregn1!$D$30,3) -> 0.331 | AF4: =ROUND(Z4*Beregn1!$D$30,3) -> 0.238
A5: =Beregn1!B74 -> 0.7 | B5: =Beregn1!C74 -> 0.1 | J5: 0.7 | K5: 0.15 | L5: 0.72 | M5: 0.28 | N5: 0 | O5: 10.247 | P5: 0.99 | R5: =IF(OR(O5=0,O5=-1),Beregn1!$E$36,O5) -> 10.247 | S5: FALSE | T5: =IF(AND(R5=41,S5=FALSE),Beregn1!$E$36,O5) -> 10.247 | V5: =INDEX($J5:$Q5,MATCH("Infiltrated",$J$1:$Q$1,0)) -> 0.72 | W5: 0.28 | X5: 0 | Y5: 10.247 | Z5: 0.99 | AB5: =ROUND(V5*Beregn1!$D$30,3) -> 0.18 | AC5: =ROUND(W5*Beregn1!$D$30,3) -> 0.07 | AD5: =ROUND(X5*Beregn1!$D$30,3) -> 0 | AE5: =ROUND(Y5*Beregn1!$D$30,3) -> 2.562 | AF5: =ROUND(Z5*Beregn1!$D$30,3) -> 0.248
R6: =IF(OR(O6=0,O6=-1),Beregn1!$E$36,O6) -> 41 | S6: TRUE | T6: =IF(AND(R6=41,S6=FALSE),Beregn1!$E$36,O6) -> 0 | V6: 0 | W6: 0 | X6: 0 | Y6: 0 | Z6: 0 | AB6: =ROUND(V6*Beregn1!$D$30,3) -> 0 | AC6: =ROUND(W6*Beregn1!$D$30,3) -> 0 | AD6: =ROUND(X6*Beregn1!$D$30,3) -> 0 | AE6: =ROUND(Y6*Beregn1!$D$30,3) -> 0 | AF6: =ROUND(Z6*Beregn1!$D$30,3) -> 0
R7: =IF(OR(O7=0,O7=-1),Beregn1!$E$36,O7) -> 41 | S7: TRUE | T7: =IF(AND(R7=41,S7=FALSE),Beregn1!$E$36,O7) -> 0 | V7: 0 | W7: 0 | X7: 0 | Y7: 0 | Z7: 0 | AB7: =ROUND(V7*Beregn1!$D$30,3) -> 0 | AC7: =ROUND(W7*Beregn1!$D$30,3) -> 0 | AD7: =ROUND(X7*Beregn1!$D$30,3) -> 0 | AE7: =ROUND(Y7*Beregn1!$D$30,3) -> 0 | AF7: =ROUND(Z7*Beregn1!$D$30,3) -> 0
R8: =IF(OR(O8=0,O8=-1),Beregn1!$E$36,O8) -> 41 | S8: TRUE | T8: =IF(AND(R8=41,S8=FALSE),Beregn1!$E$36,O8) -> 0 | V8: 0 | W8: 0 | X8: 0 | Y8: 0 | Z8: 0 | AB8: =ROUND(V8*Beregn1!$D$30,3) -> 0 | AC8: =ROUND(W8*Beregn1!$D$30,3) -> 0 | AD8: =ROUND(X8*Beregn1!$D$30,3) -> 0 | AE8: =ROUND(Y8*Beregn1!$D$30,3) -> 0 | AF8: =ROUND(Z8*Beregn1!$D$30,3) -> 0
R9: =IF(OR(O9=0,O9=-1),Beregn1!$E$36,O9) -> 41 | S9: TRUE | T9: =IF(AND(R9=41,S9=FALSE),Beregn1!$E$36,O9) -> 0 | V9: 0 | W9: 0 | X9: 0 | Y9: 0 | Z9: 0 | AB9: =ROUND(V9*Beregn1!$D$30,3) -> 0 | AC9: =ROUND(W9*Beregn1!$D$30,3) -> 0 | AD9: =ROUND(X9*Beregn1!$D$30,3) -> 0 | AE9: =ROUND(Y9*Beregn1!$D$30,3) -> 0 | AF9: =ROUND(Z9*Beregn1!$D$30,3) -> 0
R10: =IF(OR(O10=0,O10=-1),Beregn1!$E$36,O10) -> 41 | S10: TRUE | T10: =IF(AND(R10=41,S10=FALSE),Beregn1!$E$36,O10) -> 0 | V10: 0 | W10: 0 | X10: 0 | Y10: 0 | Z10: 0 | AB10: =ROUND(V10*Beregn1!$D$30,3) -> 0 | AC10: =ROUND(W10*Beregn1!$D$30,3) -> 0 | AD10: =ROUND(X10*Beregn1!$D$30,3) -> 0 | AE10: =ROUND(Y10*Beregn1!$D$30,3) -> 0 | AF10: =ROUND(Z10*Beregn1!$D$30,3) -> 0

Sheet BR1_d (hidden)
A1: K | B1: A_ratio | C1: surface_depth | D1: soil_depth | E1: storage_depth | M1: Dataudtræk ↓ | N1: K | O1: A_ratio | P1: surface_depth | Q1: soil_depth | R1: storage_depth | S1: Infiltrated | T1: Evaporated | U1: Overflow | V1: T_overflow | W1: Available_Volume | X1: Ret T_overflow ↓ | Y1: =V1 -> T_overflow | Z1: =V1 -> T_overflow | AA1: =V1 -> T_overflow | AB1: Output ↓ | AC1: =INDEX($N1:$W1,MATCH("Infiltrated",$N$1:$W$1,0)) -> Infiltrated | AD1: =INDEX($N1:$W1,MATCH("Evaporated",$N$1:$W$1,0)) -> Evaporated | AE1: =INDEX($N1:$W1,MATCH("Overflow",$N$1:$W$1,0)) -> Overflow | AF1: =INDEX($N1:$W1,MATCH("T_overflow",$N$1:$W$1,0)) -> T_overflow | AG1: =INDEX($N1:$W1,MATCH("Available_Volume",$N$1:$W$1,0)) -> Available_Volume | AH1: Lineær interpolation ↓ | AI1: Infiltrated_w | AJ1: Evaporated_w | AK1: Overflow_w | AL1: T_overflow_w | AM1: Available_Volume_w | AO1: Infiltrated_sum | AP1: Evaporated_sum | AQ1: Overflow_sum | AR1: T_overflow_sum | AS1: Available_Volume_sum
A2: =Beregn1!$B$82 -> 0.8 | B2: =Beregn1!$C$82 -> 0.15 | C2: =Beregn1!$D$82 -> 300 | D2: =Beregn1!$E$82 -> 500 | E2: =Beregn1!$F$82 -> 2000 | N2: 0.8 | O2: 0.1 | P2: 300 | Q2: 500 | R2: 2000 | S2: 0.7 | T2: 0.3 | U2: 0.01 | V2: 3.416 | W2: 0.9 | Y2: =IF(OR(V2=0,V2=-1),Beregn1!$E$36,V2) -> 3.416 | Z2: =ISBLANK(V2) -> FALSE | AA2: =IF(AND(Y2=41,Z2=FALSE),Beregn1!$E$36,V2) -> 3.416 | AC2: =INDEX($N2:$W2,MATCH("Infiltrated",$N$1:$W$1,0)) -> 0.7 | AD2: =INDEX($N2:$W2,MATCH("Evaporated",$N$1:$W$1,0)) -> 0.3 | AE2: =INDEX($N2:$W2,MATCH("Overflow",$N$1:$W$1,0)) -> 0.01 | AF2: =AA2 -> 3.416 | AG2: =INDEX($N2:$W2,MATCH("Available_Volume",$N$1:$W$1,0)) -> 0.9 | AI2: =ROUND(AC2*Beregn1!$E$30,4) -> 0.175 | AJ2: =ROUND(AD2*Beregn1!$E$30,4) -> 0.075 | AK2: =ROUND(AE2*Beregn1!$E$30,4) -> 0.0025 | AL2: =ROUND(AF2*Beregn1!$E$30,4) -> 0.854 | AM2: =ROUND(AG2*Beregn1!$E$30,4) -> 0.225 | AO2: =SUM(AI2:AI10) -> 0.6825 | AP2: =SUM(AJ2:AJ10) -> 0.315 | AQ2: =SUM(AK2:AK10) -> 0.005 | AR2: =SUM(AL2:AL10) -> 21.7426 | AS2: =SUM(AM2:AM10) -> 0.905
A3: =Beregn1!$B$82 -> 0.8 | B3: =Beregn1!$C$82 -> 0.15 | C3: =Beregn1!$D$82 -> 300 | D3: =Beregn1!$E$82 -> 500 | E3: =Beregn1!$F$83 -> 0 | N3: 0.8 | O3: 0.15 | P3: 300 | Q3: 500 | R3: 2000 | S3: 0.67 | T3: 0.33 | U3: 0 | V3: 40.989 | W3: 0.93 | Y3: =IF(OR(V3=0,V3=-1),Beregn1!$E$36,V3) -> 40.989 | Z3: =ISBLANK(V3) -> FALSE | AA3: =IF(AND(Y3=41,Z3=FALSE),Beregn1!$E$36,V3) -> 40.989 | AC3: 0.67 | AD3: 0.33 | AE3: 0 | AF3: =AA3 -> 40.989 | AG3: 0.93 | AI3: =ROUND(AC3*Beregn1!$E$30,4) -> 0.1675 | AJ3: =ROUND(AD3*Beregn1!$E$30,4) -> 0.0825 | AK3: =ROUND(AE3*Beregn1!$E$30,4) -> 0 | AL3: =ROUND(AF3*Beregn1!$E$30,4) -> 10.2473 | AM3: =ROUND(AG3*Beregn1!$E$30,4) -> 0.2325
A4: =Beregn1!$B$82 -> 0.8 | B4: =Beregn1!$C$82 -> 0.15 | C4: =Beregn1!$D$82 -> 300 | D4: =Beregn1!$E$83 -> 0 | E4: =Beregn1!$F$82 -> 2000 | N4: 0.7 | O4: 0.1 | P4: 300 | Q4: 500 | R4: 2000 | S4: 0.69 | T4: 0.3 | U4: 0.01 | V4: 1.576 | W4: 0.86 | Y4: =IF(OR(V4=0,V4=-1),Beregn1!$E$36,V4) -> 1.576 | Z4: FALSE | AA4: =IF(AND(Y4=41,Z4=FALSE),Beregn1!$E$36,V4) -> 1.576 | AC4: 0.69 | AD4: 0.3 | AE4: 0.01 | AF4: 1.576 | AG4: 0.86 | AI4: =ROUND(AC4*Beregn1!$E$30,4) -> 0.1725 | AJ4: =ROUND(AD4*Beregn1!$E$30,4) -> 0.075 | AK4: =ROUND(AE4*Beregn1!$E$30,4) -> 0.0025 | AL4: =ROUND(AF4*Beregn1!$E$30,4) -> 0.394 | AM4: =ROUND(AG4*Beregn1!$E$30,4) -> 0.215
A5: =Beregn1!$B$82 -> 0.8 | B5: =Beregn1!$C$82 -> 0.15 | C5: =Beregn1!$D$82 -> 300 | D5: =Beregn1!$E$83 -> 0 | E5: =Beregn1!$F$83 -> 0 | N5: 0.7 | O5: 0.15 | P5: 300 | Q5: 500 | R5: 2000 | S5: 0.67 | T5: 0.33 | U5: 0 | V5: 40.989 | W5: 0.93 | Y5: =IF(OR(V5=0,V5=-1),Beregn1!$E$36,V5) -> 40.989 | Z5: FALSE | AA5: =IF(AND(Y5=41,Z5=FALSE),Beregn1!$E$36,V5) -> 40.989 | AC5: 0.67 | AD5: 0.33 | AE5: 0 | AF5: 40.989 | AG5: 0.93 | AI5: =ROUND(AC5*Beregn1!$E$30,4) -> 0.1675 | AJ5: =ROUND(AD5*Beregn1!$E$30,4) -> 0.0825 | AK5: =ROUND(AE5*Beregn1!$E$30,4) -> 0 | AL5: =ROUND(AF5*Beregn1!$E$30,4) -> 10.2473 | AM5: =ROUND(AG5*Beregn1!$E$30,4) -> 0.2325
A6: =Beregn1!$B$82 -> 0.8 | B6: =Beregn1!$C$82 -> 0.15 | C6: =Beregn1!$D$83 -> 0 | D6: =Beregn1!$E$82 -> 500 | E6: =Beregn1!$F$82 -> 2000 | Y6: =IF(OR(V6=0,V6=-1),Beregn1!$E$36,V6) -> 41 | Z6: TRUE | AA6: =IF(AND(Y6=41,Z6=FALSE),Beregn1!$E$36,V6) -> 0 | AC6: 0 | AD6: 0 | AE6: 0 | AF6: 0 | AG6: 0 | AI6: =ROUND(AC6*Beregn1!$E$30,4) -> 0 | AJ6: =ROUND(AD6*Beregn1!$E$30,4) -> 0 | AK6: =ROUND(AE6*Beregn1!$E$30,4) -> 0 | AL6: =ROUND(AF6*Beregn1!$E$30,4) -> 0 | AM6: =ROUND(AG6*Beregn1!$E$30,4) -> 0
A7: =Beregn1!$B$82 -> 0.8 | B7: =Beregn1!$C$82 -> 0.15 | C7: =Beregn1!$D$83 -> 0 | D7: =Beregn1!$E$82 -> 500 | E7: =Beregn1!$F$83 -> 0 | Y7: =IF(OR(V7=0,V7=-1),Beregn1!$E$36,V7) -> 41 | Z7: TRUE | AA7: =IF(AND(Y7=41,Z7=FALSE),Beregn1!$E$36,V7) -> 0 | AC7: 0 | AD7: 0 | AE7: 0 | AF7: 0 | AG7: 0 | AI7: =ROUND(AC7*Beregn1!$E$30,4) -> 0 | AJ7: =ROUND(AD7*Beregn1!$E$30,4) -> 0 | AK7: =ROUND(AE7*Beregn1!$E$30,4) -> 0 | AL7: =ROUND(AF7*Beregn1!$E$30,4) -> 0 | AM7: =ROUND(AG7*Beregn1!$E$30,4) -> 0
A8: =Beregn1!$B$82 -> 0.8 | B8: =Beregn1!$C$82 -> 0.15 | C8: =Beregn1!$D$83 -> 0 | D8: =Beregn1!$E$83 -> 0 | E8: =Beregn1!$F$82 -> 2000 | Y8: =IF(OR(V8=0,V8=-1),Beregn1!$E$36,V8) -> 41 | Z8: TRUE | AA8: =IF(AND(Y8=41,Z8=FALSE),Beregn1!$E$36,V8) -> 0 | AC8: 0 | AD8: 0 | AE8: 0 | AF8: 0 | AG8: 0 | AI8: =ROUND(AC8*Beregn1!$E$30,4) -> 0 | AJ8: =ROUND(AD8*Beregn1!$E$30,4) -> 0 | AK8: =ROUND(AE8*Beregn1!$E$30,4) -> 0 | AL8: =ROUND(AF8*Beregn1!$E$30,4) -> 0 | AM8: =ROUND(AG8*Beregn1!$E$30,4) -> 0
A9: =Beregn1!$B$82 -> 0.8 | B9: =Beregn1!$C$82 -> 0.15 | C9: =Beregn1!$D$83 -> 0 | D9: =Beregn1!$E$83 -> 0 | E9: =Beregn1!$F$83 -> 0 | Y9: =IF(OR(V9=0,V9=-1),Beregn1!$E$36,V9) -> 41 | Z9: TRUE | AA9: =IF(AND(Y9=41,Z9=FALSE),Beregn1!$E$36,V9) -> 0 | AC9: 0 | AD9: 0 | AE9: 0 | AF9: 0 | AG9: 0 | AI9: =ROUND(AC9*Beregn1!$E$30,4) -> 0 | AJ9: =ROUND(AD9*Beregn1!$E$30,4) -> 0 | AK9: =ROUND(AE9*Beregn1!$E$30,4) -> 0 | AL9: =ROUND(AF9*Beregn1!$E$30,4) -> 0 | AM9: =ROUND(AG9*Beregn1!$E$30,4) -> 0
A10: =Beregn1!$B$82 -> 0.8 | B10: =Beregn1!$C$83 -> 0.1 | C10: =Beregn1!$D$82 -> 300 | D10: =Beregn1!$E$82 -> 500 | E10: =Beregn1!$F$82 -> 2000 | Y10: =IF(OR(V10=0,V10=-1),Beregn1!$E$36,V10) -> 41 | Z10: TRUE | AA10: =IF(AND(Y10=41,Z10=FALSE),Beregn1!$E$36,V10) -> 0 | AC10: 0 | AD10: 0 | AE10: 0 | AF10: 0 | AG10: 0 | AI10: =ROUND(AC10*Beregn1!$E$30,4) -> 0 | AJ10: =ROUND(AD10*Beregn1!$E$30,4) -> 0 | AK10: =ROUND(AE10*Beregn1!$E$30,4) -> 0 | AL10: =ROUND(AF10*Beregn1!$E$30,4) -> 0 | AM10: =ROUND(AG10*Beregn1!$E$30,4) -> 0
A11: =Beregn1!$B$82 -> 0.8 | B11: =Beregn1!$C$83 -> 0.1 | C11: =Beregn1!$D$82 -> 300 | D11: =Beregn1!$E$82 -> 500 | E11: =Beregn1!$F$83 -> 0 | Y11: =IF(OR(V11=0,V11=-1),Beregn1!$E$36,V11) -> 41 | Z11: TRUE | AA11: =IF(AND(Y11=41,Z11=FALSE),Beregn1!$E$36,V11) -> 0 | AC11: 0 | AD11: 0 | AE11: 0 | AF11: 0 | AG11: 0 | AI11: =ROUND(AC11*Beregn1!$E$30,4) -> 0 | AJ11: =ROUND(AD11*Beregn1!$E$30,4) -> 0 | AK11: =ROUND(AE11*Beregn1!$E$30,4) -> 0 | AL11: =ROUND(AF11*Beregn1!$E$30,4) -> 0 | AM11: =ROUND(AG11*Beregn1!$E$30,4) -> 0
A12: =Beregn1!$B$82 -> 0.8 | B12: =Beregn1!$C$83 -> 0.1 | C12: =Beregn1!$D$82 -> 300 | D12: =Beregn1!$E$83 -> 0 | E12: =Beregn1!$F$82 -> 2000 | Y12: =IF(OR(V12=0,V12=-1),Beregn1!$E$36,V12) -> 41 | Z12: TRUE | AA12: =IF(AND(Y12=41,Z12=FALSE),Beregn1!$E$36,V12) -> 0 | AC12: 0 | AD12: 0 | AE12: 0 | AF12: 0 | AG12: 0 | AI12: =ROUND(AC12*Beregn1!$E$30,4) -> 0 | AJ12: =ROUND(AD12*Beregn1!$E$30,4) -> 0 | AK12: =ROUND(AE12*Beregn1!$E$30,4) -> 0 | AL12: =ROUND(AF12*Beregn1!$E$30,4) -> 0 | AM12: =ROUND(AG12*Beregn1!$E$30,4) -> 0
A13: =Beregn1!$B$82 -> 0.8 | B13: =Beregn1!$C$83 -> 0.1 | C13: =Beregn1!$D$82 -> 300 | D13: =Beregn1!$E$83 -> 0 | E13: =Beregn1!$F$83 -> 0 | Y13: =IF(OR(V13=0,V13=-1),Beregn1!$E$36,V13) -> 41 | Z13: TRUE | AA13: =IF(AND(Y13=41,Z13=FALSE),Beregn1!$E$36,V13) -> 0 | AC13: 0 | AD13: 0 | AE13: 0 | AF13: 0 | AG13: 0 | AI13: =ROUND(AC13*Beregn1!$E$30,4) -> 0 | AJ13: =ROUND(AD13*Beregn1!$E$30,4) -> 0 | AK13: =ROUND(AE13*Beregn1!$E$30,4) -> 0 | AL13: =ROUND(AF13*Beregn1!$E$30,4) -> 0 | AM13: =ROUND(AG13*Beregn1!$E$30,4) -> 0
A14: =Beregn1!$B$82 -> 0.8 | B14: =Beregn1!$C$83 -> 0.1 | C14: =Beregn1!$D$83 -> 0 | D14: =Beregn1!$E$82 -> 500 | E14: =Beregn1!$F$82 -> 2000 | Y14: =IF(OR(V14=0,V14=-1),Beregn1!$E$36,V14) -> 41 | Z14: TRUE | AA14: =IF(AND(Y14=41,Z14=FALSE),Beregn1!$E$36,V14) -> 0 | AC14: 0 | AD14: 0 | AE14: 0 | AF14: 0 | AG14: 0 | AI14: =ROUND(AC14*Beregn1!$E$30,4) -> 0 | AJ14: =ROUND(AD14*Beregn1!$E$30,4) -> 0 | AK14: =ROUND(AE14*Beregn1!$E$30,4) -> 0 | AL14: =ROUND(AF14*Beregn1!$E$30,4) -> 0 | AM14: =ROUND(AG14*Beregn1!$E$30,4) -> 0
A15: =Beregn1!$B$82 -> 0.8 | B15: =Beregn1!$C$83 -> 0.1 | C15: =Beregn1!$D$83 -> 0 | D15: =Beregn1!$E$82 -> 500 | E15: =Beregn1!$F$83 -> 0 | Y15: =IF(OR(V15=0,V15=-1),Beregn1!$E$36,V15) -> 41 | Z15: TRUE | AA15: =IF(AND(Y15=41,Z15=FALSE),Beregn1!$E$36,V15) -> 0 | AC15: 0 | AD15: 0 | AE15: 0 | AF15: 0 | AG15: 0 | AI15: =ROUND(AC15*Beregn1!$E$30,4) -> 0 | AJ15: =ROUND(AD15*Beregn1!$E$30,4) -> 0 | AK15: =ROUND(AE15*Beregn1!$E$30,4) -> 0 | AL15: =ROUND(AF15*Beregn1!$E$30,4) -> 0 | AM15: =ROUND(AG15*Beregn1!$E$30,4) -> 0
A16: =Beregn1!$B$82 -> 0.8 | B16: =Beregn1!$C$83 -> 0.1 | C16: =Beregn1!$D$83 -> 0 | D16: =Beregn1!$E$83 -> 0 | E16: =Beregn1!$F$82 -> 2000 | Y16: =IF(OR(V16=0,V16=-1),Beregn1!$E$36,V16) -> 41 | Z16: TRUE | AA16: =IF(AND(Y16=41,Z16=FALSE),Beregn1!$E$36,V16) -> 0 | AC16: 0 | AD16: 0 | AE16: 0 | AF16: 0 | AG16: 0 | AI16: =ROUND(AC16*Beregn1!$E$30,4) -> 0 | AJ16: =ROUND(AD16*Beregn1!$E$30,4) -> 0 | AK16: =ROUND(AE16*Beregn1!$E$30,4) -> 0 | AL16: =ROUND(AF16*Beregn1!$E$30,4) -> 0 | AM16: =ROUND(AG16*Beregn1!$E$30,4) -> 0
A17: =Beregn1!$B$82 -> 0.8 | B17: =Beregn1!$C$83 -> 0.1 | C17: =Beregn1!$D$83 -> 0 | D17: =Beregn1!$E$83 -> 0 | E17: =Beregn1!$F$83 -> 0 | Y17: =IF(OR(V17=0,V17=-1),Beregn1!$E$36,V17) -> 41 | Z17: TRUE | AA17: =IF(AND(Y17=41,Z17=FALSE),Beregn1!$E$36,V17) -> 0 | AC17: 0 | AD17: 0 | AE17: 0 | AF17: 0 | AG17: 0 | AI17: =ROUND(AC17*Beregn1!$E$30,4) -> 0 | AJ17: =ROUND(AD17*Beregn1!$E$30,4) -> 0 | AK17: =ROUND(AE17*Beregn1!$E$30,4) -> 0 | AL17: =ROUND(AF17*Beregn1!$E$30,4) -> 0 | AM17: =ROUND(AG17*Beregn1!$E$30,4) -> 0
A18: =Beregn1!$B$83 -> 0.7 | B18: =Beregn1!$C$82 -> 0.15 | C18: =Beregn1!$D$82 -> 300 | D18: =Beregn1!$E$82 -> 500 | E18: =Beregn1!$F$82 -> 2000 | Y18: =IF(OR(V18=0,V18=-1),Beregn1!$E$36,V18) -> 41 | Z18: TRUE | AA18: =IF(AND(Y18=41,Z18=FALSE),Beregn1!$E$36,V18) -> 0 | AC18: 0 | AD18: 0 | AE18: 0 | AF18: 0 | AG18: 0 | AI18: =ROUND(AC18*Beregn1!$E$30,4) -> 0 | AJ18: =ROUND(AD18*Beregn1!$E$30,4) -> 0 | AK18: =ROUND(AE18*Beregn1!$E$30,4) -> 0 | AL18: =ROUND(AF18*Beregn1!$E$30,4) -> 0 | AM18: =ROUND(AG18*Beregn1!$E$30,4) -> 0
A19: =Beregn1!$B$83 -> 0.7 | B19: =Beregn1!$C$82 -> 0.15 | C19: =Beregn1!$D$82 -> 300 | D19: =Beregn1!$E$82 -> 500 | E19: =Beregn1!$F$83 -> 0 | Y19: =IF(OR(V19=0,V19=-1),Beregn1!$E$36,V19) -> 41 | Z19: TRUE | AA19: =IF(AND(Y19=41,Z19=FALSE),Beregn1!$E$36,V19) -> 0 | AC19: 0 | AD19: 0 | AE19: 0 | AF19: 0 | AG19: 0 | AI19: =ROUND(AC19*Beregn1!$E$30,4) -> 0 | AJ19: =ROUND(AD19*Beregn1!$E$30,4) -> 0 | AK19: =ROUND(AE19*Beregn1!$E$30,4) -> 0 | AL19: =ROUND(AF19*Beregn1!$E$30,4) -> 0 | AM19: =ROUND(AG19*Beregn1!$E$30,4) -> 0
A20: =Beregn1!$B$83 -> 0.7 | B20: =Beregn1!$C$82 -> 0.15 | C20: =Beregn1!$D$82 -> 300 | D20: =Beregn1!$E$83 -> 0 | E20: =Beregn1!$F$82 -> 2000 | Y20: =IF(OR(V20=0,V20=-1),Beregn1!$E$36,V20) -> 41 | Z20: TRUE | AA20: =IF(AND(Y20=41,Z20=FALSE),Beregn1!$E$36,V20) -> 0 | AC20: 0 | AD20: 0 | AE20: 0 | AF20: 0 | AG20: 0 | AI20: =ROUND(AC20*Beregn1!$E$30,4) -> 0 | AJ20: =ROUND(AD20*Beregn1!$E$30,4) -> 0 | AK20: =ROUND(AE20*Beregn1!$E$30,4) -> 0 | AL20: =ROUND(AF20*Beregn1!$E$30,4) -> 0 | AM20: =ROUND(AG20*Beregn1!$E$30,4) -> 0
A21: =Beregn1!$B$83 -> 0.7 | B21: =Beregn1!$C$82 -> 0.15 | C21: =Beregn1!$D$82 -> 300 | D21: =Beregn1!$E$83 -> 0 | E21: =Beregn1!$F$83 -> 0 | Y21: =IF(OR(V21=0,V21=-1),Beregn1!$E$36,V21) -> 41 | Z21: TRUE | AA21: =IF(AND(Y21=41,Z21=FALSE),Beregn1!$E$36,V21) -> 0 | AC21: 0 | AD21: 0 | AE21: 0 | AF21: 0 | AG21: 0 | AI21: =ROUND(AC21*Beregn1!$E$30,4) -> 0 | AJ21: =ROUND(AD21*Beregn1!$E$30,4) -> 0 | AK21: =ROUND(AE21*Beregn1!$E$30,4) -> 0 | AL21: =ROUND(AF21*Beregn1!$E$30,4) -> 0 | AM21: =ROUND(AG21*Beregn1!$E$30,4) -> 0
A22: =Beregn1!$B$83 -> 0.7 | B22: =Beregn1!$C$82 -> 0.15 | C22: =Beregn1!$D$83 -> 0 | D22: =Beregn1!$E$82 -> 500 | E22: =Beregn1!$F$82 -> 2000 | Y22: =IF(OR(V22=0,V22=-1),Beregn1!$E$36,V22) -> 41 | Z22: TRUE | AA22: =IF(AND(Y22=41,Z22=FALSE),Beregn1!$E$36,V22) -> 0 | AC22: 0 | AD22: 0 | AE22: 0 | AF22: 0 | AG22: 0 | AI22: =ROUND(AC22*Beregn1!$E$30,4) -> 0 | AJ22: =ROUND(AD22*Beregn1!$E$30,4) -> 0 | AK22: =ROUND(AE22*Beregn1!$E$30,4) -> 0 | AL22: =ROUND(AF22*Beregn1!$E$30,4) -> 0 | AM22: =ROUND(AG22*Beregn1!$E$30,4) -> 0
A23: =Beregn1!$B$83 -> 0.7 | B23: =Beregn1!$C$82 -> 0.15 | C23: =Beregn1!$D$83 -> 0 | D23: =Beregn1!$E$82 -> 500 | E23: =Beregn1!$F$83 -> 0 | Y23: =IF(OR(V23=0,V23=-1),Beregn1!$E$36,V23) -> 41 | Z23: TRUE | AA23: =IF(AND(Y23=41,Z23=FALSE),Beregn1!$E$36,V23) -> 0 | AC23: 0 | AD23: 0 | AE23: 0 | AF23: 0 | AG23: 0 | AI23: =ROUND(AC23*Beregn1!$E$30,4) -> 0 | AJ23: =ROUND(AD23*Beregn1!$E$30,4) -> 0 | AK23: =ROUND(AE23*Beregn1!$E$30,4) -> 0 | AL23: =ROUND(AF23*Beregn1!$E$30,4) -> 0 | AM23: =ROUND(AG23*Beregn1!$E$30,4) -> 0
A24: =Beregn1!$B$83 -> 0.7 | B24: =Beregn1!$C$82 -> 0.15 | C24: =Beregn1!$D$83 -> 0 | D24: =Beregn1!$E$83 -> 0 | E24: =Beregn1!$F$82 -> 2000 | Y24: =IF(OR(V24=0,V24=-1),Beregn1!$E$36,V24) -> 41 | Z24: TRUE | AA24: =IF(AND(Y24=41,Z24=FALSE),Beregn1!$E$36,V24) -> 0 | AC24: 0 | AD24: 0 | AE24: 0 | AF24: 0 | AG24: 0 | AI24: =ROUND(AC24*Beregn1!$E$30,4) -> 0 | AJ24: =ROUND(AD24*Beregn1!$E$30,4) -> 0 | AK24: =ROUND(AE24*Beregn1!$E$30,4) -> 0 | AL24: =ROUND(AF24*Beregn1!$E$30,4) -> 0 | AM24: =ROUND(AG24*Beregn1!$E$30,4) -> 0
A25: =Beregn1!$B$83 -> 0.7 | B25: =Beregn1!$C$82 -> 0.15 | C25: =Beregn1!$D$83 -> 0 | D25: =Beregn1!$E$83 -> 0 | E25: =Beregn1!$F$83 -> 0 | Y25: =IF(OR(V25=0,V25=-1),Beregn1!$E$36,V25) -> 41 | Z25: TRUE | AA25: =IF(AND(Y25=41,Z25=FALSE),Beregn1!$E$36,V25) -> 0 | AC25: 0 | AD25: 0 | AE25: 0 | AF25: 0 | AG25: 0 | AI25: =ROUND(AC25*Beregn1!$E$30,4) -> 0 | AJ25: =ROUND(AD25*Beregn1!$E$30,4) -> 0 | AK25: =ROUND(AE25*Beregn1!$E$30,4) -> 0 | AL25: =ROUND(AF25*Beregn1!$E$30,4) -> 0 | AM25: =ROUND(AG25*Beregn1!$E$30,4) -> 0
A26: =Beregn1!$B$83 -> 0.7 | B26: =Beregn1!$C$83 -> 0.1 | C26: =Beregn1!$D$82 -> 300 | D26: =Beregn1!$E$82 -> 500 | E26: =Beregn1!$F$82 -> 2000 | Y26: =IF(OR(V26=0,V26=-1),Beregn1!$E$36,V26) -> 41 | Z26: TRUE | AA26: =IF(AND(Y26=41,Z26=FALSE),Beregn1!$E$36,V26) -> 0 | AC26: 0 | AD26: 0 | AE26: 0 | AF26: 0 | AG26: 0 | AI26: =ROUND(AC26*Beregn1!$E$30,4) -> 0 | AJ26: =ROUND(AD26*Beregn1!$E$30,4) -> 0 | AK26: =ROUND(AE26*Beregn1!$E$30,4) -> 0 | AL26: =ROUND(AF26*Beregn1!$E$30,4) -> 0 | AM26: =ROUND(AG26*Beregn1!$E$30,4) -> 0
A27: =Beregn1!$B$83 -> 0.7 | B27: =Beregn1!$C$83 -> 0.1 | C27: =Beregn1!$D$82 -> 300 | D27: =Beregn1!$E$82 -> 500 | E27: =Beregn1!$F$83 -> 0 | Y27: =IF(OR(V27=0,V27=-1),Beregn1!$E$36,V27) -> 41 | Z27: TRUE | AA27: =IF(AND(Y27=41,Z27=FALSE),Beregn1!$E$36,V27) -> 0 | AC27: 0 | AD27: 0 | AE27: 0 | AF27: 0 | AG27: 0 | AI27: =ROUND(AC27*Beregn1!$E$30,4) -> 0 | AJ27: =ROUND(AD27*Beregn1!$E$30,4) -> 0 | AK27: =ROUND(AE27*Beregn1!$E$30,4) -> 0 | AL27: =ROUND(AF27*Beregn1!$E$30,4) -> 0 | AM27: =ROUND(AG27*Beregn1!$E$30,4) -> 0
A28: =Beregn1!$B$83 -> 0.7 | B28: =Beregn1!$C$83 -> 0.1 | C28: =Beregn1!$D$82 -> 300 | D28: =Beregn1!$E$83 -> 0 | E28: =Beregn1!$F$82 -> 2000 | Y28: =IF(OR(V28=0,V28=-1),Beregn1!$E$36,V28) -> 41 | Z28: TRUE | AA28: =IF(AND(Y28=41,Z28=FALSE),Beregn1!$E$36,V28) -> 0 | AC28: 0 | AD28: 0 | AE28: 0 | AF28: 0 | AG28: 0 | AI28: =ROUND(AC28*Beregn1!$E$30,4) -> 0 | AJ28: =ROUND(AD28*Beregn1!$E$30,4) -> 0 | AK28: =ROUND(AE28*Beregn1!$E$30,4) -> 0 | AL28: =ROUND(AF28*Beregn1!$E$30,4) -> 0 | AM28: =ROUND(AG28*Beregn1!$E$30,4) -> 0
A29: =Beregn1!$B$83 -> 0.7 | B29: =Beregn1!$C$83 -> 0.1 | C29: =Beregn1!$D$82 -> 300 | D29: =Beregn1!$E$83 -> 0 | E29: =Beregn1!$F$83 -> 0 | Y29: =IF(OR(V29=0,V29=-1),Beregn1!$E$36,V29) -> 41 | Z29: TRUE | AA29: =IF(AND(Y29=41,Z29=FALSE),Beregn1!$E$36,V29) -> 0 | AC29: 0 | AD29: 0 | AE29: 0 | AF29: 0 | AG29: 0 | AI29: =ROUND(AC29*Beregn1!$E$30,4) -> 0 | AJ29: =ROUND(AD29*Beregn1!$E$30,4) -> 0 | AK29: =ROUND(AE29*Beregn1!$E$30,4) -> 0 | AL29: =ROUND(AF29*Beregn1!$E$30,4) -> 0 | AM29: =ROUND(AG29*Beregn1!$E$30,4) -> 0
A30: =Beregn1!$B$83 -> 0.7 | B30: =Beregn1!$C$83 -> 0.1 | C30: =Beregn1!$D$83 -> 0 | D30: =Beregn1!$E$82 -> 500 | E30: =Beregn1!$F$82 -> 2000 | Y30: =IF(OR(V30=0,V30=-1),Beregn1!$E$36,V30) -> 41 | Z30: TRUE | AA30: =IF(AND(Y30=41,Z30=FALSE),Beregn1!$E$36,V30) -> 0 | AC30: 0 | AD30: 0 | AE30: 0 | AF30: 0 | AG30: 0 | AI30: =ROUND(AC30*Beregn1!$E$30,4) -> 0 | AJ30: =ROUND(AD30*Beregn1!$E$30,4) -> 0 | AK30: =ROUND(AE30*Beregn1!$E$30,4) -> 0 | AL30: =ROUND(AF30*Beregn1!$E$30,4) -> 0 | AM30: =ROUND(AG30*Beregn1!$E$30,4) -> 0
A31: =Beregn1!$B$83 -> 0.7 | B31: =Beregn1!$C$83 -> 0.1 | C31: =Beregn1!$D$83 -> 0 | D31: =Beregn1!$E$82 -> 500 | E31: =Beregn1!$F$83 -> 0 | Y31: =IF(OR(V31=0,V31=-1),Beregn1!$E$36,V31) -> 41 | Z31: TRUE | AA31: =IF(AND(Y31=41,Z31=FALSE),Beregn1!$E$36,V31) -> 0 | AC31: 0 | AD31: 0 | AE31: 0 | AF31: 0 | AG31: 0 | AI31: =ROUND(AC31*Beregn1!$E$30,4) -> 0 | AJ31: =ROUND(AD31*Beregn1!$E$30,4) -> 0 | AK31: =ROUND(AE31*Beregn1!$E$30,4) -> 0 | AL31: =ROUND(AF31*Beregn1!$E$30,4) -> 0 | AM31: =ROUND(AG31*Beregn1!$E$30,4) -> 0
A32: =Beregn1!$B$83 -> 0.7 | B32: =Beregn1!$C$83 -> 0.1 | C32: =Beregn1!$D$83 -> 0 | D32: =Beregn1!$E$83 -> 0 | E32: =Beregn1!$F$82 -> 2000 | Y32: =IF(OR(V32=0,V32=-1),Beregn1!$E$36,V32) -> 41 | Z32: TRUE | AA32: =IF(AND(Y32=41,Z32=FALSE),Beregn1!$E$36,V32) -> 0 | AC32: 0 | AD32: 0 | AE32: 0 | AF32: 0 | AG32: 0 | AI32: =ROUND(AC32*Beregn1!$E$30,4) -> 0 | AJ32: =ROUND(AD32*Beregn1!$E$30,4) -> 0 | AK32: =ROUND(AE32*Beregn1!$E$30,4) -> 0 | AL32: =ROUND(AF32*Beregn1!$E$30,4) -> 0 | AM32: =ROUND(AG32*Beregn1!$E$30,4) -> 0
A33: =Beregn1!$B$83 -> 0.7 | B33: =Beregn1!$C$83 -> 0.1 | C33: =Beregn1!$D$83 -> 0 | D33: =Beregn1!$E$83 -> 0 | E33: =Beregn1!$F$83 -> 0 | Y33: =IF(OR(V33=0,V33=-1),Beregn1!$E$36,V33) -> 41 | Z33: TRUE | AA33: =IF(AND(Y33=41,Z33=FALSE),Beregn1!$E$36,V33) -> 0 | AC33: 0 | AD33: 0 | AE33: 0 | AF33: 0 | AG33: 0 | AI33: =ROUND(AC33*Beregn1!$E$30,4) -> 0 | AJ33: =ROUND(AD33*Beregn1!$E$30,4) -> 0 | AK33: =ROUND(AE33*Beregn1!$E$30,4) -> 0 | AL33: =ROUND(AF33*Beregn1!$E$30,4) -> 0 | AM33: =ROUND(AG33*Beregn1!$E$30,4) -> 0
Y34: =IF(OR(V34=0,V34=-1),Beregn1!$E$36,V34) -> 41 | Z34: TRUE | AA34: =IF(AND(Y34=41,Z34=FALSE),Beregn1!$E$36,V34) -> 0 | AC34: 0 | AD34: 0 | AE34: 0 | AF34: 0 | AG34: 0 | AI34: =ROUND(AC34*Beregn1!$E$30,4) -> 0 | AJ34: =ROUND(AD34*Beregn1!$E$30,4) -> 0 | AK34: =ROUND(AE34*Beregn1!$E$30,4) -> 0 | AL34: =ROUND(AF34*Beregn1!$E$30,4) -> 0 | AM34: =ROUND(AG34*Beregn1!$E$30,4) -> 0
Y35: =IF(OR(V35=0,V35=-1),Beregn1!$E$36,V35) -> 41 | Z35: TRUE | AA35: =IF(AND(Y35=41,Z35=FALSE),Beregn1!$E$36,V35) -> 0 | AC35: 0 | AD35: 0 | AE35: 0 | AF35: 0 | AG35: 0 | AI35: =ROUND(AC35*Beregn1!$E$30,4) -> 0 | AJ35: =ROUND(AD35*Beregn1!$E$30,4) -> 0 | AK35: =ROUND(AE35*Beregn1!$E$30,4) -> 0 | AL35: =ROUND(AF35*Beregn1!$E$30,4) -> 0 | AM35: =ROUND(AG35*Beregn1!$E$30,4) -> 0
Y36: =IF(OR(V36=0,V36=-1),Beregn1!$E$36,V36) -> 41 | Z36: TRUE | AA36: =IF(AND(Y36=41,Z36=FALSE),Beregn1!$E$36,V36) -> 0 | AC36: 0 | AD36: 0 | AE36: 0 | AF36: 0 | AG36: 0 | AI36: =ROUND(AC36*Beregn1!$E$30,4) -> 0 | AJ36: =ROUND(AD36*Beregn1!$E$30,4) -> 0 | AK36: =ROUND(AE36*Beregn1!$E$30,4) -> 0 | AL36: =ROUND(AF36*Beregn1!$E$30,4) -> 0 | AM36: =ROUND(AG36*Beregn1!$E$30,4) -> 0
Y37: =IF(OR(V37=0,V37=-1),Beregn1!$E$36,V37) -> 41 | Z37: TRUE | AA37: =IF(AND(Y37=41,Z37=FALSE),Beregn1!$E$36,V37) -> 0 | AC37: 0 | AD37: 0 | AE37: 0 | AF37: 0 | AG37: 0 | AI37: =ROUND(AC37*Beregn1!$E$30,4) -> 0 | AJ37: =ROUND(AD37*Beregn1!$E$30,4) -> 0 | AK37: =ROUND(AE37*Beregn1!$E$30,4) -> 0 | AL37: =ROUND(AF37*Beregn1!$E$30,4) -> 0 | AM37: =ROUND(AG37*Beregn1!$E$30,4) -> 0
Y38: =IF(OR(V38=0,V38=-1),Beregn1!$E$36,V38) -> 41 | Z38: TRUE | AA38: =IF(AND(Y38=41,Z38=FALSE),Beregn1!$E$36,V38) -> 0 | AC38: 0 | AD38: 0 | AE38: 0 | AF38: 0 | AG38: 0 | AI38: =ROUND(AC38*Beregn1!$E$30,4) -> 0 | AJ38: =ROUND(AD38*Beregn1!$E$30,4) -> 0 | AK38: =ROUND(AE38*Beregn1!$E$30,4) -> 0 | AL38: =ROUND(AF38*Beregn1!$E$30,4) -> 0 | AM38: =ROUND(AG38*Beregn1!$E$30,4) -> 0
Y39: =IF(OR(V39=0,V39=-1),Beregn1!$E$36,V39) -> 41 | Z39: TRUE | AA39: =IF(AND(Y39=41,Z39=FALSE),Beregn1!$E$36,V39) -> 0 | AC39: 0 | AD39: 0 | AE39: 0 | AF39: 0 | AG39: 0 | AI39: =ROUND(AC39*Beregn1!$E$30,4) -> 0 | AJ39: =ROUND(AD39*Beregn1!$E$30,4) -> 0 | AK39: =ROUND(AE39*Beregn1!$E$30,4) -> 0 | AL39: =ROUND(AF39*Beregn1!$E$30,4) -> 0 | AM39: =ROUND(AG39*Beregn1!$E$30,4) -> 0
Y40: =IF(OR(V40=0,V40=-1),Beregn1!$E$36,V40) -> 41 | Z40: TRUE | AA40: =IF(AND(Y40=41,Z40=FALSE),Beregn1!$E$36,V40) -> 0 | AC40: 0 | AD40: 0 | AE40: 0 | AF40: 0 | AG40: 0 | AI40: =ROUND(AC40*Beregn1!$E$30,4) -> 0 | AJ40: =ROUND(AD40*Beregn1!$E$30,4) -> 0 | AK40: =ROUND(AE40*Beregn1!$E$30,4) -> 0 | AL40: =ROUND(AF40*Beregn1!$E$30,4) -> 0 | AM40: =ROUND(AG40*Beregn1!$E$30,4) -> 0
Y41: =IF(OR(V41=0,V41=-1),Beregn1!$E$36,V41) -> 41 | Z41: TRUE | AA41: =IF(AND(Y41=41,Z41=FALSE),Beregn1!$E$36,V41) -> 0 | AC41: 0 | AD41: 0 | AE41: 0 | AF41: 0 | AG41: 0 | AI41: =ROUND(AC41*Beregn1!$E$30,4) -> 0 | AJ41: =ROUND(AD41*Beregn1!$E$30,4) -> 0 | AK41: =ROUND(AE41*Beregn1!$E$30,4) -> 0 | AL41: =ROUND(AF41*Beregn1!$E$30,4) -> 0 | AM41: =ROUND(AG41*Beregn1!$E$30,4) -> 0
Y42: =IF(OR(V42=0,V42=-1),Beregn1!$E$36,V42) -> 41 | Z42: TRUE | AA42: =IF(AND(Y42=41,Z42=FALSE),Beregn1!$E$36,V42) -> 0 | AC42: 0 | AD42: 0 | AE42: 0 | AF42: 0 | AG42: 0 | AI42: =ROUND(AC42*Beregn1!$E$30,4) -> 0 | AJ42: =ROUND(AD42*Beregn1!$E$30,4) -> 0 | AK42: =ROUND(AE42*Beregn1!$E$30,4) -> 0 | AL42: =ROUND(AF42*Beregn1!$E$30,4) -> 0 | AM42: =ROUND(AG42*Beregn1!$E$30,4) -> 0
Y43: =IF(OR(V43=0,V43=-1),Beregn1!$E$36,V43) -> 41 | Z43: TRUE | AA43: =IF(AND(Y43=41,Z43=FALSE),Beregn1!$E$36,V43) -> 0 | AC43: 0 | AD43: 0 | AE43: 0 | AF43: 0 | AG43: 0 | AI43: =ROUND(AC43*Beregn1!$E$30,4) -> 0 | AJ43: =ROUND(AD43*Beregn1!$E$30,4) -> 0 | AK43: =ROUND(AE43*Beregn1!$E$30,4) -> 0 | AL43: =ROUND(AF43*Beregn1!$E$30,4) -> 0 | AM43: =ROUND(AG43*Beregn1!$E$30,4) -> 0
Y44: =IF(OR(V44=0,V44=-1),Beregn1!$E$36,V44) -> 41 | Z44: TRUE | AA44: =IF(AND(Y44=41,Z44=FALSE),Beregn1!$E$36,V44) -> 0 | AC44: 0 | AD44: 0 | AE44: 0 | AF44: 0 | AG44: 0 | AI44: =ROUND(AC44*Beregn1!$E$30,4) -> 0 | AJ44: =ROUND(AD44*Beregn1!$E$30,4) -> 0 | AK44: =ROUND(AE44*Beregn1!$E$30,4) -> 0 | AL44: =ROUND(AF44*Beregn1!$E$30,4) -> 0 | AM44: =ROUND(AG44*Beregn1!$E$30,4) -> 0
Y45: =IF(OR(V45=0,V45=-1),Beregn1!$E$36,V45) -> 41 | Z45: TRUE | AA45: =IF(AND(Y45=41,Z45=FALSE),Beregn1!$E$36,V45) -> 0 | AC45: 0 | AD45: 0 | AE45: 0 | AF45: 0 | AG45: 0 | AI45: =ROUND(AC45*Beregn1!$E$30,4) -> 0 | AJ45: =ROUND(AD45*Beregn1!$E$30,4) -> 0 | AK45: =ROUND(AE45*Beregn1!$E$30,4) -> 0 | AL45: =ROUND(AF45*Beregn1!$E$30,4) -> 0 | AM45: =ROUND(AG45*Beregn1!$E$30,4) -> 0
Y46: =IF(OR(V46=0,V46=-1),Beregn1!$E$36,V46) -> 41 | Z46: TRUE | AA46: =IF(AND(Y46=41,Z46=FALSE),Beregn1!$E$36,V46) -> 0 | AC46: 0 | AD46: 0 | AE46: 0 | AF46: 0 | AG46: 0 | AI46: =ROUND(AC46*Beregn1!$E$30,4) -> 0 | AJ46: =ROUND(AD46*Beregn1!$E$30,4) -> 0 | AK46: =ROUND(AE46*Beregn1!$E$30,4) -> 0 | AL46: =ROUND(AF46*Beregn1!$E$30,4) -> 0 | AM46: =ROUND(AG46*Beregn1!$E$30,4) -> 0
Y47: =IF(OR(V47=0,V47=-1),Beregn1!$E$36,V47) -> 41 | Z47: TRUE | AA47: =IF(AND(Y47=41,Z47=FALSE),Beregn1!$E$36,V47) -> 0 | AC47: 0 | AD47: 0 | AE47: 0 | AF47: 0 | AG47: 0 | AI47: =ROUND(AC47*Beregn1!$E$30,4) -> 0 | AJ47: =ROUND(AD47*Beregn1!$E$30,4) -> 0 | AK47: =ROUND(AE47*Beregn1!$E$30,4) -> 0 | AL47: =ROUND(AF47*Beregn1!$E$30,4) -> 0 | AM47: =ROUND(AG47*Beregn1!$E$30,4) -> 0
Y48: =IF(OR(V48=0,V48=-1),Beregn1!$E$36,V48) -> 41 | Z48: TRUE | AA48: =IF(AND(Y48=41,Z48=FALSE),Beregn1!$E$36,V48) -> 0 | AC48: 0 | AD48: 0 | AE48: 0 | AF48: 0 | AG48: 0 | AI48: =ROUND(AC48*Beregn1!$E$30,4) -> 0 | AJ48: =ROUND(AD48*Beregn1!$E$30,4) -> 0 | AK48: =ROUND(AE48*Beregn1!$E$30,4) -> 0 | AL48: =ROUND(AF48*Beregn1!$E$30,4) -> 0 | AM48: =ROUND(AG48*Beregn1!$E$30,4) -> 0
Y49: =IF(OR(V49=0,V49=-1),Beregn1!$E$36,V49) -> 41 | Z49: TRUE | AA49: =IF(AND(Y49=41,Z49=FALSE),Beregn1!$E$36,V49) -> 0 | AC49: 0 | AD49: 0 | AE49: 0 | AF49: 0 | AG49: 0 | AI49: =ROUND(AC49*Beregn1!$E$30,4) -> 0 | AJ49: =ROUND(AD49*Beregn1!$E$30,4) -> 0 | AK49: =ROUND(AE49*Beregn1!$E$30,4) -> 0 | AL49: =ROUND(AF49*Beregn1!$E$30,4) -> 0 | AM49: =ROUND(AG49*Beregn1!$E$30,4) -> 0
Y50: =IF(OR(V50=0,V50=-1),Beregn1!$E$36,V50) -> 41 | Z50: TRUE | AA50: =IF(AND(Y50=41,Z50=FALSE),Beregn1!$E$36,V50) -> 0 | AC50: 0 | AD50: 0 | AE50: 0 | AF50: 0 | AG50: 0 | AI50: =ROUND(AC50*Beregn1!$E$30,4) -> 0 | AJ50: =ROUND(AD50*Beregn1!$E$30,4) -> 0 | AK50: =ROUND(AE50*Beregn1!$E$30,4) -> 0 | AL50: =ROUND(AF50*Beregn1!$E$30,4) -> 0 | AM50: =ROUND(AG50*Beregn1!$E$30,4) -> 0
Y51: =IF(OR(V51=0,V51=-1),Beregn1!$E$36,V51) -> 41 | Z51: TRUE | AA51: =IF(AND(Y51=41,Z51=FALSE),Beregn1!$E$36,V51) -> 0 | AC51: 0 | AD51: 0 | AE51: 0 | AF51: 0 | AG51: 0 | AI51: =ROUND(AC51*Beregn1!$E$30,4) -> 0 | AJ51: =ROUND(AD51*Beregn1!$E$30,4) -> 0 | AK51: =ROUND(AE51*Beregn1!$E$30,4) -> 0 | AL51: =ROUND(AF51*Beregn1!$E$30,4) -> 0 | AM51: =ROUND(AG51*Beregn1!$E$30,4) -> 0
Y52: =IF(OR(V52=0,V52=-1),Beregn1!$E$36,V52) -> 41 | Z52: TRUE | AA52: =IF(AND(Y52=41,Z52=FALSE),Beregn1!$E$36,V52) -> 0 | AC52: 0 | AD52: 0 | AE52: 0 | AF52: 0 | AG52: 0 | AI52: =ROUND(AC52*Beregn1!$E$30,4) -> 0 | AJ52: =ROUND(AD52*Beregn1!$E$30,4) -> 0 | AK52: =ROUND(AE52*Beregn1!$E$30,4) -> 0 | AL52: =ROUND(AF52*Beregn1!$E$30,4) -> 0 | AM52: =ROUND(AG52*Beregn1!$E$30,4) -> 0
Y53: =IF(OR(V53=0,V53=-1),Beregn1!$E$36,V53) -> 41 | Z53: TRUE | AA53: =IF(AND(Y53=41,Z53=FALSE),Beregn1!$E$36,V53) -> 0 | AC53: 0 | AD53: 0 | AE53: 0 | AF53: 0 | AG53: 0 | AI53: =ROUND(AC53*Beregn1!$E$30,4) -> 0 | AJ53: =ROUND(AD53*Beregn1!$E$30,4) -> 0 | AK53: =ROUND(AE53*Beregn1!$E$30,4) -> 0 | AL53: =ROUND(AF53*Beregn1!$E$30,4) -> 0 | AM53: =ROUND(AG53*Beregn1!$E$30,4) -> 0
Y54: =IF(OR(V54=0,V54=-1),Beregn1!$E$36,V54) -> 41 | Z54: TRUE | AA54: =IF(AND(Y54=41,Z54=FALSE),Beregn1!$E$36,V54) -> 0 | AC54: 0 | AD54: 0 | AE54: 0 | AF54: 0 | AG54: 0 | AI54: =ROUND(AC54*Beregn1!$E$30,4) -> 0 | AJ54: =ROUND(AD54*Beregn1!$E$30,4) -> 0 | AK54: =ROUND(AE54*Beregn1!$E$30,4) -> 0 | AL54: =ROUND(AF54*Beregn1!$E$30,4) -> 0 | AM54: =ROUND(AG54*Beregn1!$E$30,4) -> 0
Y55: =IF(OR(V55=0,V55=-1),Beregn1!$E$36,V55) -> 41 | Z55: TRUE | AA55: =IF(AND(Y55=41,Z55=FALSE),Beregn1!$E$36,V55) -> 0 | AC55: 0 | AD55: 0 | AE55: 0 | AF55: 0 | AG55: 0 | AI55: =ROUND(AC55*Beregn1!$E$30,4) -> 0 | AJ55: =ROUND(AD55*Beregn1!$E$30,4) -> 0 | AK55: =ROUND(AE55*Beregn1!$E$30,4) -> 0 | AL55: =ROUND(AF55*Beregn1!$E$30,4) -> 0 | AM55: =ROUND(AG55*Beregn1!$E$30,4) -> 0
Y56: =IF(OR(V56=0,V56=-1),Beregn1!$E$36,V56) -> 41 | Z56: TRUE | AA56: =IF(AND(Y56=41,Z56=FALSE),Beregn1!$E$36,V56) -> 0 | AC56: 0 | AD56: 0 | AE56: 0 | AF56: 0 | AG56: 0 | AI56: =ROUND(AC56*Beregn1!$E$30,4) -> 0 | AJ56: =ROUND(AD56*Beregn1!$E$30,4) -> 0 | AK56: =ROUND(AE56*Beregn1!$E$30,4) -> 0 | AL56: =ROUND(AF56*Beregn1!$E$30,4) -> 0 | AM56: =ROUND(AG56*Beregn1!$E$30,4) -> 0
Y57: =IF(OR(V57=0,V57=-1),Beregn1!$E$36,V57) -> 41 | Z57: TRUE | AA57: =IF(AND(Y57=41,Z57=FALSE),Beregn1!$E$36,V57) -> 0 | AC57: 0 | AD57: 0 | AE57: 0 | AF57: 0 | AG57: 0 | AI57: =ROUND(AC57*Beregn1!$E$30,4) -> 0 | AJ57: =ROUND(AD57*Beregn1!$E$30,4) -> 0 | AK57: =ROUND(AE57*Beregn1!$E$30,4) -> 0 | AL57: =ROUND(AF57*Beregn1!$E$30,4) -> 0 | AM57: =ROUND(AG57*Beregn1!$E$30,4) -> 0
Y58: =IF(OR(V58=0,V58=-1),Beregn1!$E$36,V58) -> 41 | Z58: TRUE | AA58: =IF(AND(Y58=41,Z58=FALSE),Beregn1!$E$36,V58) -> 0 | AC58: 0 | AD58: 0 | AE58: 0 | AF58: 0 | AG58: 0 | AI58: =ROUND(AC58*Beregn1!$E$30,4) -> 0 | AJ58: =ROUND(AD58*Beregn1!$E$30,4) -> 0 | AK58: =ROUND(AE58*Beregn1!$E$30,4) -> 0 | AL58: =ROUND(AF58*Beregn1!$E$30,4) -> 0 | AM58: =ROUND(AG58*Beregn1!$E$30,4) -> 0
Y59: =IF(OR(V59=0,V59=-1),Beregn1!$E$36,V59) -> 41 | Z59: TRUE | AA59: =IF(AND(Y59=41,Z59=FALSE),Beregn1!$E$36,V59) -> 0 | AC59: 0 | AD59: 0 | AE59: 0 | AF59: 0 | AG59: 0 | AI59: =ROUND(AC59*Beregn1!$E$30,4) -> 0 | AJ59: =ROUND(AD59*Beregn1!$E$30,4) -> 0 | AK59: =ROUND(AE59*Beregn1!$E$30,4) -> 0 | AL59: =ROUND(AF59*Beregn1!$E$30,4) -> 0 | AM59: =ROUND(AG59*Beregn1!$E$30,4) -> 0
Y60: =IF(OR(V60=0,V60=-1),Beregn1!$E$36,V60) -> 41 | Z60: TRUE | AA60: =IF(AND(Y60=41,Z60=FALSE),Beregn1!$E$36,V60) -> 0 | AC60: 0 | AD60: 0 | AE60: 0 | AF60: 0 | AG60: 0 | AI60: =ROUND(AC60*Beregn1!$E$30,4) -> 0 | AJ60: =ROUND(AD60*Beregn1!$E$30,4) -> 0 | AK60: =ROUND(AE60*Beregn1!$E$30,4) -> 0 | AL60: =ROUND(AF60*Beregn1!$E$30,4) -> 0 | AM60: =ROUND(AG60*Beregn1!$E$30,4) -> 0
Y61: =IF(OR(V61=0,V61=-1),Beregn1!$E$36,V61) -> 41 | Z61: TRUE | AA61: =IF(AND(Y61=41,Z61=FALSE),Beregn1!$E$36,V61) -> 0 | AC61: 0 | AD61: 0 | AE61: 0 | AF61: 0 | AG61: 0 | AI61: =ROUND(AC61*Beregn1!$E$30,4) -> 0 | AJ61: =ROUND(AD61*Beregn1!$E$30,4) -> 0 | AK61: =ROUND(AE61*Beregn1!$E$30,4) -> 0 | AL61: =ROUND(AF61*Beregn1!$E$30,4) -> 0 | AM61: =ROUND(AG61*Beregn1!$E$30,4) -> 0
Y62: =IF(OR(V62=0,V62=-1),Beregn1!$E$36,V62) -> 41 | Z62: TRUE | AA62: =IF(AND(Y62=41,Z62=FALSE),Beregn1!$E$36,V62) -> 0 | AC62: 0 | AD62: 0 | AE62: 0 | AF62: 0 | AG62: 0 | AI62: =ROUND(AC62*Beregn1!$E$30,4) -> 0 | AJ62: =ROUND(AD62*Beregn1!$E$30,4) -> 0 | AK62: =ROUND(AE62*Beregn1!$E$30,4) -> 0 | AL62: =ROUND(AF62*Beregn1!$E$30,4) -> 0 | AM62: =ROUND(AG62*Beregn1!$E$30,4) -> 0
Y63: =IF(OR(V63=0,V63=-1),Beregn1!$E$36,V63) -> 41 | Z63: TRUE | AA63: =IF(AND(Y63=41,Z63=FALSE),Beregn1!$E$36,V63) -> 0 | AC63: 0 | AD63: 0 | AE63: 0 | AF63: 0 | AG63: 0 | AI63: =ROUND(AC63*Beregn1!$E$30,4) -> 0 | AJ63: =ROUND(AD63*Beregn1!$E$30,4) -> 0 | AK63: =ROUND(AE63*Beregn1!$E$30,4) -> 0 | AL63: =ROUND(AF63*Beregn1!$E$30,4) -> 0 | AM63: =ROUND(AG63*Beregn1!$E$30,4) -> 0
Y64: =IF(OR(V64=0,V64=-1),Beregn1!$E$36,V64) -> 41 | Z64: TRUE | AA64: =IF(AND(Y64=41,Z64=FALSE),Beregn1!$E$36,V64) -> 0 | AC64: 0 | AD64: 0 | AE64: 0 | AF64: 0 | AG64: 0 | AI64: =ROUND(AC64*Beregn1!$E$30,4) -> 0 | AJ64: =ROUND(AD64*Beregn1!$E$30,4) -> 0 | AK64: =ROUND(AE64*Beregn1!$E$30,4) -> 0 | AL64: =ROUND(AF64*Beregn1!$E$30,4) -> 0 | AM64: =ROUND(AG64*Beregn1!$E$30,4) -> 0
Y65: =IF(OR(V65=0,V65=-1),Beregn1!$E$36,V65) -> 41 | Z65: TRUE | AA65: =IF(AND(Y65=41,Z65=FALSE),Beregn1!$E$36,V65) -> 0 | AC65: 0 | AD65: 0 | AE65: 0 | AF65: 0 | AG65: 0 | AI65: =ROUND(AC65*Beregn1!$E$30,4) -> 0 | AJ65: =ROUND(AD65*Beregn1!$E$30,4) -> 0 | AK65: =ROUND(AE65*Beregn1!$E$30,4) -> 0 | AL65: =ROUND(AF65*Beregn1!$E$30,4) -> 0 | AM65: =ROUND(AG65*Beregn1!$E$30,4) -> 0
Y66: =IF(OR(V66=0,V66=-1),Beregn1!$E$36,V66) -> 41 | Z66: TRUE | AA66: =IF(AND(Y66=41,Z66=FALSE),Beregn1!$E$36,V66) -> 0 | AC66: =INDEX($N66:$W66,MATCH("Infiltrated",$N$1:$W$1,0)) -> 0 | AD66: =INDEX($N66:$W66,MATCH("Evaporated",$N$1:$W$1,0)) -> 0 | AE66: =INDEX($N66:$W66,MATCH("Overflow",$N$1:$W$1,0)) -> 0 | AF66: 0 | AG66: =INDEX($N66:$W66,MATCH("Available_Volume",$N$1:$W$1,0)) -> 0 | AI66: =ROUND(AC66*Beregn1!$E$30,4) -> 0 | AJ66: =ROUND(AD66*Beregn1!$E$30,4) -> 0 | AK66: =ROUND(AE66*Beregn1!$E$30,4) -> 0 | AL66: =ROUND(AF66*Beregn1!$E$30,4) -> 0 | AM66: =ROUND(AG66*Beregn1!$E$30,4) -> 0
Y67: =IF(OR(V67=0,V67=-1),Beregn1!$E$36,V67) -> 41 | Z67: =ISBLANK(V67) -> TRUE | AA67: =IF(AND(Y67=41,Z67=FALSE),Beregn1!$E$36,V67) -> 0 | AC67: 0 | AD67: 0 | AE67: 0 | AF67: =AA67 -> 0 | AG67: 0 | AI67: =ROUND(AC67*Beregn1!$E$30,4) -> 0 | AJ67: =ROUND(AD67*Beregn1!$E$30,4) -> 0 | AK67: =ROUND(AE67*Beregn1!$E$30,4) -> 0 | AL67: =ROUND(AF67*Beregn1!$E$30,4) -> 0 | AM67: =ROUND(AG67*Beregn1!$E$30,4) -> 0
Y68: =IF(OR(V68=0,V68=-1),Beregn1!$E$36,V68) -> 41 | Z68: TRUE | AA68: =IF(AND(Y68=41,Z68=FALSE),Beregn1!$E$36,V68) -> 0 | AC68: 0 | AD68: 0 | AE68: 0 | AF68: 0 | AG68: 0 | AI68: =ROUND(AC68*Beregn1!$E$30,4) -> 0 | AJ68: =ROUND(AD68*Beregn1!$E$30,4) -> 0 | AK68: =ROUND(AE68*Beregn1!$E$30,4) -> 0 | AL68: =ROUND(AF68*Beregn1!$E$30,4) -> 0 | AM68: =ROUND(AG68*Beregn1!$E$30,4) -> 0
Y69: =IF(OR(V69=0,V69=-1),Beregn1!$E$36,V69) -> 41 | Z69: TRUE | AA69: =IF(AND(Y69=41,Z69=FALSE),Beregn1!$E$36,V69) -> 0 | AC69: 0 | AD69: 0 | AE69: 0 | AF69: 0 | AG69: 0 | AI69: =ROUND(AC69*Beregn1!$E$30,4) -> 0 | AJ69: =ROUND(AD69*Beregn1!$E$30,4) -> 0 | AK69: =ROUND(AE69*Beregn1!$E$30,4) -> 0 | AL69: =ROUND(AF69*Beregn1!$E$30,4) -> 0 | AM69: =ROUND(AG69*Beregn1!$E$30,4) -> 0
Y70: =IF(OR(V70=0,V70=-1),Beregn1!$E$36,V70) -> 41 | Z70: TRUE | AA70: =IF(AND(Y70=41,Z70=FALSE),Beregn1!$E$36,V70) -> 0 | AC70: 0 | AD70: 0 | AE70: 0 | AF70: 0 | AG70: 0 | AI70: =ROUND(AC70*Beregn1!$E$30,4) -> 0 | AJ70: =ROUND(AD70*Beregn1!$E$30,4) -> 0 | AK70: =ROUND(AE70*Beregn1!$E$30,4) -> 0 | AL70: =ROUND(AF70*Beregn1!$E$30,4) -> 0 | AM70: =ROUND(AG70*Beregn1!$E$30,4) -> 0

Sheet BR2_d (hidden)
A1: A_ratio | B1: surface_depth | C1: soil_depth | D1: storage_depth | E1: drain_offset | G1: Dataudtræk, 1 ↓ | H1: A_ratio | I1: surface_depth | J1: soil_depth | K1: storage_depth | L1: drain_coefficient | M1: drain_offset | N1: Evaporated | O1: Drained | P1: Overflow | Q1: T_overflow | R1: Available_Volume | S1: Dataudtræk, 2 ↓ | T1: A_ratio | U1: surface_depth | V1: soil_depth | W1: storage_depth | X1: drain_coefficient | Y1: drain_offset | Z1: Evaporated | AA1: Drained | AB1: Overflow | AC1: T_overflow | AD1: Available_Volume | AE1: Ret T_overflow ↓ | AF1: =AC1 -> T_overflow | AG1: =AC1 -> T_overflow | AH1: =AC1 -> T_overflow | AI1: Output ↓ | AJ1: =INDEX($T1:$AD1,MATCH("Evaporated",$T$1:$AD$1,0)) -> Evaporated | AK1: =INDEX($T1:$AD1,MATCH("Drained",$T$1:$AD$1,0)) -> Drained | AL1: =INDEX($T1:$AD1,MATCH("Overflow",$T$1:$AD$1,0)) -> Overflow | AM1: =AH1 -> T_overflow | AN1: =INDEX($T1:$AD1,MATCH("Available_Volume",$T$1:$AD$1,0)) -> Available_Volume | AO1: Lineær interpolation ↓ | AP1: Evaporated_w | AQ1: Drained_w | AR1: Overflow_w | AS1: T_overflow_w | AT1: Available_Volume_w | AV1: Evaporated_sum | AW1: Drained_sum | AX1: Overflow_sum | AY1: T_overflow_sum | AZ1: Available_Volume_sum
A2: =Beregn1!$C$92 -> 0.15 | B2: =Beregn1!$D$92 -> 300 | C2: =Beregn1!$E$92 -> 600 | D2: =Beregn1!$F$92 -> 2000 | E2: =Beregn1!$G$92 -> 0 | H2: 0.1 | I2: 300 | J2: 450 | K2: 2000 | L2: 18 | M2: 0 | N2: 0.3 | O2: 0.7 | P2: 0 | Q2: 20.494 | R2: 0.94 | T2: 0.1 | U2: 300 | V2: 450 | W2: 2000 | X2: 18 | Y2: 0 | Z2: 0.3 | AA2: 0.7 | AB2: 0 | AC2: 20.494 | AD2: 0.94 | AF2: =IF(OR(AC2=0,AC2=-1),Beregn1!$E$36,AC2) -> 20.494 | AG2: =ISBLANK(AC2) -> FALSE | AH2: =IF(AND(AF2=41,AG2=FALSE),Beregn1!$E$36,AC2) -> 20.494 | AJ2: =INDEX($T2:$AD2,MATCH("Evaporated",$T$1:$AD$1,0)) -> 0.3 | AK2: =INDEX($T2:$AD2,MATCH("Drained",$T$1:$AD$1,0)) -> 0.7 | AL2: =INDEX($T2:$AD2,MATCH("Overflow",$T$1:$AD$1,0)) -> 0 | AM2: =AH2 -> 20.494 | AN2: =INDEX($T2:$AD2,MATCH("Available_Volume",$T$1:$AD$1,0)) -> 0.94 | AP2: =ROUND(AJ2*Beregn1!$F$30,4) -> 0.075 | AQ2: =ROUND(AK2*Beregn1!$F$30,4) -> 0.175 | AR2: =ROUND(AL2*Beregn1!$F$30,4) -> 0 | AS2: =ROUND(AM2*Beregn1!$F$30,4) -> 5.1235 | AT2: =ROUND(AN2*Beregn1!$F$30,4) -> 0.235 | AV2: =SUM(AP2:AP440) -> 0.315 | AW2: =SUM(AQ2:AQ440) -> 0.685 | AX2: =SUM(AR2:AR440) -> 0 | AY2: =SUM(AS2:AS440) -> 30.7416 | AZ2: =SUM(AT2:AT440) -> 0.935
A3: =Beregn1!$C$92 -> 0.15 | B3: =Beregn1!$D$92 -> 300 | C3: =Beregn1!$E$92 -> 600 | D3: =Beregn1!$F$92 -> 2000 | E3: =Beregn1!$G$93 -> 0 | H3: 0.1 | I3: 300 | J3: 450 | K3: 2000 | L3: 36 | M3: 0 | N3: 0.3 | O3: 0.7 | P3: 0 | Q3: 20.494 | R3: 0.94 | T3: 0.1 | U3: 300 | V3: 600 | W3: 2000 | X3: 18 | Y3: 0 | Z3: 0.3 | AA3: 0.7 | AB3: 0 | AC3: 20.494 | AD3: 0.93 | AF3: =IF(OR(AC3=0,AC3=-1),Beregn1!$E$36,AC3) -> 20.494 | AG3: =ISBLANK(AC3) -> FALSE | AH3: =IF(AND(AF3=41,AG3=FALSE),Beregn1!$E$36,AC3) -> 20.494 | AJ3: 0.3 | AK3: 0.7 | AL3: 0 | AM3: =AH3 -> 20.494 | AN3: 0.93 | AP3: =ROUND(AJ3*Beregn1!$F$30,4) -> 0.075 | AQ3: =ROUND(AK3*Beregn1!$F$30,4) -> 0.175 | AR3: =ROUND(AL3*Beregn1!$F$30,4) -> 0 | AS3: =ROUND(AM3*Beregn1!$F$30,4) -> 5.1235 | AT3: =ROUND(AN3*Beregn1!$F$30,4) -> 0.2325
A4: =Beregn1!$C$92 -> 0.15 | B4: =Beregn1!$D$92 -> 300 | C4: =Beregn1!$E$92 -> 600 | D4: =Beregn1!$F$93 -> 0 | E4: =Beregn1!$G$92 -> 0 | H4: 0.1 | I4: 300 | J4: 450 | K4: 2000 | L4: 72 | M4: 0 | N4: 0.3 | O4: 0.7 | P4: 0 | Q4: 20.494 | R4: 0.94 | T4: 0.15 | U4: 300 | V4: 450 | W4: 2000 | X4: 12 | Y4: 0 | Z4: 0.33 | AA4: 0.67 | AB4: 0 | AC4: 40.989 | AD4: 0.94 | AF4: =IF(OR(AC4=0,AC4=-1),Beregn1!$E$36,AC4) -> 40.989 | AG4: FALSE | AH4: =IF(AND(AF4=41,AG4=FALSE),Beregn1!$E$36,AC4) -> 40.989 | AJ4: 0.33 | AK4: 0.67 | AL4: 0 | AM4: 40.989 | AN4: 0.94 | AP4: =ROUND(AJ4*Beregn1!$F$30,4) -> 0.0825 | AQ4: =ROUND(AK4*Beregn1!$F$30,4) -> 0.1675 | AR4: =ROUND(AL4*Beregn1!$F$30,4) -> 0 | AS4: =ROUND(AM4*Beregn1!$F$30,4) -> 10.2473 | AT4: =ROUND(AN4*Beregn1!$F$30,4) -> 0.235
A5: =Beregn1!$C$92 -> 0.15 | B5: =Beregn1!$D$92 -> 300 | C5: =Beregn1!$E$92 -> 600 | D5: =Beregn1!$F$93 -> 0 | E5: =Beregn1!$G$93 -> 0 | H5: 0.1 | I5: 300 | J5: 450 | K5: 2000 | L5: 180 | M5: 0 | N5: 0.3 | O5: 0.7 | P5: 0 | Q5: 20.494 | R5: 0.94 | T5: 0.15 | U5: 300 | V5: 600 | W5: 2000 | X5: 12 | Y5: 0 | Z5: 0.33 | AA5: 0.67 | AB5: 0 | AC5: 40.989 | AD5: 0.93 | AF5: =IF(OR(AC5=0,AC5=-1),Beregn1!$E$36,AC5) -> 40.989 | AG5: FALSE | AH5: =IF(AND(AF5=41,AG5=FALSE),Beregn1!$E$36,AC5) -> 40.989 | AJ5: 0.33 | AK5: 0.67 | AL5: 0 | AM5: 40.989 | AN5: 0.93 | AP5: =ROUND(AJ5*Beregn1!$F$30,4) -> 0.0825 | AQ5: =ROUND(AK5*Beregn1!$F$30,4) -> 0.1675 | AR5: =ROUND(AL5*Beregn1!$F$30,4) -> 0 | AS5: =ROUND(AM5*Beregn1!$F$30,4) -> 10.2473 | AT5: =ROUND(AN5*Beregn1!$F$30,4) -> 0.2325
A6: =Beregn1!$C$92 -> 0.15 | B6: =Beregn1!$D$92 -> 300 | C6: =Beregn1!$E$93 -> 450 | D6: =Beregn1!$F$92 -> 2000 | E6: =Beregn1!$G$92 -> 0 | H6: 0.1 | I6: 300 | J6: 450 | K6: 2000 | L6: 360 | M6: 0 | N6: 0.3 | O6: 0.7 | P6: 0 | Q6: 20.494 | R6: 0.94 | AF6: =IF(OR(AC6=0,AC6=-1),Beregn1!$E$36,AC6) -> 41 | AG6: TRUE | AH6: =IF(AND(AF6=41,AG6=FALSE),Beregn1!$E$36,AC6) -> 0 | AJ6: 0 | AK6: 0 | AL6: 0 | AM6: 0 | AN6: 0 | AP6: =ROUND(AJ6*Beregn1!$F$30,4) -> 0 | AQ6: =ROUND(AK6*Beregn1!$F$30,4) -> 0 | AR6: =ROUND(AL6*Beregn1!$F$30,4) -> 0 | AS6: =ROUND(AM6*Beregn1!$F$30,4) -> 0 | AT6: =ROUND(AN6*Beregn1!$F$30,4) -> 0
A7: =Beregn1!$C$92 -> 0.15 | B7: =Beregn1!$D$92 -> 300 | C7: =Beregn1!$E$93 -> 450 | D7: =Beregn1!$F$92 -> 2000 | E7: =Beregn1!$G$93 -> 0 | H7: 0.1 | I7: 300 | J7: 600 | K7: 2000 | L7: 18 | M7: 0 | N7: 0.3 | O7: 0.7 | P7: 0 | Q7: 20.494 | R7: 0.93 | AF7: =IF(OR(AC7=0,AC7=-1),Beregn1!$E$36,AC7) -> 41 | AG7: TRUE | AH7: =IF(AND(AF7=41,AG7=FALSE),Beregn1!$E$36,AC7) -> 0 | AJ7: 0 | AK7: 0 | AL7: 0 | AM7: 0 | AN7: 0 | AP7: =ROUND(AJ7*Beregn1!$F$30,4) -> 0 | AQ7: =ROUND(AK7*Beregn1!$F$30,4) -> 0 | AR7: =ROUND(AL7*Beregn1!$F$30,4) -> 0 | AS7: =ROUND(AM7*Beregn1!$F$30,4) -> 0 | AT7: =ROUND(AN7*Beregn1!$F$30,4) -> 0
A8: =Beregn1!$C$92 -> 0.15 | B8: =Beregn1!$D$92 -> 300 | C8: =Beregn1!$E$93 -> 450 | D8: =Beregn1!$F$93 -> 0 | E8: =Beregn1!$G$92 -> 0 | H8: 0.1 | I8: 300 | J8: 600 | K8: 2000 | L8: 36 | M8: 0 | N8: 0.3 | O8: 0.7 | P8: 0 | Q8: 20.494 | R8: 0.93 | AF8: =IF(OR(AC8=0,AC8=-1),Beregn1!$E$36,AC8) -> 41 | AG8: TRUE | AH8: =IF(AND(AF8=41,AG8=FALSE),Beregn1!$E$36,AC8) -> 0 | AJ8: 0 | AK8: 0 | AL8: 0 | AM8: 0 | AN8: 0 | AP8: =ROUND(AJ8*Beregn1!$F$30,4) -> 0 | AQ8: =ROUND(AK8*Beregn1!$F$30,4) -> 0 | AR8: =ROUND(AL8*Beregn1!$F$30,4) -> 0 | AS8: =ROUND(AM8*Beregn1!$F$30,4) -> 0 | AT8: =ROUND(AN8*Beregn1!$F$30,4) -> 0
A9: =Beregn1!$C$92 -> 0.15 | B9: =Beregn1!$D$92 -> 300 | C9: =Beregn1!$E$93 -> 450 | D9: =Beregn1!$F$93 -> 0 | E9: =Beregn1!$G$93 -> 0 | H9: 0.1 | I9: 300 | J9: 600 | K9: 2000 | L9: 72 | M9: 0 | N9: 0.3 | O9: 0.7 | P9: 0 | Q9: 20.494 | R9: 0.93 | AF9: =IF(OR(AC9=0,AC9=-1),Beregn1!$E$36,AC9) -> 41 | AG9: TRUE | AH9: =IF(AND(AF9=41,AG9=FALSE),Beregn1!$E$36,AC9) -> 0 | AJ9: 0 | AK9: 0 | AL9: 0 | AM9: =AH9 -> 0 | AN9: 0 | AP9: =ROUND(AJ9*Beregn1!$F$30,4) -> 0 | AQ9: =ROUND(AK9*Beregn1!$F$30,4) -> 0 | AR9: =ROUND(AL9*Beregn1!$F$30,4) -> 0 | AS9: =ROUND(AM9*Beregn1!$F$30,4) -> 0 | AT9: =ROUND(AN9*Beregn1!$F$30,4) -> 0
A10: =Beregn1!$C$92 -> 0.15 | B10: =Beregn1!$D$93 -> 0 | C10: =Beregn1!$E$92 -> 600 | D10: =Beregn1!$F$92 -> 2000 | E10: =Beregn1!$G$92 -> 0 | H10: 0.1 | I10: 300 | J10: 600 | K10: 2000 | L10: 180 | M10: 0 | N10: 0.3 | O10: 0.7 | P10: 0 | Q10: 20.494 | R10: 0.93 | AF10: =IF(OR(AC10=0,AC10=-1),Beregn1!$E$36,AC10) -> 41 | AG10: TRUE | AH10: =IF(AND(AF10=41,AG10=FALSE),Beregn1!$E$36,AC10) -> 0 | AJ10: 0 | AK10: 0 | AL10: 0 | AM10: 0 | AN10: 0 | AP10: =ROUND(AJ10*Beregn1!$F$30,4) -> 0 | AQ10: =ROUND(AK10*Beregn1!$F$30,4) -> 0 | AR10: =ROUND(AL10*Beregn1!$F$30,4) -> 0 | AS10: =ROUND(AM10*Beregn1!$F$30,4) -> 0 | AT10: =ROUND(AN10*Beregn1!$F$30,4) -> 0
A11: =Beregn1!$C$92 -> 0.15 | B11: =Beregn1!$D$93 -> 0 | C11: =Beregn1!$E$92 -> 600 | D11: =Beregn1!$F$92 -> 2000 | E11: =Beregn1!$G$93 -> 0 | H11: 0.1 | I11: 300 | J11: 600 | K11: 2000 | L11: 360 | M11: 0 | N11: 0.3 | O11: 0.7 | P11: 0 | Q11: 20.494 | R11: 0.93 | AF11: =IF(OR(AC11=0,AC11=-1),Beregn1!$E$36,AC11) -> 41 | AG11: TRUE | AH11: =IF(AND(AF11=41,AG11=FALSE),Beregn1!$E$36,AC11) -> 0 | AJ11: 0 | AK11: 0 | AL11: 0 | AM11: 0 | AN11: 0 | AP11: =ROUND(AJ11*Beregn1!$F$30,4) -> 0 | AQ11: =ROUND(AK11*Beregn1!$F$30,4) -> 0 | AR11: =ROUND(AL11*Beregn1!$F$30,4) -> 0 | AS11: =ROUND(AM11*Beregn1!$F$30,4) -> 0 | AT11: =ROUND(AN11*Beregn1!$F$30,4) -> 0
A12: =Beregn1!$C$92 -> 0.15 | B12: =Beregn1!$D$93 -> 0 | C12: =Beregn1!$E$92 -> 600 | D12: =Beregn1!$F$93 -> 0 | E12: =Beregn1!$G$92 -> 0 | H12: 0.15 | I12: 300 | J12: 450 | K12: 2000 | L12: 12 | M12: 0 | N12: 0.33 | O12: 0.67 | P12: 0 | Q12: 40.989 | R12: 0.94 | AF12: =IF(OR(AC12=0,AC12=-1),Beregn1!$E$36,AC12) -> 41 | AG12: TRUE | AH12: =IF(AND(AF12=41,AG12=FALSE),Beregn1!$E$36,AC12) -> 0 | AJ12: 0 | AK12: 0 | AL12: 0 | AM12: 0 | AN12: 0 | AP12: =ROUND(AJ12*Beregn1!$F$30,4) -> 0 | AQ12: =ROUND(AK12*Beregn1!$F$30,4) -> 0 | AR12: =ROUND(AL12*Beregn1!$F$30,4) -> 0 | AS12: =ROUND(AM12*Beregn1!$F$30,4) -> 0 | AT12: =ROUND(AN12*Beregn1!$F$30,4) -> 0
A13: =Beregn1!$C$92 -> 0.15 | B13: =Beregn1!$D$93 -> 0 | C13: =Beregn1!$E$92 -> 600 | D13: =Beregn1!$F$93 -> 0 | E13: =Beregn1!$G$93 -> 0 | H13: 0.15 | I13: 300 | J13: 450 | K13: 2000 | L13: 24 | M13: 0 | N13: 0.33 | O13: 0.67 | P13: 0 | Q13: 40.989 | R13: 0.94 | AF13: =IF(OR(AC13=0,AC13=-1),Beregn1!$E$36,AC13) -> 41 | AG13: TRUE | AH13: =IF(AND(AF13=41,AG13=FALSE),Beregn1!$E$36,AC13) -> 0 | AJ13: 0 | AK13: 0 | AL13: 0 | AM13: 0 | AN13: 0 | AP13: =ROUND(AJ13*Beregn1!$F$30,4) -> 0 | AQ13: =ROUND(AK13*Beregn1!$F$30,4) -> 0 | AR13: =ROUND(AL13*Beregn1!$F$30,4) -> 0 | AS13: =ROUND(AM13*Beregn1!$F$30,4) -> 0 | AT13: =ROUND(AN13*Beregn1!$F$30,4) -> 0
A14: =Beregn1!$C$92 -> 0.15 | B14: =Beregn1!$D$93 -> 0 | C14: =Beregn1!$E$93 -> 450 | D14: =Beregn1!$F$92 -> 2000 | E14: =Beregn1!$G$92 -> 0 | H14: 0.15 | I14: 300 | J14: 450 | K14: 2000 | L14: 48 | M14: 0 | N14: 0.33 | O14: 0.67 | P14: 0 | Q14: 40.989 | R14: 0.94 | AF14: =IF(OR(AC14=0,AC14=-1),Beregn1!$E$36,AC14) -> 41 | AG14: TRUE | AH14: =IF(AND(AF14=41,AG14=FALSE),Beregn1!$E$36,AC14) -> 0 | AJ14: 0 | AK14: 0 | AL14: 0 | AM14: 0 | AN14: 0 | AP14: =ROUND(AJ14*Beregn1!$F$30,4) -> 0 | AQ14: =ROUND(AK14*Beregn1!$F$30,4) -> 0 | AR14: =ROUND(AL14*Beregn1!$F$30,4) -> 0 | AS14: =ROUND(AM14*Beregn1!$F$30,4) -> 0 | AT14: =ROUND(AN14*Beregn1!$F$30,4) -> 0
A15: =Beregn1!$C$92 -> 0.15 | B15: =Beregn1!$D$93 -> 0 | C15: =Beregn1!$E$93 -> 450 | D15: =Beregn1!$F$92 -> 2000 | E15: =Beregn1!$G$93 -> 0 | H15: 0.15 | I15: 300 | J15: 450 | K15: 2000 | L15: 120 | M15: 0 | N15: 0.33 | O15: 0.67 | P15: 0 | Q15: 40.989 | R15: 0.94 | AF15: =IF(OR(AC15=0,AC15=-1),Beregn1!$E$36,AC15) -> 41 | AG15: TRUE | AH15: =IF(AND(AF15=41,AG15=FALSE),Beregn1!$E$36,AC15) -> 0 | AJ15: 0 | AK15: 0 | AL15: 0 | AM15: 0 | AN15: 0 | AP15: =ROUND(AJ15*Beregn1!$F$30,4) -> 0 | AQ15: =ROUND(AK15*Beregn1!$F$30,4) -> 0 | AR15: =ROUND(AL15*Beregn1!$F$30,4) -> 0 | AS15: =ROUND(AM15*Beregn1!$F$30,4) -> 0 | AT15: =ROUND(AN15*Beregn1!$F$30,4) -> 0
A16: =Beregn1!$C$92 -> 0.15 | B16: =Beregn1!$D$93 -> 0 | C16: =Beregn1!$E$93 -> 450 | D16: =Beregn1!$F$93 -> 0 | E16: =Beregn1!$G$92 -> 0 | H16: 0.15 | I16: 300 | J16: 450 | K16: 2000 | L16: 240 | M16: 0 | N16: 0.33 | O16: 0.67 | P16: 0 | Q16: 40.989 | R16: 0.94 | AF16: =IF(OR(AC16=0,AC16=-1),Beregn1!$E$36,AC16) -> 41 | AG16: TRUE | AH16: =IF(AND(AF16=41,AG16=FALSE),Beregn1!$E$36,AC16) -> 0 | AJ16: 0 | AK16: 0 | AL16: 0 | AM16: 0 | AN16: 0 | AP16: =ROUND(AJ16*Beregn1!$F$30,4) -> 0 | AQ16: =ROUND(AK16*Beregn1!$F$30,4) -> 0 | AR16: =ROUND(AL16*Beregn1!$F$30,4) -> 0 | AS16: =ROUND(AM16*Beregn1!$F$30,4) -> 0 | AT16: =ROUND(AN16*Beregn1!$F$30,4) -> 0
A17: =Beregn1!$C$92 -> 0.15 | B17: =Beregn1!$D$93 -> 0 | C17: =Beregn1!$E$93 -> 450 | D17: =Beregn1!$F$93 -> 0 | E17: =Beregn1!$G$93 -> 0 | H17: 0.15 | I17: 300 | J17: 600 | K17: 2000 | L17: 12 | M17: 0 | N17: 0.33 | O17: 0.67 | P17: 0 | Q17: 40.989 | R17: 0.93 | AF17: =IF(OR(AC17=0,AC17=-1),Beregn1!$E$36,AC17) -> 41 | AG17: TRUE | AH17: =IF(AND(AF17=41,AG17=FALSE),Beregn1!$E$36,AC17) -> 0 | AJ17: 0 | AK17: 0 | AL17: 0 | AM17: 0 | AN17: 0 | AP17: =ROUND(AJ17*Beregn1!$F$30,4) -> 0 | AQ17: =ROUND(AK17*Beregn1!$F$30,4) -> 0 | AR17: =ROUND(AL17*Beregn1!$F$30,4) -> 0 | AS17: =ROUND(AM17*Beregn1!$F$30,4) -> 0 | AT17: =ROUND(AN17*Beregn1!$F$30,4) -> 0
A18: =Beregn1!$C$93 -> 0.1 | B18: =Beregn1!$D$92 -> 300 | C18: =Beregn1!$E$92 -> 600 | D18: =Beregn1!$F$92 -> 2000 | E18: =Beregn1!$G$92 -> 0 | H18: 0.15 | I18: 300 | J18: 600 | K18: 2000 | L18: 24 | M18: 0 | N18: 0.33 | O18: 0.67 | P18: 0 | Q18: 40.989 | R18: 0.93 | AF18: =IF(OR(AC18=0,AC18=-1),Beregn1!$E$36,AC18) -> 41 | AG18: TRUE | AH18: =IF(AND(AF18=41,AG18=FALSE),Beregn1!$E$36,AC18) -> 0 | AJ18: 0 | AK18: 0 | AL18: 0 | AM18: 0 | AN18: 0 | AP18: =ROUND(AJ18*Beregn1!$F$30,4) -> 0 | AQ18: =ROUND(AK18*Beregn1!$F$30,4) -> 0 | AR18: =ROUND(AL18*Beregn1!$F$30,4) -> 0 | AS18: =ROUND(AM18*Beregn1!$F$30,4) -> 0 | AT18: =ROUND(AN18*Beregn1!$F$30,4) -> 0
A19: =Beregn1!$C$93 -> 0.1 | B19: =Beregn1!$D$92 -> 300 | C19: =Beregn1!$E$92 -> 600 | D19: =Beregn1!$F$92 -> 2000 | E19: =Beregn1!$G$93 -> 0 | H19: 0.15 | I19: 300 | J19: 600 | K19: 2000 | L19: 48 | M19: 0 | N19: 0.33 | O19: 0.67 | P19: 0 | Q19: 40.989 | R19: 0.93 | AF19: =IF(OR(AC19=0,AC19=-1),Beregn1!$E$36,AC19) -> 41 | AG19: TRUE | AH19: =IF(AND(AF19=41,AG19=FALSE),Beregn1!$E$36,AC19) -> 0 | AJ19: 0 | AK19: 0 | AL19: 0 | AM19: 0 | AN19: 0 | AP19: =ROUND(AJ19*Beregn1!$F$30,4) -> 0 | AQ19: =ROUND(AK19*Beregn1!$F$30,4) -> 0 | AR19: =ROUND(AL19*Beregn1!$F$30,4) -> 0 | AS19: =ROUND(AM19*Beregn1!$F$30,4) -> 0 | AT19: =ROUND(AN19*Beregn1!$F$30,4) -> 0
A20: =Beregn1!$C$93 -> 0.1 | B20: =Beregn1!$D$92 -> 300 | C20: =Beregn1!$E$92 -> 600 | D20: =Beregn1!$F$93 -> 0 | E20: =Beregn1!$G$92 -> 0 | H20: 0.15 | I20: 300 | J20: 600 | K20: 2000 | L20: 120 | M20: 0 | N20: 0.33 | O20: 0.67 | P20: 0 | Q20: 40.989 | R20: 0.93 | AF20: =IF(OR(AC20=0,AC20=-1),Beregn1!$E$36,AC20) -> 41 | AG20: TRUE | AH20: =IF(AND(AF20=41,AG20=FALSE),Beregn1!$E$36,AC20) -> 0 | AJ20: 0 | AK20: 0 | AL20: 0 | AM20: 0 | AN20: 0 | AP20: =ROUND(AJ20*Beregn1!$F$30,4) -> 0 | AQ20: =ROUND(AK20*Beregn1!$F$30,4) -> 0 | AR20: =ROUND(AL20*Beregn1!$F$30,4) -> 0 | AS20: =ROUND(AM20*Beregn1!$F$30,4) -> 0 | AT20: =ROUND(AN20*Beregn1!$F$30,4) -> 0
A21: =Beregn1!$C$93 -> 0.1 | B21: =Beregn1!$D$92 -> 300 | C21: =Beregn1!$E$92 -> 600 | D21: =Beregn1!$F$93 -> 0 | E21: =Beregn1!$G$93 -> 0 | H21: 0.15 | I21: 300 | J21: 600 | K21: 2000 | L21: 240 | M21: 0 | N21: 0.33 | O21: 0.67 | P21: 0 | Q21: 40.989 | R21: 0.93 | AF21: =IF(OR(AC21=0,AC21=-1),Beregn1!$E$36,AC21) -> 41 | AG21: TRUE | AH21: =IF(AND(AF21=41,AG21=FALSE),Beregn1!$E$36,AC21) -> 0 | AJ21: 0 | AK21: 0 | AL21: 0 | AM21: 0 | AN21: 0 | AP21: =ROUND(AJ21*Beregn1!$F$30,4) -> 0 | AQ21: =ROUND(AK21*Beregn1!$F$30,4) -> 0 | AR21: =ROUND(AL21*Beregn1!$F$30,4) -> 0 | AS21: =ROUND(AM21*Beregn1!$F$30,4) -> 0 | AT21: =ROUND(AN21*Beregn1!$F$30,4) -> 0
A22: =Beregn1!$C$93 -> 0.1 | B22: =Beregn1!$D$92 -> 300 | C22: =Beregn1!$E$93 -> 450 | D22: =Beregn1!$F$92 -> 2000 | E22: =Beregn1!$G$92 -> 0 | AF22: =IF(OR(AC22=0,AC22=-1),Beregn1!$E$36,AC22) -> 41 | AG22: TRUE | AH22: =IF(AND(AF22=41,AG22=FALSE),Beregn1!$E$36,AC22) -> 0 | AJ22: 0 | AK22: 0 | AL22: 0 | AM22: 0 | AN22: 0 | AP22: =ROUND(AJ22*Beregn1!$F$30,4) -> 0 | AQ22: =ROUND(AK22*Beregn1!$F$30,4) -> 0 | AR22: =ROUND(AL22*Beregn1!$F$30,4) -> 0 | AS22: =ROUND(AM22*Beregn1!$F$30,4) -> 0 | AT22: =ROUND(AN22*Beregn1!$F$30,4) -> 0
A23: =Beregn1!$C$93 -> 0.1 | B23: =Beregn1!$D$92 -> 300 | C23: =Beregn1!$E$93 -> 450 | D23: =Beregn1!$F$92 -> 2000 | E23: =Beregn1!$G$93 -> 0 | AF23: =IF(OR(AC23=0,AC23=-1),Beregn1!$E$36,AC23) -> 41 | AG23: TRUE | AH23: =IF(AND(AF23=41,AG23=FALSE),Beregn1!$E$36,AC23) -> 0 | AJ23: 0 | AK23: 0 | AL23: 0 | AM23: 0 | AN23: 0 | AP23: =ROUND(AJ23*Beregn1!$F$30,4) -> 0 | AQ23: =ROUND(AK23*Beregn1!$F$30,4) -> 0 | AR23: =ROUND(AL23*Beregn1!$F$30,4) -> 0 | AS23: =ROUND(AM23*Beregn1!$F$30,4) -> 0 | AT23: =ROUND(AN23*Beregn1!$F$30,4) -> 0
A24: =Beregn1!$C$93 -> 0.1 | B24: =Beregn1!$D$92 -> 300 | C24: =Beregn1!$E$93 -> 450 | D24: =Beregn1!$F$93 -> 0 | E24: =Beregn1!$G$92 -> 0 | AF24: =IF(OR(AC24=0,AC24=-1),Beregn1!$E$36,AC24) -> 41 | AG24: TRUE | AH24: =IF(AND(AF24=41,AG24=FALSE),Beregn1!$E$36,AC24) -> 0 | AJ24: 0 | AK24: 0 | AL24: 0 | AM24: 0 | AN24: 0 | AP24: =ROUND(AJ24*Beregn1!$F$30,4) -> 0 | AQ24: =ROUND(AK24*Beregn1!$F$30,4) -> 0 | AR24: =ROUND(AL24*Beregn1!$F$30,4) -> 0 | AS24: =ROUND(AM24*Beregn1!$F$30,4) -> 0 | AT24: =ROUND(AN24*Beregn1!$F$30,4) -> 0
A25: =Beregn1!$C$93 -> 0.1 | B25: =Beregn1!$D$92 -> 300 | C25: =Beregn1!$E$93 -> 450 | D25: =Beregn1!$F$93 -> 0 | E25: =Beregn1!$G$93 -> 0 | AF25: =IF(OR(AC25=0,AC25=-1),Beregn1!$E$36,AC25) -> 41 | AG25: TRUE | AH25: =IF(AND(AF25=41,AG25=FALSE),Beregn1!$E$36,AC25) -> 0 | AJ25: 0 | AK25: 0 | AL25: 0 | AM25: 0 | AN25: 0 | AP25: =ROUND(AJ25*Beregn1!$F$30,4) -> 0 | AQ25: =ROUND(AK25*Beregn1!$F$30,4) -> 0 | AR25: =ROUND(AL25*Beregn1!$F$30,4) -> 0 | AS25: =ROUND(AM25*Beregn1!$F$30,4) -> 0 | AT25: =ROUND(AN25*Beregn1!$F$30,4) -> 0
A26: =Beregn1!$C$93 -> 0.1 | B26: =Beregn1!$D$93 -> 0 | C26: =Beregn1!$E$92 -> 600 | D26: =Beregn1!$F$92 -> 2000 | E26: =Beregn1!$G$92 -> 0 | AF26: =IF(OR(AC26=0,AC26=-1),Beregn1!$E$36,AC26) -> 41 | AG26: TRUE | AH26: =IF(AND(AF26=41,AG26=FALSE),Beregn1!$E$36,AC26) -> 0 | AJ26: 0 | AK26: 0 | AL26: 0 | AM26: 0 | AN26: 0 | AP26: =ROUND(AJ26*Beregn1!$F$30,4) -> 0 | AQ26: =ROUND(AK26*Beregn1!$F$30,4) -> 0 | AR26: =ROUND(AL26*Beregn1!$F$30,4) -> 0 | AS26: =ROUND(AM26*Beregn1!$F$30,4) -> 0 | AT26: =ROUND(AN26*Beregn1!$F$30,4) -> 0
A27: =Beregn1!$C$93 -> 0.1 | B27: =Beregn1!$D$93 -> 0 | C27: =Beregn1!$E$92 -> 600 | D27: =Beregn1!$F$92 -> 2000 | E27: =Beregn1!$G$93 -> 0 | AF27: =IF(OR(AC27=0,AC27=-1),Beregn1!$E$36,AC27) -> 41 | AG27: TRUE | AH27: =IF(AND(AF27=41,AG27=FALSE),Beregn1!$E$36,AC27) -> 0 | AJ27: 0 | AK27: 0 | AL27: 0 | AM27: 0 | AN27: 0 | AP27: =ROUND(AJ27*Beregn1!$F$30,4) -> 0 | AQ27: =ROUND(AK27*Beregn1!$F$30,4) -> 0 | AR27: =ROUND(AL27*Beregn1!$F$30,4) -> 0 | AS27: =ROUND(AM27*Beregn1!$F$30,4) -> 0 | AT27: =ROUND(AN27*Beregn1!$F$30,4) -> 0
A28: =Beregn1!$C$93 -> 0.1 | B28: =Beregn1!$D$93 -> 0 | C28: =Beregn1!$E$92 -> 600 | D28: =Beregn1!$F$93 -> 0 | E28: =Beregn1!$G$92 -> 0 | AF28: =IF(OR(AC28=0,AC28=-1),Beregn1!$E$36,AC28) -> 41 | AG28: TRUE | AH28: =IF(AND(AF28=41,AG28=FALSE),Beregn1!$E$36,AC28) -> 0 | AJ28: 0 | AK28: 0 | AL28: 0 | AM28: 0 | AN28: 0 | AP28: =ROUND(AJ28*Beregn1!$F$30,4) -> 0 | AQ28: =ROUND(AK28*Beregn1!$F$30,4) -> 0 | AR28: =ROUND(AL28*Beregn1!$F$30,4) -> 0 | AS28: =ROUND(AM28*Beregn1!$F$30,4) -> 0 | AT28: =ROUND(AN28*Beregn1!$F$30,4) -> 0
A29: =Beregn1!$C$93 -> 0.1 | B29: =Beregn1!$D$93 -> 0 | C29: =Beregn1!$E$92 -> 600 | D29: =Beregn1!$F$93 -> 0 | E29: =Beregn1!$G$93 -> 0 | AF29: =IF(OR(AC29=0,AC29=-1),Beregn1!$E$36,AC29) -> 41 | AG29: TRUE | AH29: =IF(AND(AF29=41,AG29=FALSE),Beregn1!$E$36,AC29) -> 0 | AJ29: 0 | AK29: 0 | AL29: 0 | AM29: 0 | AN29: 0 | AP29: =ROUND(AJ29*Beregn1!$F$30,4) -> 0 | AQ29: =ROUND(AK29*Beregn1!$F$30,4) -> 0 | AR29: =ROUND(AL29*Beregn1!$F$30,4) -> 0 | AS29: =ROUND(AM29*Beregn1!$F$30,4) -> 0 | AT29: =ROUND(AN29*Beregn1!$F$30,4) -> 0
A30: =Beregn1!$C$93 -> 0.1 | B30: =Beregn1!$D$93 -> 0 | C30: =Beregn1!$E$93 -> 450 | D30: =Beregn1!$F$92 -> 2000 | E30: =Beregn1!$G$92 -> 0 | AF30: =IF(OR(AC30=0,AC30=-1),Beregn1!$E$36,AC30) -> 41 | AG30: TRUE | AH30: =IF(AND(AF30=41,AG30=FALSE),Beregn1!$E$36,AC30) -> 0 | AJ30: 0 | AK30: 0 | AL30: 0 | AM30: 0 | AN30: 0 | AP30: =ROUND(AJ30*Beregn1!$F$30,4) -> 0 | AQ30: =ROUND(AK30*Beregn1!$F$30,4) -> 0 | AR30: =ROUND(AL30*Beregn1!$F$30,4) -> 0 | AS30: =ROUND(AM30*Beregn1!$F$30,4) -> 0 | AT30: =ROUND(AN30*Beregn1!$F$30,4) -> 0
A31: =Beregn1!$C$93 -> 0.1 | B31: =Beregn1!$D$93 -> 0 | C31: =Beregn1!$E$93 -> 450 | D31: =Beregn1!$F$92 -> 2000 | E31: =Beregn1!$G$93 -> 0 | AF31: =IF(OR(AC31=0,AC31=-1),Beregn1!$E$36,AC31) -> 41 | AG31: TRUE | AH31: =IF(AND(AF31=41,AG31=FALSE),Beregn1!$E$36,AC31) -> 0 | AJ31: 0 | AK31: 0 | AL31: 0 | AM31: 0 | AN31: 0 | AP31: =ROUND(AJ31*Beregn1!$F$30,4) -> 0 | AQ31: =ROUND(AK31*Beregn1!$F$30,4) -> 0 | AR31: =ROUND(AL31*Beregn1!$F$30,4) -> 0 | AS31: =ROUND(AM31*Beregn1!$F$30,4) -> 0 | AT31: =ROUND(AN31*Beregn1!$F$30,4) -> 0
A32: =Beregn1!$C$93 -> 0.1 | B32: =Beregn1!$D$93 -> 0 | C32: =Beregn1!$E$93 -> 450 | D32: =Beregn1!$F$93 -> 0 | E32: =Beregn1!$G$92 -> 0 | AF32: =IF(OR(AC32=0,AC32=-1),Beregn1!$E$36,AC32) -> 41 | AG32: TRUE | AH32: =IF(AND(AF32=41,AG32=FALSE),Beregn1!$E$36,AC32) -> 0 | AJ32: 0 | AK32: 0 | AL32: 0 | AM32: 0 | AN32: 0 | AP32: =ROUND(AJ32*Beregn1!$F$30,4) -> 0 | AQ32: =ROUND(AK32*Beregn1!$F$30,4) -> 0 | AR32: =ROUND(AL32*Beregn1!$F$30,4) -> 0 | AS32: =ROUND(AM32*Beregn1!$F$30,4) -> 0 | AT32: =ROUND(AN32*Beregn1!$F$30,4) -> 0
A33: =Beregn1!$C$93 -> 0.1 | B33: =Beregn1!$D$93 -> 0 | C33: =Beregn1!$E$93 -> 450 | D33: =Beregn1!$F$93 -> 0 | E33: =Beregn1!$G$93 -> 0 | AF33: =IF(OR(AC33=0,AC33=-1),Beregn1!$E$36,AC33) -> 41 | AG33: TRUE | AH33: =IF(AND(AF33=41,AG33=FALSE),Beregn1!$E$36,AC33) -> 0 | AJ33: 0 | AK33: 0 | AL33: 0 | AM33: 0 | AN33: 0 | AP33: =ROUND(AJ33*Beregn1!$F$30,4) -> 0 | AQ33: =ROUND(AK33*Beregn1!$F$30,4) -> 0 | AR33: =ROUND(AL33*Beregn1!$F$30,4) -> 0 | AS33: =ROUND(AM33*Beregn1!$F$30,4) -> 0 | AT33: =ROUND(AN33*Beregn1!$F$30,4) -> 0
AF34: =IF(OR(AC34=0,AC34=-1),Beregn1!$E$36,AC34) -> 41 | AG34: TRUE | AH34: =IF(AND(AF34=41,AG34=FALSE),Beregn1!$E$36,AC34) -> 0 | AJ34: 0 | AK34: 0 | AL34: 0 | AM34: 0 | AN34: 0 | AP34: =ROUND(AJ34*Beregn1!$F$30,4) -> 0 | AQ34: =ROUND(AK34*Beregn1!$F$30,4) -> 0 | AR34: =ROUND(AL34*Beregn1!$F$30,4) -> 0 | AS34: =ROUND(AM34*Beregn1!$F$30,4) -> 0 | AT34: =ROUND(AN34*Beregn1!$F$30,4) -> 0
AF35: =IF(OR(AC35=0,AC35=-1),Beregn1!$E$36,AC35) -> 41 | AG35: TRUE | AH35: =IF(AND(AF35=41,AG35=FALSE),Beregn1!$E$36,AC35) -> 0 | AJ35: 0 | AK35: 0 | AL35: 0 | AM35: 0 | AN35: 0 | AP35: =ROUND(AJ35*Beregn1!$F$30,4) -> 0 | AQ35: =ROUND(AK35*Beregn1!$F$30,4) -> 0 | AR35: =ROUND(AL35*Beregn1!$F$30,4) -> 0 | AS35: =ROUND(AM35*Beregn1!$F$30,4) -> 0 | AT35: =ROUND(AN35*Beregn1!$F$30,4) -> 0
A36: A_ratio | B36: surface_depth | C36: soil_depth | D36: storage_depth | E36: drain_coefficient | F36: drain_offset | AF36: =IF(OR(AC36=0,AC36=-1),Beregn1!$E$36,AC36) -> 41 | AG36: TRUE | AH36: =IF(AND(AF36=41,AG36=FALSE),Beregn1!$E$36,AC36) -> 0 | AJ36: 0 | AK36: 0 | AL36: 0 | AM36: 0 | AN36: 0 | AP36: =ROUND(AJ36*Beregn1!$F$30,4) -> 0 | AQ36: =ROUND(AK36*Beregn1!$F$30,4) -> 0 | AR36: =ROUND(AL36*Beregn1!$F$30,4) -> 0 | AS36: =ROUND(AM36*Beregn1!$F$30,4) -> 0 | AT36: =ROUND(AN36*Beregn1!$F$30,4) -> 0
A37: =Beregn1!C92 -> 0.15 | E37: =Beregn1!H92 -> 12 | AF37: =IF(OR(AC37=0,AC37=-1),Beregn1!$E$36,AC37) -> 41 | AG37: TRUE | AH37: =IF(AND(AF37=41,AG37=FALSE),Beregn1!$E$36,AC37) -> 0 | AJ37: 0 | AK37: 0 | AL37: 0 | AM37: 0 | AN37: 0 | AP37: =ROUND(AJ37*Beregn1!$F$30,4) -> 0 | AQ37: =ROUND(AK37*Beregn1!$F$30,4) -> 0 | AR37: =ROUND(AL37*Beregn1!$F$30,4) -> 0 | AS37: =ROUND(AM37*Beregn1!$F$30,4) -> 0 | AT37: =ROUND(AN37*Beregn1!$F$30,4) -> 0
A38: =Beregn1!C92 -> 0.15 | E38: =Beregn1!I92 -> 0 | AF38: =IF(OR(AC38=0,AC38=-1),Beregn1!$E$36,AC38) -> 41 | AG38: TRUE | AH38: =IF(AND(AF38=41,AG38=FALSE),Beregn1!$E$36,AC38) -> 0 | AJ38: 0 | AK38: 0 | AL38: 0 | AM38: 0 | AN38: 0 | AP38: =ROUND(AJ38*Beregn1!$F$30,4) -> 0 | AQ38: =ROUND(AK38*Beregn1!$F$30,4) -> 0 | AR38: =ROUND(AL38*Beregn1!$F$30,4) -> 0 | AS38: =ROUND(AM38*Beregn1!$F$30,4) -> 0 | AT38: =ROUND(AN38*Beregn1!$F$30,4) -> 0
A39: =Beregn1!C93 -> 0.1 | E39: =Beregn1!H93 -> 18 | AF39: =IF(OR(AC39=0,AC39=-1),Beregn1!$E$36,AC39) -> 41 | AG39: TRUE | AH39: =IF(AND(AF39=41,AG39=FALSE),Beregn1!$E$36,AC39) -> 0 | AJ39: 0 | AK39: 0 | AL39: 0 | AM39: 0 | AN39: 0 | AP39: =ROUND(AJ39*Beregn1!$F$30,4) -> 0 | AQ39: =ROUND(AK39*Beregn1!$F$30,4) -> 0 | AR39: =ROUND(AL39*Beregn1!$F$30,4) -> 0 | AS39: =ROUND(AM39*Beregn1!$F$30,4) -> 0 | AT39: =ROUND(AN39*Beregn1!$F$30,4) -> 0
A40: =Beregn1!C93 -> 0.1 | E40: =Beregn1!I93 -> 0 | AF40: =IF(OR(AC40=0,AC40=-1),Beregn1!$E$36,AC40) -> 41 | AG40: TRUE | AH40: =IF(AND(AF40=41,AG40=FALSE),Beregn1!$E$36,AC40) -> 0 | AJ40: 0 | AK40: 0 | AL40: 0 | AM40: 0 | AN40: 0 | AP40: =ROUND(AJ40*Beregn1!$F$30,4) -> 0 | AQ40: =ROUND(AK40*Beregn1!$F$30,4) -> 0 | AR40: =ROUND(AL40*Beregn1!$F$30,4) -> 0 | AS40: =ROUND(AM40*Beregn1!$F$30,4) -> 0 | AT40: =ROUND(AN40*Beregn1!$F$30,4) -> 0
AF41: =IF(OR(AC41=0,AC41=-1),Beregn1!$E$36,AC41) -> 41 | AG41: TRUE | AH41: =IF(AND(AF41=41,AG41=FALSE),Beregn1!$E$36,AC41) -> 0 | AJ41: 0 | AK41: 0 | AL41: 0 | AM41: 0 | AN41: 0 | AP41: =ROUND(AJ41*Beregn1!$F$30,4) -> 0 | AQ41: =ROUND(AK41*Beregn1!$F$30,4) -> 0 | AR41: =ROUND(AL41*Beregn1!$F$30,4) -> 0 | AS41: =ROUND(AM41*Beregn1!$F$30,4) -> 0 | AT41: =ROUND(AN41*Beregn1!$F$30,4) -> 0
AF42: =IF(OR(AC42=0,AC42=-1),Beregn1!$E$36,AC42) -> 41 | AG42: TRUE | AH42: =IF(AND(AF42=41,AG42=FALSE),Beregn1!$E$36,AC42) -> 0 | AJ42: 0 | AK42: 0 | AL42: 0 | AM42: 0 | AN42: 0 | AP42: =ROUND(AJ42*Beregn1!$F$30,4) -> 0 | AQ42: =ROUND(AK42*Beregn1!$F$30,4) -> 0 | AR42: =ROUND(AL42*Beregn1!$F$30,4) -> 0 | AS42: =ROUND(AM42*Beregn1!$F$30,4) -> 0 | AT42: =ROUND(AN42*Beregn1!$F$30,4) -> 0
AF43: =IF(OR(AC43=0,AC43=-1),Beregn1!$E$36,AC43) -> 41 | AG43: TRUE | AH43: =IF(AND(AF43=41,AG43=FALSE),Beregn1!$E$36,AC43) -> 0 | AJ43: 0 | AK43: 0 | AL43: 0 | AM43: 0 | AN43: 0 | AP43: =ROUND(AJ43*Beregn1!$F$30,4) -> 0 | AQ43: =ROUND(AK43*Beregn1!$F$30,4) -> 0 | AR43: =ROUND(AL43*Beregn1!$F$30,4) -> 0 | AS43: =ROUND(AM43*Beregn1!$F$30,4) -> 0 | AT43: =ROUND(AN43*Beregn1!$F$30,4) -> 0
AF44: =IF(OR(AC44=0,AC44=-1),Beregn1!$E$36,AC44) -> 41 | AG44: TRUE | AH44: =IF(AND(AF44=41,AG44=FALSE),Beregn1!$E$36,AC44) -> 0 | AJ44: 0 | AK44: 0 | AL44: 0 | AM44: 0 | AN44: 0 | AP44: =ROUND(AJ44*Beregn1!$F$30,4) -> 0 | AQ44: =ROUND(AK44*Beregn1!$F$30,4) -> 0 | AR44: =ROUND(AL44*Beregn1!$F$30,4) -> 0 | AS44: =ROUND(AM44*Beregn1!$F$30,4) -> 0 | AT44: =ROUND(AN44*Beregn1!$F$30,4) -> 0
AF45: =IF(OR(AC45=0,AC45=-1),Beregn1!$E$36,AC45) -> 41 | AG45: TRUE | AH45: =IF(AND(AF45=41,AG45=FALSE),Beregn1!$E$36,AC45) -> 0 | AJ45: 0 | AK45: 0 | AL45: 0 | AM45: 0 | AN45: 0 | AP45: =ROUND(AJ45*Beregn1!$F$30,4) -> 0 | AQ45: =ROUND(AK45*Beregn1!$F$30,4) -> 0 | AR45: =ROUND(AL45*Beregn1!$F$30,4) -> 0 | AS45: =ROUND(AM45*Beregn1!$F$30,4) -> 0 | AT45: =ROUND(AN45*Beregn1!$F$30,4) -> 0
AF46: =IF(OR(AC46=0,AC46=-1),Beregn1!$E$36,AC46) -> 41 | AG46: TRUE | AH46: =IF(AND(AF46=41,AG46=FALSE),Beregn1!$E$36,AC46) -> 0 | AJ46: 0 | AK46: 0 | AL46: 0 | AM46: 0 | AN46: 0 | AP46: =ROUND(AJ46*Beregn1!$F$30,4) -> 0 | AQ46: =ROUND(AK46*Beregn1!$F$30,4) -> 0 | AR46: =ROUND(AL46*Beregn1!$F$30,4) -> 0 | AS46: =ROUND(AM46*Beregn1!$F$30,4) -> 0 | AT46: =ROUND(AN46*Beregn1!$F$30,4) -> 0
AF47: =IF(OR(AC47=0,AC47=-1),Beregn1!$E$36,AC47) -> 41 | AG47: TRUE | AH47: =IF(AND(AF47=41,AG47=FALSE),Beregn1!$E$36,AC47) -> 0 | AJ47: 0 | AK47: 0 | AL47: 0 | AM47: 0 | AN47: 0 | AP47: =ROUND(AJ47*Beregn1!$F$30,4) -> 0 | AQ47: =ROUND(AK47*Beregn1!$F$30,4) -> 0 | AR47: =ROUND(AL47*Beregn1!$F$30,4) -> 0 | AS47: =ROUND(AM47*Beregn1!$F$30,4) -> 0 | AT47: =ROUND(AN47*Beregn1!$F$30,4) -> 0
AF48: =IF(OR(AC48=0,AC48=-1),Beregn1!$E$36,AC48) -> 41 | AG48: TRUE | AH48: =IF(AND(AF48=41,AG48=FALSE),Beregn1!$E$36,AC48) -> 0 | AJ48: 0 | AK48: 0 | AL48: 0 | AM48: 0 | AN48: 0 | AP48: =ROUND(AJ48*Beregn1!$F$30,4) -> 0 | AQ48: =ROUND(AK48*Beregn1!$F$30,4) -> 0 | AR48: =ROUND(AL48*Beregn1!$F$30,4) -> 0 | AS48: =ROUND(AM48*Beregn1!$F$30,4) -> 0 | AT48: =ROUND(AN48*Beregn1!$F$30,4) -> 0
AF49: =IF(OR(AC49=0,AC49=-1),Beregn1!$E$36,AC49) -> 41 | AG49: TRUE | AH49: =IF(AND(AF49=41,AG49=FALSE),Beregn1!$E$36,AC49) -> 0 | AJ49: 0 | AK49: 0 | AL49: 0 | AM49: 0 | AN49: 0 | AP49: =ROUND(AJ49*Beregn1!$F$30,4) -> 0 | AQ49: =ROUND(AK49*Beregn1!$F$30,4) -> 0 | AR49: =ROUND(AL49*Beregn1!$F$30,4) -> 0 | AS49: =ROUND(AM49*Beregn1!$F$30,4) -> 0 | AT49: =ROUND(AN49*Beregn1!$F$30,4) -> 0
AF50: =IF(OR(AC50=0,AC50=-1),Beregn1!$E$36,AC50) -> 41 | AG50: TRUE | AH50: =IF(AND(AF50=41,AG50=FALSE),Beregn1!$E$36,AC50) -> 0 | AJ50: 0 | AK50: 0 | AL50: 0 | AM50: 0 | AN50: 0 | AP50: =ROUND(AJ50*Beregn1!$F$30,4) -> 0 | AQ50: =ROUND(AK50*Beregn1!$F$30,4) -> 0 | AR50: =ROUND(AL50*Beregn1!$F$30,4) -> 0 | AS50: =ROUND(AM50*Beregn1!$F$30,4) -> 0 | AT50: =ROUND(AN50*Beregn1!$F$30,4) -> 0
AF51: =IF(OR(AC51=0,AC51=-1),Beregn1!$E$36,AC51) -> 41 | AG51: TRUE | AH51: =IF(AND(AF51=41,AG51=FALSE),Beregn1!$E$36,AC51) -> 0 | AJ51: 0 | AK51: 0 | AL51: 0 | AM51: 0 | AN51: 0 | AP51: =ROUND(AJ51*Beregn1!$F$30,4) -> 0 | AQ51: =ROUND(AK51*Beregn1!$F$30,4) -> 0 | AR51: =ROUND(AL51*Beregn1!$F$30,4) -> 0 | AS51: =ROUND(AM51*Beregn1!$F$30,4) -> 0 | AT51: =ROUND(AN51*Beregn1!$F$30,4) -> 0
AF52: =IF(OR(AC52=0,AC52=-1),Beregn1!$E$36,AC52) -> 41 | AG52: TRUE | AH52: =IF(AND(AF52=41,AG52=FALSE),Beregn1!$E$36,AC52) -> 0 | AJ52: 0 | AK52: 0 | AL52: 0 | AM52: 0 | AN52: 0 | AP52: =ROUND(AJ52*Beregn1!$F$30,4) -> 0 | AQ52: =ROUND(AK52*Beregn1!$F$30,4) -> 0 | AR52: =ROUND(AL52*Beregn1!$F$30,4) -> 0 | AS52: =ROUND(AM52*Beregn1!$F$30,4) -> 0 | AT52: =ROUND(AN52*Beregn1!$F$30,4) -> 0
AF53: =IF(OR(AC53=0,AC53=-1),Beregn1!$E$36,AC53) -> 41 | AG53: TRUE | AH53: =IF(AND(AF53=41,AG53=FALSE),Beregn1!$E$36,AC53) -> 0 | AJ53: 0 | AK53: 0 | AL53: 0 | AM53: 0 | AN53: 0 | AP53: =ROUND(AJ53*Beregn1!$F$30,4) -> 0 | AQ53: =ROUND(AK53*Beregn1!$F$30,4) -> 0 | AR53: =ROUND(AL53*Beregn1!$F$30,4) -> 0 | AS53: =ROUND(AM53*Beregn1!$F$30,4) -> 0 | AT53: =ROUND(AN53*Beregn1!$F$30,4) -> 0
AF54: =IF(OR(AC54=0,AC54=-1),Beregn1!$E$36,AC54) -> 41 | AG54: TRUE | AH54: =IF(AND(AF54=41,AG54=FALSE),Beregn1!$E$36,AC54) -> 0 | AJ54: 0 | AK54: 0 | AL54: 0 | AM54: 0 | AN54: 0 | AP54: =ROUND(AJ54*Beregn1!$F$30,4) -> 0 | AQ54: =ROUND(AK54*Beregn1!$F$30,4) -> 0 | AR54: =ROUND(AL54*Beregn1!$F$30,4) -> 0 | AS54: =ROUND(AM54*Beregn1!$F$30,4) -> 0 | AT54: =ROUND(AN54*Beregn1!$F$30,4) -> 0
AF55: =IF(OR(AC55=0,AC55=-1),Beregn1!$E$36,AC55) -> 41 | AG55: TRUE | AH55: =IF(AND(AF55=41,AG55=FALSE),Beregn1!$E$36,AC55) -> 0 | AJ55: 0 | AK55: 0 | AL55: 0 | AM55: 0 | AN55: 0 | AP55: =ROUND(AJ55*Beregn1!$F$30,4) -> 0 | AQ55: =ROUND(AK55*Beregn1!$F$30,4) -> 0 | AR55: =ROUND(AL55*Beregn1!$F$30,4) -> 0 | AS55: =ROUND(AM55*Beregn1!$F$30,4) -> 0 | AT55: =ROUND(AN55*Beregn1!$F$30,4) -> 0
AF56: =IF(OR(AC56=0,AC56=-1),Beregn1!$E$36,AC56) -> 41 | AG56: TRUE | AH56: =IF(AND(AF56=41,AG56=FALSE),Beregn1!$E$36,AC56) -> 0 | AJ56: 0 | AK56: 0 | AL56: 0 | AM56: 0 | AN56: 0 | AP56: =ROUND(AJ56*Beregn1!$F$30,4) -> 0 | AQ56: =ROUND(AK56*Beregn1!$F$30,4) -> 0 | AR56: =ROUND(AL56*Beregn1!$F$30,4) -> 0 | AS56: =ROUND(AM56*Beregn1!$F$30,4) -> 0 | AT56: =ROUND(AN56*Beregn1!$F$30,4) -> 0
AF57: =IF(OR(AC57=0,AC57=-1),Beregn1!$E$36,AC57) -> 41 | AG57: TRUE | AH57: =IF(AND(AF57=41,AG57=FALSE),Beregn1!$E$36,AC57) -> 0 | AJ57: 0 | AK57: 0 | AL57: 0 | AM57: 0 | AN57: 0 | AP57: =ROUND(AJ57*Beregn1!$F$30,4) -> 0 | AQ57: =ROUND(AK57*Beregn1!$F$30,4) -> 0 | AR57: =ROUND(AL57*Beregn1!$F$30,4) -> 0 | AS57: =ROUND(AM57*Beregn1!$F$30,4) -> 0 | AT57: =ROUND(AN57*Beregn1!$F$30,4) -> 0
AF58: =IF(OR(AC58=0,AC58=-1),Beregn1!$E$36,AC58) -> 41 | AG58: TRUE | AH58: =IF(AND(AF58=41,AG58=FALSE),Beregn1!$E$36,AC58) -> 0 | AJ58: 0 | AK58: 0 | AL58: 0 | AM58: 0 | AN58: 0 | AP58: =ROUND(AJ58*Beregn1!$F$30,4) -> 0 | AQ58: =ROUND(AK58*Beregn1!$F$30,4) -> 0 | AR58: =ROUND(AL58*Beregn1!$F$30,4) -> 0 | AS58: =ROUND(AM58*Beregn1!$F$30,4) -> 0 | AT58: =ROUND(AN58*Beregn1!$F$30,4) -> 0
AF59: =IF(OR(AC59=0,AC59=-1),Beregn1!$E$36,AC59) -> 41 | AG59: TRUE | AH59: =IF(AND(AF59=41,AG59=FALSE),Beregn1!$E$36,AC59) -> 0 | AJ59: 0 | AK59: 0 | AL59: 0 | AM59: 0 | AN59: 0 | AP59: =ROUND(AJ59*Beregn1!$F$30,4) -> 0 | AQ59: =ROUND(AK59*Beregn1!$F$30,4) -> 0 | AR59: =ROUND(AL59*Beregn1!$F$30,4) -> 0 | AS59: =ROUND(AM59*Beregn1!$F$30,4) -> 0 | AT59: =ROUND(AN59*Beregn1!$F$30,4) -> 0
AF60: =IF(OR(AC60=0,AC60=-1),Beregn1!$E$36,AC60) -> 41 | AG60: TRUE | AH60: =IF(AND(AF60=41,AG60=FALSE),Beregn1!$E$36,AC60) -> 0 | AJ60: 0 | AK60: 0 | AL60: 0 | AM60: 0 | AN60: 0 | AP60: =ROUND(AJ60*Beregn1!$F$30,4) -> 0 | AQ60: =ROUND(AK60*Beregn1!$F$30,4) -> 0 | AR60: =ROUND(AL60*Beregn1!$F$30,4) -> 0 | AS60: =ROUND(AM60*Beregn1!$F$30,4) -> 0 | AT60: =ROUND(AN60*Beregn1!$F$30,4) -> 0
AF61: =IF(OR(AC61=0,AC61=-1),Beregn1!$E$36,AC61) -> 41 | AG61: TRUE | AH61: =IF(AND(AF61=41,AG61=FALSE),Beregn1!$E$36,AC61) -> 0 | AJ61: 0 | AK61: 0 | AL61: 0 | AM61: 0 | AN61: 0 | AP61: =ROUND(AJ61*Beregn1!$F$30,4) -> 0 | AQ61: =ROUND(AK61*Beregn1!$F$30,4) -> 0 | AR61: =ROUND(AL61*Beregn1!$F$30,4) -> 0 | AS61: =ROUND(AM61*Beregn1!$F$30,4) -> 0 | AT61: =ROUND(AN61*Beregn1!$F$30,4) -> 0
AF62: =IF(OR(AC62=0,AC62=-1),Beregn1!$E$36,AC62) -> 41 | AG62: TRUE | AH62: =IF(AND(AF62=41,AG62=FALSE),Beregn1!$E$36,AC62) -> 0 | AJ62: 0 | AK62: 0 | AL62: 0 | AM62: 0 | AN62: 0 | AP62: =ROUND(AJ62*Beregn1!$F$30,4) -> 0 | AQ62: =ROUND(AK62*Beregn1!$F$30,4) -> 0 | AR62: =ROUND(AL62*Beregn1!$F$30,4) -> 0 | AS62: =ROUND(AM62*Beregn1!$F$30,4) -> 0 | AT62: =ROUND(AN62*Beregn1!$F$30,4) -> 0
AF63: =IF(OR(AC63=0,AC63=-1),Beregn1!$E$36,AC63) -> 41 | AG63: TRUE | AH63: =IF(AND(AF63=41,AG63=FALSE),Beregn1!$E$36,AC63) -> 0 | AJ63: 0 | AK63: 0 | AL63: 0 | AM63: 0 | AN63: 0 | AP63: =ROUND(AJ63*Beregn1!$F$30,4) -> 0 | AQ63: =ROUND(AK63*Beregn1!$F$30,4) -> 0 | AR63: =ROUND(AL63*Beregn1!$F$30,4) -> 0 | AS63: =ROUND(AM63*Beregn1!$F$30,4) -> 0 | AT63: =ROUND(AN63*Beregn1!$F$30,4) -> 0
AF64: =IF(OR(AC64=0,AC64=-1),Beregn1!$E$36,AC64) -> 41 | AG64: TRUE | AH64: =IF(AND(AF64=41,AG64=FALSE),Beregn1!$E$36,AC64) -> 0 | AJ64: 0 | AK64: 0 | AL64: 0 | AM64: 0 | AN64: 0 | AP64: =ROUND(AJ64*Beregn1!$F$30,4) -> 0 | AQ64: =ROUND(AK64*Beregn1!$F$30,4) -> 0 | AR64: =ROUND(AL64*Beregn1!$F$30,4) -> 0 | AS64: =ROUND(AM64*Beregn1!$F$30,4) -> 0 | AT64: =ROUND(AN64*Beregn1!$F$30,4) -> 0
AF65: =IF(OR(AC65=0,AC65=-1),Beregn1!$E$36,AC65) -> 41 | AG65: TRUE | AH65: =IF(AND(AF65=41,AG65=FALSE),Beregn1!$E$36,AC65) -> 0 | AJ65: 0 | AK65: 0 | AL65: 0 | AM65: 0 | AN65: 0 | AP65: =ROUND(AJ65*Beregn1!$F$30,4) -> 0 | AQ65: =ROUND(AK65*Beregn1!$F$30,4) -> 0 | AR65: =ROUND(AL65*Beregn1!$F$30,4) -> 0 | AS65: =ROUND(AM65*Beregn1!$F$30,4) -> 0 | AT65: =ROUND(AN65*Beregn1!$F$30,4) -> 0
AF66: =IF(OR(AC66=0,AC66=-1),Beregn1!$E$36,AC66) -> 41 | AG66: TRUE | AH66: =IF(AND(AF66=41,AG66=FALSE),Beregn1!$E$36,AC66) -> 0 | AJ66: =INDEX($T66:$AD66,MATCH("Evaporated",$T$1:$AD$1,0)) -> 0 | AK66: =INDEX($T66:$AD66,MATCH("Drained",$T$1:$AD$1,0)) -> 0 | AL66: =INDEX($T66:$AD66,MATCH("Overflow",$T$1:$AD$1,0)) -> 0 | AM66: =AH66 -> 0 | AN66: =INDEX($T66:$AD66,MATCH("Available_Volume",$T$1:$AD$1,0)) -> 0 | AP66: =ROUND(AJ66*Beregn1!$F$30,4) -> 0 | AQ66: =ROUND(AK66*Beregn1!$F$30,4) -> 0 | AR66: =ROUND(AL66*Beregn1!$F$30,4) -> 0 | AS66: =ROUND(AM66*Beregn1!$F$30,4) -> 0 | AT66: =ROUND(AN66*Beregn1!$F$30,4) -> 0
AF67: =IF(OR(AC67=0,AC67=-1),Beregn1!$E$36,AC67) -> 41 | AG67: =ISBLANK(AC67) -> TRUE | AH67: =IF(AND(AF67=41,AG67=FALSE),Beregn1!$E$36,AC67) -> 0 | AJ67: 0 | AK67: 0 | AL67: 0 | AM67: 0 | AN67: 0 | AP67: =ROUND(AJ67*Beregn1!$F$30,4) -> 0 | AQ67: =ROUND(AK67*Beregn1!$F$30,4) -> 0 | AR67: =ROUND(AL67*Beregn1!$F$30,4) -> 0 | AS67: =ROUND(AM67*Beregn1!$F$30,4) -> 0 | AT67: =ROUND(AN67*Beregn1!$F$30,4) -> 0
AF68: =IF(OR(AC68=0,AC68=-1),Beregn1!$E$36,AC68) -> 41 | AG68: TRUE | AH68: =IF(AND(AF68=41,AG68=FALSE),Beregn1!$E$36,AC68) -> 0 | AJ68: 0 | AK68: 0 | AL68: 0 | AM68: 0 | AN68: 0 | AP68: =ROUND(AJ68*Beregn1!$F$30,4) -> 0 | AQ68: =ROUND(AK68*Beregn1!$F$30,4) -> 0 | AR68: =ROUND(AL68*Beregn1!$F$30,4) -> 0 | AS68: =ROUND(AM68*Beregn1!$F$30,4) -> 0 | AT68: =ROUND(AN68*Beregn1!$F$30,4) -> 0
AF69: =IF(OR(AC69=0,AC69=-1),Beregn1!$E$36,AC69) -> 41 | AG69: TRUE | AH69: =IF(AND(AF69=41,AG69=FALSE),Beregn1!$E$36,AC69) -> 0 | AJ69: 0 | AK69: 0 | AL69: 0 | AM69: 0 | AN69: 0 | AP69: =ROUND(AJ69*Beregn1!$F$30,4) -> 0 | AQ69: =ROUND(AK69*Beregn1!$F$30,4) -> 0 | AR69: =ROUND(AL69*Beregn1!$F$30,4) -> 0 | AS69: =ROUND(AM69*Beregn1!$F$30,4) -> 0 | AT69: =ROUND(AN69*Beregn1!$F$30,4) -> 0
AF70: =IF(OR(AC70=0,AC70=-1),Beregn1!$E$36,AC70) -> 41 | AG70: TRUE | AH70: =IF(AND(AF70=41,AG70=FALSE),Beregn1!$E$36,AC70) -> 0 | AJ70: 0 | AK70: 0 | AL70: 0 | AM70: 0 | AN70: 0 | AP70: =ROUND(AJ70*Beregn1!$F$30,4) -> 0 | AQ70: =ROUND(AK70*Beregn1!$F$30,4) -> 0 | AR70: =ROUND(AL70*Beregn1!$F$30,4) -> 0 | AS70: =ROUND(AM70*Beregn1!$F$30,4) -> 0 | AT70: =ROUND(AN70*Beregn1!$F$30,4) -> 0
AF71: =IF(OR(AC71=0,AC71=-1),Beregn1!$E$36,AC71) -> 41 | AG71: TRUE | AH71: =IF(AND(AF71=41,AG71=FALSE),Beregn1!$E$36,AC71) -> 0 | AJ71: 0 | AK71: 0 | AL71: 0 | AM71: 0 | AN71: 0 | AP71: =ROUND(AJ71*Beregn1!$F$30,4) -> 0 | AQ71: =ROUND(AK71*Beregn1!$F$30,4) -> 0 | AR71: =ROUND(AL71*Beregn1!$F$30,4) -> 0 | AS71: =ROUND(AM71*Beregn1!$F$30,4) -> 0 | AT71: =ROUND(AN71*Beregn1!$F$30,4) -> 0
AF72: =IF(OR(AC72=0,AC72=-1),Beregn1!$E$36,AC72) -> 41 | AG72: TRUE | AH72: =IF(AND(AF72=41,AG72=FALSE),Beregn1!$E$36,AC72) -> 0 | AJ72: 0 | AK72: 0 | AL72: 0 | AM72: 0 | AN72: 0 | AP72: =ROUND(AJ72*Beregn1!$F$30,4) -> 0 | AQ72: =ROUND(AK72*Beregn1!$F$30,4) -> 0 | AR72: =ROUND(AL72*Beregn1!$F$30,4) -> 0 | AS72: =ROUND(AM72*Beregn1!$F$30,4) -> 0 | AT72: =ROUND(AN72*Beregn1!$F$30,4) -> 0
AF73: =IF(OR(AC73=0,AC73=-1),Beregn1!$E$36,AC73) -> 41 | AG73: TRUE | AH73: =IF(AND(AF73=41,AG73=FALSE),Beregn1!$E$36,AC73) -> 0 | AJ73: 0 | AK73: 0 | AL73: 0 | AM73: 0 | AN73: 0 | AP73: =ROUND(AJ73*Beregn1!$F$30,4) -> 0 | AQ73: =ROUND(AK73*Beregn1!$F$30,4) -> 0 | AR73: =ROUND(AL73*Beregn1!$F$30,4) -> 0 | AS73: =ROUND(AM73*Beregn1!$F$30,4) -> 0 | AT73: =ROUND(AN73*Beregn1!$F$30,4) -> 0
AF74: =IF(OR(AC74=0,AC74=-1),Beregn1!$E$36,AC74) -> 41 | AG74: TRUE | AH74: =IF(AND(AF74=41,AG74=FALSE),Beregn1!$E$36,AC74) -> 0 | AJ74: 0 | AK74: 0 | AL74: 0 | AM74: 0 | AN74: 0 | AP74: =ROUND(AJ74*Beregn1!$F$30,4) -> 0 | AQ74: =ROUND(AK74*Beregn1!$F$30,4) -> 0 | AR74: =ROUND(AL74*Beregn1!$F$30,4) -> 0 | AS74: =ROUND(AM74*Beregn1!$F$30,4) -> 0 | AT74: =ROUND(AN74*Beregn1!$F$30,4) -> 0
AF75: =IF(OR(AC75=0,AC75=-1),Beregn1!$E$36,AC75) -> 41 | AG75: TRUE | AH75: =IF(AND(AF75=41,AG75=FALSE),Beregn1!$E$36,AC75) -> 0 | AJ75: 0 | AK75: 0 | AL75: 0 | AM75: 0 | AN75: 0 | AP75: =ROUND(AJ75*Beregn1!$F$30,4) -> 0 | AQ75: =ROUND(AK75*Beregn1!$F$30,4) -> 0 | AR75: =ROUND(AL75*Beregn1!$F$30,4) -> 0 | AS75: =ROUND(AM75*Beregn1!$F$30,4) -> 0 | AT75: =ROUND(AN75*Beregn1!$F$30,4) -> 0
AF76: =IF(OR(AC76=0,AC76=-1),Beregn1!$E$36,AC76) -> 41 | AG76: TRUE | AH76: =IF(AND(AF76=41,AG76=FALSE),Beregn1!$E$36,AC76) -> 0 | AJ76: 0 | AK76: 0 | AL76: 0 | AM76: 0 | AN76: 0 | AP76: =ROUND(AJ76*Beregn1!$F$30,4) -> 0 | AQ76: =ROUND(AK76*Beregn1!$F$30,4) -> 0 | AR76: =ROUND(AL76*Beregn1!$F$30,4) -> 0 | AS76: =ROUND(AM76*Beregn1!$F$30,4) -> 0 | AT76: =ROUND(AN76*Beregn1!$F$30,4) -> 0
AF77: =IF(OR(AC77=0,AC77=-1),Beregn1!$E$36,AC77) -> 41 | AG77: TRUE | AH77: =IF(AND(AF77=41,AG77=FALSE),Beregn1!$E$36,AC77) -> 0 | AJ77: 0 | AK77: 0 | AL77: 0 | AM77: 0 | AN77: 0 | AP77: =ROUND(AJ77*Beregn1!$F$30,4) -> 0 | AQ77: =ROUND(AK77*Beregn1!$F$30,4) -> 0 | AR77: =ROUND(AL77*Beregn1!$F$30,4) -> 0 | AS77: =ROUND(AM77*Beregn1!$F$30,4) -> 0 | AT77: =ROUND(AN77*Beregn1!$F$30,4) -> 0
AF78: =IF(OR(AC78=0,AC78=-1),Beregn1!$E$36,AC78) -> 41 | AG78: TRUE | AH78: =IF(AND(AF78=41,AG78=FALSE),Beregn1!$E$36,AC78) -> 0 | AJ78: 0 | AK78: 0 | AL78: 0 | AM78: 0 | AN78: 0 | AP78: =ROUND(AJ78*Beregn1!$F$30,4) -> 0 | AQ78: =ROUND(AK78*Beregn1!$F$30,4) -> 0 | AR78: =ROUND(AL78*Beregn1!$F$30,4) -> 0 | AS78: =ROUND(AM78*Beregn1!$F$30,4) -> 0 | AT78: =ROUND(AN78*Beregn1!$F$30,4) -> 0
AF79: =IF(OR(AC79=0,AC79=-1),Beregn1!$E$36,AC79) -> 41 | AG79: TRUE | AH79: =IF(AND(AF79=41,AG79=FALSE),Beregn1!$E$36,AC79) -> 0 | AJ79: 0 | AK79: 0 | AL79: 0 | AM79: 0 | AN79: 0 | AP79: =ROUND(AJ79*Beregn1!$F$30,4) -> 0 | AQ79: =ROUND(AK79*Beregn1!$F$30,4) -> 0 | AR79: =ROUND(AL79*Beregn1!$F$30,4) -> 0 | AS79: =ROUND(AM79*Beregn1!$F$30,4) -> 0 | AT79: =ROUND(AN79*Beregn1!$F$30,4) -> 0
AF80: =IF(OR(AC80=0,AC80=-1),Beregn1!$E$36,AC80) -> 41 | AG80: TRUE | AH80: =IF(AND(AF80=41,AG80=FALSE),Beregn1!$E$36,AC80) -> 0 | AJ80: 0 | AK80: 0 | AL80: 0 | AM80: 0 | AN80: 0 | AP80: =ROUND(AJ80*Beregn1!$F$30,4) -> 0 | AQ80: =ROUND(AK80*Beregn1!$F$30,4) -> 0 | AR80: =ROUND(AL80*Beregn1!$F$30,4) -> 0 | AS80: =ROUND(AM80*Beregn1!$F$30,4) -> 0 | AT80: =ROUND(AN80*Beregn1!$F$30,4) -> 0
AF81: =IF(OR(AC81=0,AC81=-1),Beregn1!$E$36,AC81) -> 41 | AG81: TRUE | AH81: =IF(AND(AF81=41,AG81=FALSE),Beregn1!$E$36,AC81) -> 0 | AJ81: 0 | AK81: 0 | AL81: 0 | AM81: 0 | AN81: 0 | AP81: =ROUND(AJ81*Beregn1!$F$30,4) -> 0 | AQ81: =ROUND(AK81*Beregn1!$F$30,4) -> 0 | AR81: =ROUND(AL81*Beregn1!$F$30,4) -> 0 | AS81: =ROUND(AM81*Beregn1!$F$30,4) -> 0 | AT81: =ROUND(AN81*Beregn1!$F$30,4) -> 0
AF82: =IF(OR(AC82=0,AC82=-1),Beregn1!$E$36,AC82) -> 41 | AG82: TRUE | AH82: =IF(AND(AF82=41,AG82=FALSE),Beregn1!$E$36,AC82) -> 0 | AJ82: 0 | AK82: 0 | AL82: 0 | AM82: 0 | AN82: 0 | AP82: =ROUND(AJ82*Beregn1!$F$30,4) -> 0 | AQ82: =ROUND(AK82*Beregn1!$F$30,4) -> 0 | AR82: =ROUND(AL82*Beregn1!$F$30,4) -> 0 | AS82: =ROUND(AM82*Beregn1!$F$30,4) -> 0 | AT82: =ROUND(AN82*Beregn1!$F$30,4) -> 0
AF83: =IF(OR(AC83=0,AC83=-1),Beregn1!$E$36,AC83) -> 41 | AG83: TRUE | AH83: =IF(AND(AF83=41,AG83=FALSE),Beregn1!$E$36,AC83) -> 0 | AJ83: 0 | AK83: 0 | AL83: 0 | AM83: 0 | AN83: 0 | AP83: =ROUND(AJ83*Beregn1!$F$30,4) -> 0 | AQ83: =ROUND(AK83*Beregn1!$F$30,4) -> 0 | AR83: =ROUND(AL83*Beregn1!$F$30,4) -> 0 | AS83: =ROUND(AM83*Beregn1!$F$30,4) -> 0 | AT83: =ROUND(AN83*Beregn1!$F$30,4) -> 0
AF84: =IF(OR(AC84=0,AC84=-1),Beregn1!$E$36,AC84) -> 41 | AG84: TRUE | AH84: =IF(AND(AF84=41,AG84=FALSE),Beregn1!$E$36,AC84) -> 0 | AJ84: 0 | AK84: 0 | AL84: 0 | AM84: 0 | AN84: 0 | AP84: =ROUND(AJ84*Beregn1!$F$30,4) -> 0 | AQ84: =ROUND(AK84*Beregn1!$F$30,4) -> 0 | AR84: =ROUND(AL84*Beregn1!$F$30,4) -> 0 | AS84: =ROUND(AM84*Beregn1!$F$30,4) -> 0 | AT84: =ROUND(AN84*Beregn1!$F$30,4) -> 0
AF85: =IF(OR(AC85=0,AC85=-1),Beregn1!$E$36,AC85) -> 41 | AG85: TRUE | AH85: =IF(AND(AF85=41,AG85=FALSE),Beregn1!$E$36,AC85) -> 0 | AJ85: 0 | AK85: 0 | AL85: 0 | AM85: 0 | AN85: 0 | AP85: =ROUND(AJ85*Beregn1!$F$30,4) -> 0 | AQ85: =ROUND(AK85*Beregn1!$F$30,4) -> 0 | AR85: =ROUND(AL85*Beregn1!$F$30,4) -> 0 | AS85: =ROUND(AM85*Beregn1!$F$30,4) -> 0 | AT85: =ROUND(AN85*Beregn1!$F$30,4) -> 0
AF86: =IF(OR(AC86=0,AC86=-1),Beregn1!$E$36,AC86) -> 41 | AG86: TRUE | AH86: =IF(AND(AF86=41,AG86=FALSE),Beregn1!$E$36,AC86) -> 0 | AJ86: 0 | AK86: 0 | AL86: 0 | AM86: 0 | AN86: 0 | AP86: =ROUND(AJ86*Beregn1!$F$30,4) -> 0 | AQ86: =ROUND(AK86*Beregn1!$F$30,4) -> 0 | AR86: =ROUND(AL86*Beregn1!$F$30,4) -> 0 | AS86: =ROUND(AM86*Beregn1!$F$30,4) -> 0 | AT86: =ROUND(AN86*Beregn1!$F$30,4) -> 0
AF87: =IF(OR(AC87=0,AC87=-1),Beregn1!$E$36,AC87) -> 41 | AG87: TRUE | AH87: =IF(AND(AF87=41,AG87=FALSE),Beregn1!$E$36,AC87) -> 0 | AJ87: 0 | AK87: 0 | AL87: 0 | AM87: 0 | AN87: 0 | AP87: =ROUND(AJ87*Beregn1!$F$30,4) -> 0 | AQ87: =ROUND(AK87*Beregn1!$F$30,4) -> 0 | AR87: =ROUND(AL87*Beregn1!$F$30,4) -> 0 | AS87: =ROUND(AM87*Beregn1!$F$30,4) -> 0 | AT87: =ROUND(AN87*Beregn1!$F$30,4) -> 0
AF88: =IF(OR(AC88=0,AC88=-1),Beregn1!$E$36,AC88) -> 41 | AG88: TRUE | AH88: =IF(AND(AF88=41,AG88=FALSE),Beregn1!$E$36,AC88) -> 0 | AJ88: 0 | AK88: 0 | AL88: 0 | AM88: 0 | AN88: 0 | AP88: =ROUND(AJ88*Beregn1!$F$30,4) -> 0 | AQ88: =ROUND(AK88*Beregn1!$F$30,4) -> 0 | AR88: =ROUND(AL88*Beregn1!$F$30,4) -> 0 | AS88: =ROUND(AM88*Beregn1!$F$30,4) -> 0 | AT88: =ROUND(AN88*Beregn1!$F$30,4) -> 0
AF89: =IF(OR(AC89=0,AC89=-1),Beregn1!$E$36,AC89) -> 41 | AG89: TRUE | AH89: =IF(AND(AF89=41,AG89=FALSE),Beregn1!$E$36,AC89) -> 0 | AJ89: 0 | AK89: 0 | AL89: 0 | AM89: 0 | AN89: 0 | AP89: =ROUND(AJ89*Beregn1!$F$30,4) -> 0 | AQ89: =ROUND(AK89*Beregn1!$F$30,4) -> 0 | AR89: =ROUND(AL89*Beregn1!$F$30,4) -> 0 | AS89: =ROUND(AM89*Beregn1!$F$30,4) -> 0 | AT89: =ROUND(AN89*Beregn1!$F$30,4) -> 0
AF90: =IF(OR(AC90=0,AC90=-1),Beregn1!$E$36,AC90) -> 41 | AG90: TRUE | AH90: =IF(AND(AF90=41,AG90=FALSE),Beregn1!$E$36,AC90) -> 0 | AJ90: 0 | AK90: 0 | AL90: 0 | AM90: 0 | AN90: 0 | AP90: =ROUND(AJ90*Beregn1!$F$30,4) -> 0 | AQ90: =ROUND(AK90*Beregn1!$F$30,4) -> 0 | AR90: =ROUND(AL90*Beregn1!$F$30,4) -> 0 | AS90: =ROUND(AM90*Beregn1!$F$30,4) -> 0 | AT90: =ROUND(AN90*Beregn1!$F$30,4) -> 0
AF91: =IF(OR(AC91=0,AC91=-1),Beregn1!$E$36,AC91) -> 41 | AG91: TRUE | AH91: =IF(AND(AF91=41,AG91=FALSE),Beregn1!$E$36,AC91) -> 0 | AJ91: 0 | AK91: 0 | AL91: 0 | AM91: 0 | AN91: 0 | AP91: =ROUND(AJ91*Beregn1!$F$30,4) -> 0 | AQ91: =ROUND(AK91*Beregn1!$F$30,4) -> 0 | AR91: =ROUND(AL91*Beregn1!$F$30,4) -> 0 | AS91: =ROUND(AM91*Beregn1!$F$30,4) -> 0 | AT91: =ROUND(AN91*Beregn1!$F$30,4) -> 0
AF92: =IF(OR(AC92=0,AC92=-1),Beregn1!$E$36,AC92) -> 41 | AG92: TRUE | AH92: =IF(AND(AF92=41,AG92=FALSE),Beregn1!$E$36,AC92) -> 0 | AJ92: 0 | AK92: 0 | AL92: 0 | AM92: 0 | AN92: 0 | AP92: =ROUND(AJ92*Beregn1!$F$30,4) -> 0 | AQ92: =ROUND(AK92*Beregn1!$F$30,4) -> 0 | AR92: =ROUND(AL92*Beregn1!$F$30,4) -> 0 | AS92: =ROUND(AM92*Beregn1!$F$30,4) -> 0 | AT92: =ROUND(AN92*Beregn1!$F$30,4) -> 0
AF93: =IF(OR(AC93=0,AC93=-1),Beregn1!$E$36,AC93) -> 41 | AG93: TRUE | AH93: =IF(AND(AF93=41,AG93=FALSE),Beregn1!$E$36,AC93) -> 0 | AJ93: 0 | AK93: 0 | AL93: 0 | AM93: 0 | AN93: 0 | AP93: =ROUND(AJ93*Beregn1!$F$30,4) -> 0 | AQ93: =ROUND(AK93*Beregn1!$F$30,4) -> 0 | AR93: =ROUND(AL93*Beregn1!$F$30,4) -> 0 | AS93: =ROUND(AM93*Beregn1!$F$30,4) -> 0 | AT93: =ROUND(AN93*Beregn1!$F$30,4) -> 0
AF94: =IF(OR(AC94=0,AC94=-1),Beregn1!$E$36,AC94) -> 41 | AG94: TRUE | AH94: =IF(AND(AF94=41,AG94=FALSE),Beregn1!$E$36,AC94) -> 0 | AJ94: 0 | AK94: 0 | AL94: 0 | AM94: 0 | AN94: 0 | AP94: =ROUND(AJ94*Beregn1!$F$30,4) -> 0 | AQ94: =ROUND(AK94*Beregn1!$F$30,4) -> 0 | AR94: =ROUND(AL94*Beregn1!$F$30,4) -> 0 | AS94: =ROUND(AM94*Beregn1!$F$30,4) -> 0 | AT94: =ROUND(AN94*Beregn1!$F$30,4) -> 0
AF95: =IF(OR(AC95=0,AC95=-1),Beregn1!$E$36,AC95) -> 41 | AG95: TRUE | AH95: =IF(AND(AF95=41,AG95=FALSE),Beregn1!$E$36,AC95) -> 0 | AJ95: 0 | AK95: 0 | AL95: 0 | AM95: 0 | AN95: 0 | AP95: =ROUND(AJ95*Beregn1!$F$30,4) -> 0 | AQ95: =ROUND(AK95*Beregn1!$F$30,4) -> 0 | AR95: =ROUND(AL95*Beregn1!$F$30,4) -> 0 | AS95: =ROUND(AM95*Beregn1!$F$30,4) -> 0 | AT95: =ROUND(AN95*Beregn1!$F$30,4) -> 0
AF96: =IF(OR(AC96=0,AC96=-1),Beregn1!$E$36,AC96) -> 41 | AG96: TRUE | AH96: =IF(AND(AF96=41,AG96=FALSE),Beregn1!$E$36,AC96) -> 0 | AJ96: 0 | AK96: 0 | AL96: 0 | AM96: 0 | AN96: 0 | AP96: =ROUND(AJ96*Beregn1!$F$30,4) -> 0 | AQ96: =ROUND(AK96*Beregn1!$F$30,4) -> 0 | AR96: =ROUND(AL96*Beregn1!$F$30,4) -> 0 | AS96: =ROUND(AM96*Beregn1!$F$30,4) -> 0 | AT96: =ROUND(AN96*Beregn1!$F$30,4) -> 0
AF97: =IF(OR(AC97=0,AC97=-1),Beregn1!$E$36,AC97) -> 41 | AG97: TRUE | AH97: =IF(AND(AF97=41,AG97=FALSE),Beregn1!$E$36,AC97) -> 0 | AJ97: 0 | AK97: 0 | AL97: 0 | AM97: 0 | AN97: 0 | AP97: =ROUND(AJ97*Beregn1!$F$30,4) -> 0 | AQ97: =ROUND(AK97*Beregn1!$F$30,4) -> 0 | AR97: =ROUND(AL97*Beregn1!$F$30,4) -> 0 | AS97: =ROUND(AM97*Beregn1!$F$30,4) -> 0 | AT97: =ROUND(AN97*Beregn1!$F$30,4) -> 0
AF98: =IF(OR(AC98=0,AC98=-1),Beregn1!$E$36,AC98) -> 41 | AG98: TRUE | AH98: =IF(AND(AF98=41,AG98=FALSE),Beregn1!$E$36,AC98) -> 0 | AJ98: 0 | AK98: 0 | AL98: 0 | AM98: 0 | AN98: 0 | AP98: =ROUND(AJ98*Beregn1!$F$30,4) -> 0 | AQ98: =ROUND(AK98*Beregn1!$F$30,4) -> 0 | AR98: =ROUND(AL98*Beregn1!$F$30,4) -> 0 | AS98: =ROUND(AM98*Beregn1!$F$30,4) -> 0 | AT98: =ROUND(AN98*Beregn1!$F$30,4) -> 0
AF99: =IF(OR(AC99=0,AC99=-1),Beregn1!$E$36,AC99) -> 41 | AG99: TRUE | AH99: =IF(AND(AF99=41,AG99=FALSE),Beregn1!$E$36,AC99) -> 0 | AJ99: 0 | AK99: 0 | AL99: 0 | AM99: 0 | AN99: 0 | AP99: =ROUND(AJ99*Beregn1!$F$30,4) -> 0 | AQ99: =ROUND(AK99*Beregn1!$F$30,4) -> 0 | AR99: =ROUND(AL99*Beregn1!$F$30,4) -> 0 | AS99: =ROUND(AM99*Beregn1!$F$30,4) -> 0 | AT99: =ROUND(AN99*Beregn1!$F$30,4) -> 0
AF100: =IF(OR(AC100=0,AC100=-1),Beregn1!$E$36,AC100) -> 41 | AG100: TRUE | AH100: =IF(AND(AF100=41,AG100=FALSE),Beregn1!$E$36,AC100) -> 0 | AJ100: 0 | AK100: 0 | AL100: 0 | AM100: 0 | AN100: 0 | AP100: =ROUND(AJ100*Beregn1!$F$30,4) -> 0 | AQ100: =ROUND(AK100*Beregn1!$F$30,4) -> 0 | AR100: =ROUND(AL100*Beregn1!$F$30,4) -> 0 | AS100: =ROUND(AM100*Beregn1!$F$30,4) -> 0 | AT100: =ROUND(AN100*Beregn1!$F$30,4) -> 0
AF101: =IF(OR(AC101=0,AC101=-1),Beregn1!$E$36,AC101) -> 41 | AG101: TRUE | AH101: =IF(AND(AF101=41,AG101=FALSE),Beregn1!$E$36,AC101) -> 0 | AJ101: 0 | AK101: 0 | AL101: 0 | AM101: 0 | AN101: 0 | AP101: =ROUND(AJ101*Beregn1!$F$30,4) -> 0 | AQ101: =ROUND(AK101*Beregn1!$F$30,4) -> 0 | AR101: =ROUND(AL101*Beregn1!$F$30,4) -> 0 | AS101: =ROUND(AM101*Beregn1!$F$30,4) -> 0 | AT101: =ROUND(AN101*Beregn1!$F$30,4) -> 0
AF102: =IF(OR(AC102=0,AC102=-1),Beregn1!$E$36,AC102) -> 41 | AG102: TRUE | AH102: =IF(AND(AF102=41,AG102=FALSE),Beregn1!$E$36,AC102) -> 0 | AJ102: 0 | AK102: 0 | AL102: 0 | AM102: 0 | AN102: 0 | AP102: =ROUND(AJ102*Beregn1!$F$30,4) -> 0 | AQ102: =ROUND(AK102*Beregn1!$F$30,4) -> 0 | AR102: =ROUND(AL102*Beregn1!$F$30,4) -> 0 | AS102: =ROUND(AM102*Beregn1!$F$30,4) -> 0 | AT102: =ROUND(AN102*Beregn1!$F$30,4) -> 0
AF103: =IF(OR(AC103=0,AC103=-1),Beregn1!$E$36,AC103) -> 41 | AG103: TRUE | AH103: =IF(AND(AF103=41,AG103=FALSE),Beregn1!$E$36,AC103) -> 0 | AJ103: 0 | AK103: 0 | AL103: 0 | AM103: 0 | AN103: 0 | AP103: =ROUND(AJ103*Beregn1!$F$30,4) -> 0 | AQ103: =ROUND(AK103*Beregn1!$F$30,4) -> 0 | AR103: =ROUND(AL103*Beregn1!$F$30,4) -> 0 | AS103: =ROUND(AM103*Beregn1!$F$30,4) -> 0 | AT103: =ROUND(AN103*Beregn1!$F$30,4) -> 0
AF104: =IF(OR(AC104=0,AC104=-1),Beregn1!$E$36,AC104) -> 41 | AG104: TRUE | AH104: =IF(AND(AF104=41,AG104=FALSE),Beregn1!$E$36,AC104) -> 0 | AJ104: 0 | AK104: 0 | AL104: 0 | AM104: 0 | AN104: 0 | AP104: =ROUND(AJ104*Beregn1!$F$30,4) -> 0 | AQ104: =ROUND(AK104*Beregn1!$F$30,4) -> 0 | AR104: =ROUND(AL104*Beregn1!$F$30,4) -> 0 | AS104: =ROUND(AM104*Beregn1!$F$30,4) -> 0 | AT104: =ROUND(AN104*Beregn1!$F$30,4) -> 0
AF105: =IF(OR(AC105=0,AC105=-1),Beregn1!$E$36,AC105) -> 41 | AG105: TRUE | AH105: =IF(AND(AF105=41,AG105=FALSE),Beregn1!$E$36,AC105) -> 0 | AJ105: 0 | AK105: 0 | AL105: 0 | AM105: 0 | AN105: 0 | AP105: =ROUND(AJ105*Beregn1!$F$30,4) -> 0 | AQ105: =ROUND(AK105*Beregn1!$F$30,4) -> 0 | AR105: =ROUND(AL105*Beregn1!$F$30,4) -> 0 | AS105: =ROUND(AM105*Beregn1!$F$30,4) -> 0 | AT105: =ROUND(AN105*Beregn1!$F$30,4) -> 0
AF106: =IF(OR(AC106=0,AC106=-1),Beregn1!$E$36,AC106) -> 41 | AG106: TRUE | AH106: =IF(AND(AF106=41,AG106=FALSE),Beregn1!$E$36,AC106) -> 0 | AJ106: 0 | AK106: 0 | AL106: 0 | AM106: 0 | AN106: 0 | AP106: =ROUND(AJ106*Beregn1!$F$30,4) -> 0 | AQ106: =ROUND(AK106*Beregn1!$F$30,4) -> 0 | AR106: =ROUND(AL106*Beregn1!$F$30,4) -> 0 | AS106: =ROUND(AM106*Beregn1!$F$30,4) -> 0 | AT106: =ROUND(AN106*Beregn1!$F$30,4) -> 0
AF107: =IF(OR(AC107=0,AC107=-1),Beregn1!$E$36,AC107) -> 41 | AG107: TRUE | AH107: =IF(AND(AF107=41,AG107=FALSE),Beregn1!$E$36,AC107) -> 0 | AJ107: 0 | AK107: 0 | AL107: 0 | AM107: 0 | AN107: 0 | AP107: =ROUND(AJ107*Beregn1!$F$30,4) -> 0 | AQ107: =ROUND(AK107*Beregn1!$F$30,4) -> 0 | AR107: =ROUND(AL107*Beregn1!$F$30,4) -> 0 | AS107: =ROUND(AM107*Beregn1!$F$30,4) -> 0 | AT107: =ROUND(AN107*Beregn1!$F$30,4) -> 0
AF108: =IF(OR(AC108=0,AC108=-1),Beregn1!$E$36,AC108) -> 41 | AG108: TRUE | AH108: =IF(AND(AF108=41,AG108=FALSE),Beregn1!$E$36,AC108) -> 0 | AJ108: 0 | AK108: 0 | AL108: 0 | AM108: 0 | AN108: 0 | AP108: =ROUND(AJ108*Beregn1!$F$30,4) -> 0 | AQ108: =ROUND(AK108*Beregn1!$F$30,4) -> 0 | AR108: =ROUND(AL108*Beregn1!$F$30,4) -> 0 | AS108: =ROUND(AM108*Beregn1!$F$30,4) -> 0 | AT108: =ROUND(AN108*Beregn1!$F$30,4) -> 0
AF109: =IF(OR(AC109=0,AC109=-1),Beregn1!$E$36,AC109) -> 41 | AG109: TRUE | AH109: =IF(AND(AF109=41,AG109=FALSE),Beregn1!$E$36,AC109) -> 0 | AJ109: 0 | AK109: 0 | AL109: 0 | AM109: 0 | AN109: 0 | AP109: =ROUND(AJ109*Beregn1!$F$30,4) -> 0 | AQ109: =ROUND(AK109*Beregn1!$F$30,4) -> 0 | AR109: =ROUND(AL109*Beregn1!$F$30,4) -> 0 | AS109: =ROUND(AM109*Beregn1!$F$30,4) -> 0 | AT109: =ROUND(AN109*Beregn1!$F$30,4) -> 0
AF110: =IF(OR(AC110=0,AC110=-1),Beregn1!$E$36,AC110) -> 41 | AG110: TRUE | AH110: =IF(AND(AF110=41,AG110=FALSE),Beregn1!$E$36,AC110) -> 0 | AJ110: 0 | AK110: 0 | AL110: 0 | AM110: 0 | AN110: 0 | AP110: =ROUND(AJ110*Beregn1!$F$30,4) -> 0 | AQ110: =ROUND(AK110*Beregn1!$F$30,4) -> 0 | AR110: =ROUND(AL110*Beregn1!$F$30,4) -> 0 | AS110: =ROUND(AM110*Beregn1!$F$30,4) -> 0 | AT110: =ROUND(AN110*Beregn1!$F$30,4) -> 0
AF111: =IF(OR(AC111=0,AC111=-1),Beregn1!$E$36,AC111) -> 41 | AG111: TRUE | AH111: =IF(AND(AF111=41,AG111=FALSE),Beregn1!$E$36,AC111) -> 0 | AJ111: 0 | AK111: 0 | AL111: 0 | AM111: 0 | AN111: 0 | AP111: =ROUND(AJ111*Beregn1!$F$30,4) -> 0 | AQ111: =ROUND(AK111*Beregn1!$F$30,4) -> 0 | AR111: =ROUND(AL111*Beregn1!$F$30,4) -> 0 | AS111: =ROUND(AM111*Beregn1!$F$30,4) -> 0 | AT111: =ROUND(AN111*Beregn1!$F$30,4) -> 0
AF112: =IF(OR(AC112=0,AC112=-1),Beregn1!$E$36,AC112) -> 41 | AG112: TRUE | AH112: =IF(AND(AF112=41,AG112=FALSE),Beregn1!$E$36,AC112) -> 0 | AJ112: 0 | AK112: 0 | AL112: 0 | AM112: 0 | AN112: 0 | AP112: =ROUND(AJ112*Beregn1!$F$30,4) -> 0 | AQ112: =ROUND(AK112*Beregn1!$F$30,4) -> 0 | AR112: =ROUND(AL112*Beregn1!$F$30,4) -> 0 | AS112: =ROUND(AM112*Beregn1!$F$30,4) -> 0 | AT112: =ROUND(AN112*Beregn1!$F$30,4) -> 0
AF113: =IF(OR(AC113=0,AC113=-1),Beregn1!$E$36,AC113) -> 41 | AG113: TRUE | AH113: =IF(AND(AF113=41,AG113=FALSE),Beregn1!$E$36,AC113) -> 0 | AJ113: 0 | AK113: 0 | AL113: 0 | AM113: 0 | AN113: 0 | AP113: =ROUND(AJ113*Beregn1!$F$30,4) -> 0 | AQ113: =ROUND(AK113*Beregn1!$F$30,4) -> 0 | AR113: =ROUND(AL113*Beregn1!$F$30,4) -> 0 | AS113: =ROUND(AM113*Beregn1!$F$30,4) -> 0 | AT113: =ROUND(AN113*Beregn1!$F$30,4) -> 0
AF114: =IF(OR(AC114=0,AC114=-1),Beregn1!$E$36,AC114) -> 41 | AG114: TRUE | AH114: =IF(AND(AF114=41,AG114=FALSE),Beregn1!$E$36,AC114) -> 0 | AJ114: 0 | AK114: 0 | AL114: 0 | AM114: 0 | AN114: 0 | AP114: =ROUND(AJ114*Beregn1!$F$30,4) -> 0 | AQ114: =ROUND(AK114*Beregn1!$F$30,4) -> 0 | AR114: =ROUND(AL114*Beregn1!$F$30,4) -> 0 | AS114: =ROUND(AM114*Beregn1!$F$30,4) -> 0 | AT114: =ROUND(AN114*Beregn1!$F$30,4) -> 0
AF115: =IF(OR(AC115=0,AC115=-1),Beregn1!$E$36,AC115) -> 41 | AG115: TRUE | AH115: =IF(AND(AF115=41,AG115=FALSE),Beregn1!$E$36,AC115) -> 0 | AJ115: 0 | AK115: 0 | AL115: 0 | AM115: 0 | AN115: 0 | AP115: =ROUND(AJ115*Beregn1!$F$30,4) -> 0 | AQ115: =ROUND(AK115*Beregn1!$F$30,4) -> 0 | AR115: =ROUND(AL115*Beregn1!$F$30,4) -> 0 | AS115: =ROUND(AM115*Beregn1!$F$30,4) -> 0 | AT115: =ROUND(AN115*Beregn1!$F$30,4) -> 0
AF116: =IF(OR(AC116=0,AC116=-1),Beregn1!$E$36,AC116) -> 41 | AG116: TRUE | AH116: =IF(AND(AF116=41,AG116=FALSE),Beregn1!$E$36,AC116) -> 0 | AJ116: 0 | AK116: 0 | AL116: 0 | AM116: 0 | AN116: 0 | AP116: =ROUND(AJ116*Beregn1!$F$30,4) -> 0 | AQ116: =ROUND(AK116*Beregn1!$F$30,4) -> 0 | AR116: =ROUND(AL116*Beregn1!$F$30,4) -> 0 | AS116: =ROUND(AM116*Beregn1!$F$30,4) -> 0 | AT116: =ROUND(AN116*Beregn1!$F$30,4) -> 0
AF117: =IF(OR(AC117=0,AC117=-1),Beregn1!$E$36,AC117) -> 41 | AG117: TRUE | AH117: =IF(AND(AF117=41,AG117=FALSE),Beregn1!$E$36,AC117) -> 0 | AJ117: 0 | AK117: 0 | AL117: 0 | AM117: 0 | AN117: 0 | AP117: =ROUND(AJ117*Beregn1!$F$30,4) -> 0 | AQ117: =ROUND(AK117*Beregn1!$F$30,4) -> 0 | AR117: =ROUND(AL117*Beregn1!$F$30,4) -> 0 | AS117: =ROUND(AM117*Beregn1!$F$30,4) -> 0 | AT117: =ROUND(AN117*Beregn1!$F$30,4) -> 0
AF118: =IF(OR(AC118=0,AC118=-1),Beregn1!$E$36,AC118) -> 41 | AG118: TRUE | AH118: =IF(AND(AF118=41,AG118=FALSE),Beregn1!$E$36,AC118) -> 0 | AJ118: 0 | AK118: 0 | AL118: 0 | AM118: 0 | AN118: 0 | AP118: =ROUND(AJ118*Beregn1!$F$30,4) -> 0 | AQ118: =ROUND(AK118*Beregn1!$F$30,4) -> 0 | AR118: =ROUND(AL118*Beregn1!$F$30,4) -> 0 | AS118: =ROUND(AM118*Beregn1!$F$30,4) -> 0 | AT118: =ROUND(AN118*Beregn1!$F$30,4) -> 0
AF119: =IF(OR(AC119=0,AC119=-1),Beregn1!$E$36,AC119) -> 41 | AG119: TRUE | AH119: =IF(AND(AF119=41,AG119=FALSE),Beregn1!$E$36,AC119) -> 0 | AJ119: 0 | AK119: 0 | AL119: 0 | AM119: 0 | AN119: 0 | AP119: =ROUND(AJ119*Beregn1!$F$30,4) -> 0 | AQ119: =ROUND(AK119*Beregn1!$F$30,4) -> 0 | AR119: =ROUND(AL119*Beregn1!$F$30,4) -> 0 | AS119: =ROUND(AM119*Beregn1!$F$30,4) -> 0 | AT119: =ROUND(AN119*Beregn1!$F$30,4) -> 0
AF120: =IF(OR(AC120=0,AC120=-1),Beregn1!$E$36,AC120) -> 41 | AG120: TRUE | AH120: =IF(AND(AF120=41,AG120=FALSE),Beregn1!$E$36,AC120) -> 0 | AJ120: 0 | AK120: 0 | AL120: 0 | AM120: 0 | AN120: 0 | AP120: =ROUND(AJ120*Beregn1!$F$30,4) -> 0 | AQ120: =ROUND(AK120*Beregn1!$F$30,4) -> 0 | AR120: =ROUND(AL120*Beregn1!$F$30,4) -> 0 | AS120: =ROUND(AM120*Beregn1!$F$30,4) -> 0 | AT120: =ROUND(AN120*Beregn1!$F$30,4) -> 0
AF121: =IF(OR(AC121=0,AC121=-1),Beregn1!$E$36,AC121) -> 41 | AG121: TRUE | AH121: =IF(AND(AF121=41,AG121=FALSE),Beregn1!$E$36,AC121) -> 0 | AJ121: 0 | AK121: 0 | AL121: 0 | AM121: 0 | AN121: 0 | AP121: =ROUND(AJ121*Beregn1!$F$30,4) -> 0 | AQ121: =ROUND(AK121*Beregn1!$F$30,4) -> 0 | AR121: =ROUND(AL121*Beregn1!$F$30,4) -> 0 | AS121: =ROUND(AM121*Beregn1!$F$30,4) -> 0 | AT121: =ROUND(AN121*Beregn1!$F$30,4) -> 0
AF122: =IF(OR(AC122=0,AC122=-1),Beregn1!$E$36,AC122) -> 41 | AG122: TRUE | AH122: =IF(AND(AF122=41,AG122=FALSE),Beregn1!$E$36,AC122) -> 0 | AJ122: 0 | AK122: 0 | AL122: 0 | AM122: 0 | AN122: 0 | AP122: =ROUND(AJ122*Beregn1!$F$30,4) -> 0 | AQ122: =ROUND(AK122*Beregn1!$F$30,4) -> 0 | AR122: =ROUND(AL122*Beregn1!$F$30,4) -> 0 | AS122: =ROUND(AM122*Beregn1!$F$30,4) -> 0 | AT122: =ROUND(AN122*Beregn1!$F$30,4) -> 0
AF123: =IF(OR(AC123=0,AC123=-1),Beregn1!$E$36,AC123) -> 41 | AG123: TRUE | AH123: =IF(AND(AF123=41,AG123=FALSE),Beregn1!$E$36,AC123) -> 0 | AJ123: 0 | AK123: 0 | AL123: 0 | AM123: 0 | AN123: 0 | AP123: =ROUND(AJ123*Beregn1!$F$30,4) -> 0 | AQ123: =ROUND(AK123*Beregn1!$F$30,4) -> 0 | AR123: =ROUND(AL123*Beregn1!$F$30,4) -> 0 | AS123: =ROUND(AM123*Beregn1!$F$30,4) -> 0 | AT123: =ROUND(AN123*Beregn1!$F$30,4) -> 0
AF124: =IF(OR(AC124=0,AC124=-1),Beregn1!$E$36,AC124) -> 41 | AG124: TRUE | AH124: =IF(AND(AF124=41,AG124=FALSE),Beregn1!$E$36,AC124) -> 0 | AJ124: 0 | AK124: 0 | AL124: 0 | AM124: 0 | AN124: 0 | AP124: =ROUND(AJ124*Beregn1!$F$30,4) -> 0 | AQ124: =ROUND(AK124*Beregn1!$F$30,4) -> 0 | AR124: =ROUND(AL124*Beregn1!$F$30,4) -> 0 | AS124: =ROUND(AM124*Beregn1!$F$30,4) -> 0 | AT124: =ROUND(AN124*Beregn1!$F$30,4) -> 0
AF125: =IF(OR(AC125=0,AC125=-1),Beregn1!$E$36,AC125) -> 41 | AG125: TRUE | AH125: =IF(AND(AF125=41,AG125=FALSE),Beregn1!$E$36,AC125) -> 0 | AJ125: 0 | AK125: 0 | AL125: 0 | AM125: 0 | AN125: 0 | AP125: =ROUND(AJ125*Beregn1!$F$30,4) -> 0 | AQ125: =ROUND(AK125*Beregn1!$F$30,4) -> 0 | AR125: =ROUND(AL125*Beregn1!$F$30,4) -> 0 | AS125: =ROUND(AM125*Beregn1!$F$30,4) -> 0 | AT125: =ROUND(AN125*Beregn1!$F$30,4) -> 0
AF126: =IF(OR(AC126=0,AC126=-1),Beregn1!$E$36,AC126) -> 41 | AG126: TRUE | AH126: =IF(AND(AF126=41,AG126=FALSE),Beregn1!$E$36,AC126) -> 0 | AJ126: 0 | AK126: 0 | AL126: 0 | AM126: 0 | AN126: 0 | AP126: =ROUND(AJ126*Beregn1!$F$30,4) -> 0 | AQ126: =ROUND(AK126*Beregn1!$F$30,4) -> 0 | AR126: =ROUND(AL126*Beregn1!$F$30,4) -> 0 | AS126: =ROUND(AM126*Beregn1!$F$30,4) -> 0 | AT126: =ROUND(AN126*Beregn1!$F$30,4) -> 0
AF127: =IF(OR(AC127=0,AC127=-1),Beregn1!$E$36,AC127) -> 41 | AG127: TRUE | AH127: =IF(AND(AF127=41,AG127=FALSE),Beregn1!$E$36,AC127) -> 0 | AJ127: 0 | AK127: 0 | AL127: 0 | AM127: 0 | AN127: 0 | AP127: =ROUND(AJ127*Beregn1!$F$30,4) -> 0 | AQ127: =ROUND(AK127*Beregn1!$F$30,4) -> 0 | AR127: =ROUND(AL127*Beregn1!$F$30,4) -> 0 | AS127: =ROUND(AM127*Beregn1!$F$30,4) -> 0 | AT127: =ROUND(AN127*Beregn1!$F$30,4) -> 0
AF128: =IF(OR(AC128=0,AC128=-1),Beregn1!$E$36,AC128) -> 41 | AG128: TRUE | AH128: =IF(AND(AF128=41,AG128=FALSE),Beregn1!$E$36,AC128) -> 0 | AJ128: 0 | AK128: 0 | AL128: 0 | AM128: 0 | AN128: 0 | AP128: =ROUND(AJ128*Beregn1!$F$30,4) -> 0 | AQ128: =ROUND(AK128*Beregn1!$F$30,4) -> 0 | AR128: =ROUND(AL128*Beregn1!$F$30,4) -> 0 | AS128: =ROUND(AM128*Beregn1!$F$30,4) -> 0 | AT128: =ROUND(AN128*Beregn1!$F$30,4) -> 0
AF129: =IF(OR(AC129=0,AC129=-1),Beregn1!$E$36,AC129) -> 41 | AG129: TRUE | AH129: =IF(AND(AF129=41,AG129=FALSE),Beregn1!$E$36,AC129) -> 0 | AJ129: 0 | AK129: 0 | AL129: 0 | AM129: 0 | AN129: 0 | AP129: =ROUND(AJ129*Beregn1!$F$30,4) -> 0 | AQ129: =ROUND(AK129*Beregn1!$F$30,4) -> 0 | AR129: =ROUND(AL129*Beregn1!$F$30,4) -> 0 | AS129: =ROUND(AM129*Beregn1!$F$30,4) -> 0 | AT129: =ROUND(AN129*Beregn1!$F$30,4) -> 0
AF130: =IF(OR(AC130=0,AC130=-1),Beregn1!$E$36,AC130) -> 41 | AG130: TRUE | AH130: =IF(AND(AF130=41,AG130=FALSE),Beregn1!$E$36,AC130) -> 0 | AJ130: =INDEX($T130:$AD130,MATCH("Evaporated",$T$1:$AD$1,0)) -> 0 | AK130: =INDEX($T130:$AD130,MATCH("Drained",$T$1:$AD$1,0)) -> 0 | AL130: =INDEX($T130:$AD130,MATCH("Overflow",$T$1:$AD$1,0)) -> 0 | AM130: =AH130 -> 0 | AN130: =INDEX($T130:$AD130,MATCH("Available_Volume",$T$1:$AD$1,0)) -> 0 | AP130: =ROUND(AJ130*Beregn1!$F$30,4) -> 0 | AQ130: =ROUND(AK130*Beregn1!$F$30,4) -> 0 | AR130: =ROUND(AL130*Beregn1!$F$30,4) -> 0 | AS130: =ROUND(AM130*Beregn1!$F$30,4) -> 0 | AT130: =ROUND(AN130*Beregn1!$F$30,4) -> 0
AF131: =IF(OR(AC131=0,AC131=-1),Beregn1!$E$36,AC131) -> 41 | AG131: =ISBLANK(AC131) -> TRUE | AH131: =IF(AND(AF131=41,AG131=FALSE),Beregn1!$E$36,AC131) -> 0 | AJ131: 0 | AK131: 0 | AL131: 0 | AM131: 0 | AN131: 0 | AP131: =ROUND(AJ131*Beregn1!$F$30,4) -> 0 | AQ131: =ROUND(AK131*Beregn1!$F$30,4) -> 0 | AR131: =ROUND(AL131*Beregn1!$F$30,4) -> 0 | AS131: =ROUND(AM131*Beregn1!$F$30,4) -> 0 | AT131: =ROUND(AN131*Beregn1!$F$30,4) -> 0
AF132: =IF(OR(AC132=0,AC132=-1),Beregn1!$E$36,AC132) -> 41 | AG132: TRUE | AH132: =IF(AND(AF132=41,AG132=FALSE),Beregn1!$E$36,AC132) -> 0 | AJ132: 0 | AK132: 0 | AL132: 0 | AM132: 0 | AN132: 0 | AP132: =ROUND(AJ132*Beregn1!$F$30,4) -> 0 | AQ132: =ROUND(AK132*Beregn1!$F$30,4) -> 0 | AR132: =ROUND(AL132*Beregn1!$F$30,4) -> 0 | AS132: =ROUND(AM132*Beregn1!$F$30,4) -> 0 | AT132: =ROUND(AN132*Beregn1!$F$30,4) -> 0
AF133: =IF(OR(AC133=0,AC133=-1),Beregn1!$E$36,AC133) -> 41 | AG133: TRUE | AH133: =IF(AND(AF133=41,AG133=FALSE),Beregn1!$E$36,AC133) -> 0 | AJ133: 0 | AK133: 0 | AL133: 0 | AM133: 0 | AN133: 0 | AP133: =ROUND(AJ133*Beregn1!$F$30,4) -> 0 | AQ133: =ROUND(AK133*Beregn1!$F$30,4) -> 0 | AR133: =ROUND(AL133*Beregn1!$F$30,4) -> 0 | AS133: =ROUND(AM133*Beregn1!$F$30,4) -> 0 | AT133: =ROUND(AN133*Beregn1!$F$30,4) -> 0
AF134: =IF(OR(AC134=0,AC134=-1),Beregn1!$E$36,AC134) -> 41 | AG134: TRUE | AH134: =IF(AND(AF134=41,AG134=FALSE),Beregn1!$E$36,AC134) -> 0 | AJ134: 0 | AK134: 0 | AL134: 0 | AM134: 0 | AN134: 0 | AP134: =ROUND(AJ134*Beregn1!$F$30,4) -> 0 | AQ134: =ROUND(AK134*Beregn1!$F$30,4) -> 0 | AR134: =ROUND(AL134*Beregn1!$F$30,4) -> 0 | AS134: =ROUND(AM134*Beregn1!$F$30,4) -> 0 | AT134: =ROUND(AN134*Beregn1!$F$30,4) -> 0
AF135: =IF(OR(AC135=0,AC135=-1),Beregn1!$E$36,AC135) -> 41 | AG135: TRUE | AH135: =IF(AND(AF135=41,AG135=FALSE),Beregn1!$E$36,AC135) -> 0 | AJ135: 0 | AK135: 0 | AL135: 0 | AM135: 0 | AN135: 0 | AP135: =ROUND(AJ135*Beregn1!$F$30,4) -> 0 | AQ135: =ROUND(AK135*Beregn1!$F$30,4) -> 0 | AR135: =ROUND(AL135*Beregn1!$F$30,4) -> 0 | AS135: =ROUND(AM135*Beregn1!$F$30,4) -> 0 | AT135: =ROUND(AN135*Beregn1!$F$30,4) -> 0
AF136: =IF(OR(AC136=0,AC136=-1),Beregn1!$E$36,AC136) -> 41 | AG136: TRUE | AH136: =IF(AND(AF136=41,AG136=FALSE),Beregn1!$E$36,AC136) -> 0 | AJ136: 0 | AK136: 0 | AL136: 0 | AM136: 0 | AN136: 0 | AP136: =ROUND(AJ136*Beregn1!$F$30,4) -> 0 | AQ136: =ROUND(AK136*Beregn1!$F$30,4) -> 0 | AR136: =ROUND(AL136*Beregn1!$F$30,4) -> 0 | AS136: =ROUND(AM136*Beregn1!$F$30,4) -> 0 | AT136: =ROUND(AN136*Beregn1!$F$30,4) -> 0
AF137: =IF(OR(AC137=0,AC137=-1),Beregn1!$E$36,AC137) -> 41 | AG137: TRUE | AH137: =IF(AND(AF137=41,AG137=FALSE),Beregn1!$E$36,AC137) -> 0 | AJ137: 0 | AK137: 0 | AL137: 0 | AM137: 0 | AN137: 0 | AP137: =ROUND(AJ137*Beregn1!$F$30,4) -> 0 | AQ137: =ROUND(AK137*Beregn1!$F$30,4) -> 0 | AR137: =ROUND(AL137*Beregn1!$F$30,4) -> 0 | AS137: =ROUND(AM137*Beregn1!$F$30,4) -> 0 | AT137: =ROUND(AN137*Beregn1!$F$30,4) -> 0
AF138: =IF(OR(AC138=0,AC138=-1),Beregn1!$E$36,AC138) -> 41 | AG138: TRUE | AH138: =IF(AND(AF138=41,AG138=FALSE),Beregn1!$E$36,AC138) -> 0 | AJ138: 0 | AK138: 0 | AL138: 0 | AM138: 0 | AN138: 0 | AP138: =ROUND(AJ138*Beregn1!$F$30,4) -> 0 | AQ138: =ROUND(AK138*Beregn1!$F$30,4) -> 0 | AR138: =ROUND(AL138*Beregn1!$F$30,4) -> 0 | AS138: =ROUND(AM138*Beregn1!$F$30,4) -> 0 | AT138: =ROUND(AN138*Beregn1!$F$30,4) -> 0
AF139: =IF(OR(AC139=0,AC139=-1),Beregn1!$E$36,AC139) -> 41 | AG139: TRUE | AH139: =IF(AND(AF139=41,AG139=FALSE),Beregn1!$E$36,AC139) -> 0 | AJ139: 0 | AK139: 0 | AL139: 0 | AM139: 0 | AN139: 0 | AP139: =ROUND(AJ139*Beregn1!$F$30,4) -> 0 | AQ139: =ROUND(AK139*Beregn1!$F$30,4) -> 0 | AR139: =ROUND(AL139*Beregn1!$F$30,4) -> 0 | AS139: =ROUND(AM139*Beregn1!$F$30,4) -> 0 | AT139: =ROUND(AN139*Beregn1!$F$30,4) -> 0
AF140: =IF(OR(AC140=0,AC140=-1),Beregn1!$E$36,AC140) -> 41 | AG140: TRUE | AH140: =IF(AND(AF140=41,AG140=FALSE),Beregn1!$E$36,AC140) -> 0 | AJ140: 0 | AK140: 0 | AL140: 0 | AM140: 0 | AN140: 0 | AP140: =ROUND(AJ140*Beregn1!$F$30,4) -> 0 | AQ140: =ROUND(AK140*Beregn1!$F$30,4) -> 0 | AR140: =ROUND(AL140*Beregn1!$F$30,4) -> 0 | AS140: =ROUND(AM140*Beregn1!$F$30,4) -> 0 | AT140: =ROUND(AN140*Beregn1!$F$30,4) -> 0
AF141: =IF(OR(AC141=0,AC141=-1),Beregn1!$E$36,AC141) -> 41 | AG141: TRUE | AH141: =IF(AND(AF141=41,AG141=FALSE),Beregn1!$E$36,AC141) -> 0 | AJ141: 0 | AK141: 0 | AL141: 0 | AM141: 0 | AN141: 0 | AP141: =ROUND(AJ141*Beregn1!$F$30,4) -> 0 | AQ141: =ROUND(AK141*Beregn1!$F$30,4) -> 0 | AR141: =ROUND(AL141*Beregn1!$F$30,4) -> 0 | AS141: =ROUND(AM141*Beregn1!$F$30,4) -> 0 | AT141: =ROUND(AN141*Beregn1!$F$30,4) -> 0
AF142: =IF(OR(AC142=0,AC142=-1),Beregn1!$E$36,AC142) -> 41 | AG142: TRUE | AH142: =IF(AND(AF142=41,AG142=FALSE),Beregn1!$E$36,AC142) -> 0 | AJ142: 0 | AK142: 0 | AL142: 0 | AM142: 0 | AN142: 0 | AP142: =ROUND(AJ142*Beregn1!$F$30,4) -> 0 | AQ142: =ROUND(AK142*Beregn1!$F$30,4) -> 0 | AR142: =ROUND(AL142*Beregn1!$F$30,4) -> 0 | AS142: =ROUND(AM142*Beregn1!$F$30,4) -> 0 | AT142: =ROUND(AN142*Beregn1!$F$30,4) -> 0
AF143: =IF(OR(AC143=0,AC143=-1),Beregn1!$E$36,AC143) -> 41 | AG143: TRUE | AH143: =IF(AND(AF143=41,AG143=FALSE),Beregn1!$E$36,AC143) -> 0 | AJ143: 0 | AK143: 0 | AL143: 0 | AM143: 0 | AN143: 0 | AP143: =ROUND(AJ143*Beregn1!$F$30,4) -> 0 | AQ143: =ROUND(AK143*Beregn1!$F$30,4) -> 0 | AR143: =ROUND(AL143*Beregn1!$F$30,4) -> 0 | AS143: =ROUND(AM143*Beregn1!$F$30,4) -> 0 | AT143: =ROUND(AN143*Beregn1!$F$30,4) -> 0
AF144: =IF(OR(AC144=0,AC144=-1),Beregn1!$E$36,AC144) -> 41 | AG144: TRUE | AH144: =IF(AND(AF144=41,AG144=FALSE),Beregn1!$E$36,AC144) -> 0 | AJ144: 0 | AK144: 0 | AL144: 0 | AM144: 0 | AN144: 0 | AP144: =ROUND(AJ144*Beregn1!$F$30,4) -> 0 | AQ144: =ROUND(AK144*Beregn1!$F$30,4) -> 0 | AR144: =ROUND(AL144*Beregn1!$F$30,4) -> 0 | AS144: =ROUND(AM144*Beregn1!$F$30,4) -> 0 | AT144: =ROUND(AN144*Beregn1!$F$30,4) -> 0
AF145: =IF(OR(AC145=0,AC145=-1),Beregn1!$E$36,AC145) -> 41 | AG145: TRUE | AH145: =IF(AND(AF145=41,AG145=FALSE),Beregn1!$E$36,AC145) -> 0 | AJ145: 0 | AK145: 0 | AL145: 0 | AM145: 0 | AN145: 0 | AP145: =ROUND(AJ145*Beregn1!$F$30,4) -> 0 | AQ145: =ROUND(AK145*Beregn1!$F$30,4) -> 0 | AR145: =ROUND(AL145*Beregn1!$F$30,4) -> 0 | AS145: =ROUND(AM145*Beregn1!$F$30,4) -> 0 | AT145: =ROUND(AN145*Beregn1!$F$30,4) -> 0
AF146: =IF(OR(AC146=0,AC146=-1),Beregn1!$E$36,AC146) -> 41 | AG146: TRUE | AH146: =IF(AND(AF146=41,AG146=FALSE),Beregn1!$E$36,AC146) -> 0 | AJ146: 0 | AK146: 0 | AL146: 0 | AM146: 0 | AN146: 0 | AP146: =ROUND(AJ146*Beregn1!$F$30,4) -> 0 | AQ146: =ROUND(AK146*Beregn1!$F$30,4) -> 0 | AR146: =ROUND(AL146*Beregn1!$F$30,4) -> 0 | AS146: =ROUND(AM146*Beregn1!$F$30,4) -> 0 | AT146: =ROUND(AN146*Beregn1!$F$30,4) -> 0
AF147: =IF(OR(AC147=0,AC147=-1),Beregn1!$E$36,AC147) -> 41 | AG147: TRUE | AH147: =IF(AND(AF147=41,AG147=FALSE),Beregn1!$E$36,AC147) -> 0 | AJ147: 0 | AK147: 0 | AL147: 0 | AM147: 0 | AN147: 0 | AP147: =ROUND(AJ147*Beregn1!$F$30,4) -> 0 | AQ147: =ROUND(AK147*Beregn1!$F$30,4) -> 0 | AR147: =ROUND(AL147*Beregn1!$F$30,4) -> 0 | AS147: =ROUND(AM147*Beregn1!$F$30,4) -> 0 | AT147: =ROUND(AN147*Beregn1!$F$30,4) -> 0
AF148: =IF(OR(AC148=0,AC148=-1),Beregn1!$E$36,AC148) -> 41 | AG148: TRUE | AH148: =IF(AND(AF148=41,AG148=FALSE),Beregn1!$E$36,AC148) -> 0 | AJ148: 0 | AK148: 0 | AL148: 0 | AM148: 0 | AN148: 0 | AP148: =ROUND(AJ148*Beregn1!$F$30,4) -> 0 | AQ148: =ROUND(AK148*Beregn1!$F$30,4) -> 0 | AR148: =ROUND(AL148*Beregn1!$F$30,4) -> 0 | AS148: =ROUND(AM148*Beregn1!$F$30,4) -> 0 | AT148: =ROUND(AN148*Beregn1!$F$30,4) -> 0
AF149: =IF(OR(AC149=0,AC149=-1),Beregn1!$E$36,AC149) -> 41 | AG149: TRUE | AH149: =IF(AND(AF149=41,AG149=FALSE),Beregn1!$E$36,AC149) -> 0 | AJ149: 0 | AK149: 0 | AL149: 0 | AM149: 0 | AN149: 0 | AP149: =ROUND(AJ149*Beregn1!$F$30,4) -> 0 | AQ149: =ROUND(AK149*Beregn1!$F$30,4) -> 0 | AR149: =ROUND(AL149*Beregn1!$F$30,4) -> 0 | AS149: =ROUND(AM149*Beregn1!$F$30,4) -> 0 | AT149: =ROUND(AN149*Beregn1!$F$30,4) -> 0
AF150: =IF(OR(AC150=0,AC150=-1),Beregn1!$E$36,AC150) -> 41 | AG150: TRUE | AH150: =IF(AND(AF150=41,AG150=FALSE),Beregn1!$E$36,AC150) -> 0 | AJ150: 0 | AK150: 0 | AL150: 0 | AM150: 0 | AN150: 0 | AP150: =ROUND(AJ150*Beregn1!$F$30,4) -> 0 | AQ150: =ROUND(AK150*Beregn1!$F$30,4) -> 0 | AR150: =ROUND(AL150*Beregn1!$F$30,4) -> 0 | AS150: =ROUND(AM150*Beregn1!$F$30,4) -> 0 | AT150: =ROUND(AN150*Beregn1!$F$30,4) -> 0
AF151: =IF(OR(AC151=0,AC151=-1),Beregn1!$E$36,AC151) -> 41 | AG151: TRUE | AH151: =IF(AND(AF151=41,AG151=FALSE),Beregn1!$E$36,AC151) -> 0 | AJ151: 0 | AK151: 0 | AL151: 0 | AM151: 0 | AN151: 0 | AP151: =ROUND(AJ151*Beregn1!$F$30,4) -> 0 | AQ151: =ROUND(AK151*Beregn1!$F$30,4) -> 0 | AR151: =ROUND(AL151*Beregn1!$F$30,4) -> 0 | AS151: =ROUND(AM151*Beregn1!$F$30,4) -> 0 | AT151: =ROUND(AN151*Beregn1!$F$30,4) -> 0
AF152: =IF(OR(AC152=0,AC152=-1),Beregn1!$E$36,AC152) -> 41 | AG152: TRUE | AH152: =IF(AND(AF152=41,AG152=FALSE),Beregn1!$E$36,AC152) -> 0 | AJ152: 0 | AK152: 0 | AL152: 0 | AM152: 0 | AN152: 0 | AP152: =ROUND(AJ152*Beregn1!$F$30,4) -> 0 | AQ152: =ROUND(AK152*Beregn1!$F$30,4) -> 0 | AR152: =ROUND(AL152*Beregn1!$F$30,4) -> 0 | AS152: =ROUND(AM152*Beregn1!$F$30,4) -> 0 | AT152: =ROUND(AN152*Beregn1!$F$30,4) -> 0
AF153: =IF(OR(AC153=0,AC153=-1),Beregn1!$E$36,AC153) -> 41 | AG153: TRUE | AH153: =IF(AND(AF153=41,AG153=FALSE),Beregn1!$E$36,AC153) -> 0 | AJ153: 0 | AK153: 0 | AL153: 0 | AM153: 0 | AN153: 0 | AP153: =ROUND(AJ153*Beregn1!$F$30,4) -> 0 | AQ153: =ROUND(AK153*Beregn1!$F$30,4) -> 0 | AR153: =ROUND(AL153*Beregn1!$F$30,4) -> 0 | AS153: =ROUND(AM153*Beregn1!$F$30,4) -> 0 | AT153: =ROUND(AN153*Beregn1!$F$30,4) -> 0
AF154: =IF(OR(AC154=0,AC154=-1),Beregn1!$E$36,AC154) -> 41 | AG154: TRUE | AH154: =IF(AND(AF154=41,AG154=FALSE),Beregn1!$E$36,AC154) -> 0 | AJ154: 0 | AK154: 0 | AL154: 0 | AM154: 0 | AN154: 0 | AP154: =ROUND(AJ154*Beregn1!$F$30,4) -> 0 | AQ154: =ROUND(AK154*Beregn1!$F$30,4) -> 0 | AR154: =ROUND(AL154*Beregn1!$F$30,4) -> 0 | AS154: =ROUND(AM154*Beregn1!$F$30,4) -> 0 | AT154: =ROUND(AN154*Beregn1!$F$30,4) -> 0
AF155: =IF(OR(AC155=0,AC155=-1),Beregn1!$E$36,AC155) -> 41 | AG155: TRUE | AH155: =IF(AND(AF155=41,AG155=FALSE),Beregn1!$E$36,AC155) -> 0 | AJ155: 0 | AK155: 0 | AL155: 0 | AM155: 0 | AN155: 0 | AP155: =ROUND(AJ155*Beregn1!$F$30,4) -> 0 | AQ155: =ROUND(AK155*Beregn1!$F$30,4) -> 0 | AR155: =ROUND(AL155*Beregn1!$F$30,4) -> 0 | AS155: =ROUND(AM155*Beregn1!$F$30,4) -> 0 | AT155: =ROUND(AN155*Beregn1!$F$30,4) -> 0
AF156: =IF(OR(AC156=0,AC156=-1),Beregn1!$E$36,AC156) -> 41 | AG156: TRUE | AH156: =IF(AND(AF156=41,AG156=FALSE),Beregn1!$E$36,AC156) -> 0 | AJ156: 0 | AK156: 0 | AL156: 0 | AM156: 0 | AN156: 0 | AP156: =ROUND(AJ156*Beregn1!$F$30,4) -> 0 | AQ156: =ROUND(AK156*Beregn1!$F$30,4) -> 0 | AR156: =ROUND(AL156*Beregn1!$F$30,4) -> 0 | AS156: =ROUND(AM156*Beregn1!$F$30,4) -> 0 | AT156: =ROUND(AN156*Beregn1!$F$30,4) -> 0
AF157: =IF(OR(AC157=0,AC157=-1),Beregn1!$E$36,AC157) -> 41 | AG157: TRUE | AH157: =IF(AND(AF157=41,AG157=FALSE),Beregn1!$E$36,AC157) -> 0 | AJ157: 0 | AK157: 0 | AL157: 0 | AM157: 0 | AN157: 0 | AP157: =ROUND(AJ157*Beregn1!$F$30,4) -> 0 | AQ157: =ROUND(AK157*Beregn1!$F$30,4) -> 0 | AR157: =ROUND(AL157*Beregn1!$F$30,4) -> 0 | AS157: =ROUND(AM157*Beregn1!$F$30,4) -> 0 | AT157: =ROUND(AN157*Beregn1!$F$30,4) -> 0
AF158: =IF(OR(AC158=0,AC158=-1),Beregn1!$E$36,AC158) -> 41 | AG158: TRUE | AH158: =IF(AND(AF158=41,AG158=FALSE),Beregn1!$E$36,AC158) -> 0 | AJ158: 0 | AK158: 0 | AL158: 0 | AM158: 0 | AN158: 0 | AP158: =ROUND(AJ158*Beregn1!$F$30,4) -> 0 | AQ158: =ROUND(AK158*Beregn1!$F$30,4) -> 0 | AR158: =ROUND(AL158*Beregn1!$F$30,4) -> 0 | AS158: =ROUND(AM158*Beregn1!$F$30,4) -> 0 | AT158: =ROUND(AN158*Beregn1!$F$30,4) -> 0
AF159: =IF(OR(AC159=0,AC159=-1),Beregn1!$E$36,AC159) -> 41 | AG159: TRUE | AH159: =IF(AND(AF159=41,AG159=FALSE),Beregn1!$E$36,AC159) -> 0 | AJ159: 0 | AK159: 0 | AL159: 0 | AM159: 0 | AN159: 0 | AP159: =ROUND(AJ159*Beregn1!$F$30,4) -> 0 | AQ159: =ROUND(AK159*Beregn1!$F$30,4) -> 0 | AR159: =ROUND(AL159*Beregn1!$F$30,4) -> 0 | AS159: =ROUND(AM159*Beregn1!$F$30,4) -> 0 | AT159: =ROUND(AN159*Beregn1!$F$30,4) -> 0
AF160: =IF(OR(AC160=0,AC160=-1),Beregn1!$E$36,AC160) -> 41 | AG160: TRUE | AH160: =IF(AND(AF160=41,AG160=FALSE),Beregn1!$E$36,AC160) -> 0 | AJ160: 0 | AK160: 0 | AL160: 0 | AM160: 0 | AN160: 0 | AP160: =ROUND(AJ160*Beregn1!$F$30,4) -> 0 | AQ160: =ROUND(AK160*Beregn1!$F$30,4) -> 0 | AR160: =ROUND(AL160*Beregn1!$F$30,4) -> 0 | AS160: =ROUND(AM160*Beregn1!$F$30,4) -> 0 | AT160: =ROUND(AN160*Beregn1!$F$30,4) -> 0
AF161: =IF(OR(AC161=0,AC161=-1),Beregn1!$E$36,AC161) -> 41 | AG161: TRUE | AH161: =IF(AND(AF161=41,AG161=FALSE),Beregn1!$E$36,AC161) -> 0 | AJ161: 0 | AK161: 0 | AL161: 0 | AM161: 0 | AN161: 0 | AP161: =ROUND(AJ161*Beregn1!$F$30,4) -> 0 | AQ161: =ROUND(AK161*Beregn1!$F$30,4) -> 0 | AR161: =ROUND(AL161*Beregn1!$F$30,4) -> 0 | AS161: =ROUND(AM161*Beregn1!$F$30,4) -> 0 | AT161: =ROUND(AN161*Beregn1!$F$30,4) -> 0
AF162: =IF(OR(AC162=0,AC162=-1),Beregn1!$E$36,AC162) -> 41 | AG162: TRUE | AH162: =IF(AND(AF162=41,AG162=FALSE),Beregn1!$E$36,AC162) -> 0 | AJ162: 0 | AK162: 0 | AL162: 0 | AM162: 0 | AN162: 0 | AP162: =ROUND(AJ162*Beregn1!$F$30,4) -> 0 | AQ162: =ROUND(AK162*Beregn1!$F$30,4) -> 0 | AR162: =ROUND(AL162*Beregn1!$F$30,4) -> 0 | AS162: =ROUND(AM162*Beregn1!$F$30,4) -> 0 | AT162: =ROUND(AN162*Beregn1!$F$30,4) -> 0
AF163: =IF(OR(AC163=0,AC163=-1),Beregn1!$E$36,AC163) -> 41 | AG163: TRUE | AH163: =IF(AND(AF163=41,AG163=FALSE),Beregn1!$E$36,AC163) -> 0 | AJ163: 0 | AK163: 0 | AL163: 0 | AM163: 0 | AN163: 0 | AP163: =ROUND(AJ163*Beregn1!$F$30,4) -> 0 | AQ163: =ROUND(AK163*Beregn1!$F$30,4) -> 0 | AR163: =ROUND(AL163*Beregn1!$F$30,4) -> 0 | AS163: =ROUND(AM163*Beregn1!$F$30,4) -> 0 | AT163: =ROUND(AN163*Beregn1!$F$30,4) -> 0
AF164: =IF(OR(AC164=0,AC164=-1),Beregn1!$E$36,AC164) -> 41 | AG164: TRUE | AH164: =IF(AND(AF164=41,AG164=FALSE),Beregn1!$E$36,AC164) -> 0 | AJ164: 0 | AK164: 0 | AL164: 0 | AM164: 0 | AN164: 0 | AP164: =ROUND(AJ164*Beregn1!$F$30,4) -> 0 | AQ164: =ROUND(AK164*Beregn1!$F$30,4) -> 0 | AR164: =ROUND(AL164*Beregn1!$F$30,4) -> 0 | AS164: =ROUND(AM164*Beregn1!$F$30,4) -> 0 | AT164: =ROUND(AN164*Beregn1!$F$30,4) -> 0
AF165: =IF(OR(AC165=0,AC165=-1),Beregn1!$E$36,AC165) -> 41 | AG165: TRUE | AH165: =IF(AND(AF165=41,AG165=FALSE),Beregn1!$E$36,AC165) -> 0 | AJ165: 0 | AK165: 0 | AL165: 0 | AM165: 0 | AN165: 0 | AP165: =ROUND(AJ165*Beregn1!$F$30,4) -> 0 | AQ165: =ROUND(AK165*Beregn1!$F$30,4) -> 0 | AR165: =ROUND(AL165*Beregn1!$F$30,4) -> 0 | AS165: =ROUND(AM165*Beregn1!$F$30,4) -> 0 | AT165: =ROUND(AN165*Beregn1!$F$30,4) -> 0
AF166: =IF(OR(AC166=0,AC166=-1),Beregn1!$E$36,AC166) -> 41 | AG166: TRUE | AH166: =IF(AND(AF166=41,AG166=FALSE),Beregn1!$E$36,AC166) -> 0 | AJ166: 0 | AK166: 0 | AL166: 0 | AM166: 0 | AN166: 0 | AP166: =ROUND(AJ166*Beregn1!$F$30,4) -> 0 | AQ166: =ROUND(AK166*Beregn1!$F$30,4) -> 0 | AR166: =ROUND(AL166*Beregn1!$F$30,4) -> 0 | AS166: =ROUND(AM166*Beregn1!$F$30,4) -> 0 | AT166: =ROUND(AN166*Beregn1!$F$30,4) -> 0
AF167: =IF(OR(AC167=0,AC167=-1),Beregn1!$E$36,AC167) -> 41 | AG167: TRUE | AH167: =IF(AND(AF167=41,AG167=FALSE),Beregn1!$E$36,AC167) -> 0 | AJ167: 0 | AK167: 0 | AL167: 0 | AM167: 0 | AN167: 0 | AP167: =ROUND(AJ167*Beregn1!$F$30,4) -> 0 | AQ167: =ROUND(AK167*Beregn1!$F$30,4) -> 0 | AR167: =ROUND(AL167*Beregn1!$F$30,4) -> 0 | AS167: =ROUND(AM167*Beregn1!$F$30,4) -> 0 | AT167: =ROUND(AN167*Beregn1!$F$30,4) -> 0
AF168: =IF(OR(AC168=0,AC168=-1),Beregn1!$E$36,AC168) -> 41 | AG168: TRUE | AH168: =IF(AND(AF168=41,AG168=FALSE),Beregn1!$E$36,AC168) -> 0 | AJ168: 0 | AK168: 0 | AL168: 0 | AM168: 0 | AN168: 0 | AP168: =ROUND(AJ168*Beregn1!$F$30,4) -> 0 | AQ168: =ROUND(AK168*Beregn1!$F$30,4) -> 0 | AR168: =ROUND(AL168*Beregn1!$F$30,4) -> 0 | AS168: =ROUND(AM168*Beregn1!$F$30,4) -> 0 | AT168: =ROUND(AN168*Beregn1!$F$30,4) -> 0
AF169: =IF(OR(AC169=0,AC169=-1),Beregn1!$E$36,AC169) -> 41 | AG169: TRUE | AH169: =IF(AND(AF169=41,AG169=FALSE),Beregn1!$E$36,AC169) -> 0 | AJ169: 0 | AK169: 0 | AL169: 0 | AM169: 0 | AN169: 0 | AP169: =ROUND(AJ169*Beregn1!$F$30,4) -> 0 | AQ169: =ROUND(AK169*Beregn1!$F$30,4) -> 0 | AR169: =ROUND(AL169*Beregn1!$F$30,4) -> 0 | AS169: =ROUND(AM169*Beregn1!$F$30,4) -> 0 | AT169: =ROUND(AN169*Beregn1!$F$30,4) -> 0
AF170: =IF(OR(AC170=0,AC170=-1),Beregn1!$E$36,AC170) -> 41 | AG170: TRUE | AH170: =IF(AND(AF170=41,AG170=FALSE),Beregn1!$E$36,AC170) -> 0 | AJ170: 0 | AK170: 0 | AL170: 0 | AM170: 0 | AN170: 0 | AP170: =ROUND(AJ170*Beregn1!$F$30,4) -> 0 | AQ170: =ROUND(AK170*Beregn1!$F$30,4) -> 0 | AR170: =ROUND(AL170*Beregn1!$F$30,4) -> 0 | AS170: =ROUND(AM170*Beregn1!$F$30,4) -> 0 | AT170: =ROUND(AN170*Beregn1!$F$30,4) -> 0
AF171: =IF(OR(AC171=0,AC171=-1),Beregn1!$E$36,AC171) -> 41 | AG171: TRUE | AH171: =IF(AND(AF171=41,AG171=FALSE),Beregn1!$E$36,AC171) -> 0 | AJ171: 0 | AK171: 0 | AL171: 0 | AM171: 0 | AN171: 0 | AP171: =ROUND(AJ171*Beregn1!$F$30,4) -> 0 | AQ171: =ROUND(AK171*Beregn1!$F$30,4) -> 0 | AR171: =ROUND(AL171*Beregn1!$F$30,4) -> 0 | AS171: =ROUND(AM171*Beregn1!$F$30,4) -> 0 | AT171: =ROUND(AN171*Beregn1!$F$30,4) -> 0
AF172: =IF(OR(AC172=0,AC172=-1),Beregn1!$E$36,AC172) -> 41 | AG172: TRUE | AH172: =IF(AND(AF172=41,AG172=FALSE),Beregn1!$E$36,AC172) -> 0 | AJ172: 0 | AK172: 0 | AL172: 0 | AM172: 0 | AN172: 0 | AP172: =ROUND(AJ172*Beregn1!$F$30,4) -> 0 | AQ172: =ROUND(AK172*Beregn1!$F$30,4) -> 0 | AR172: =ROUND(AL172*Beregn1!$F$30,4) -> 0 | AS172: =ROUND(AM172*Beregn1!$F$30,4) -> 0 | AT172: =ROUND(AN172*Beregn1!$F$30,4) -> 0
AF173: =IF(OR(AC173=0,AC173=-1),Beregn1!$E$36,AC173) -> 41 | AG173: TRUE | AH173: =IF(AND(AF173=41,AG173=FALSE),Beregn1!$E$36,AC173) -> 0 | AJ173: 0 | AK173: 0 | AL173: 0 | AM173: 0 | AN173: 0 | AP173: =ROUND(AJ173*Beregn1!$F$30,4) -> 0 | AQ173: =ROUND(AK173*Beregn1!$F$30,4) -> 0 | AR173: =ROUND(AL173*Beregn1!$F$30,4) -> 0 | AS173: =ROUND(AM173*Beregn1!$F$30,4) -> 0 | AT173: =ROUND(AN173*Beregn1!$F$30,4) -> 0
AF174: =IF(OR(AC174=0,AC174=-1),Beregn1!$E$36,AC174) -> 41 | AG174: TRUE | AH174: =IF(AND(AF174=41,AG174=FALSE),Beregn1!$E$36,AC174) -> 0 | AJ174: 0 | AK174: 0 | AL174: 0 | AM174: 0 | AN174: 0 | AP174: =ROUND(AJ174*Beregn1!$F$30,4) -> 0 | AQ174: =ROUND(AK174*Beregn1!$F$30,4) -> 0 | AR174: =ROUND(AL174*Beregn1!$F$30,4) -> 0 | AS174: =ROUND(AM174*Beregn1!$F$30,4) -> 0 | AT174: =ROUND(AN174*Beregn1!$F$30,4) -> 0
AF175: =IF(OR(AC175=0,AC175=-1),Beregn1!$E$36,AC175) -> 41 | AG175: TRUE | AH175: =IF(AND(AF175=41,AG175=FALSE),Beregn1!$E$36,AC175) -> 0 | AJ175: 0 | AK175: 0 | AL175: 0 | AM175: 0 | AN175: 0 | AP175: =ROUND(AJ175*Beregn1!$F$30,4) -> 0 | AQ175: =ROUND(AK175*Beregn1!$F$30,4) -> 0 | AR175: =ROUND(AL175*Beregn1!$F$30,4) -> 0 | AS175: =ROUND(AM175*Beregn1!$F$30,4) -> 0 | AT175: =ROUND(AN175*Beregn1!$F$30,4) -> 0
AF176: =IF(OR(AC176=0,AC176=-1),Beregn1!$E$36,AC176) -> 41 | AG176: TRUE | AH176: =IF(AND(AF176=41,AG176=FALSE),Beregn1!$E$36,AC176) -> 0 | AJ176: 0 | AK176: 0 | AL176: 0 | AM176: 0 | AN176: 0 | AP176: =ROUND(AJ176*Beregn1!$F$30,4) -> 0 | AQ176: =ROUND(AK176*Beregn1!$F$30,4) -> 0 | AR176: =ROUND(AL176*Beregn1!$F$30,4) -> 0 | AS176: =ROUND(AM176*Beregn1!$F$30,4) -> 0 | AT176: =ROUND(AN176*Beregn1!$F$30,4) -> 0
AF177: =IF(OR(AC177=0,AC177=-1),Beregn1!$E$36,AC177) -> 41 | AG177: TRUE | AH177: =IF(AND(AF177=41,AG177=FALSE),Beregn1!$E$36,AC177) -> 0 | AJ177: 0 | AK177: 0 | AL177: 0 | AM177: 0 | AN177: 0 | AP177: =ROUND(AJ177*Beregn1!$F$30,4) -> 0 | AQ177: =ROUND(AK177*Beregn1!$F$30,4) -> 0 | AR177: =ROUND(AL177*Beregn1!$F$30,4) -> 0 | AS177: =ROUND(AM177*Beregn1!$F$30,4) -> 0 | AT177: =ROUND(AN177*Beregn1!$F$30,4) -> 0
AF178: =IF(OR(AC178=0,AC178=-1),Beregn1!$E$36,AC178) -> 41 | AG178: TRUE | AH178: =IF(AND(AF178=41,AG178=FALSE),Beregn1!$E$36,AC178) -> 0 | AJ178: 0 | AK178: 0 | AL178: 0 | AM178: 0 | AN178: 0 | AP178: =ROUND(AJ178*Beregn1!$F$30,4) -> 0 | AQ178: =ROUND(AK178*Beregn1!$F$30,4) -> 0 | AR178: =ROUND(AL178*Beregn1!$F$30,4) -> 0 | AS178: =ROUND(AM178*Beregn1!$F$30,4) -> 0 | AT178: =ROUND(AN178*Beregn1!$F$30,4) -> 0
AF179: =IF(OR(AC179=0,AC179=-1),Beregn1!$E$36,AC179) -> 41 | AG179: TRUE | AH179: =IF(AND(AF179=41,AG179=FALSE),Beregn1!$E$36,AC179) -> 0 | AJ179: 0 | AK179: 0 | AL179: 0 | AM179: 0 | AN179: 0 | AP179: =ROUND(AJ179*Beregn1!$F$30,4) -> 0 | AQ179: =ROUND(AK179*Beregn1!$F$30,4) -> 0 | AR179: =ROUND(AL179*Beregn1!$F$30,4) -> 0 | AS179: =ROUND(AM179*Beregn1!$F$30,4) -> 0 | AT179: =ROUND(AN179*Beregn1!$F$30,4) -> 0
AF180: =IF(OR(AC180=0,AC180=-1),Beregn1!$E$36,AC180) -> 41 | AG180: TRUE | AH180: =IF(AND(AF180=41,AG180=FALSE),Beregn1!$E$36,AC180) -> 0 | AJ180: 0 | AK180: 0 | AL180: 0 | AM180: 0 | AN180: 0 | AP180: =ROUND(AJ180*Beregn1!$F$30,4) -> 0 | AQ180: =ROUND(AK180*Beregn1!$F$30,4) -> 0 | AR180: =ROUND(AL180*Beregn1!$F$30,4) -> 0 | AS180: =ROUND(AM180*Beregn1!$F$30,4) -> 0 | AT180: =ROUND(AN180*Beregn1!$F$30,4) -> 0
AF181: =IF(OR(AC181=0,AC181=-1),Beregn1!$E$36,AC181) -> 41 | AG181: TRUE | AH181: =IF(AND(AF181=41,AG181=FALSE),Beregn1!$E$36,AC181) -> 0 | AJ181: 0 | AK181: 0 | AL181: 0 | AM181: 0 | AN181: 0 | AP181: =ROUND(AJ181*Beregn1!$F$30,4) -> 0 | AQ181: =ROUND(AK181*Beregn1!$F$30,4) -> 0 | AR181: =ROUND(AL181*Beregn1!$F$30,4) -> 0 | AS181: =ROUND(AM181*Beregn1!$F$30,4) -> 0 | AT181: =ROUND(AN181*Beregn1!$F$30,4) -> 0
AF182: =IF(OR(AC182=0,AC182=-1),Beregn1!$E$36,AC182) -> 41 | AG182: TRUE | AH182: =IF(AND(AF182=41,AG182=FALSE),Beregn1!$E$36,AC182) -> 0 | AJ182: 0 | AK182: 0 | AL182: 0 | AM182: 0 | AN182: 0 | AP182: =ROUND(AJ182*Beregn1!$F$30,4) -> 0 | AQ182: =ROUND(AK182*Beregn1!$F$30,4) -> 0 | AR182: =ROUND(AL182*Beregn1!$F$30,4) -> 0 | AS182: =ROUND(AM182*Beregn1!$F$30,4) -> 0 | AT182: =ROUND(AN182*Beregn1!$F$30,4) -> 0
AF183: =IF(OR(AC183=0,AC183=-1),Beregn1!$E$36,AC183) -> 41 | AG183: TRUE | AH183: =IF(AND(AF183=41,AG183=FALSE),Beregn1!$E$36,AC183) -> 0 | AJ183: 0 | AK183: 0 | AL183: 0 | AM183: 0 | AN183: 0 | AP183: =ROUND(AJ183*Beregn1!$F$30,4) -> 0 | AQ183: =ROUND(AK183*Beregn1!$F$30,4) -> 0 | AR183: =ROUND(AL183*Beregn1!$F$30,4) -> 0 | AS183: =ROUND(AM183*Beregn1!$F$30,4) -> 0 | AT183: =ROUND(AN183*Beregn1!$F$30,4) -> 0
AF184: =IF(OR(AC184=0,AC184=-1),Beregn1!$E$36,AC184) -> 41 | AG184: TRUE | AH184: =IF(AND(AF184=41,AG184=FALSE),Beregn1!$E$36,AC184) -> 0 | AJ184: 0 | AK184: 0 | AL184: 0 | AM184: 0 | AN184: 0 | AP184: =ROUND(AJ184*Beregn1!$F$30,4) -> 0 | AQ184: =ROUND(AK184*Beregn1!$F$30,4) -> 0 | AR184: =ROUND(AL184*Beregn1!$F$30,4) -> 0 | AS184: =ROUND(AM184*Beregn1!$F$30,4) -> 0 | AT184: =ROUND(AN184*Beregn1!$F$30,4) -> 0
AF185: =IF(OR(AC185=0,AC185=-1),Beregn1!$E$36,AC185) -> 41 | AG185: TRUE | AH185: =IF(AND(AF185=41,AG185=FALSE),Beregn1!$E$36,AC185) -> 0 | AJ185: 0 | AK185: 0 | AL185: 0 | AM185: 0 | AN185: 0 | AP185: =ROUND(AJ185*Beregn1!$F$30,4) -> 0 | AQ185: =ROUND(AK185*Beregn1!$F$30,4) -> 0 | AR185: =ROUND(AL185*Beregn1!$F$30,4) -> 0 | AS185: =ROUND(AM185*Beregn1!$F$30,4) -> 0 | AT185: =ROUND(AN185*Beregn1!$F$30,4) -> 0
AF186: =IF(OR(AC186=0,AC186=-1),Beregn1!$E$36,AC186) -> 41 | AG186: TRUE | AH186: =IF(AND(AF186=41,AG186=FALSE),Beregn1!$E$36,AC186) -> 0 | AJ186: 0 | AK186: 0 | AL186: 0 | AM186: 0 | AN186: 0 | AP186: =ROUND(AJ186*Beregn1!$F$30,4) -> 0 | AQ186: =ROUND(AK186*Beregn1!$F$30,4) -> 0 | AR186: =ROUND(AL186*Beregn1!$F$30,4) -> 0 | AS186: =ROUND(AM186*Beregn1!$F$30,4) -> 0 | AT186: =ROUND(AN186*Beregn1!$F$30,4) -> 0
AF187: =IF(OR(AC187=0,AC187=-1),Beregn1!$E$36,AC187) -> 41 | AG187: TRUE | AH187: =IF(AND(AF187=41,AG187=FALSE),Beregn1!$E$36,AC187) -> 0 | AJ187: 0 | AK187: 0 | AL187: 0 | AM187: 0 | AN187: 0 | AP187: =ROUND(AJ187*Beregn1!$F$30,4) -> 0 | AQ187: =ROUND(AK187*Beregn1!$F$30,4) -> 0 | AR187: =ROUND(AL187*Beregn1!$F$30,4) -> 0 | AS187: =ROUND(AM187*Beregn1!$F$30,4) -> 0 | AT187: =ROUND(AN187*Beregn1!$F$30,4) -> 0
AF188: =IF(OR(AC188=0,AC188=-1),Beregn1!$E$36,AC188) -> 41 | AG188: TRUE | AH188: =IF(AND(AF188=41,AG188=FALSE),Beregn1!$E$36,AC188) -> 0 | AJ188: 0 | AK188: 0 | AL188: 0 | AM188: 0 | AN188: 0 | AP188: =ROUND(AJ188*Beregn1!$F$30,4) -> 0 | AQ188: =ROUND(AK188*Beregn1!$F$30,4) -> 0 | AR188: =ROUND(AL188*Beregn1!$F$30,4) -> 0 | AS188: =ROUND(AM188*Beregn1!$F$30,4) -> 0 | AT188: =ROUND(AN188*Beregn1!$F$30,4) -> 0
AF189: =IF(OR(AC189=0,AC189=-1),Beregn1!$E$36,AC189) -> 41 | AG189: TRUE | AH189: =IF(AND(AF189=41,AG189=FALSE),Beregn1!$E$36,AC189) -> 0 | AJ189: 0 | AK189: 0 | AL189: 0 | AM189: 0 | AN189: 0 | AP189: =ROUND(AJ189*Beregn1!$F$30,4) -> 0 | AQ189: =ROUND(AK189*Beregn1!$F$30,4) -> 0 | AR189: =ROUND(AL189*Beregn1!$F$30,4) -> 0 | AS189: =ROUND(AM189*Beregn1!$F$30,4) -> 0 | AT189: =ROUND(AN189*Beregn1!$F$30,4) -> 0
AF190: =IF(OR(AC190=0,AC190=-1),Beregn1!$E$36,AC190) -> 41 | AG190: TRUE | AH190: =IF(AND(AF190=41,AG190=FALSE),Beregn1!$E$36,AC190) -> 0 | AJ190: 0 | AK190: 0 | AL190: 0 | AM190: 0 | AN190: 0 | AP190: =ROUND(AJ190*Beregn1!$F$30,4) -> 0 | AQ190: =ROUND(AK190*Beregn1!$F$30,4) -> 0 | AR190: =ROUND(AL190*Beregn1!$F$30,4) -> 0 | AS190: =ROUND(AM190*Beregn1!$F$30,4) -> 0 | AT190: =ROUND(AN190*Beregn1!$F$30,4) -> 0
AF191: =IF(OR(AC191=0,AC191=-1),Beregn1!$E$36,AC191) -> 41 | AG191: TRUE | AH191: =IF(AND(AF191=41,AG191=FALSE),Beregn1!$E$36,AC191) -> 0 | AJ191: 0 | AK191: 0 | AL191: 0 | AM191: 0 | AN191: 0 | AP191: =ROUND(AJ191*Beregn1!$F$30,4) -> 0 | AQ191: =ROUND(AK191*Beregn1!$F$30,4) -> 0 | AR191: =ROUND(AL191*Beregn1!$F$30,4) -> 0 | AS191: =ROUND(AM191*Beregn1!$F$30,4) -> 0 | AT191: =ROUND(AN191*Beregn1!$F$30,4) -> 0
AF192: =IF(OR(AC192=0,AC192=-1),Beregn1!$E$36,AC192) -> 41 | AG192: TRUE | AH192: =IF(AND(AF192=41,AG192=FALSE),Beregn1!$E$36,AC192) -> 0 | AJ192: 0 | AK192: 0 | AL192: 0 | AM192: 0 | AN192: 0 | AP192: =ROUND(AJ192*Beregn1!$F$30,4) -> 0 | AQ192: =ROUND(AK192*Beregn1!$F$30,4) -> 0 | AR192: =ROUND(AL192*Beregn1!$F$30,4) -> 0 | AS192: =ROUND(AM192*Beregn1!$F$30,4) -> 0 | AT192: =ROUND(AN192*Beregn1!$F$30,4) -> 0
AF193: =IF(OR(AC193=0,AC193=-1),Beregn1!$E$36,AC193) -> 41 | AG193: TRUE | AH193: =IF(AND(AF193=41,AG193=FALSE),Beregn1!$E$36,AC193) -> 0 | AJ193: 0 | AK193: 0 | AL193: 0 | AM193: 0 | AN193: 0 | AP193: =ROUND(AJ193*Beregn1!$F$30,4) -> 0 | AQ193: =ROUND(AK193*Beregn1!$F$30,4) -> 0 | AR193: =ROUND(AL193*Beregn1!$F$30,4) -> 0 | AS193: =ROUND(AM193*Beregn1!$F$30,4) -> 0 | AT193: =ROUND(AN193*Beregn1!$F$30,4) -> 0
AF194: =IF(OR(AC194=0,AC194=-1),Beregn1!$E$36,AC194) -> 41 | AG194: TRUE | AH194: =IF(AND(AF194=41,AG194=FALSE),Beregn1!$E$36,AC194) -> 0 | AJ194: =INDEX($T194:$AD194,MATCH("Evaporated",$T$1:$AD$1,0)) -> 0 | AK194: =INDEX($T194:$AD194,MATCH("Drained",$T$1:$AD$1,0)) -> 0 | AL194: =INDEX($T194:$AD194,MATCH("Overflow",$T$1:$AD$1,0)) -> 0 | AM194: =AH194 -> 0 | AN194: =INDEX($T194:$AD194,MATCH("Available_Volume",$T$1:$AD$1,0)) -> 0 | AP194: =ROUND(AJ194*Beregn1!$F$30,4) -> 0 | AQ194: =ROUND(AK194*Beregn1!$F$30,4) -> 0 | AR194: =ROUND(AL194*Beregn1!$F$30,4) -> 0 | AS194: =ROUND(AM194*Beregn1!$F$30,4) -> 0 | AT194: =ROUND(AN194*Beregn1!$F$30,4) -> 0
AF195: =IF(OR(AC195=0,AC195=-1),Beregn1!$E$36,AC195) -> 41 | AG195: =ISBLANK(AC195) -> TRUE | AH195: =IF(AND(AF195=41,AG195=FALSE),Beregn1!$E$36,AC195) -> 0 | AJ195: 0 | AK195: 0 | AL195: 0 | AM195: 0 | AN195: 0 | AP195: =ROUND(AJ195*Beregn1!$F$30,4) -> 0 | AQ195: =ROUND(AK195*Beregn1!$F$30,4) -> 0 | AR195: =ROUND(AL195*Beregn1!$F$30,4) -> 0 | AS195: =ROUND(AM195*Beregn1!$F$30,4) -> 0 | AT195: =ROUND(AN195*Beregn1!$F$30,4) -> 0
AF196: =IF(OR(AC196=0,AC196=-1),Beregn1!$E$36,AC196) -> 41 | AG196: TRUE | AH196: =IF(AND(AF196=41,AG196=FALSE),Beregn1!$E$36,AC196) -> 0 | AJ196: 0 | AK196: 0 | AL196: 0 | AM196: 0 | AN196: 0 | AP196: =ROUND(AJ196*Beregn1!$F$30,4) -> 0 | AQ196: =ROUND(AK196*Beregn1!$F$30,4) -> 0 | AR196: =ROUND(AL196*Beregn1!$F$30,4) -> 0 | AS196: =ROUND(AM196*Beregn1!$F$30,4) -> 0 | AT196: =ROUND(AN196*Beregn1!$F$30,4) -> 0
AF197: =IF(OR(AC197=0,AC197=-1),Beregn1!$E$36,AC197) -> 41 | AG197: TRUE | AH197: =IF(AND(AF197=41,AG197=FALSE),Beregn1!$E$36,AC197) -> 0 | AJ197: 0 | AK197: 0 | AL197: 0 | AM197: 0 | AN197: 0 | AP197: =ROUND(AJ197*Beregn1!$F$30,4) -> 0 | AQ197: =ROUND(AK197*Beregn1!$F$30,4) -> 0 | AR197: =ROUND(AL197*Beregn1!$F$30,4) -> 0 | AS197: =ROUND(AM197*Beregn1!$F$30,4) -> 0 | AT197: =ROUND(AN197*Beregn1!$F$30,4) -> 0
AF198: =IF(OR(AC198=0,AC198=-1),Beregn1!$E$36,AC198) -> 41 | AG198: TRUE | AH198: =IF(AND(AF198=41,AG198=FALSE),Beregn1!$E$36,AC198) -> 0 | AJ198: 0 | AK198: 0 | AL198: 0 | AM198: 0 | AN198: 0 | AP198: =ROUND(AJ198*Beregn1!$F$30,4) -> 0 | AQ198: =ROUND(AK198*Beregn1!$F$30,4) -> 0 | AR198: =ROUND(AL198*Beregn1!$F$30,4) -> 0 | AS198: =ROUND(AM198*Beregn1!$F$30,4) -> 0 | AT198: =ROUND(AN198*Beregn1!$F$30,4) -> 0
AF199: =IF(OR(AC199=0,AC199=-1),Beregn1!$E$36,AC199) -> 41 | AG199: TRUE | AH199: =IF(AND(AF199=41,AG199=FALSE),Beregn1!$E$36,AC199) -> 0 | AJ199: 0 | AK199: 0 | AL199: 0 | AM199: 0 | AN199: 0 | AP199: =ROUND(AJ199*Beregn1!$F$30,4) -> 0 | AQ199: =ROUND(AK199*Beregn1!$F$30,4) -> 0 | AR199: =ROUND(AL199*Beregn1!$F$30,4) -> 0 | AS199: =ROUND(AM199*Beregn1!$F$30,4) -> 0 | AT199: =ROUND(AN199*Beregn1!$F$30,4) -> 0
AF200: =IF(OR(AC200=0,AC200=-1),Beregn1!$E$36,AC200) -> 41 | AG200: TRUE | AH200: =IF(AND(AF200=41,AG200=FALSE),Beregn1!$E$36,AC200) -> 0 | AJ200: 0 | AK200: 0 | AL200: 0 | AM200: 0 | AN200: 0 | AP200: =ROUND(AJ200*Beregn1!$F$30,4) -> 0 | AQ200: =ROUND(AK200*Beregn1!$F$30,4) -> 0 | AR200: =ROUND(AL200*Beregn1!$F$30,4) -> 0 | AS200: =ROUND(AM200*Beregn1!$F$30,4) -> 0 | AT200: =ROUND(AN200*Beregn1!$F$30,4) -> 0
... 240 more rows

Sheet BR3_d (hidden)
A1: K | B1: A_ratio | C1: surface_depth | D1: soil_depth | E1: storage_depth | F1: drain_offset | H1: Dataudtræk, 1 ↓ | I1: K | J1: A_ratio | K1: surface_depth | L1: soil_depth | M1: storage_depth | N1: drain_coefficient | O1: drain_offset | P1: Infiltrated | Q1: Evaporated | R1: Drained | S1: Overflow | T1: T_overflow | U1: Available_volume | V1: Dataudtræk, 2 ↓ | W1: K | X1: A_ratio | Y1: surface_depth | Z1: soil_depth | AA1: storage_depth | AB1: drain_coefficient | AC1: drain_offset | AD1: Infiltrated | AE1: Evaporated | AF1: Drained | AG1: Overflow | AH1: T_overflow | AI1: Available_volume | AJ1: Ret T_overflow ↓ | AK1: =AH1 -> T_overflow | AL1: =AH1 -> T_overflow | AM1: =AH1 -> T_overflow | AN1: Output ↓ | AO1: =INDEX($W1:$AI1,MATCH("Infiltrated",$W$1:$AI$1,0)) -> Infiltrated | AP1: =INDEX($W1:$AI1,MATCH("Evaporated",$W$1:$AI$1,0)) -> Evaporated | AQ1: =INDEX($W1:$AI1,MATCH("Drained",$W$1:$AI$1,0)) -> Drained | AR1: =INDEX($W1:$AI1,MATCH("Overflow",$W$1:$AI$1,0)) -> Overflow | AS1: =AM1 -> T_overflow | AT1: =INDEX($W1:$AI1,MATCH("Available_Volume",$W$1:$AI$1,0)) -> Available_volume | AU1: Lineær interpolation ↓ | AV1: Infiltrated_w | AW1: Evaporated_w | AX1: Drained_w | AY1: Overflow_w | AZ1: T_overflow_w | BA1: Available_Volume_w | BC1: Infiltrated_sum | BD1: Evaporated_sum | BE1: Drained_sum | BF1: Overflow_sum | BG1: T_overflow_sum | BH1: Available_Volume_sum
A2: =Beregn1!$B$105 -> 1 | B2: =Beregn1!$C$105 -> 0.15 | C2: =Beregn1!$D$105 -> 300 | D2: =Beregn1!$E$105 -> 600 | E2: =Beregn1!$F$105 -> 2000 | F2: =Beregn1!$G$105 -> 500 | I2: 1 | J2: 0.1 | K2: 300 | L2: 450 | M2: 2000 | N2: 18 | O2: 0 | P2: 0.09 | Q2: 0.3 | R2: 0.61 | S2: 0 | T2: 20.494 | U2: 0.94 | W2: 1 | X2: 0.1 | Y2: 300 | Z2: 450 | AA2: 2000 | AB2: 18 | AC2: 0 | AD2: 0.09 | AE2: 0.3 | AF2: 0.61 | AG2: 0 | AH2: 20.494 | AI2: 0.94 | AK2: =IF(OR(AH2=0,AH2=-1),Beregn1!$E$36,AH2) -> 20.494 | AL2: =ISBLANK(AH2) -> FALSE | AM2: =IF(AND(AK2=41,AL2=FALSE),Beregn1!$E$36,AH2) -> 20.494 | AO2: =INDEX($W2:$AI2,MATCH("Infiltrated",$W$1:$AI$1,0)) -> 0.09 | AP2: =INDEX($W2:$AI2,MATCH("Evaporated",$W$1:$AI$1,0)) -> 0.3 | AQ2: =INDEX($W2:$AI2,MATCH("Drained",$W$1:$AI$1,0)) -> 0.61 | AR2: =INDEX($W2:$AI2,MATCH("Overflow",$W$1:$AI$1,0)) -> 0 | AS2: =AM2 -> 20.494 | AT2: =INDEX($W2:$AI2,MATCH("Available_Volume",$W$1:$AI$1,0)) -> 0.94 | AV2: =ROUND(AO2*Beregn1!$G$30,4) -> 0.0056 | AW2: =ROUND(AP2*Beregn1!$G$30,4) -> 0.0188 | AX2: =ROUND(AQ2*Beregn1!$G$30,4) -> 0.0381 | AY2: =ROUND(AR2*Beregn1!$G$30,4) -> 0 | AZ2: =ROUND(AS2*Beregn1!$G$30,4) -> 1.2809 | BA2: =ROUND(AT2*Beregn1!$G$30,4) -> 0.0588 | BC2: =SUM(AV2:AV440) -> 0.3494 | BD2: 0.3152 | BE2: 0.3358 | BF2: 0 | BG2: 30.7416 | BH2: 0.929
A3: =Beregn1!$B$105 -> 1 | B3: =Beregn1!$C$105 -> 0.15 | C3: =Beregn1!$D$105 -> 300 | D3: =Beregn1!$E$105 -> 600 | E3: =Beregn1!$F$105 -> 2000 | F3: =Beregn1!$G$106 -> 0 | I3: 1 | J3: 0.1 | K3: 300 | L3: 450 | M3: 2000 | N3: 18 | O3: 500 | P3: 0.61 | Q3: 0.3 | R3: 0.09 | S3: 0 | T3: 20.494 | U3: 0.93 | W3: 1 | X3: 0.1 | Y3: 300 | Z3: 450 | AA3: 2000 | AB3: 18 | AC3: 500 | AD3: 0.61 | AE3: 0.3 | AF3: 0.09 | AG3: 0 | AH3: 20.494 | AI3: 0.93 | AK3: =IF(OR(AH3=0,AH3=-1),Beregn1!$E$36,AH3) -> 20.494 | AL3: =ISBLANK(AH3) -> FALSE | AM3: =IF(AND(AK3=41,AL3=FALSE),Beregn1!$E$36,AH3) -> 20.494 | AO3: 0.61 | AP3: 0.3 | AQ3: 0.09 | AR3: 0 | AS3: =AM3 -> 20.494 | AT3: 0.93 | AV3: =ROUND(AO3*Beregn1!$G$30,4) -> 0.0381 | AW3: =ROUND(AP3*Beregn1!$G$30,4) -> 0.0188 | AX3: =ROUND(AQ3*Beregn1!$G$30,4) -> 0.0056 | AY3: =ROUND(AR3*Beregn1!$G$30,4) -> 0 | AZ3: =ROUND(AS3*Beregn1!$G$30,4) -> 1.2809 | BA3: =ROUND(AT3*Beregn1!$G$30,4) -> 0.0581
A4: =Beregn1!$B$105 -> 1 | B4: =Beregn1!$C$105 -> 0.15 | C4: =Beregn1!$D$105 -> 300 | D4: =Beregn1!$E$105 -> 600 | E4: =Beregn1!$F$106 -> 0 | F4: =Beregn1!$G$105 -> 500 | I4: 1 | J4: 0.1 | K4: 300 | L4: 450 | M4: 2000 | N4: 36 | O4: 0 | P4: 0.09 | Q4: 0.3 | R4: 0.61 | S4: 0 | T4: 20.494 | U4: 0.94 | W4: 1 | X4: 0.1 | Y4: 300 | Z4: 600 | AA4: 2000 | AB4: 18 | AC4: 0 | AD4: 0.09 | AE4: 0.3 | AF4: 0.61 | AG4: 0 | AH4: 20.494 | AI4: 0.93 | AK4: =IF(OR(AH4=0,AH4=-1),Beregn1!$E$36,AH4) -> 20.494 | AL4: FALSE | AM4: =IF(AND(AK4=41,AL4=FALSE),Beregn1!$E$36,AH4) -> 20.494 | AO4: 0.09 | AP4: 0.3 | AQ4: 0.61 | AR4: 0 | AS4: 20.494 | AT4: 0.93 | AV4: =ROUND(AO4*Beregn1!$G$30,4) -> 0.0056 | AW4: =ROUND(AP4*Beregn1!$G$30,4) -> 0.0188 | AX4: =ROUND(AQ4*Beregn1!$G$30,4) -> 0.0381 | AY4: =ROUND(AR4*Beregn1!$G$30,4) -> 0 | AZ4: =ROUND(AS4*Beregn1!$G$30,4) -> 1.2809 | BA4: =ROUND(AT4*Beregn1!$G$30,4) -> 0.0581
A5: =Beregn1!$B$105 -> 1 | B5: =Beregn1!$C$105 -> 0.15 | C5: =Beregn1!$D$105 -> 300 | D5: =Beregn1!$E$105 -> 600 | E5: =Beregn1!$F$106 -> 0 | F5: =Beregn1!$G$106 -> 0 | I5: 1 | J5: 0.1 | K5: 300 | L5: 450 | M5: 2000 | N5: 36 | O5: 500 | P5: 0.61 | Q5: 0.3 | R5: 0.09 | S5: 0 | T5: 20.494 | U5: 0.93 | W5: 1 | X5: 0.1 | Y5: 300 | Z5: 600 | AA5: 2000 | AB5: 18 | AC5: 500 | AD5: 0.61 | AE5: 0.3 | AF5: 0.09 | AG5: 0 | AH5: 20.494 | AI5: 0.92 | AK5: =IF(OR(AH5=0,AH5=-1),Beregn1!$E$36,AH5) -> 20.494 | AL5: FALSE | AM5: =IF(AND(AK5=41,AL5=FALSE),Beregn1!$E$36,AH5) -> 20.494 | AO5: 0.61 | AP5: 0.3 | AQ5: 0.09 | AR5: 0 | AS5: 20.494 | AT5: 0.92 | AV5: =ROUND(AO5*Beregn1!$G$30,4) -> 0.0381 | AW5: =ROUND(AP5*Beregn1!$G$30,4) -> 0.0188 | AX5: =ROUND(AQ5*Beregn1!$G$30,4) -> 0.0056 | AY5: =ROUND(AR5*Beregn1!$G$30,4) -> 0 | AZ5: =ROUND(AS5*Beregn1!$G$30,4) -> 1.2809 | BA5: =ROUND(AT5*Beregn1!$G$30,4) -> 0.0575
A6: =Beregn1!$B$105 -> 1 | B6: =Beregn1!$C$105 -> 0.15 | C6: =Beregn1!$D$105 -> 300 | D6: =Beregn1!$E$106 -> 450 | E6: =Beregn1!$F$105 -> 2000 | F6: =Beregn1!$G$105 -> 500 | I6: 1 | J6: 0.1 | K6: 300 | L6: 450 | M6: 2000 | N6: 72 | O6: 0 | P6: 0.09 | Q6: 0.3 | R6: 0.61 | S6: 0 | T6: 20.494 | U6: 0.94 | W6: 1 | X6: 0.15 | Y6: 300 | Z6: 450 | AA6: 2000 | AB6: 12 | AC6: 0 | AD6: 0.12 | AE6: 0.33 | AF6: 0.55 | AG6: 0 | AH6: 40.989 | AI6: 0.94 | AK6: =IF(OR(AH6=0,AH6=-1),Beregn1!$E$36,AH6) -> 40.989 | AL6: FALSE | AM6: =IF(AND(AK6=41,AL6=FALSE),Beregn1!$E$36,AH6) -> 40.989 | AO6: 0.12 | AP6: 0.33 | AQ6: 0.55 | AR6: 0 | AS6: 40.989 | AT6: 0.94 | AV6: =ROUND(AO6*Beregn1!$G$30,4) -> 0.0075 | AW6: =ROUND(AP6*Beregn1!$G$30,4) -> 0.0206 | AX6: =ROUND(AQ6*Beregn1!$G$30,4) -> 0.0344 | AY6: =ROUND(AR6*Beregn1!$G$30,4) -> 0 | AZ6: =ROUND(AS6*Beregn1!$G$30,4) -> 2.5618 | BA6: =ROUND(AT6*Beregn1!$G$30,4) -> 0.0588
A7: =Beregn1!$B$105 -> 1 | B7: =Beregn1!$C$105 -> 0.15 | C7: =Beregn1!$D$105 -> 300 | D7: =Beregn1!$E$106 -> 450 | E7: =Beregn1!$F$105 -> 2000 | F7: =Beregn1!$G$106 -> 0 | I7: 1 | J7: 0.1 | K7: 300 | L7: 450 | M7: 2000 | N7: 72 | O7: 500 | P7: 0.61 | Q7: 0.3 | R7: 0.09 | S7: 0 | T7: 20.494 | U7: 0.93 | W7: 1 | X7: 0.15 | Y7: 300 | Z7: 450 | AA7: 2000 | AB7: 12 | AC7: 500 | AD7: 0.63 | AE7: 0.33 | AF7: 0.03 | AG7: 0 | AH7: 40.989 | AI7: 0.94 | AK7: =IF(OR(AH7=0,AH7=-1),Beregn1!$E$36,AH7) -> 40.989 | AL7: FALSE | AM7: =IF(AND(AK7=41,AL7=FALSE),Beregn1!$E$36,AH7) -> 40.989 | AO7: 0.63 | AP7: 0.33 | AQ7: 0.03 | AR7: 0 | AS7: 40.989 | AT7: 0.94 | AV7: =ROUND(AO7*Beregn1!$G$30,4) -> 0.0394 | AW7: =ROUND(AP7*Beregn1!$G$30,4) -> 0.0206 | AX7: =ROUND(AQ7*Beregn1!$G$30,4) -> 0.0019 | AY7: =ROUND(AR7*Beregn1!$G$30,4) -> 0 | AZ7: =ROUND(AS7*Beregn1!$G$30,4) -> 2.5618 | BA7: =ROUND(AT7*Beregn1!$G$30,4) -> 0.0588
A8: =Beregn1!$B$105 -> 1 | B8: =Beregn1!$C$105 -> 0.15 | C8: =Beregn1!$D$105 -> 300 | D8: =Beregn1!$E$106 -> 450 | E8: =Beregn1!$F$106 -> 0 | F8: =Beregn1!$G$105 -> 500 | I8: 1 | J8: 0.1 | K8: 300 | L8: 450 | M8: 2000 | N8: 180 | O8: 0 | P8: 0.09 | Q8: 0.3 | R8: 0.61 | S8: 0 | T8: 20.494 | U8: 0.94 | W8: 1 | X8: 0.15 | Y8: 300 | Z8: 600 | AA8: 2000 | AB8: 12 | AC8: 0 | AD8: 0.12 | AE8: 0.33 | AF8: 0.55 | AG8: 0 | AH8: 40.989 | AI8: 0.93 | AK8: =IF(OR(AH8=0,AH8=-1),Beregn1!$E$36,AH8) -> 40.989 | AL8: FALSE | AM8: =IF(AND(AK8=41,AL8=FALSE),Beregn1!$E$36,AH8) -> 40.989 | AO8: 0.12 | AP8: 0.33 | AQ8: 0.55 | AR8: 0 | AS8: 40.989 | AT8: 0.93 | AV8: =ROUND(AO8*Beregn1!$G$30,4) -> 0.0075 | AW8: =ROUND(AP8*Beregn1!$G$30,4) -> 0.0206 | AX8: =ROUND(AQ8*Beregn1!$G$30,4) -> 0.0344 | AY8: =ROUND(AR8*Beregn1!$G$30,4) -> 0 | AZ8: =ROUND(AS8*Beregn1!$G$30,4) -> 2.5618 | BA8: =ROUND(AT8*Beregn1!$G$30,4) -> 0.0581
A9: =Beregn1!$B$105 -> 1 | B9: =Beregn1!$C$105 -> 0.15 | C9: =Beregn1!$D$105 -> 300 | D9: =Beregn1!$E$106 -> 450 | E9: =Beregn1!$F$106 -> 0 | F9: =Beregn1!$G$106 -> 0 | I9: 1 | J9: 0.1 | K9: 300 | L9: 450 | M9: 2000 | N9: 180 | O9: 500 | P9: 0.61 | Q9: 0.3 | R9: 0.09 | S9: 0 | T9: 20.494 | U9: 0.93 | W9: 1 | X9: 0.15 | Y9: 300 | Z9: 600 | AA9: 2000 | AB9: 12 | AC9: 500 | AD9: 0.63 | AE9: 0.33 | AF9: 0.03 | AG9: 0 | AH9: 40.989 | AI9: 0.92 | AK9: =IF(OR(AH9=0,AH9=-1),Beregn1!$E$36,AH9) -> 40.989 | AL9: FALSE | AM9: =IF(AND(AK9=41,AL9=FALSE),Beregn1!$E$36,AH9) -> 40.989 | AO9: 0.63 | AP9: 0.33 | AQ9: 0.03 | AR9: 0 | AS9: 40.989 | AT9: 0.92 | AV9: =ROUND(AO9*Beregn1!$G$30,4) -> 0.0394 | AW9: =ROUND(AP9*Beregn1!$G$30,4) -> 0.0206 | AX9: =ROUND(AQ9*Beregn1!$G$30,4) -> 0.0019 | AY9: =ROUND(AR9*Beregn1!$G$30,4) -> 0 | AZ9: =ROUND(AS9*Beregn1!$G$30,4) -> 2.5618 | BA9: =ROUND(AT9*Beregn1!$G$30,4) -> 0.0575
A10: =Beregn1!$B$105 -> 1 | B10: =Beregn1!$C$105 -> 0.15 | C10: =Beregn1!$D$106 -> 0 | D10: =Beregn1!$E$105 -> 600 | E10: =Beregn1!$F$105 -> 2000 | F10: =Beregn1!$G$105 -> 500 | I10: 1 | J10: 0.1 | K10: 300 | L10: 450 | M10: 2000 | N10: 360 | O10: 0 | P10: 0.09 | Q10: 0.3 | R10: 0.61 | S10: 0 | T10: 20.494 | U10: 0.94 | W10: 0.7 | X10: 0.1 | Y10: 300 | Z10: 450 | AA10: 2000 | AB10: 18 | AC10: 0 | AD10: 0.07 | AE10: 0.3 | AF10: 0.64 | AG10: 0 | AH10: 20.494 | AI10: 0.94 | AK10: =IF(OR(AH10=0,AH10=-1),Beregn1!$E$36,AH10) -> 20.494 | AL10: FALSE | AM10: =IF(AND(AK10=41,AL10=FALSE),Beregn1!$E$36,AH10) -> 20.494 | AO10: 0.07 | AP10: 0.3 | AQ10: 0.64 | AR10: 0 | AS10: 20.494 | AT10: 0.94 | AV10: =ROUND(AO10*Beregn1!$G$30,4) -> 0.0044 | AW10: =ROUND(AP10*Beregn1!$G$30,4) -> 0.0188 | AX10: =ROUND(AQ10*Beregn1!$G$30,4) -> 0.04 | AY10: =ROUND(AR10*Beregn1!$G$30,4) -> 0 | AZ10: =ROUND(AS10*Beregn1!$G$30,4) -> 1.2809 | BA10: =ROUND(AT10*Beregn1!$G$30,4) -> 0.0588
A11: =Beregn1!$B$105 -> 1 | B11: =Beregn1!$C$105 -> 0.15 | C11: =Beregn1!$D$106 -> 0 | D11: =Beregn1!$E$105 -> 600 | E11: =Beregn1!$F$105 -> 2000 | F11: =Beregn1!$G$106 -> 0 | I11: 1 | J11: 0.1 | K11: 300 | L11: 450 | M11: 2000 | N11: 360 | O11: 500 | P11: 0.61 | Q11: 0.3 | R11: 0.09 | S11: 0 | T11: 20.494 | U11: 0.93 | W11: 0.7 | X11: 0.1 | Y11: 300 | Z11: 450 | AA11: 2000 | AB11: 18 | AC11: 500 | AD11: 0.57 | AE11: 0.3 | AF11: 0.14 | AG11: 0 | AH11: 20.494 | AI11: 0.91 | AK11: =IF(OR(AH11=0,AH11=-1),Beregn1!$E$36,AH11) -> 20.494 | AL11: FALSE | AM11: =IF(AND(AK11=41,AL11=FALSE),Beregn1!$E$36,AH11) -> 20.494 | AO11: 0.57 | AP11: 0.3 | AQ11: 0.14 | AR11: 0 | AS11: 20.494 | AT11: 0.91 | AV11: =ROUND(AO11*Beregn1!$G$30,4) -> 0.0356 | AW11: =ROUND(AP11*Beregn1!$G$30,4) -> 0.0188 | AX11: =ROUND(AQ11*Beregn1!$G$30,4) -> 0.0088 | AY11: =ROUND(AR11*Beregn1!$G$30,4) -> 0 | AZ11: =ROUND(AS11*Beregn1!$G$30,4) -> 1.2809 | BA11: =ROUND(AT11*Beregn1!$G$30,4) -> 0.0569
A12: =Beregn1!$B$105 -> 1 | B12: =Beregn1!$C$105 -> 0.15 | C12: =Beregn1!$D$106 -> 0 | D12: =Beregn1!$E$105 -> 600 | E12: =Beregn1!$F$106 -> 0 | F12: =Beregn1!$G$105 -> 500 | I12: 1 | J12: 0.1 | K12: 300 | L12: 600 | M12: 2000 | N12: 18 | O12: 0 | P12: 0.09 | Q12: 0.3 | R12: 0.61 | S12: 0 | T12: 20.494 | U12: 0.93 | W12: 0.7 | X12: 0.1 | Y12: 300 | Z12: 600 | AA12: 2000 | AB12: 18 | AC12: 0 | AD12: 0.07 | AE12: 0.3 | AF12: 0.63 | AG12: 0 | AH12: 20.494 | AI12: 0.93 | AK12: =IF(OR(AH12=0,AH12=-1),Beregn1!$E$36,AH12) -> 20.494 | AL12: FALSE | AM12: =IF(AND(AK12=41,AL12=FALSE),Beregn1!$E$36,AH12) -> 20.494 | AO12: 0.07 | AP12: 0.3 | AQ12: 0.63 | AR12: 0 | AS12: 20.494 | AT12: 0.93 | AV12: =ROUND(AO12*Beregn1!$G$30,4) -> 0.0044 | AW12: =ROUND(AP12*Beregn1!$G$30,4) -> 0.0188 | AX12: =ROUND(AQ12*Beregn1!$G$30,4) -> 0.0394 | AY12: =ROUND(AR12*Beregn1!$G$30,4) -> 0 | AZ12: =ROUND(AS12*Beregn1!$G$30,4) -> 1.2809 | BA12: =ROUND(AT12*Beregn1!$G$30,4) -> 0.0581
A13: =Beregn1!$B$105 -> 1 | B13: =Beregn1!$C$105 -> 0.15 | C13: =Beregn1!$D$106 -> 0 | D13: =Beregn1!$E$105 -> 600 | E13: =Beregn1!$F$106 -> 0 | F13: =Beregn1!$G$106 -> 0 | I13: 1 | J13: 0.1 | K13: 300 | L13: 600 | M13: 2000 | N13: 18 | O13: 500 | P13: 0.61 | Q13: 0.3 | R13: 0.09 | S13: 0 | T13: 20.494 | U13: 0.92 | W13: 0.7 | X13: 0.1 | Y13: 300 | Z13: 600 | AA13: 2000 | AB13: 18 | AC13: 500 | AD13: 0.56 | AE13: 0.3 | AF13: 0.14 | AG13: 0 | AH13: 20.494 | AI13: 0.9 | AK13: =IF(OR(AH13=0,AH13=-1),Beregn1!$E$36,AH13) -> 20.494 | AL13: FALSE | AM13: =IF(AND(AK13=41,AL13=FALSE),Beregn1!$E$36,AH13) -> 20.494 | AO13: 0.56 | AP13: 0.3 | AQ13: 0.14 | AR13: 0 | AS13: 20.494 | AT13: 0.9 | AV13: =ROUND(AO13*Beregn1!$G$30,4) -> 0.035 | AW13: =ROUND(AP13*Beregn1!$G$30,4) -> 0.0188 | AX13: =ROUND(AQ13*Beregn1!$G$30,4) -> 0.0088 | AY13: =ROUND(AR13*Beregn1!$G$30,4) -> 0 | AZ13: =ROUND(AS13*Beregn1!$G$30,4) -> 1.2809 | BA13: =ROUND(AT13*Beregn1!$G$30,4) -> 0.0563
A14: =Beregn1!$B$105 -> 1 | B14: =Beregn1!$C$105 -> 0.15 | C14: =Beregn1!$D$106 -> 0 | D14: =Beregn1!$E$106 -> 450 | E14: =Beregn1!$F$105 -> 2000 | F14: =Beregn1!$G$105 -> 500 | I14: 1 | J14: 0.1 | K14: 300 | L14: 600 | M14: 2000 | N14: 36 | O14: 0 | P14: 0.09 | Q14: 0.3 | R14: 0.61 | S14: 0 | T14: 20.494 | U14: 0.93 | W14: 0.7 | X14: 0.15 | Y14: 300 | Z14: 450 | AA14: 2000 | AB14: 12 | AC14: 0 | AD14: 0.09 | AE14: 0.33 | AF14: 0.58 | AG14: 0 | AH14: 40.989 | AI14: 0.94 | AK14: =IF(OR(AH14=0,AH14=-1),Beregn1!$E$36,AH14) -> 40.989 | AL14: FALSE | AM14: =IF(AND(AK14=41,AL14=FALSE),Beregn1!$E$36,AH14) -> 40.989 | AO14: 0.09 | AP14: 0.33 | AQ14: 0.58 | AR14: 0 | AS14: 40.989 | AT14: 0.94 | AV14: =ROUND(AO14*Beregn1!$G$30,4) -> 0.0056 | AW14: =ROUND(AP14*Beregn1!$G$30,4) -> 0.0206 | AX14: =ROUND(AQ14*Beregn1!$G$30,4) -> 0.0363 | AY14: =ROUND(AR14*Beregn1!$G$30,4) -> 0 | AZ14: =ROUND(AS14*Beregn1!$G$30,4) -> 2.5618 | BA14: =ROUND(AT14*Beregn1!$G$30,4) -> 0.0588
A15: =Beregn1!$B$105 -> 1 | B15: =Beregn1!$C$105 -> 0.15 | C15: =Beregn1!$D$106 -> 0 | D15: =Beregn1!$E$106 -> 450 | E15: =Beregn1!$F$105 -> 2000 | F15: =Beregn1!$G$106 -> 0 | I15: 1 | J15: 0.1 | K15: 300 | L15: 600 | M15: 2000 | N15: 36 | O15: 500 | P15: 0.61 | Q15: 0.3 | R15: 0.09 | S15: 0 | T15: 20.494 | U15: 0.92 | W15: 0.7 | X15: 0.15 | Y15: 300 | Z15: 450 | AA15: 2000 | AB15: 12 | AC15: 500 | AD15: 0.62 | AE15: 0.33 | AF15: 0.05 | AG15: 0 | AH15: 40.989 | AI15: 0.94 | AK15: =IF(OR(AH15=0,AH15=-1),Beregn1!$E$36,AH15) -> 40.989 | AL15: FALSE | AM15: =IF(AND(AK15=41,AL15=FALSE),Beregn1!$E$36,AH15) -> 40.989 | AO15: 0.62 | AP15: 0.33 | AQ15: 0.05 | AR15: 0 | AS15: 40.989 | AT15: 0.94 | AV15: =ROUND(AO15*Beregn1!$G$30,4) -> 0.0388 | AW15: =ROUND(AP15*Beregn1!$G$30,4) -> 0.0206 | AX15: =ROUND(AQ15*Beregn1!$G$30,4) -> 0.0031 | AY15: =ROUND(AR15*Beregn1!$G$30,4) -> 0 | AZ15: =ROUND(AS15*Beregn1!$G$30,4) -> 2.5618 | BA15: =ROUND(AT15*Beregn1!$G$30,4) -> 0.0588
A16: =Beregn1!$B$105 -> 1 | B16: =Beregn1!$C$105 -> 0.15 | C16: =Beregn1!$D$106 -> 0 | D16: =Beregn1!$E$106 -> 450 | E16: =Beregn1!$F$106 -> 0 | F16: =Beregn1!$G$105 -> 500 | I16: 1 | J16: 0.1 | K16: 300 | L16: 600 | M16: 2000 | N16: 72 | O16: 0 | P16: 0.09 | Q16: 0.3 | R16: 0.61 | S16: 0 | T16: 20.494 | U16: 0.93 | W16: 0.7 | X16: 0.15 | Y16: 300 | Z16: 600 | AA16: 2000 | AB16: 12 | AC16: 0 | AD16: 0.09 | AE16: 0.33 | AF16: 0.58 | AG16: 0 | AH16: 40.989 | AI16: 0.93 | AK16: =IF(OR(AH16=0,AH16=-1),Beregn1!$E$36,AH16) -> 40.989 | AL16: FALSE | AM16: =IF(AND(AK16=41,AL16=FALSE),Beregn1!$E$36,AH16) -> 40.989 | AO16: 0.09 | AP16: 0.33 | AQ16: 0.58 | AR16: 0 | AS16: 40.989 | AT16: 0.93 | AV16: =ROUND(AO16*Beregn1!$G$30,4) -> 0.0056 | AW16: =ROUND(AP16*Beregn1!$G$30,4) -> 0.0206 | AX16: =ROUND(AQ16*Beregn1!$G$30,4) -> 0.0363 | AY16: =ROUND(AR16*Beregn1!$G$30,4) -> 0 | AZ16: =ROUND(AS16*Beregn1!$G$30,4) -> 2.5618 | BA16: =ROUND(AT16*Beregn1!$G$30,4) -> 0.0581
A17: =Beregn1!$B$105 -> 1 | B17: =Beregn1!$C$105 -> 0.15 | C17: =Beregn1!$D$106 -> 0 | D17: =Beregn1!$E$106 -> 450 | E17: =Beregn1!$F$106 -> 0 | F17: =Beregn1!$G$106 -> 0 | I17: 1 | J17: 0.1 | K17: 300 | L17: 600 | M17: 2000 | N17: 72 | O17: 500 | P17: 0.61 | Q17: 0.3 | R17: 0.09 | S17: 0 | T17: 20.494 | U17: 0.92 | W17: 0.7 | X17: 0.15 | Y17: 300 | Z17: 600 | AA17: 2000 | AB17: 12 | AC17: 500 | AD17: 0.62 | AE17: 0.33 | AF17: 0.05 | AG17: 0 | AH17: 40.989 | AI17: 0.92 | AK17: =IF(OR(AH17=0,AH17=-1),Beregn1!$E$36,AH17) -> 40.989 | AL17: FALSE | AM17: =IF(AND(AK17=41,AL17=FALSE),Beregn1!$E$36,AH17) -> 40.989 | AO17: 0.62 | AP17: 0.33 | AQ17: 0.05 | AR17: 0 | AS17: 40.989 | AT17: 0.92 | AV17: =ROUND(AO17*Beregn1!$G$30,4) -> 0.0388 | AW17: =ROUND(AP17*Beregn1!$G$30,4) -> 0.0206 | AX17: =ROUND(AQ17*Beregn1!$G$30,4) -> 0.0031 | AY17: =ROUND(AR17*Beregn1!$G$30,4) -> 0 | AZ17: =ROUND(AS17*Beregn1!$G$30,4) -> 2.5618 | BA17: =ROUND(AT17*Beregn1!$G$30,4) -> 0.0575
A18: =Beregn1!$B$105 -> 1 | B18: =Beregn1!$C$106 -> 0.1 | C18: =Beregn1!$D$105 -> 300 | D18: =Beregn1!$E$105 -> 600 | E18: =Beregn1!$F$105 -> 2000 | F18: =Beregn1!$G$105 -> 500 | I18: 1 | J18: 0.1 | K18: 300 | L18: 600 | M18: 2000 | N18: 180 | O18: 0 | P18: 0.09 | Q18: 0.3 | R18: 0.61 | S18: 0 | T18: 20.494 | U18: 0.93 | AK18: =IF(OR(AH18=0,AH18=-1),Beregn1!$E$36,AH18) -> 41 | AL18: TRUE | AM18: =IF(AND(AK18=41,AL18=FALSE),Beregn1!$E$36,AH18) -> 0 | AO18: 0 | AP18: 0 | AQ18: 0 | AR18: 0 | AS18: 0 | AT18: 0 | AV18: =ROUND(AO18*Beregn1!$G$30,4) -> 0 | AW18: =ROUND(AP18*Beregn1!$G$30,4) -> 0 | AX18: =ROUND(AQ18*Beregn1!$G$30,4) -> 0 | AY18: =ROUND(AR18*Beregn1!$G$30,4) -> 0 | AZ18: =ROUND(AS18*Beregn1!$G$30,4) -> 0 | BA18: =ROUND(AT18*Beregn1!$G$30,4) -> 0
A19: =Beregn1!$B$105 -> 1 | B19: =Beregn1!$C$106 -> 0.1 | C19: =Beregn1!$D$105 -> 300 | D19: =Beregn1!$E$105 -> 600 | E19: =Beregn1!$F$105 -> 2000 | F19: =Beregn1!$G$106 -> 0 | I19: 1 | J19: 0.1 | K19: 300 | L19: 600 | M19: 2000 | N19: 180 | O19: 500 | P19: 0.61 | Q19: 0.3 | R19: 0.09 | S19: 0 | T19: 20.494 | U19: 0.92 | AK19: =IF(OR(AH19=0,AH19=-1),Beregn1!$E$36,AH19) -> 41 | AL19: TRUE | AM19: =IF(AND(AK19=41,AL19=FALSE),Beregn1!$E$36,AH19) -> 0 | AO19: 0 | AP19: 0 | AQ19: 0 | AR19: 0 | AS19: 0 | AT19: 0 | AV19: =ROUND(AO19*Beregn1!$G$30,4) -> 0 | AW19: =ROUND(AP19*Beregn1!$G$30,4) -> 0 | AX19: =ROUND(AQ19*Beregn1!$G$30,4) -> 0 | AY19: =ROUND(AR19*Beregn1!$G$30,4) -> 0 | AZ19: =ROUND(AS19*Beregn1!$G$30,4) -> 0 | BA19: =ROUND(AT19*Beregn1!$G$30,4) -> 0
A20: =Beregn1!$B$105 -> 1 | B20: =Beregn1!$C$106 -> 0.1 | C20: =Beregn1!$D$105 -> 300 | D20: =Beregn1!$E$105 -> 600 | E20: =Beregn1!$F$106 -> 0 | F20: =Beregn1!$G$105 -> 500 | I20: 1 | J20: 0.1 | K20: 300 | L20: 600 | M20: 2000 | N20: 360 | O20: 0 | P20: 0.09 | Q20: 0.3 | R20: 0.61 | S20: 0 | T20: 20.494 | U20: 0.93 | AK20: =IF(OR(AH20=0,AH20=-1),Beregn1!$E$36,AH20) -> 41 | AL20: TRUE | AM20: =IF(AND(AK20=41,AL20=FALSE),Beregn1!$E$36,AH20) -> 0 | AO20: 0 | AP20: 0 | AQ20: 0 | AR20: 0 | AS20: 0 | AT20: 0 | AV20: =ROUND(AO20*Beregn1!$G$30,4) -> 0 | AW20: =ROUND(AP20*Beregn1!$G$30,4) -> 0 | AX20: =ROUND(AQ20*Beregn1!$G$30,4) -> 0 | AY20: =ROUND(AR20*Beregn1!$G$30,4) -> 0 | AZ20: =ROUND(AS20*Beregn1!$G$30,4) -> 0 | BA20: =ROUND(AT20*Beregn1!$G$30,4) -> 0
A21: =Beregn1!$B$105 -> 1 | B21: =Beregn1!$C$106 -> 0.1 | C21: =Beregn1!$D$105 -> 300 | D21: =Beregn1!$E$105 -> 600 | E21: =Beregn1!$F$106 -> 0 | F21: =Beregn1!$G$106 -> 0 | I21: 1 | J21: 0.1 | K21: 300 | L21: 600 | M21: 2000 | N21: 360 | O21: 500 | P21: 0.61 | Q21: 0.3 | R21: 0.09 | S21: 0 | T21: 20.494 | U21: 0.92 | AK21: =IF(OR(AH21=0,AH21=-1),Beregn1!$E$36,AH21) -> 41 | AL21: TRUE | AM21: =IF(AND(AK21=41,AL21=FALSE),Beregn1!$E$36,AH21) -> 0 | AO21: 0 | AP21: 0 | AQ21: 0 | AR21: 0 | AS21: 0 | AT21: 0 | AV21: =ROUND(AO21*Beregn1!$G$30,4) -> 0 | AW21: =ROUND(AP21*Beregn1!$G$30,4) -> 0 | AX21: =ROUND(AQ21*Beregn1!$G$30,4) -> 0 | AY21: =ROUND(AR21*Beregn1!$G$30,4) -> 0 | AZ21: =ROUND(AS21*Beregn1!$G$30,4) -> 0 | BA21: =ROUND(AT21*Beregn1!$G$30,4) -> 0
A22: =Beregn1!$B$105 -> 1 | B22: =Beregn1!$C$106 -> 0.1 | C22: =Beregn1!$D$105 -> 300 | D22: =Beregn1!$E$106 -> 450 | E22: =Beregn1!$F$105 -> 2000 | F22: =Beregn1!$G$105 -> 500 | I22: 1 | J22: 0.15 | K22: 300 | L22: 450 | M22: 2000 | N22: 12 | O22: 0 | P22: 0.12 | Q22: 0.33 | R22: 0.55 | S22: 0 | T22: 40.989 | U22: 0.94 | AK22: =IF(OR(AH22=0,AH22=-1),Beregn1!$E$36,AH22) -> 41 | AL22: TRUE | AM22: =IF(AND(AK22=41,AL22=FALSE),Beregn1!$E$36,AH22) -> 0 | AO22: 0 | AP22: 0 | AQ22: 0 | AR22: 0 | AS22: 0 | AT22: 0 | AV22: =ROUND(AO22*Beregn1!$G$30,4) -> 0 | AW22: =ROUND(AP22*Beregn1!$G$30,4) -> 0 | AX22: =ROUND(AQ22*Beregn1!$G$30,4) -> 0 | AY22: =ROUND(AR22*Beregn1!$G$30,4) -> 0 | AZ22: =ROUND(AS22*Beregn1!$G$30,4) -> 0 | BA22: =ROUND(AT22*Beregn1!$G$30,4) -> 0
A23: =Beregn1!$B$105 -> 1 | B23: =Beregn1!$C$106 -> 0.1 | C23: =Beregn1!$D$105 -> 300 | D23: =Beregn1!$E$106 -> 450 | E23: =Beregn1!$F$105 -> 2000 | F23: =Beregn1!$G$106 -> 0 | I23: 1 | J23: 0.15 | K23: 300 | L23: 450 | M23: 2000 | N23: 12 | O23: 500 | P23: 0.63 | Q23: 0.33 | R23: 0.03 | S23: 0 | T23: 40.989 | U23: 0.94 | AK23: =IF(OR(AH23=0,AH23=-1),Beregn1!$E$36,AH23) -> 41 | AL23: TRUE | AM23: =IF(AND(AK23=41,AL23=FALSE),Beregn1!$E$36,AH23) -> 0 | AO23: 0 | AP23: 0 | AQ23: 0 | AR23: 0 | AS23: 0 | AT23: 0 | AV23: =ROUND(AO23*Beregn1!$G$30,4) -> 0 | AW23: =ROUND(AP23*Beregn1!$G$30,4) -> 0 | AX23: =ROUND(AQ23*Beregn1!$G$30,4) -> 0 | AY23: =ROUND(AR23*Beregn1!$G$30,4) -> 0 | AZ23: =ROUND(AS23*Beregn1!$G$30,4) -> 0 | BA23: =ROUND(AT23*Beregn1!$G$30,4) -> 0
A24: =Beregn1!$B$105 -> 1 | B24: =Beregn1!$C$106 -> 0.1 | C24: =Beregn1!$D$105 -> 300 | D24: =Beregn1!$E$106 -> 450 | E24: =Beregn1!$F$106 -> 0 | F24: =Beregn1!$G$105 -> 500 | I24: 1 | J24: 0.15 | K24: 300 | L24: 450 | M24: 2000 | N24: 24 | O24: 0 | P24: 0.11 | Q24: 0.33 | R24: 0.55 | S24: 0 | T24: 40.989 | U24: 0.94 | AK24: =IF(OR(AH24=0,AH24=-1),Beregn1!$E$36,AH24) -> 41 | AL24: TRUE | AM24: =IF(AND(AK24=41,AL24=FALSE),Beregn1!$E$36,AH24) -> 0 | AO24: 0 | AP24: 0 | AQ24: 0 | AR24: 0 | AS24: 0 | AT24: 0 | AV24: =ROUND(AO24*Beregn1!$G$30,4) -> 0 | AW24: =ROUND(AP24*Beregn1!$G$30,4) -> 0 | AX24: =ROUND(AQ24*Beregn1!$G$30,4) -> 0 | AY24: =ROUND(AR24*Beregn1!$G$30,4) -> 0 | AZ24: =ROUND(AS24*Beregn1!$G$30,4) -> 0 | BA24: =ROUND(AT24*Beregn1!$G$30,4) -> 0
A25: =Beregn1!$B$105 -> 1 | B25: =Beregn1!$C$106 -> 0.1 | C25: =Beregn1!$D$105 -> 300 | D25: =Beregn1!$E$106 -> 450 | E25: =Beregn1!$F$106 -> 0 | F25: =Beregn1!$G$106 -> 0 | I25: 1 | J25: 0.15 | K25: 300 | L25: 450 | M25: 2000 | N25: 24 | O25: 500 | P25: 0.63 | Q25: 0.33 | R25: 0.03 | S25: 0 | T25: 40.989 | U25: 0.94 | AK25: =IF(OR(AH25=0,AH25=-1),Beregn1!$E$36,AH25) -> 41 | AL25: TRUE | AM25: =IF(AND(AK25=41,AL25=FALSE),Beregn1!$E$36,AH25) -> 0 | AO25: 0 | AP25: 0 | AQ25: 0 | AR25: 0 | AS25: 0 | AT25: 0 | AV25: =ROUND(AO25*Beregn1!$G$30,4) -> 0 | AW25: =ROUND(AP25*Beregn1!$G$30,4) -> 0 | AX25: =ROUND(AQ25*Beregn1!$G$30,4) -> 0 | AY25: =ROUND(AR25*Beregn1!$G$30,4) -> 0 | AZ25: =ROUND(AS25*Beregn1!$G$30,4) -> 0 | BA25: =ROUND(AT25*Beregn1!$G$30,4) -> 0
A26: =Beregn1!$B$105 -> 1 | B26: =Beregn1!$C$106 -> 0.1 | C26: =Beregn1!$D$106 -> 0 | D26: =Beregn1!$E$105 -> 600 | E26: =Beregn1!$F$105 -> 2000 | F26: =Beregn1!$G$105 -> 500 | I26: 1 | J26: 0.15 | K26: 300 | L26: 450 | M26: 2000 | N26: 48 | O26: 0 | P26: 0.11 | Q26: 0.33 | R26: 0.55 | S26: 0 | T26: 40.989 | U26: 0.94 | AK26: =IF(OR(AH26=0,AH26=-1),Beregn1!$E$36,AH26) -> 41 | AL26: TRUE | AM26: =IF(AND(AK26=41,AL26=FALSE),Beregn1!$E$36,AH26) -> 0 | AO26: 0 | AP26: 0 | AQ26: 0 | AR26: 0 | AS26: 0 | AT26: 0 | AV26: =ROUND(AO26*Beregn1!$G$30,4) -> 0 | AW26: =ROUND(AP26*Beregn1!$G$30,4) -> 0 | AX26: =ROUND(AQ26*Beregn1!$G$30,4) -> 0 | AY26: =ROUND(AR26*Beregn1!$G$30,4) -> 0 | AZ26: =ROUND(AS26*Beregn1!$G$30,4) -> 0 | BA26: =ROUND(AT26*Beregn1!$G$30,4) -> 0
A27: =Beregn1!$B$105 -> 1 | B27: =Beregn1!$C$106 -> 0.1 | C27: =Beregn1!$D$106 -> 0 | D27: =Beregn1!$E$105 -> 600 | E27: =Beregn1!$F$105 -> 2000 | F27: =Beregn1!$G$106 -> 0 | I27: 1 | J27: 0.15 | K27: 300 | L27: 450 | M27: 2000 | N27: 48 | O27: 500 | P27: 0.63 | Q27: 0.33 | R27: 0.03 | S27: 0 | T27: 40.989 | U27: 0.94 | AK27: =IF(OR(AH27=0,AH27=-1),Beregn1!$E$36,AH27) -> 41 | AL27: TRUE | AM27: =IF(AND(AK27=41,AL27=FALSE),Beregn1!$E$36,AH27) -> 0 | AO27: 0 | AP27: 0 | AQ27: 0 | AR27: 0 | AS27: 0 | AT27: 0 | AV27: =ROUND(AO27*Beregn1!$G$30,4) -> 0 | AW27: =ROUND(AP27*Beregn1!$G$30,4) -> 0 | AX27: =ROUND(AQ27*Beregn1!$G$30,4) -> 0 | AY27: =ROUND(AR27*Beregn1!$G$30,4) -> 0 | AZ27: =ROUND(AS27*Beregn1!$G$30,4) -> 0 | BA27: =ROUND(AT27*Beregn1!$G$30,4) -> 0
A28: =Beregn1!$B$105 -> 1 | B28: =Beregn1!$C$106 -> 0.1 | C28: =Beregn1!$D$106 -> 0 | D28: =Beregn1!$E$105 -> 600 | E28: =Beregn1!$F$106 -> 0 | F28: =Beregn1!$G$105 -> 500 | I28: 1 | J28: 0.15 | K28: 300 | L28: 450 | M28: 2000 | N28: 120 | O28: 0 | P28: 0.11 | Q28: 0.33 | R28: 0.55 | S28: 0 | T28: 40.989 | U28: 0.94 | AK28: =IF(OR(AH28=0,AH28=-1),Beregn1!$E$36,AH28) -> 41 | AL28: TRUE | AM28: =IF(AND(AK28=41,AL28=FALSE),Beregn1!$E$36,AH28) -> 0 | AO28: 0 | AP28: 0 | AQ28: 0 | AR28: 0 | AS28: 0 | AT28: 0 | AV28: =ROUND(AO28*Beregn1!$G$30,4) -> 0 | AW28: =ROUND(AP28*Beregn1!$G$30,4) -> 0 | AX28: =ROUND(AQ28*Beregn1!$G$30,4) -> 0 | AY28: =ROUND(AR28*Beregn1!$G$30,4) -> 0 | AZ28: =ROUND(AS28*Beregn1!$G$30,4) -> 0 | BA28: =ROUND(AT28*Beregn1!$G$30,4) -> 0
A29: =Beregn1!$B$105 -> 1 | B29: =Beregn1!$C$106 -> 0.1 | C29: =Beregn1!$D$106 -> 0 | D29: =Beregn1!$E$105 -> 600 | E29: =Beregn1!$F$106 -> 0 | F29: =Beregn1!$G$106 -> 0 | I29: 1 | J29: 0.15 | K29: 300 | L29: 450 | M29: 2000 | N29: 120 | O29: 500 | P29: 0.63 | Q29: 0.33 | R29: 0.03 | S29: 0 | T29: 40.989 | U29: 0.94 | AK29: =IF(OR(AH29=0,AH29=-1),Beregn1!$E$36,AH29) -> 41 | AL29: TRUE | AM29: =IF(AND(AK29=41,AL29=FALSE),Beregn1!$E$36,AH29) -> 0 | AO29: 0 | AP29: 0 | AQ29: 0 | AR29: 0 | AS29: 0 | AT29: 0 | AV29: =ROUND(AO29*Beregn1!$G$30,4) -> 0 | AW29: =ROUND(AP29*Beregn1!$G$30,4) -> 0 | AX29: =ROUND(AQ29*Beregn1!$G$30,4) -> 0 | AY29: =ROUND(AR29*Beregn1!$G$30,4) -> 0 | AZ29: =ROUND(AS29*Beregn1!$G$30,4) -> 0 | BA29: =ROUND(AT29*Beregn1!$G$30,4) -> 0
A30: =Beregn1!$B$105 -> 1 | B30: =Beregn1!$C$106 -> 0.1 | C30: =Beregn1!$D$106 -> 0 | D30: =Beregn1!$E$106 -> 450 | E30: =Beregn1!$F$105 -> 2000 | F30: =Beregn1!$G$105 -> 500 | I30: 1 | J30: 0.15 | K30: 300 | L30: 450 | M30: 2000 | N30: 240 | O30: 0 | P30: 0.11 | Q30: 0.33 | R30: 0.55 | S30: 0 | T30: 40.989 | U30: 0.94 | AK30: =IF(OR(AH30=0,AH30=-1),Beregn1!$E$36,AH30) -> 41 | AL30: TRUE | AM30: =IF(AND(AK30=41,AL30=FALSE),Beregn1!$E$36,AH30) -> 0 | AO30: 0 | AP30: 0 | AQ30: 0 | AR30: 0 | AS30: 0 | AT30: 0 | AV30: =ROUND(AO30*Beregn1!$G$30,4) -> 0 | AW30: =ROUND(AP30*Beregn1!$G$30,4) -> 0 | AX30: =ROUND(AQ30*Beregn1!$G$30,4) -> 0 | AY30: =ROUND(AR30*Beregn1!$G$30,4) -> 0 | AZ30: =ROUND(AS30*Beregn1!$G$30,4) -> 0 | BA30: =ROUND(AT30*Beregn1!$G$30,4) -> 0
A31: =Beregn1!$B$105 -> 1 | B31: =Beregn1!$C$106 -> 0.1 | C31: =Beregn1!$D$106 -> 0 | D31: =Beregn1!$E$106 -> 450 | E31: =Beregn1!$F$105 -> 2000 | F31: =Beregn1!$G$106 -> 0 | I31: 1 | J31: 0.15 | K31: 300 | L31: 450 | M31: 2000 | N31: 240 | O31: 500 | P31: 0.63 | Q31: 0.33 | R31: 0.03 | S31: 0 | T31: 40.989 | U31: 0.94 | AK31: =IF(OR(AH31=0,AH31=-1),Beregn1!$E$36,AH31) -> 41 | AL31: TRUE | AM31: =IF(AND(AK31=41,AL31=FALSE),Beregn1!$E$36,AH31) -> 0 | AO31: 0 | AP31: 0 | AQ31: 0 | AR31: 0 | AS31: 0 | AT31: 0 | AV31: =ROUND(AO31*Beregn1!$G$30,4) -> 0 | AW31: =ROUND(AP31*Beregn1!$G$30,4) -> 0 | AX31: =ROUND(AQ31*Beregn1!$G$30,4) -> 0 | AY31: =ROUND(AR31*Beregn1!$G$30,4) -> 0 | AZ31: =ROUND(AS31*Beregn1!$G$30,4) -> 0 | BA31: =ROUND(AT31*Beregn1!$G$30,4) -> 0
A32: =Beregn1!$B$105 -> 1 | B32: =Beregn1!$C$106 -> 0.1 | C32: =Beregn1!$D$106 -> 0 | D32: =Beregn1!$E$106 -> 450 | E32: =Beregn1!$F$106 -> 0 | F32: =Beregn1!$G$105 -> 500 | I32: 1 | J32: 0.15 | K32: 300 | L32: 600 | M32: 2000 | N32: 12 | O32: 0 | P32: 0.12 | Q32: 0.33 | R32: 0.55 | S32: 0 | T32: 40.989 | U32: 0.93 | AK32: =IF(OR(AH32=0,AH32=-1),Beregn1!$E$36,AH32) -> 41 | AL32: TRUE | AM32: =IF(AND(AK32=41,AL32=FALSE),Beregn1!$E$36,AH32) -> 0 | AO32: 0 | AP32: 0 | AQ32: 0 | AR32: 0 | AS32: 0 | AT32: 0 | AV32: =ROUND(AO32*Beregn1!$G$30,4) -> 0 | AW32: =ROUND(AP32*Beregn1!$G$30,4) -> 0 | AX32: =ROUND(AQ32*Beregn1!$G$30,4) -> 0 | AY32: =ROUND(AR32*Beregn1!$G$30,4) -> 0 | AZ32: =ROUND(AS32*Beregn1!$G$30,4) -> 0 | BA32: =ROUND(AT32*Beregn1!$G$30,4) -> 0
A33: =Beregn1!$B$105 -> 1 | B33: =Beregn1!$C$106 -> 0.1 | C33: =Beregn1!$D$106 -> 0 | D33: =Beregn1!$E$106 -> 450 | E33: =Beregn1!$F$106 -> 0 | F33: =Beregn1!$G$106 -> 0 | I33: 1 | J33: 0.15 | K33: 300 | L33: 600 | M33: 2000 | N33: 12 | O33: 500 | P33: 0.63 | Q33: 0.33 | R33: 0.03 | S33: 0 | T33: 40.989 | U33: 0.92 | AK33: =IF(OR(AH33=0,AH33=-1),Beregn1!$E$36,AH33) -> 41 | AL33: TRUE | AM33: =IF(AND(AK33=41,AL33=FALSE),Beregn1!$E$36,AH33) -> 0 | AO33: 0 | AP33: 0 | AQ33: 0 | AR33: 0 | AS33: 0 | AT33: 0 | AV33: =ROUND(AO33*Beregn1!$G$30,4) -> 0 | AW33: =ROUND(AP33*Beregn1!$G$30,4) -> 0 | AX33: =ROUND(AQ33*Beregn1!$G$30,4) -> 0 | AY33: =ROUND(AR33*Beregn1!$G$30,4) -> 0 | AZ33: =ROUND(AS33*Beregn1!$G$30,4) -> 0 | BA33: =ROUND(AT33*Beregn1!$G$30,4) -> 0
A34: =Beregn1!$B$106 -> 0.7 | B34: =Beregn1!$C$105 -> 0.15 | C34: =Beregn1!$D$105 -> 300 | D34: =Beregn1!$E$105 -> 600 | E34: =Beregn1!$F$105 -> 2000 | F34: =Beregn1!$G$105 -> 500 | I34: 1 | J34: 0.15 | K34: 300 | L34: 600 | M34: 2000 | N34: 24 | O34: 0 | P34: 0.12 | Q34: 0.33 | R34: 0.55 | S34: 0 | T34: 40.989 | U34: 0.93 | AK34: =IF(OR(AH34=0,AH34=-1),Beregn1!$E$36,AH34) -> 41 | AL34: TRUE | AM34: =IF(AND(AK34=41,AL34=FALSE),Beregn1!$E$36,AH34) -> 0 | AO34: 0 | AP34: 0 | AQ34: 0 | AR34: 0 | AS34: 0 | AT34: 0 | AV34: =ROUND(AO34*Beregn1!$G$30,4) -> 0 | AW34: =ROUND(AP34*Beregn1!$G$30,4) -> 0 | AX34: =ROUND(AQ34*Beregn1!$G$30,4) -> 0 | AY34: =ROUND(AR34*Beregn1!$G$30,4) -> 0 | AZ34: =ROUND(AS34*Beregn1!$G$30,4) -> 0 | BA34: =ROUND(AT34*Beregn1!$G$30,4) -> 0
A35: =Beregn1!$B$106 -> 0.7 | B35: =Beregn1!$C$105 -> 0.15 | C35: =Beregn1!$D$105 -> 300 | D35: =Beregn1!$E$105 -> 600 | E35: =Beregn1!$F$105 -> 2000 | F35: =Beregn1!$G$106 -> 0 | I35: 1 | J35: 0.15 | K35: 300 | L35: 600 | M35: 2000 | N35: 24 | O35: 500 | P35: 0.63 | Q35: 0.33 | R35: 0.03 | S35: 0 | T35: 40.989 | U35: 0.92 | AK35: =IF(OR(AH35=0,AH35=-1),Beregn1!$E$36,AH35) -> 41 | AL35: TRUE | AM35: =IF(AND(AK35=41,AL35=FALSE),Beregn1!$E$36,AH35) -> 0 | AO35: 0 | AP35: 0 | AQ35: 0 | AR35: 0 | AS35: 0 | AT35: 0 | AV35: =ROUND(AO35*Beregn1!$G$30,4) -> 0 | AW35: =ROUND(AP35*Beregn1!$G$30,4) -> 0 | AX35: =ROUND(AQ35*Beregn1!$G$30,4) -> 0 | AY35: =ROUND(AR35*Beregn1!$G$30,4) -> 0 | AZ35: =ROUND(AS35*Beregn1!$G$30,4) -> 0 | BA35: =ROUND(AT35*Beregn1!$G$30,4) -> 0
A36: =Beregn1!$B$106 -> 0.7 | B36: =Beregn1!$C$105 -> 0.15 | C36: =Beregn1!$D$105 -> 300 | D36: =Beregn1!$E$105 -> 600 | E36: =Beregn1!$F$106 -> 0 | F36: =Beregn1!$G$105 -> 500 | I36: 1 | J36: 0.15 | K36: 300 | L36: 600 | M36: 2000 | N36: 48 | O36: 0 | P36: 0.11 | Q36: 0.33 | R36: 0.55 | S36: 0 | T36: 40.989 | U36: 0.93 | AK36: =IF(OR(AH36=0,AH36=-1),Beregn1!$E$36,AH36) -> 41 | AL36: TRUE | AM36: =IF(AND(AK36=41,AL36=FALSE),Beregn1!$E$36,AH36) -> 0 | AO36: 0 | AP36: 0 | AQ36: 0 | AR36: 0 | AS36: 0 | AT36: 0 | AV36: =ROUND(AO36*Beregn1!$G$30,4) -> 0 | AW36: =ROUND(AP36*Beregn1!$G$30,4) -> 0 | AX36: =ROUND(AQ36*Beregn1!$G$30,4) -> 0 | AY36: =ROUND(AR36*Beregn1!$G$30,4) -> 0 | AZ36: =ROUND(AS36*Beregn1!$G$30,4) -> 0 | BA36: =ROUND(AT36*Beregn1!$G$30,4) -> 0
A37: =Beregn1!$B$106 -> 0.7 | B37: =Beregn1!$C$105 -> 0.15 | C37: =Beregn1!$D$105 -> 300 | D37: =Beregn1!$E$105 -> 600 | E37: =Beregn1!$F$106 -> 0 | F37: =Beregn1!$G$106 -> 0 | I37: 1 | J37: 0.15 | K37: 300 | L37: 600 | M37: 2000 | N37: 48 | O37: 500 | P37: 0.63 | Q37: 0.33 | R37: 0.03 | S37: 0 | T37: 40.989 | U37: 0.92 | AK37: =IF(OR(AH37=0,AH37=-1),Beregn1!$E$36,AH37) -> 41 | AL37: TRUE | AM37: =IF(AND(AK37=41,AL37=FALSE),Beregn1!$E$36,AH37) -> 0 | AO37: 0 | AP37: 0 | AQ37: 0 | AR37: 0 | AS37: 0 | AT37: 0 | AV37: =ROUND(AO37*Beregn1!$G$30,4) -> 0 | AW37: =ROUND(AP37*Beregn1!$G$30,4) -> 0 | AX37: =ROUND(AQ37*Beregn1!$G$30,4) -> 0 | AY37: =ROUND(AR37*Beregn1!$G$30,4) -> 0 | AZ37: =ROUND(AS37*Beregn1!$G$30,4) -> 0 | BA37: =ROUND(AT37*Beregn1!$G$30,4) -> 0
A38: =Beregn1!$B$106 -> 0.7 | B38: =Beregn1!$C$105 -> 0.15 | C38: =Beregn1!$D$105 -> 300 | D38: =Beregn1!$E$106 -> 450 | E38: =Beregn1!$F$105 -> 2000 | F38: =Beregn1!$G$105 -> 500 | I38: 1 | J38: 0.15 | K38: 300 | L38: 600 | M38: 2000 | N38: 120 | O38: 0 | P38: 0.11 | Q38: 0.33 | R38: 0.55 | S38: 0 | T38: 40.989 | U38: 0.93 | AK38: =IF(OR(AH38=0,AH38=-1),Beregn1!$E$36,AH38) -> 41 | AL38: TRUE | AM38: =IF(AND(AK38=41,AL38=FALSE),Beregn1!$E$36,AH38) -> 0 | AO38: 0 | AP38: 0 | AQ38: 0 | AR38: 0 | AS38: 0 | AT38: 0 | AV38: =ROUND(AO38*Beregn1!$G$30,4) -> 0 | AW38: =ROUND(AP38*Beregn1!$G$30,4) -> 0 | AX38: =ROUND(AQ38*Beregn1!$G$30,4) -> 0 | AY38: =ROUND(AR38*Beregn1!$G$30,4) -> 0 | AZ38: =ROUND(AS38*Beregn1!$G$30,4) -> 0 | BA38: =ROUND(AT38*Beregn1!$G$30,4) -> 0
A39: =Beregn1!$B$106 -> 0.7 | B39: =Beregn1!$C$105 -> 0.15 | C39: =Beregn1!$D$105 -> 300 | D39: =Beregn1!$E$106 -> 450 | E39: =Beregn1!$F$105 -> 2000 | F39: =Beregn1!$G$106 -> 0 | I39: 1 | J39: 0.15 | K39: 300 | L39: 600 | M39: 2000 | N39: 120 | O39: 500 | P39: 0.63 | Q39: 0.33 | R39: 0.03 | S39: 0 | T39: 40.989 | U39: 0.92 | AK39: =IF(OR(AH39=0,AH39=-1),Beregn1!$E$36,AH39) -> 41 | AL39: TRUE | AM39: =IF(AND(AK39=41,AL39=FALSE),Beregn1!$E$36,AH39) -> 0 | AO39: 0 | AP39: 0 | AQ39: 0 | AR39: 0 | AS39: 0 | AT39: 0 | AV39: =ROUND(AO39*Beregn1!$G$30,4) -> 0 | AW39: =ROUND(AP39*Beregn1!$G$30,4) -> 0 | AX39: =ROUND(AQ39*Beregn1!$G$30,4) -> 0 | AY39: =ROUND(AR39*Beregn1!$G$30,4) -> 0 | AZ39: =ROUND(AS39*Beregn1!$G$30,4) -> 0 | BA39: =ROUND(AT39*Beregn1!$G$30,4) -> 0
A40: =Beregn1!$B$106 -> 0.7 | B40: =Beregn1!$C$105 -> 0.15 | C40: =Beregn1!$D$105 -> 300 | D40: =Beregn1!$E$106 -> 450 | E40: =Beregn1!$F$106 -> 0 | F40: =Beregn1!$G$105 -> 500 | I40: 1 | J40: 0.15 | K40: 300 | L40: 600 | M40: 2000 | N40: 240 | O40: 0 | P40: 0.11 | Q40: 0.33 | R40: 0.55 | S40: 0 | T40: 40.989 | U40: 0.93 | AK40: =IF(OR(AH40=0,AH40=-1),Beregn1!$E$36,AH40) -> 41 | AL40: TRUE | AM40: =IF(AND(AK40=41,AL40=FALSE),Beregn1!$E$36,AH40) -> 0 | AO40: 0 | AP40: 0 | AQ40: 0 | AR40: 0 | AS40: 0 | AT40: 0 | AV40: =ROUND(AO40*Beregn1!$G$30,4) -> 0 | AW40: =ROUND(AP40*Beregn1!$G$30,4) -> 0 | AX40: =ROUND(AQ40*Beregn1!$G$30,4) -> 0 | AY40: =ROUND(AR40*Beregn1!$G$30,4) -> 0 | AZ40: =ROUND(AS40*Beregn1!$G$30,4) -> 0 | BA40: =ROUND(AT40*Beregn1!$G$30,4) -> 0
A41: =Beregn1!$B$106 -> 0.7 | B41: =Beregn1!$C$105 -> 0.15 | C41: =Beregn1!$D$105 -> 300 | D41: =Beregn1!$E$106 -> 450 | E41: =Beregn1!$F$106 -> 0 | F41: =Beregn1!$G$106 -> 0 | I41: 1 | J41: 0.15 | K41: 300 | L41: 600 | M41: 2000 | N41: 240 | O41: 500 | P41: 0.63 | Q41: 0.33 | R41: 0.03 | S41: 0 | T41: 40.989 | U41: 0.92 | AK41: =IF(OR(AH41=0,AH41=-1),Beregn1!$E$36,AH41) -> 41 | AL41: TRUE | AM41: =IF(AND(AK41=41,AL41=FALSE),Beregn1!$E$36,AH41) -> 0 | AO41: 0 | AP41: 0 | AQ41: 0 | AR41: 0 | AS41: 0 | AT41: 0 | AV41: =ROUND(AO41*Beregn1!$G$30,4) -> 0 | AW41: =ROUND(AP41*Beregn1!$G$30,4) -> 0 | AX41: =ROUND(AQ41*Beregn1!$G$30,4) -> 0 | AY41: =ROUND(AR41*Beregn1!$G$30,4) -> 0 | AZ41: =ROUND(AS41*Beregn1!$G$30,4) -> 0 | BA41: =ROUND(AT41*Beregn1!$G$30,4) -> 0
A42: =Beregn1!$B$106 -> 0.7 | B42: =Beregn1!$C$105 -> 0.15 | C42: =Beregn1!$D$106 -> 0 | D42: =Beregn1!$E$105 -> 600 | E42: =Beregn1!$F$105 -> 2000 | F42: =Beregn1!$G$105 -> 500 | I42: 0.7 | J42: 0.1 | K42: 300 | L42: 450 | M42: 2000 | N42: 18 | O42: 0 | P42: 0.07 | Q42: 0.3 | R42: 0.64 | S42: 0 | T42: 20.494 | U42: 0.94 | AK42: =IF(OR(AH42=0,AH42=-1),Beregn1!$E$36,AH42) -> 41 | AL42: TRUE | AM42: =IF(AND(AK42=41,AL42=FALSE),Beregn1!$E$36,AH42) -> 0 | AO42: 0 | AP42: 0 | AQ42: 0 | AR42: 0 | AS42: 0 | AT42: 0 | AV42: =ROUND(AO42*Beregn1!$G$30,4) -> 0 | AW42: =ROUND(AP42*Beregn1!$G$30,4) -> 0 | AX42: =ROUND(AQ42*Beregn1!$G$30,4) -> 0 | AY42: =ROUND(AR42*Beregn1!$G$30,4) -> 0 | AZ42: =ROUND(AS42*Beregn1!$G$30,4) -> 0 | BA42: =ROUND(AT42*Beregn1!$G$30,4) -> 0
A43: =Beregn1!$B$106 -> 0.7 | B43: =Beregn1!$C$105 -> 0.15 | C43: =Beregn1!$D$106 -> 0 | D43: =Beregn1!$E$105 -> 600 | E43: =Beregn1!$F$105 -> 2000 | F43: =Beregn1!$G$106 -> 0 | I43: 0.7 | J43: 0.1 | K43: 300 | L43: 450 | M43: 2000 | N43: 18 | O43: 500 | P43: 0.57 | Q43: 0.3 | R43: 0.14 | S43: 0 | T43: 20.494 | U43: 0.91 | AK43: =IF(OR(AH43=0,AH43=-1),Beregn1!$E$36,AH43) -> 41 | AL43: TRUE | AM43: =IF(AND(AK43=41,AL43=FALSE),Beregn1!$E$36,AH43) -> 0 | AO43: 0 | AP43: 0 | AQ43: 0 | AR43: 0 | AS43: 0 | AT43: 0 | AV43: =ROUND(AO43*Beregn1!$G$30,4) -> 0 | AW43: =ROUND(AP43*Beregn1!$G$30,4) -> 0 | AX43: =ROUND(AQ43*Beregn1!$G$30,4) -> 0 | AY43: =ROUND(AR43*Beregn1!$G$30,4) -> 0 | AZ43: =ROUND(AS43*Beregn1!$G$30,4) -> 0 | BA43: =ROUND(AT43*Beregn1!$G$30,4) -> 0
A44: =Beregn1!$B$106 -> 0.7 | B44: =Beregn1!$C$105 -> 0.15 | C44: =Beregn1!$D$106 -> 0 | D44: =Beregn1!$E$105 -> 600 | E44: =Beregn1!$F$106 -> 0 | F44: =Beregn1!$G$105 -> 500 | I44: 0.7 | J44: 0.1 | K44: 300 | L44: 450 | M44: 2000 | N44: 36 | O44: 0 | P44: 0.06 | Q44: 0.3 | R44: 0.64 | S44: 0 | T44: 20.494 | U44: 0.94 | AK44: =IF(OR(AH44=0,AH44=-1),Beregn1!$E$36,AH44) -> 41 | AL44: TRUE | AM44: =IF(AND(AK44=41,AL44=FALSE),Beregn1!$E$36,AH44) -> 0 | AO44: 0 | AP44: 0 | AQ44: 0 | AR44: 0 | AS44: 0 | AT44: 0 | AV44: =ROUND(AO44*Beregn1!$G$30,4) -> 0 | AW44: =ROUND(AP44*Beregn1!$G$30,4) -> 0 | AX44: =ROUND(AQ44*Beregn1!$G$30,4) -> 0 | AY44: =ROUND(AR44*Beregn1!$G$30,4) -> 0 | AZ44: =ROUND(AS44*Beregn1!$G$30,4) -> 0 | BA44: =ROUND(AT44*Beregn1!$G$30,4) -> 0
A45: =Beregn1!$B$106 -> 0.7 | B45: =Beregn1!$C$105 -> 0.15 | C45: =Beregn1!$D$106 -> 0 | D45: =Beregn1!$E$105 -> 600 | E45: =Beregn1!$F$106 -> 0 | F45: =Beregn1!$G$106 -> 0 | I45: 0.7 | J45: 0.1 | K45: 300 | L45: 450 | M45: 2000 | N45: 36 | O45: 500 | P45: 0.57 | Q45: 0.3 | R45: 0.14 | S45: 0 | T45: 20.494 | U45: 0.91 | AK45: =IF(OR(AH45=0,AH45=-1),Beregn1!$E$36,AH45) -> 41 | AL45: TRUE | AM45: =IF(AND(AK45=41,AL45=FALSE),Beregn1!$E$36,AH45) -> 0 | AO45: 0 | AP45: 0 | AQ45: 0 | AR45: 0 | AS45: 0 | AT45: 0 | AV45: =ROUND(AO45*Beregn1!$G$30,4) -> 0 | AW45: =ROUND(AP45*Beregn1!$G$30,4) -> 0 | AX45: =ROUND(AQ45*Beregn1!$G$30,4) -> 0 | AY45: =ROUND(AR45*Beregn1!$G$30,4) -> 0 | AZ45: =ROUND(AS45*Beregn1!$G$30,4) -> 0 | BA45: =ROUND(AT45*Beregn1!$G$30,4) -> 0
A46: =Beregn1!$B$106 -> 0.7 | B46: =Beregn1!$C$105 -> 0.15 | C46: =Beregn1!$D$106 -> 0 | D46: =Beregn1!$E$106 -> 450 | E46: =Beregn1!$F$105 -> 2000 | F46: =Beregn1!$G$105 -> 500 | I46: 0.7 | J46: 0.1 | K46: 300 | L46: 450 | M46: 2000 | N46: 72 | O46: 0 | P46: 0.06 | Q46: 0.3 | R46: 0.64 | S46: 0 | T46: 20.494 | U46: 0.94 | AK46: =IF(OR(AH46=0,AH46=-1),Beregn1!$E$36,AH46) -> 41 | AL46: TRUE | AM46: =IF(AND(AK46=41,AL46=FALSE),Beregn1!$E$36,AH46) -> 0 | AO46: 0 | AP46: 0 | AQ46: 0 | AR46: 0 | AS46: 0 | AT46: 0 | AV46: =ROUND(AO46*Beregn1!$G$30,4) -> 0 | AW46: =ROUND(AP46*Beregn1!$G$30,4) -> 0 | AX46: =ROUND(AQ46*Beregn1!$G$30,4) -> 0 | AY46: =ROUND(AR46*Beregn1!$G$30,4) -> 0 | AZ46: =ROUND(AS46*Beregn1!$G$30,4) -> 0 | BA46: =ROUND(AT46*Beregn1!$G$30,4) -> 0
A47: =Beregn1!$B$106 -> 0.7 | B47: =Beregn1!$C$105 -> 0.15 | C47: =Beregn1!$D$106 -> 0 | D47: =Beregn1!$E$106 -> 450 | E47: =Beregn1!$F$105 -> 2000 | F47: =Beregn1!$G$106 -> 0 | I47: 0.7 | J47: 0.1 | K47: 300 | L47: 450 | M47: 2000 | N47: 72 | O47: 500 | P47: 0.57 | Q47: 0.3 | R47: 0.14 | S47: 0 | T47: 20.494 | U47: 0.91 | AK47: =IF(OR(AH47=0,AH47=-1),Beregn1!$E$36,AH47) -> 41 | AL47: TRUE | AM47: =IF(AND(AK47=41,AL47=FALSE),Beregn1!$E$36,AH47) -> 0 | AO47: 0 | AP47: 0 | AQ47: 0 | AR47: 0 | AS47: 0 | AT47: 0 | AV47: =ROUND(AO47*Beregn1!$G$30,4) -> 0 | AW47: =ROUND(AP47*Beregn1!$G$30,4) -> 0 | AX47: =ROUND(AQ47*Beregn1!$G$30,4) -> 0 | AY47: =ROUND(AR47*Beregn1!$G$30,4) -> 0 | AZ47: =ROUND(AS47*Beregn1!$G$30,4) -> 0 | BA47: =ROUND(AT47*Beregn1!$G$30,4) -> 0
A48: =Beregn1!$B$106 -> 0.7 | B48: =Beregn1!$C$105 -> 0.15 | C48: =Beregn1!$D$106 -> 0 | D48: =Beregn1!$E$106 -> 450 | E48: =Beregn1!$F$106 -> 0 | F48: =Beregn1!$G$105 -> 500 | I48: 0.7 | J48: 0.1 | K48: 300 | L48: 450 | M48: 2000 | N48: 180 | O48: 0 | P48: 0.06 | Q48: 0.3 | R48: 0.64 | S48: 0 | T48: 20.494 | U48: 0.94 | AK48: =IF(OR(AH48=0,AH48=-1),Beregn1!$E$36,AH48) -> 41 | AL48: TRUE | AM48: =IF(AND(AK48=41,AL48=FALSE),Beregn1!$E$36,AH48) -> 0 | AO48: 0 | AP48: 0 | AQ48: 0 | AR48: 0 | AS48: 0 | AT48: 0 | AV48: =ROUND(AO48*Beregn1!$G$30,4) -> 0 | AW48: =ROUND(AP48*Beregn1!$G$30,4) -> 0 | AX48: =ROUND(AQ48*Beregn1!$G$30,4) -> 0 | AY48: =ROUND(AR48*Beregn1!$G$30,4) -> 0 | AZ48: =ROUND(AS48*Beregn1!$G$30,4) -> 0 | BA48: =ROUND(AT48*Beregn1!$G$30,4) -> 0
A49: =Beregn1!$B$106 -> 0.7 | B49: =Beregn1!$C$105 -> 0.15 | C49: =Beregn1!$D$106 -> 0 | D49: =Beregn1!$E$106 -> 450 | E49: =Beregn1!$F$106 -> 0 | F49: =Beregn1!$G$106 -> 0 | I49: 0.7 | J49: 0.1 | K49: 300 | L49: 450 | M49: 2000 | N49: 180 | O49: 500 | P49: 0.57 | Q49: 0.3 | R49: 0.14 | S49: 0 | T49: 20.494 | U49: 0.91 | AK49: =IF(OR(AH49=0,AH49=-1),Beregn1!$E$36,AH49) -> 41 | AL49: TRUE | AM49: =IF(AND(AK49=41,AL49=FALSE),Beregn1!$E$36,AH49) -> 0 | AO49: 0 | AP49: 0 | AQ49: 0 | AR49: 0 | AS49: 0 | AT49: 0 | AV49: =ROUND(AO49*Beregn1!$G$30,4) -> 0 | AW49: =ROUND(AP49*Beregn1!$G$30,4) -> 0 | AX49: =ROUND(AQ49*Beregn1!$G$30,4) -> 0 | AY49: =ROUND(AR49*Beregn1!$G$30,4) -> 0 | AZ49: =ROUND(AS49*Beregn1!$G$30,4) -> 0 | BA49: =ROUND(AT49*Beregn1!$G$30,4) -> 0
A50: =Beregn1!$B$106 -> 0.7 | B50: =Beregn1!$C$106 -> 0.1 | C50: =Beregn1!$D$105 -> 300 | D50: =Beregn1!$E$105 -> 600 | E50: =Beregn1!$F$105 -> 2000 | F50: =Beregn1!$G$105 -> 500 | I50: 0.7 | J50: 0.1 | K50: 300 | L50: 450 | M50: 2000 | N50: 360 | O50: 0 | P50: 0.06 | Q50: 0.3 | R50: 0.64 | S50: 0 | T50: 20.494 | U50: 0.94 | AK50: =IF(OR(AH50=0,AH50=-1),Beregn1!$E$36,AH50) -> 41 | AL50: TRUE | AM50: =IF(AND(AK50=41,AL50=FALSE),Beregn1!$E$36,AH50) -> 0 | AO50: 0 | AP50: 0 | AQ50: 0 | AR50: 0 | AS50: 0 | AT50: 0 | AV50: =ROUND(AO50*Beregn1!$G$30,4) -> 0 | AW50: =ROUND(AP50*Beregn1!$G$30,4) -> 0 | AX50: =ROUND(AQ50*Beregn1!$G$30,4) -> 0 | AY50: =ROUND(AR50*Beregn1!$G$30,4) -> 0 | AZ50: =ROUND(AS50*Beregn1!$G$30,4) -> 0 | BA50: =ROUND(AT50*Beregn1!$G$30,4) -> 0
A51: =Beregn1!$B$106 -> 0.7 | B51: =Beregn1!$C$106 -> 0.1 | C51: =Beregn1!$D$105 -> 300 | D51: =Beregn1!$E$105 -> 600 | E51: =Beregn1!$F$105 -> 2000 | F51: =Beregn1!$G$106 -> 0 | I51: 0.7 | J51: 0.1 | K51: 300 | L51: 450 | M51: 2000 | N51: 360 | O51: 500 | P51: 0.57 | Q51: 0.3 | R51: 0.14 | S51: 0 | T51: 20.494 | U51: 0.91 | AK51: =IF(OR(AH51=0,AH51=-1),Beregn1!$E$36,AH51) -> 41 | AL51: TRUE | AM51: =IF(AND(AK51=41,AL51=FALSE),Beregn1!$E$36,AH51) -> 0 | AO51: 0 | AP51: 0 | AQ51: 0 | AR51: 0 | AS51: 0 | AT51: 0 | AV51: =ROUND(AO51*Beregn1!$G$30,4) -> 0 | AW51: =ROUND(AP51*Beregn1!$G$30,4) -> 0 | AX51: =ROUND(AQ51*Beregn1!$G$30,4) -> 0 | AY51: =ROUND(AR51*Beregn1!$G$30,4) -> 0 | AZ51: =ROUND(AS51*Beregn1!$G$30,4) -> 0 | BA51: =ROUND(AT51*Beregn1!$G$30,4) -> 0
A52: =Beregn1!$B$106 -> 0.7 | B52: =Beregn1!$C$106 -> 0.1 | C52: =Beregn1!$D$105 -> 300 | D52: =Beregn1!$E$105 -> 600 | E52: =Beregn1!$F$106 -> 0 | F52: =Beregn1!$G$105 -> 500 | I52: 0.7 | J52: 0.1 | K52: 300 | L52: 600 | M52: 2000 | N52: 18 | O52: 0 | P52: 0.07 | Q52: 0.3 | R52: 0.63 | S52: 0 | T52: 20.494 | U52: 0.93 | AK52: =IF(OR(AH52=0,AH52=-1),Beregn1!$E$36,AH52) -> 41 | AL52: TRUE | AM52: =IF(AND(AK52=41,AL52=FALSE),Beregn1!$E$36,AH52) -> 0 | AO52: 0 | AP52: 0 | AQ52: 0 | AR52: 0 | AS52: 0 | AT52: 0 | AV52: =ROUND(AO52*Beregn1!$G$30,4) -> 0 | AW52: =ROUND(AP52*Beregn1!$G$30,4) -> 0 | AX52: =ROUND(AQ52*Beregn1!$G$30,4) -> 0 | AY52: =ROUND(AR52*Beregn1!$G$30,4) -> 0 | AZ52: =ROUND(AS52*Beregn1!$G$30,4) -> 0 | BA52: =ROUND(AT52*Beregn1!$G$30,4) -> 0
A53: =Beregn1!$B$106 -> 0.7 | B53: =Beregn1!$C$106 -> 0.1 | C53: =Beregn1!$D$105 -> 300 | D53: =Beregn1!$E$105 -> 600 | E53: =Beregn1!$F$106 -> 0 | F53: =Beregn1!$G$106 -> 0 | I53: 0.7 | J53: 0.1 | K53: 300 | L53: 600 | M53: 2000 | N53: 18 | O53: 500 | P53: 0.56 | Q53: 0.3 | R53: 0.14 | S53: 0 | T53: 20.494 | U53: 0.9 | AK53: =IF(OR(AH53=0,AH53=-1),Beregn1!$E$36,AH53) -> 41 | AL53: TRUE | AM53: =IF(AND(AK53=41,AL53=FALSE),Beregn1!$E$36,AH53) -> 0 | AO53: 0 | AP53: 0 | AQ53: 0 | AR53: 0 | AS53: 0 | AT53: 0 | AV53: =ROUND(AO53*Beregn1!$G$30,4) -> 0 | AW53: =ROUND(AP53*Beregn1!$G$30,4) -> 0 | AX53: =ROUND(AQ53*Beregn1!$G$30,4) -> 0 | AY53: =ROUND(AR53*Beregn1!$G$30,4) -> 0 | AZ53: =ROUND(AS53*Beregn1!$G$30,4) -> 0 | BA53: =ROUND(AT53*Beregn1!$G$30,4) -> 0
A54: =Beregn1!$B$106 -> 0.7 | B54: =Beregn1!$C$106 -> 0.1 | C54: =Beregn1!$D$105 -> 300 | D54: =Beregn1!$E$106 -> 450 | E54: =Beregn1!$F$105 -> 2000 | F54: =Beregn1!$G$105 -> 500 | I54: 0.7 | J54: 0.1 | K54: 300 | L54: 600 | M54: 2000 | N54: 36 | O54: 0 | P54: 0.07 | Q54: 0.3 | R54: 0.63 | S54: 0 | T54: 20.494 | U54: 0.93 | AK54: =IF(OR(AH54=0,AH54=-1),Beregn1!$E$36,AH54) -> 41 | AL54: TRUE | AM54: =IF(AND(AK54=41,AL54=FALSE),Beregn1!$E$36,AH54) -> 0 | AO54: 0 | AP54: 0 | AQ54: 0 | AR54: 0 | AS54: 0 | AT54: 0 | AV54: =ROUND(AO54*Beregn1!$G$30,4) -> 0 | AW54: =ROUND(AP54*Beregn1!$G$30,4) -> 0 | AX54: =ROUND(AQ54*Beregn1!$G$30,4) -> 0 | AY54: =ROUND(AR54*Beregn1!$G$30,4) -> 0 | AZ54: =ROUND(AS54*Beregn1!$G$30,4) -> 0 | BA54: =ROUND(AT54*Beregn1!$G$30,4) -> 0
A55: =Beregn1!$B$106 -> 0.7 | B55: =Beregn1!$C$106 -> 0.1 | C55: =Beregn1!$D$105 -> 300 | D55: =Beregn1!$E$106 -> 450 | E55: =Beregn1!$F$105 -> 2000 | F55: =Beregn1!$G$106 -> 0 | I55: 0.7 | J55: 0.1 | K55: 300 | L55: 600 | M55: 2000 | N55: 36 | O55: 500 | P55: 0.56 | Q55: 0.3 | R55: 0.14 | S55: 0 | T55: 20.494 | U55: 0.9 | AK55: =IF(OR(AH55=0,AH55=-1),Beregn1!$E$36,AH55) -> 41 | AL55: TRUE | AM55: =IF(AND(AK55=41,AL55=FALSE),Beregn1!$E$36,AH55) -> 0 | AO55: 0 | AP55: 0 | AQ55: 0 | AR55: 0 | AS55: 0 | AT55: 0 | AV55: =ROUND(AO55*Beregn1!$G$30,4) -> 0 | AW55: =ROUND(AP55*Beregn1!$G$30,4) -> 0 | AX55: =ROUND(AQ55*Beregn1!$G$30,4) -> 0 | AY55: =ROUND(AR55*Beregn1!$G$30,4) -> 0 | AZ55: =ROUND(AS55*Beregn1!$G$30,4) -> 0 | BA55: =ROUND(AT55*Beregn1!$G$30,4) -> 0
A56: =Beregn1!$B$106 -> 0.7 | B56: =Beregn1!$C$106 -> 0.1 | C56: =Beregn1!$D$105 -> 300 | D56: =Beregn1!$E$106 -> 450 | E56: =Beregn1!$F$106 -> 0 | F56: =Beregn1!$G$105 -> 500 | I56: 0.7 | J56: 0.1 | K56: 300 | L56: 600 | M56: 2000 | N56: 72 | O56: 0 | P56: 0.07 | Q56: 0.3 | R56: 0.63 | S56: 0 | T56: 20.494 | U56: 0.93 | AK56: =IF(OR(AH56=0,AH56=-1),Beregn1!$E$36,AH56) -> 41 | AL56: TRUE | AM56: =IF(AND(AK56=41,AL56=FALSE),Beregn1!$E$36,AH56) -> 0 | AO56: 0 | AP56: 0 | AQ56: 0 | AR56: 0 | AS56: 0 | AT56: 0 | AV56: =ROUND(AO56*Beregn1!$G$30,4) -> 0 | AW56: =ROUND(AP56*Beregn1!$G$30,4) -> 0 | AX56: =ROUND(AQ56*Beregn1!$G$30,4) -> 0 | AY56: =ROUND(AR56*Beregn1!$G$30,4) -> 0 | AZ56: =ROUND(AS56*Beregn1!$G$30,4) -> 0 | BA56: =ROUND(AT56*Beregn1!$G$30,4) -> 0
A57: =Beregn1!$B$106 -> 0.7 | B57: =Beregn1!$C$106 -> 0.1 | C57: =Beregn1!$D$105 -> 300 | D57: =Beregn1!$E$106 -> 450 | E57: =Beregn1!$F$106 -> 0 | F57: =Beregn1!$G$106 -> 0 | I57: 0.7 | J57: 0.1 | K57: 300 | L57: 600 | M57: 2000 | N57: 72 | O57: 500 | P57: 0.56 | Q57: 0.3 | R57: 0.14 | S57: 0 | T57: 20.494 | U57: 0.9 | AK57: =IF(OR(AH57=0,AH57=-1),Beregn1!$E$36,AH57) -> 41 | AL57: TRUE | AM57: =IF(AND(AK57=41,AL57=FALSE),Beregn1!$E$36,AH57) -> 0 | AO57: 0 | AP57: 0 | AQ57: 0 | AR57: 0 | AS57: 0 | AT57: 0 | AV57: =ROUND(AO57*Beregn1!$G$30,4) -> 0 | AW57: =ROUND(AP57*Beregn1!$G$30,4) -> 0 | AX57: =ROUND(AQ57*Beregn1!$G$30,4) -> 0 | AY57: =ROUND(AR57*Beregn1!$G$30,4) -> 0 | AZ57: =ROUND(AS57*Beregn1!$G$30,4) -> 0 | BA57: =ROUND(AT57*Beregn1!$G$30,4) -> 0
A58: =Beregn1!$B$106 -> 0.7 | B58: =Beregn1!$C$106 -> 0.1 | C58: =Beregn1!$D$106 -> 0 | D58: =Beregn1!$E$105 -> 600 | E58: =Beregn1!$F$105 -> 2000 | F58: =Beregn1!$G$105 -> 500 | I58: 0.7 | J58: 0.1 | K58: 300 | L58: 600 | M58: 2000 | N58: 180 | O58: 0 | P58: 0.07 | Q58: 0.3 | R58: 0.63 | S58: 0 | T58: 20.494 | U58: 0.93 | AK58: =IF(OR(AH58=0,AH58=-1),Beregn1!$E$36,AH58) -> 41 | AL58: TRUE | AM58: =IF(AND(AK58=41,AL58=FALSE),Beregn1!$E$36,AH58) -> 0 | AO58: 0 | AP58: 0 | AQ58: 0 | AR58: 0 | AS58: 0 | AT58: 0 | AV58: =ROUND(AO58*Beregn1!$G$30,4) -> 0 | AW58: =ROUND(AP58*Beregn1!$G$30,4) -> 0 | AX58: =ROUND(AQ58*Beregn1!$G$30,4) -> 0 | AY58: =ROUND(AR58*Beregn1!$G$30,4) -> 0 | AZ58: =ROUND(AS58*Beregn1!$G$30,4) -> 0 | BA58: =ROUND(AT58*Beregn1!$G$30,4) -> 0
A59: =Beregn1!$B$106 -> 0.7 | B59: =Beregn1!$C$106 -> 0.1 | C59: =Beregn1!$D$106 -> 0 | D59: =Beregn1!$E$105 -> 600 | E59: =Beregn1!$F$105 -> 2000 | F59: =Beregn1!$G$106 -> 0 | I59: 0.7 | J59: 0.1 | K59: 300 | L59: 600 | M59: 2000 | N59: 180 | O59: 500 | P59: 0.56 | Q59: 0.3 | R59: 0.14 | S59: 0 | T59: 20.494 | U59: 0.9 | AK59: =IF(OR(AH59=0,AH59=-1),Beregn1!$E$36,AH59) -> 41 | AL59: TRUE | AM59: =IF(AND(AK59=41,AL59=FALSE),Beregn1!$E$36,AH59) -> 0 | AO59: 0 | AP59: 0 | AQ59: 0 | AR59: 0 | AS59: 0 | AT59: 0 | AV59: =ROUND(AO59*Beregn1!$G$30,4) -> 0 | AW59: =ROUND(AP59*Beregn1!$G$30,4) -> 0 | AX59: =ROUND(AQ59*Beregn1!$G$30,4) -> 0 | AY59: =ROUND(AR59*Beregn1!$G$30,4) -> 0 | AZ59: =ROUND(AS59*Beregn1!$G$30,4) -> 0 | BA59: =ROUND(AT59*Beregn1!$G$30,4) -> 0
A60: =Beregn1!$B$106 -> 0.7 | B60: =Beregn1!$C$106 -> 0.1 | C60: =Beregn1!$D$106 -> 0 | D60: =Beregn1!$E$105 -> 600 | E60: =Beregn1!$F$106 -> 0 | F60: =Beregn1!$G$105 -> 500 | I60: 0.7 | J60: 0.1 | K60: 300 | L60: 600 | M60: 2000 | N60: 360 | O60: 0 | P60: 0.07 | Q60: 0.3 | R60: 0.63 | S60: 0 | T60: 20.494 | U60: 0.93 | AK60: =IF(OR(AH60=0,AH60=-1),Beregn1!$E$36,AH60) -> 41 | AL60: TRUE | AM60: =IF(AND(AK60=41,AL60=FALSE),Beregn1!$E$36,AH60) -> 0 | AO60: 0 | AP60: 0 | AQ60: 0 | AR60: 0 | AS60: 0 | AT60: 0 | AV60: =ROUND(AO60*Beregn1!$G$30,4) -> 0 | AW60: =ROUND(AP60*Beregn1!$G$30,4) -> 0 | AX60: =ROUND(AQ60*Beregn1!$G$30,4) -> 0 | AY60: =ROUND(AR60*Beregn1!$G$30,4) -> 0 | AZ60: =ROUND(AS60*Beregn1!$G$30,4) -> 0 | BA60: =ROUND(AT60*Beregn1!$G$30,4) -> 0
A61: =Beregn1!$B$106 -> 0.7 | B61: =Beregn1!$C$106 -> 0.1 | C61: =Beregn1!$D$106 -> 0 | D61: =Beregn1!$E$105 -> 600 | E61: =Beregn1!$F$106 -> 0 | F61: =Beregn1!$G$106 -> 0 | I61: 0.7 | J61: 0.1 | K61: 300 | L61: 600 | M61: 2000 | N61: 360 | O61: 500 | P61: 0.56 | Q61: 0.3 | R61: 0.14 | S61: 0 | T61: 20.494 | U61: 0.9 | AK61: =IF(OR(AH61=0,AH61=-1),Beregn1!$E$36,AH61) -> 41 | AL61: TRUE | AM61: =IF(AND(AK61=41,AL61=FALSE),Beregn1!$E$36,AH61) -> 0 | AO61: 0 | AP61: 0 | AQ61: 0 | AR61: 0 | AS61: 0 | AT61: 0 | AV61: =ROUND(AO61*Beregn1!$G$30,4) -> 0 | AW61: =ROUND(AP61*Beregn1!$G$30,4) -> 0 | AX61: =ROUND(AQ61*Beregn1!$G$30,4) -> 0 | AY61: =ROUND(AR61*Beregn1!$G$30,4) -> 0 | AZ61: =ROUND(AS61*Beregn1!$G$30,4) -> 0 | BA61: =ROUND(AT61*Beregn1!$G$30,4) -> 0
A62: =Beregn1!$B$106 -> 0.7 | B62: =Beregn1!$C$106 -> 0.1 | C62: =Beregn1!$D$106 -> 0 | D62: =Beregn1!$E$106 -> 450 | E62: =Beregn1!$F$105 -> 2000 | F62: =Beregn1!$G$105 -> 500 | I62: 0.7 | J62: 0.15 | K62: 300 | L62: 450 | M62: 2000 | N62: 12 | O62: 0 | P62: 0.09 | Q62: 0.33 | R62: 0.58 | S62: 0 | T62: 40.989 | U62: 0.94 | AK62: =IF(OR(AH62=0,AH62=-1),Beregn1!$E$36,AH62) -> 41 | AL62: TRUE | AM62: =IF(AND(AK62=41,AL62=FALSE),Beregn1!$E$36,AH62) -> 0 | AO62: 0 | AP62: 0 | AQ62: 0 | AR62: 0 | AS62: 0 | AT62: 0 | AV62: =ROUND(AO62*Beregn1!$G$30,4) -> 0 | AW62: =ROUND(AP62*Beregn1!$G$30,4) -> 0 | AX62: =ROUND(AQ62*Beregn1!$G$30,4) -> 0 | AY62: =ROUND(AR62*Beregn1!$G$30,4) -> 0 | AZ62: =ROUND(AS62*Beregn1!$G$30,4) -> 0 | BA62: =ROUND(AT62*Beregn1!$G$30,4) -> 0
A63: =Beregn1!$B$106 -> 0.7 | B63: =Beregn1!$C$106 -> 0.1 | C63: =Beregn1!$D$106 -> 0 | D63: =Beregn1!$E$106 -> 450 | E63: =Beregn1!$F$105 -> 2000 | F63: =Beregn1!$G$106 -> 0 | I63: 0.7 | J63: 0.15 | K63: 300 | L63: 450 | M63: 2000 | N63: 12 | O63: 500 | P63: 0.62 | Q63: 0.33 | R63: 0.05 | S63: 0 | T63: 40.989 | U63: 0.94 | AK63: =IF(OR(AH63=0,AH63=-1),Beregn1!$E$36,AH63) -> 41 | AL63: TRUE | AM63: =IF(AND(AK63=41,AL63=FALSE),Beregn1!$E$36,AH63) -> 0 | AO63: 0 | AP63: 0 | AQ63: 0 | AR63: 0 | AS63: 0 | AT63: 0 | AV63: =ROUND(AO63*Beregn1!$G$30,4) -> 0 | AW63: =ROUND(AP63*Beregn1!$G$30,4) -> 0 | AX63: =ROUND(AQ63*Beregn1!$G$30,4) -> 0 | AY63: =ROUND(AR63*Beregn1!$G$30,4) -> 0 | AZ63: =ROUND(AS63*Beregn1!$G$30,4) -> 0 | BA63: =ROUND(AT63*Beregn1!$G$30,4) -> 0
A64: =Beregn1!$B$106 -> 0.7 | B64: =Beregn1!$C$106 -> 0.1 | C64: =Beregn1!$D$106 -> 0 | D64: =Beregn1!$E$106 -> 450 | E64: =Beregn1!$F$106 -> 0 | F64: =Beregn1!$G$105 -> 500 | I64: 0.7 | J64: 0.15 | K64: 300 | L64: 450 | M64: 2000 | N64: 24 | O64: 0 | P64: 0.09 | Q64: 0.33 | R64: 0.58 | S64: 0 | T64: 40.989 | U64: 0.94 | AK64: =IF(OR(AH64=0,AH64=-1),Beregn1!$E$36,AH64) -> 41 | AL64: TRUE | AM64: =IF(AND(AK64=41,AL64=FALSE),Beregn1!$E$36,AH64) -> 0 | AO64: 0 | AP64: 0 | AQ64: 0 | AR64: 0 | AS64: 0 | AT64: 0 | AV64: =ROUND(AO64*Beregn1!$G$30,4) -> 0 | AW64: =ROUND(AP64*Beregn1!$G$30,4) -> 0 | AX64: =ROUND(AQ64*Beregn1!$G$30,4) -> 0 | AY64: =ROUND(AR64*Beregn1!$G$30,4) -> 0 | AZ64: =ROUND(AS64*Beregn1!$G$30,4) -> 0 | BA64: =ROUND(AT64*Beregn1!$G$30,4) -> 0
A65: =Beregn1!$B$106 -> 0.7 | B65: =Beregn1!$C$106 -> 0.1 | C65: =Beregn1!$D$106 -> 0 | D65: =Beregn1!$E$106 -> 450 | E65: =Beregn1!$F$106 -> 0 | F65: =Beregn1!$G$106 -> 0 | I65: 0.7 | J65: 0.15 | K65: 300 | L65: 450 | M65: 2000 | N65: 24 | O65: 500 | P65: 0.62 | Q65: 0.33 | R65: 0.05 | S65: 0 | T65: 40.989 | U65: 0.94 | AK65: =IF(OR(AH65=0,AH65=-1),Beregn1!$E$36,AH65) -> 41 | AL65: TRUE | AM65: =IF(AND(AK65=41,AL65=FALSE),Beregn1!$E$36,AH65) -> 0 | AO65: 0 | AP65: 0 | AQ65: 0 | AR65: 0 | AS65: 0 | AT65: 0 | AV65: =ROUND(AO65*Beregn1!$G$30,4) -> 0 | AW65: =ROUND(AP65*Beregn1!$G$30,4) -> 0 | AX65: =ROUND(AQ65*Beregn1!$G$30,4) -> 0 | AY65: =ROUND(AR65*Beregn1!$G$30,4) -> 0 | AZ65: =ROUND(AS65*Beregn1!$G$30,4) -> 0 | BA65: =ROUND(AT65*Beregn1!$G$30,4) -> 0
I66: 0.7 | J66: 0.15 | K66: 300 | L66: 450 | M66: 2000 | N66: 48 | O66: 0 | P66: 0.09 | Q66: 0.33 | R66: 0.58 | S66: 0 | T66: 40.989 | U66: 0.94 | AK66: =IF(OR(AH66=0,AH66=-1),Beregn1!$E$36,AH66) -> 41 | AL66: TRUE | AM66: =IF(AND(AK66=41,AL66=FALSE),Beregn1!$E$36,AH66) -> 0 | AO66: =INDEX($W66:$AI66,MATCH("Infiltrated",$W$1:$AI$1,0)) -> 0 | AP66: =INDEX($W66:$AI66,MATCH("Evaporated",$W$1:$AI$1,0)) -> 0 | AQ66: =INDEX($W66:$AI66,MATCH("Drained",$W$1:$AI$1,0)) -> 0 | AR66: =INDEX($W66:$AI66,MATCH("Overflow",$W$1:$AI$1,0)) -> 0 | AS66: =AM66 -> 0 | AT66: =INDEX($W66:$AI66,MATCH("Available_Volume",$W$1:$AI$1,0)) -> 0 | AV66: =ROUND(AO66*Beregn1!$G$30,4) -> 0 | AW66: =ROUND(AP66*Beregn1!$G$30,4) -> 0 | AX66: =ROUND(AQ66*Beregn1!$G$30,4) -> 0 | AY66: =ROUND(AR66*Beregn1!$G$30,4) -> 0 | AZ66: =ROUND(AS66*Beregn1!$G$30,4) -> 0 | BA66: =ROUND(AT66*Beregn1!$G$30,4) -> 0
I67: 0.7 | J67: 0.15 | K67: 300 | L67: 450 | M67: 2000 | N67: 48 | O67: 500 | P67: 0.62 | Q67: 0.33 | R67: 0.05 | S67: 0 | T67: 40.989 | U67: 0.94 | AK67: =IF(OR(AH67=0,AH67=-1),Beregn1!$E$36,AH67) -> 41 | AL67: =ISBLANK(AH67) -> TRUE | AM67: =IF(AND(AK67=41,AL67=FALSE),Beregn1!$E$36,AH67) -> 0 | AO67: 0 | AP67: 0 | AQ67: 0 | AR67: 0 | AS67: 0 | AT67: 0 | AV67: =ROUND(AO67*Beregn1!$G$30,4) -> 0 | AW67: =ROUND(AP67*Beregn1!$G$30,4) -> 0 | AX67: =ROUND(AQ67*Beregn1!$G$30,4) -> 0 | AY67: =ROUND(AR67*Beregn1!$G$30,4) -> 0 | AZ67: =ROUND(AS67*Beregn1!$G$30,4) -> 0 | BA67: =ROUND(AT67*Beregn1!$G$30,4) -> 0
I68: 0.7 | J68: 0.15 | K68: 300 | L68: 450 | M68: 2000 | N68: 120 | O68: 0 | P68: 0.09 | Q68: 0.33 | R68: 0.58 | S68: 0 | T68: 40.989 | U68: 0.94 | AK68: =IF(OR(AH68=0,AH68=-1),Beregn1!$E$36,AH68) -> 41 | AL68: TRUE | AM68: =IF(AND(AK68=41,AL68=FALSE),Beregn1!$E$36,AH68) -> 0 | AO68: 0 | AP68: 0 | AQ68: 0 | AR68: 0 | AS68: 0 | AT68: 0 | AV68: =ROUND(AO68*Beregn1!$G$30,4) -> 0 | AW68: =ROUND(AP68*Beregn1!$G$30,4) -> 0 | AX68: =ROUND(AQ68*Beregn1!$G$30,4) -> 0 | AY68: =ROUND(AR68*Beregn1!$G$30,4) -> 0 | AZ68: =ROUND(AS68*Beregn1!$G$30,4) -> 0 | BA68: =ROUND(AT68*Beregn1!$G$30,4) -> 0
I69: 0.7 | J69: 0.15 | K69: 300 | L69: 450 | M69: 2000 | N69: 120 | O69: 500 | P69: 0.62 | Q69: 0.33 | R69: 0.05 | S69: 0 | T69: 40.989 | U69: 0.94 | AK69: =IF(OR(AH69=0,AH69=-1),Beregn1!$E$36,AH69) -> 41 | AL69: TRUE | AM69: =IF(AND(AK69=41,AL69=FALSE),Beregn1!$E$36,AH69) -> 0 | AO69: 0 | AP69: 0 | AQ69: 0 | AR69: 0 | AS69: 0 | AT69: 0 | AV69: =ROUND(AO69*Beregn1!$G$30,4) -> 0 | AW69: =ROUND(AP69*Beregn1!$G$30,4) -> 0 | AX69: =ROUND(AQ69*Beregn1!$G$30,4) -> 0 | AY69: =ROUND(AR69*Beregn1!$G$30,4) -> 0 | AZ69: =ROUND(AS69*Beregn1!$G$30,4) -> 0 | BA69: =ROUND(AT69*Beregn1!$G$30,4) -> 0
A70: K | B70: A_ratio | C70: surface_depth | D70: soil_depth | E70: storage_depth | F70: drain_coefficient | G70: drain_offset | I70: 0.7 | J70: 0.15 | K70: 300 | L70: 450 | M70: 2000 | N70: 240 | O70: 0 | P70: 0.09 | Q70: 0.33 | R70: 0.58 | S70: 0 | T70: 40.989 | U70: 0.94 | AK70: =IF(OR(AH70=0,AH70=-1),Beregn1!$E$36,AH70) -> 41 | AL70: TRUE | AM70: =IF(AND(AK70=41,AL70=FALSE),Beregn1!$E$36,AH70) -> 0 | AO70: 0 | AP70: 0 | AQ70: 0 | AR70: 0 | AS70: 0 | AT70: 0 | AV70: =ROUND(AO70*Beregn1!$G$30,4) -> 0 | AW70: =ROUND(AP70*Beregn1!$G$30,4) -> 0 | AX70: =ROUND(AQ70*Beregn1!$G$30,4) -> 0 | AY70: =ROUND(AR70*Beregn1!$G$30,4) -> 0 | AZ70: =ROUND(AS70*Beregn1!$G$30,4) -> 0 | BA70: =ROUND(AT70*Beregn1!$G$30,4) -> 0
B71: =Beregn1!C105 -> 0.15 | F71: =Beregn1!H105 -> 12 | I71: 0.7 | J71: 0.15 | K71: 300 | L71: 450 | M71: 2000 | N71: 240 | O71: 500 | P71: 0.62 | Q71: 0.33 | R71: 0.05 | S71: 0 | T71: 40.989 | U71: 0.94 | AK71: =IF(OR(AH71=0,AH71=-1),Beregn1!$E$36,AH71) -> 41 | AL71: TRUE | AM71: =IF(AND(AK71=41,AL71=FALSE),Beregn1!$E$36,AH71) -> 0 | AO71: 0 | AP71: 0 | AQ71: 0 | AR71: 0 | AS71: 0 | AT71: 0 | AV71: =ROUND(AO71*Beregn1!$G$30,4) -> 0 | AW71: =ROUND(AP71*Beregn1!$G$30,4) -> 0 | AX71: =ROUND(AQ71*Beregn1!$G$30,4) -> 0 | AY71: =ROUND(AR71*Beregn1!$G$30,4) -> 0 | AZ71: =ROUND(AS71*Beregn1!$G$30,4) -> 0 | BA71: =ROUND(AT71*Beregn1!$G$30,4) -> 0
B72: =Beregn1!C105 -> 0.15 | F72: =Beregn1!I105 -> 0 | I72: 0.7 | J72: 0.15 | K72: 300 | L72: 600 | M72: 2000 | N72: 12 | O72: 0 | P72: 0.09 | Q72: 0.33 | R72: 0.58 | S72: 0 | T72: 40.989 | U72: 0.93 | AK72: =IF(OR(AH72=0,AH72=-1),Beregn1!$E$36,AH72) -> 41 | AL72: TRUE | AM72: =IF(AND(AK72=41,AL72=FALSE),Beregn1!$E$36,AH72) -> 0 | AO72: 0 | AP72: 0 | AQ72: 0 | AR72: 0 | AS72: 0 | AT72: 0 | AV72: =ROUND(AO72*Beregn1!$G$30,4) -> 0 | AW72: =ROUND(AP72*Beregn1!$G$30,4) -> 0 | AX72: =ROUND(AQ72*Beregn1!$G$30,4) -> 0 | AY72: =ROUND(AR72*Beregn1!$G$30,4) -> 0 | AZ72: =ROUND(AS72*Beregn1!$G$30,4) -> 0 | BA72: =ROUND(AT72*Beregn1!$G$30,4) -> 0
B73: =Beregn1!C106 -> 0.1 | F73: =Beregn1!H106 -> 18 | I73: 0.7 | J73: 0.15 | K73: 300 | L73: 600 | M73: 2000 | N73: 12 | O73: 500 | P73: 0.62 | Q73: 0.33 | R73: 0.05 | S73: 0 | T73: 40.989 | U73: 0.92 | AK73: =IF(OR(AH73=0,AH73=-1),Beregn1!$E$36,AH73) -> 41 | AL73: TRUE | AM73: =IF(AND(AK73=41,AL73=FALSE),Beregn1!$E$36,AH73) -> 0 | AO73: 0 | AP73: 0 | AQ73: 0 | AR73: 0 | AS73: 0 | AT73: 0 | AV73: =ROUND(AO73*Beregn1!$G$30,4) -> 0 | AW73: =ROUND(AP73*Beregn1!$G$30,4) -> 0 | AX73: =ROUND(AQ73*Beregn1!$G$30,4) -> 0 | AY73: =ROUND(AR73*Beregn1!$G$30,4) -> 0 | AZ73: =ROUND(AS73*Beregn1!$G$30,4) -> 0 | BA73: =ROUND(AT73*Beregn1!$G$30,4) -> 0
B74: =Beregn1!C106 -> 0.1 | F74: =Beregn1!I106 -> 0 | I74: 0.7 | J74: 0.15 | K74: 300 | L74: 600 | M74: 2000 | N74: 24 | O74: 0 | P74: 0.09 | Q74: 0.33 | R74: 0.58 | S74: 0 | T74: 40.989 | U74: 0.93 | AK74: =IF(OR(AH74=0,AH74=-1),Beregn1!$E$36,AH74) -> 41 | AL74: TRUE | AM74: =IF(AND(AK74=41,AL74=FALSE),Beregn1!$E$36,AH74) -> 0 | AO74: 0 | AP74: 0 | AQ74: 0 | AR74: 0 | AS74: 0 | AT74: 0 | AV74: =ROUND(AO74*Beregn1!$G$30,4) -> 0 | AW74: =ROUND(AP74*Beregn1!$G$30,4) -> 0 | AX74: =ROUND(AQ74*Beregn1!$G$30,4) -> 0 | AY74: =ROUND(AR74*Beregn1!$G$30,4) -> 0 | AZ74: =ROUND(AS74*Beregn1!$G$30,4) -> 0 | BA74: =ROUND(AT74*Beregn1!$G$30,4) -> 0
I75: 0.7 | J75: 0.15 | K75: 300 | L75: 600 | M75: 2000 | N75: 24 | O75: 500 | P75: 0.62 | Q75: 0.33 | R75: 0.05 | S75: 0 | T75: 40.989 | U75: 0.92 | AK75: =IF(OR(AH75=0,AH75=-1),Beregn1!$E$36,AH75) -> 41 | AL75: TRUE | AM75: =IF(AND(AK75=41,AL75=FALSE),Beregn1!$E$36,AH75) -> 0 | AO75: 0 | AP75: 0 | AQ75: 0 | AR75: 0 | AS75: 0 | AT75: 0 | AV75: =ROUND(AO75*Beregn1!$G$30,4) -> 0 | AW75: =ROUND(AP75*Beregn1!$G$30,4) -> 0 | AX75: =ROUND(AQ75*Beregn1!$G$30,4) -> 0 | AY75: =ROUND(AR75*Beregn1!$G$30,4) -> 0 | AZ75: =ROUND(AS75*Beregn1!$G$30,4) -> 0 | BA75: =ROUND(AT75*Beregn1!$G$30,4) -> 0
I76: 0.7 | J76: 0.15 | K76: 300 | L76: 600 | M76: 2000 | N76: 48 | O76: 0 | P76: 0.09 | Q76: 0.33 | R76: 0.58 | S76: 0 | T76: 40.989 | U76: 0.93 | AK76: =IF(OR(AH76=0,AH76=-1),Beregn1!$E$36,AH76) -> 41 | AL76: TRUE | AM76: =IF(AND(AK76=41,AL76=FALSE),Beregn1!$E$36,AH76) -> 0 | AO76: 0 | AP76: 0 | AQ76: 0 | AR76: 0 | AS76: 0 | AT76: 0 | AV76: =ROUND(AO76*Beregn1!$G$30,4) -> 0 | AW76: =ROUND(AP76*Beregn1!$G$30,4) -> 0 | AX76: =ROUND(AQ76*Beregn1!$G$30,4) -> 0 | AY76: =ROUND(AR76*Beregn1!$G$30,4) -> 0 | AZ76: =ROUND(AS76*Beregn1!$G$30,4) -> 0 | BA76: =ROUND(AT76*Beregn1!$G$30,4) -> 0
I77: 0.7 | J77: 0.15 | K77: 300 | L77: 600 | M77: 2000 | N77: 48 | O77: 500 | P77: 0.62 | Q77: 0.33 | R77: 0.05 | S77: 0 | T77: 40.989 | U77: 0.92 | AK77: =IF(OR(AH77=0,AH77=-1),Beregn1!$E$36,AH77) -> 41 | AL77: TRUE | AM77: =IF(AND(AK77=41,AL77=FALSE),Beregn1!$E$36,AH77) -> 0 | AO77: 0 | AP77: 0 | AQ77: 0 | AR77: 0 | AS77: 0 | AT77: 0 | AV77: =ROUND(AO77*Beregn1!$G$30,4) -> 0 | AW77: =ROUND(AP77*Beregn1!$G$30,4) -> 0 | AX77: =ROUND(AQ77*Beregn1!$G$30,4) -> 0 | AY77: =ROUND(AR77*Beregn1!$G$30,4) -> 0 | AZ77: =ROUND(AS77*Beregn1!$G$30,4) -> 0 | BA77: =ROUND(AT77*Beregn1!$G$30,4) -> 0
I78: 0.7 | J78: 0.15 | K78: 300 | L78: 600 | M78: 2000 | N78: 120 | O78: 0 | P78: 0.09 | Q78: 0.33 | R78: 0.58 | S78: 0 | T78: 40.989 | U78: 0.93 | AK78: =IF(OR(AH78=0,AH78=-1),Beregn1!$E$36,AH78) -> 41 | AL78: TRUE | AM78: =IF(AND(AK78=41,AL78=FALSE),Beregn1!$E$36,AH78) -> 0 | AO78: 0 | AP78: 0 | AQ78: 0 | AR78: 0 | AS78: 0 | AT78: 0 | AV78: =ROUND(AO78*Beregn1!$G$30,4) -> 0 | AW78: =ROUND(AP78*Beregn1!$G$30,4) -> 0 | AX78: =ROUND(AQ78*Beregn1!$G$30,4) -> 0 | AY78: =ROUND(AR78*Beregn1!$G$30,4) -> 0 | AZ78: =ROUND(AS78*Beregn1!$G$30,4) -> 0 | BA78: =ROUND(AT78*Beregn1!$G$30,4) -> 0
I79: 0.7 | J79: 0.15 | K79: 300 | L79: 600 | M79: 2000 | N79: 120 | O79: 500 | P79: 0.62 | Q79: 0.33 | R79: 0.05 | S79: 0 | T79: 40.989 | U79: 0.92 | AK79: =IF(OR(AH79=0,AH79=-1),Beregn1!$E$36,AH79) -> 41 | AL79: TRUE | AM79: =IF(AND(AK79=41,AL79=FALSE),Beregn1!$E$36,AH79) -> 0 | AO79: 0 | AP79: 0 | AQ79: 0 | AR79: 0 | AS79: 0 | AT79: 0 | AV79: =ROUND(AO79*Beregn1!$G$30,4) -> 0 | AW79: =ROUND(AP79*Beregn1!$G$30,4) -> 0 | AX79: =ROUND(AQ79*Beregn1!$G$30,4) -> 0 | AY79: =ROUND(AR79*Beregn1!$G$30,4) -> 0 | AZ79: =ROUND(AS79*Beregn1!$G$30,4) -> 0 | BA79: =ROUND(AT79*Beregn1!$G$30,4) -> 0
I80: 0.7 | J80: 0.15 | K80: 300 | L80: 600 | M80: 2000 | N80: 240 | O80: 0 | P80: 0.09 | Q80: 0.33 | R80: 0.58 | S80: 0 | T80: 40.989 | U80: 0.93 | AK80: =IF(OR(AH80=0,AH80=-1),Beregn1!$E$36,AH80) -> 41 | AL80: TRUE | AM80: =IF(AND(AK80=41,AL80=FALSE),Beregn1!$E$36,AH80) -> 0 | AO80: 0 | AP80: 0 | AQ80: 0 | AR80: 0 | AS80: 0 | AT80: 0 | AV80: =ROUND(AO80*Beregn1!$G$30,4) -> 0 | AW80: =ROUND(AP80*Beregn1!$G$30,4) -> 0 | AX80: =ROUND(AQ80*Beregn1!$G$30,4) -> 0 | AY80: =ROUND(AR80*Beregn1!$G$30,4) -> 0 | AZ80: =ROUND(AS80*Beregn1!$G$30,4) -> 0 | BA80: =ROUND(AT80*Beregn1!$G$30,4) -> 0
I81: 0.7 | J81: 0.15 | K81: 300 | L81: 600 | M81: 2000 | N81: 240 | O81: 500 | P81: 0.62 | Q81: 0.33 | R81: 0.05 | S81: 0 | T81: 40.989 | U81: 0.92 | AK81: =IF(OR(AH81=0,AH81=-1),Beregn1!$E$36,AH81) -> 41 | AL81: TRUE | AM81: =IF(AND(AK81=41,AL81=FALSE),Beregn1!$E$36,AH81) -> 0 | AO81: 0 | AP81: 0 | AQ81: 0 | AR81: 0 | AS81: 0 | AT81: 0 | AV81: =ROUND(AO81*Beregn1!$G$30,4) -> 0 | AW81: =ROUND(AP81*Beregn1!$G$30,4) -> 0 | AX81: =ROUND(AQ81*Beregn1!$G$30,4) -> 0 | AY81: =ROUND(AR81*Beregn1!$G$30,4) -> 0 | AZ81: =ROUND(AS81*Beregn1!$G$30,4) -> 0 | BA81: =ROUND(AT81*Beregn1!$G$30,4) -> 0
AK82: =IF(OR(AH82=0,AH82=-1),Beregn1!$E$36,AH82) -> 41 | AL82: TRUE | AM82: =IF(AND(AK82=41,AL82=FALSE),Beregn1!$E$36,AH82) -> 0 | AO82: 0 | AP82: 0 | AQ82: 0 | AR82: 0 | AS82: 0 | AT82: 0 | AV82: =ROUND(AO82*Beregn1!$G$30,4) -> 0 | AW82: =ROUND(AP82*Beregn1!$G$30,4) -> 0 | AX82: =ROUND(AQ82*Beregn1!$G$30,4) -> 0 | AY82: =ROUND(AR82*Beregn1!$G$30,4) -> 0 | AZ82: =ROUND(AS82*Beregn1!$G$30,4) -> 0 | BA82: =ROUND(AT82*Beregn1!$G$30,4) -> 0
AK83: =IF(OR(AH83=0,AH83=-1),Beregn1!$E$36,AH83) -> 41 | AL83: TRUE | AM83: =IF(AND(AK83=41,AL83=FALSE),Beregn1!$E$36,AH83) -> 0 | AO83: 0 | AP83: 0 | AQ83: 0 | AR83: 0 | AS83: 0 | AT83: 0 | AV83: =ROUND(AO83*Beregn1!$G$30,4) -> 0 | AW83: =ROUND(AP83*Beregn1!$G$30,4) -> 0 | AX83: =ROUND(AQ83*Beregn1!$G$30,4) -> 0 | AY83: =ROUND(AR83*Beregn1!$G$30,4) -> 0 | AZ83: =ROUND(AS83*Beregn1!$G$30,4) -> 0 | BA83: =ROUND(AT83*Beregn1!$G$30,4) -> 0
AK84: =IF(OR(AH84=0,AH84=-1),Beregn1!$E$36,AH84) -> 41 | AL84: TRUE | AM84: =IF(AND(AK84=41,AL84=FALSE),Beregn1!$E$36,AH84) -> 0 | AO84: 0 | AP84: 0 | AQ84: 0 | AR84: 0 | AS84: 0 | AT84: 0 | AV84: =ROUND(AO84*Beregn1!$G$30,4) -> 0 | AW84: =ROUND(AP84*Beregn1!$G$30,4) -> 0 | AX84: =ROUND(AQ84*Beregn1!$G$30,4) -> 0 | AY84: =ROUND(AR84*Beregn1!$G$30,4) -> 0 | AZ84: =ROUND(AS84*Beregn1!$G$30,4) -> 0 | BA84: =ROUND(AT84*Beregn1!$G$30,4) -> 0
AK85: =IF(OR(AH85=0,AH85=-1),Beregn1!$E$36,AH85) -> 41 | AL85: TRUE | AM85: =IF(AND(AK85=41,AL85=FALSE),Beregn1!$E$36,AH85) -> 0 | AO85: 0 | AP85: 0 | AQ85: 0 | AR85: 0 | AS85: 0 | AT85: 0 | AV85: =ROUND(AO85*Beregn1!$G$30,4) -> 0 | AW85: =ROUND(AP85*Beregn1!$G$30,4) -> 0 | AX85: =ROUND(AQ85*Beregn1!$G$30,4) -> 0 | AY85: =ROUND(AR85*Beregn1!$G$30,4) -> 0 | AZ85: =ROUND(AS85*Beregn1!$G$30,4) -> 0 | BA85: =ROUND(AT85*Beregn1!$G$30,4) -> 0
AK86: =IF(OR(AH86=0,AH86=-1),Beregn1!$E$36,AH86) -> 41 | AL86: TRUE | AM86: =IF(AND(AK86=41,AL86=FALSE),Beregn1!$E$36,AH86) -> 0 | AO86: 0 | AP86: 0 | AQ86: 0 | AR86: 0 | AS86: 0 | AT86: 0 | AV86: =ROUND(AO86*Beregn1!$G$30,4) -> 0 | AW86: =ROUND(AP86*Beregn1!$G$30,4) -> 0 | AX86: =ROUND(AQ86*Beregn1!$G$30,4) -> 0 | AY86: =ROUND(AR86*Beregn1!$G$30,4) -> 0 | AZ86: =ROUND(AS86*Beregn1!$G$30,4) -> 0 | BA86: =ROUND(AT86*Beregn1!$G$30,4) -> 0
AK87: =IF(OR(AH87=0,AH87=-1),Beregn1!$E$36,AH87) -> 41 | AL87: TRUE | AM87: =IF(AND(AK87=41,AL87=FALSE),Beregn1!$E$36,AH87) -> 0 | AO87: 0 | AP87: 0 | AQ87: 0 | AR87: 0 | AS87: 0 | AT87: 0 | AV87: =ROUND(AO87*Beregn1!$G$30,4) -> 0 | AW87: =ROUND(AP87*Beregn1!$G$30,4) -> 0 | AX87: =ROUND(AQ87*Beregn1!$G$30,4) -> 0 | AY87: =ROUND(AR87*Beregn1!$G$30,4) -> 0 | AZ87: =ROUND(AS87*Beregn1!$G$30,4) -> 0 | BA87: =ROUND(AT87*Beregn1!$G$30,4) -> 0
AK88: =IF(OR(AH88=0,AH88=-1),Beregn1!$E$36,AH88) -> 41 | AL88: TRUE | AM88: =IF(AND(AK88=41,AL88=FALSE),Beregn1!$E$36,AH88) -> 0 | AO88: 0 | AP88: 0 | AQ88: 0 | AR88: 0 | AS88: 0 | AT88: 0 | AV88: =ROUND(AO88*Beregn1!$G$30,4) -> 0 | AW88: =ROUND(AP88*Beregn1!$G$30,4) -> 0 | AX88: =ROUND(AQ88*Beregn1!$G$30,4) -> 0 | AY88: =ROUND(AR88*Beregn1!$G$30,4) -> 0 | AZ88: =ROUND(AS88*Beregn1!$G$30,4) -> 0 | BA88: =ROUND(AT88*Beregn1!$G$30,4) -> 0
AK89: =IF(OR(AH89=0,AH89=-1),Beregn1!$E$36,AH89) -> 41 | AL89: TRUE | AM89: =IF(AND(AK89=41,AL89=FALSE),Beregn1!$E$36,AH89) -> 0 | AO89: 0 | AP89: 0 | AQ89: 0 | AR89: 0 | AS89: 0 | AT89: 0 | AV89: =ROUND(AO89*Beregn1!$G$30,4) -> 0 | AW89: =ROUND(AP89*Beregn1!$G$30,4) -> 0 | AX89: =ROUND(AQ89*Beregn1!$G$30,4) -> 0 | AY89: =ROUND(AR89*Beregn1!$G$30,4) -> 0 | AZ89: =ROUND(AS89*Beregn1!$G$30,4) -> 0 | BA89: =ROUND(AT89*Beregn1!$G$30,4) -> 0
AK90: =IF(OR(AH90=0,AH90=-1),Beregn1!$E$36,AH90) -> 41 | AL90: TRUE | AM90: =IF(AND(AK90=41,AL90=FALSE),Beregn1!$E$36,AH90) -> 0 | AO90: 0 | AP90: 0 | AQ90: 0 | AR90: 0 | AS90: 0 | AT90: 0 | AV90: =ROUND(AO90*Beregn1!$G$30,4) -> 0 | AW90: =ROUND(AP90*Beregn1!$G$30,4) -> 0 | AX90: =ROUND(AQ90*Beregn1!$G$30,4) -> 0 | AY90: =ROUND(AR90*Beregn1!$G$30,4) -> 0 | AZ90: =ROUND(AS90*Beregn1!$G$30,4) -> 0 | BA90: =ROUND(AT90*Beregn1!$G$30,4) -> 0
AK91: =IF(OR(AH91=0,AH91=-1),Beregn1!$E$36,AH91) -> 41 | AL91: TRUE | AM91: =IF(AND(AK91=41,AL91=FALSE),Beregn1!$E$36,AH91) -> 0 | AO91: 0 | AP91: 0 | AQ91: 0 | AR91: 0 | AS91: 0 | AT91: 0 | AV91: =ROUND(AO91*Beregn1!$G$30,4) -> 0 | AW91: =ROUND(AP91*Beregn1!$G$30,4) -> 0 | AX91: =ROUND(AQ91*Beregn1!$G$30,4) -> 0 | AY91: =ROUND(AR91*Beregn1!$G$30,4) -> 0 | AZ91: =ROUND(AS91*Beregn1!$G$30,4) -> 0 | BA91: =ROUND(AT91*Beregn1!$G$30,4) -> 0
AK92: =IF(OR(AH92=0,AH92=-1),Beregn1!$E$36,AH92) -> 41 | AL92: TRUE | AM92: =IF(AND(AK92=41,AL92=FALSE),Beregn1!$E$36,AH92) -> 0 | AO92: 0 | AP92: 0 | AQ92: 0 | AR92: 0 | AS92: 0 | AT92: 0 | AV92: =ROUND(AO92*Beregn1!$G$30,4) -> 0 | AW92: =ROUND(AP92*Beregn1!$G$30,4) -> 0 | AX92: =ROUND(AQ92*Beregn1!$G$30,4) -> 0 | AY92: =ROUND(AR92*Beregn1!$G$30,4) -> 0 | AZ92: =ROUND(AS92*Beregn1!$G$30,4) -> 0 | BA92: =ROUND(AT92*Beregn1!$G$30,4) -> 0
AK93: =IF(OR(AH93=0,AH93=-1),Beregn1!$E$36,AH93) -> 41 | AL93: TRUE | AM93: =IF(AND(AK93=41,AL93=FALSE),Beregn1!$E$36,AH93) -> 0 | AO93: 0 | AP93: 0 | AQ93: 0 | AR93: 0 | AS93: 0 | AT93: 0 | AV93: =ROUND(AO93*Beregn1!$G$30,4) -> 0 | AW93: =ROUND(AP93*Beregn1!$G$30,4) -> 0 | AX93: =ROUND(AQ93*Beregn1!$G$30,4) -> 0 | AY93: =ROUND(AR93*Beregn1!$G$30,4) -> 0 | AZ93: =ROUND(AS93*Beregn1!$G$30,4) -> 0 | BA93: =ROUND(AT93*Beregn1!$G$30,4) -> 0
AK94: =IF(OR(AH94=0,AH94=-1),Beregn1!$E$36,AH94) -> 41 | AL94: TRUE | AM94: =IF(AND(AK94=41,AL94=FALSE),Beregn1!$E$36,AH94) -> 0 | AO94: 0 | AP94: 0 | AQ94: 0 | AR94: 0 | AS94: 0 | AT94: 0 | AV94: =ROUND(AO94*Beregn1!$G$30,4) -> 0 | AW94: =ROUND(AP94*Beregn1!$G$30,4) -> 0 | AX94: =ROUND(AQ94*Beregn1!$G$30,4) -> 0 | AY94: =ROUND(AR94*Beregn1!$G$30,4) -> 0 | AZ94: =ROUND(AS94*Beregn1!$G$30,4) -> 0 | BA94: =ROUND(AT94*Beregn1!$G$30,4) -> 0
AK95: =IF(OR(AH95=0,AH95=-1),Beregn1!$E$36,AH95) -> 41 | AL95: TRUE | AM95: =IF(AND(AK95=41,AL95=FALSE),Beregn1!$E$36,AH95) -> 0 | AO95: 0 | AP95: 0 | AQ95: 0 | AR95: 0 | AS95: 0 | AT95: 0 | AV95: =ROUND(AO95*Beregn1!$G$30,4) -> 0 | AW95: =ROUND(AP95*Beregn1!$G$30,4) -> 0 | AX95: =ROUND(AQ95*Beregn1!$G$30,4) -> 0 | AY95: =ROUND(AR95*Beregn1!$G$30,4) -> 0 | AZ95: =ROUND(AS95*Beregn1!$G$30,4) -> 0 | BA95: =ROUND(AT95*Beregn1!$G$30,4) -> 0
AK96: =IF(OR(AH96=0,AH96=-1),Beregn1!$E$36,AH96) -> 41 | AL96: TRUE | AM96: =IF(AND(AK96=41,AL96=FALSE),Beregn1!$E$36,AH96) -> 0 | AO96: 0 | AP96: 0 | AQ96: 0 | AR96: 0 | AS96: 0 | AT96: 0 | AV96: =ROUND(AO96*Beregn1!$G$30,4) -> 0 | AW96: =ROUND(AP96*Beregn1!$G$30,4) -> 0 | AX96: =ROUND(AQ96*Beregn1!$G$30,4) -> 0 | AY96: =ROUND(AR96*Beregn1!$G$30,4) -> 0 | AZ96: =ROUND(AS96*Beregn1!$G$30,4) -> 0 | BA96: =ROUND(AT96*Beregn1!$G$30,4) -> 0
AK97: =IF(OR(AH97=0,AH97=-1),Beregn1!$E$36,AH97) -> 41 | AL97: TRUE | AM97: =IF(AND(AK97=41,AL97=FALSE),Beregn1!$E$36,AH97) -> 0 | AO97: 0 | AP97: 0 | AQ97: 0 | AR97: 0 | AS97: 0 | AT97: 0 | AV97: =ROUND(AO97*Beregn1!$G$30,4) -> 0 | AW97: =ROUND(AP97*Beregn1!$G$30,4) -> 0 | AX97: =ROUND(AQ97*Beregn1!$G$30,4) -> 0 | AY97: =ROUND(AR97*Beregn1!$G$30,4) -> 0 | AZ97: =ROUND(AS97*Beregn1!$G$30,4) -> 0 | BA97: =ROUND(AT97*Beregn1!$G$30,4) -> 0
AK98: =IF(OR(AH98=0,AH98=-1),Beregn1!$E$36,AH98) -> 41 | AL98: TRUE | AM98: =IF(AND(AK98=41,AL98=FALSE),Beregn1!$E$36,AH98) -> 0 | AO98: 0 | AP98: 0 | AQ98: 0 | AR98: 0 | AS98: 0 | AT98: 0 | AV98: =ROUND(AO98*Beregn1!$G$30,4) -> 0 | AW98: =ROUND(AP98*Beregn1!$G$30,4) -> 0 | AX98: =ROUND(AQ98*Beregn1!$G$30,4) -> 0 | AY98: =ROUND(AR98*Beregn1!$G$30,4) -> 0 | AZ98: =ROUND(AS98*Beregn1!$G$30,4) -> 0 | BA98: =ROUND(AT98*Beregn1!$G$30,4) -> 0
AK99: =IF(OR(AH99=0,AH99=-1),Beregn1!$E$36,AH99) -> 41 | AL99: TRUE | AM99: =IF(AND(AK99=41,AL99=FALSE),Beregn1!$E$36,AH99) -> 0 | AO99: 0 | AP99: 0 | AQ99: 0 | AR99: 0 | AS99: 0 | AT99: 0 | AV99: =ROUND(AO99*Beregn1!$G$30,4) -> 0 | AW99: =ROUND(AP99*Beregn1!$G$30,4) -> 0 | AX99: =ROUND(AQ99*Beregn1!$G$30,4) -> 0 | AY99: =ROUND(AR99*Beregn1!$G$30,4) -> 0 | AZ99: =ROUND(AS99*Beregn1!$G$30,4) -> 0 | BA99: =ROUND(AT99*Beregn1!$G$30,4) -> 0
AK100: =IF(OR(AH100=0,AH100=-1),Beregn1!$E$36,AH100) -> 41 | AL100: TRUE | AM100: =IF(AND(AK100=41,AL100=FALSE),Beregn1!$E$36,AH100) -> 0 | AO100: 0 | AP100: 0 | AQ100: 0 | AR100: 0 | AS100: 0 | AT100: 0 | AV100: =ROUND(AO100*Beregn1!$G$30,4) -> 0 | AW100: =ROUND(AP100*Beregn1!$G$30,4) -> 0 | AX100: =ROUND(AQ100*Beregn1!$G$30,4) -> 0 | AY100: =ROUND(AR100*Beregn1!$G$30,4) -> 0 | AZ100: =ROUND(AS100*Beregn1!$G$30,4) -> 0 | BA100: =ROUND(AT100*Beregn1!$G$30,4) -> 0
AK101: =IF(OR(AH101=0,AH101=-1),Beregn1!$E$36,AH101) -> 41 | AL101: TRUE | AM101: =IF(AND(AK101=41,AL101=FALSE),Beregn1!$E$36,AH101) -> 0 | AO101: 0 | AP101: 0 | AQ101: 0 | AR101: 0 | AS101: 0 | AT101: 0 | AV101: =ROUND(AO101*Beregn1!$G$30,4) -> 0 | AW101: =ROUND(AP101*Beregn1!$G$30,4) -> 0 | AX101: =ROUND(AQ101*Beregn1!$G$30,4) -> 0 | AY101: =ROUND(AR101*Beregn1!$G$30,4) -> 0 | AZ101: =ROUND(AS101*Beregn1!$G$30,4) -> 0 | BA101: =ROUND(AT101*Beregn1!$G$30,4) -> 0
AK102: =IF(OR(AH102=0,AH102=-1),Beregn1!$E$36,AH102) -> 41 | AL102: TRUE | AM102: =IF(AND(AK102=41,AL102=FALSE),Beregn1!$E$36,AH102) -> 0 | AO102: 0 | AP102: 0 | AQ102: 0 | AR102: 0 | AS102: 0 | AT102: 0 | AV102: =ROUND(AO102*Beregn1!$G$30,4) -> 0 | AW102: =ROUND(AP102*Beregn1!$G$30,4) -> 0 | AX102: =ROUND(AQ102*Beregn1!$G$30,4) -> 0 | AY102: =ROUND(AR102*Beregn1!$G$30,4) -> 0 | AZ102: =ROUND(AS102*Beregn1!$G$30,4) -> 0 | BA102: =ROUND(AT102*Beregn1!$G$30,4) -> 0
AK103: =IF(OR(AH103=0,AH103=-1),Beregn1!$E$36,AH103) -> 41 | AL103: TRUE | AM103: =IF(AND(AK103=41,AL103=FALSE),Beregn1!$E$36,AH103) -> 0 | AO103: 0 | AP103: 0 | AQ103: 0 | AR103: 0 | AS103: 0 | AT103: 0 | AV103: =ROUND(AO103*Beregn1!$G$30,4) -> 0 | AW103: =ROUND(AP103*Beregn1!$G$30,4) -> 0 | AX103: =ROUND(AQ103*Beregn1!$G$30,4) -> 0 | AY103: =ROUND(AR103*Beregn1!$G$30,4) -> 0 | AZ103: =ROUND(AS103*Beregn1!$G$30,4) -> 0 | BA103: =ROUND(AT103*Beregn1!$G$30,4) -> 0
AK104: =IF(OR(AH104=0,AH104=-1),Beregn1!$E$36,AH104) -> 41 | AL104: TRUE | AM104: =IF(AND(AK104=41,AL104=FALSE),Beregn1!$E$36,AH104) -> 0 | AO104: 0 | AP104: 0 | AQ104: 0 | AR104: 0 | AS104: 0 | AT104: 0 | AV104: =ROUND(AO104*Beregn1!$G$30,4) -> 0 | AW104: =ROUND(AP104*Beregn1!$G$30,4) -> 0 | AX104: =ROUND(AQ104*Beregn1!$G$30,4) -> 0 | AY104: =ROUND(AR104*Beregn1!$G$30,4) -> 0 | AZ104: =ROUND(AS104*Beregn1!$G$30,4) -> 0 | BA104: =ROUND(AT104*Beregn1!$G$30,4) -> 0
AK105: =IF(OR(AH105=0,AH105=-1),Beregn1!$E$36,AH105) -> 41 | AL105: TRUE | AM105: =IF(AND(AK105=41,AL105=FALSE),Beregn1!$E$36,AH105) -> 0 | AO105: 0 | AP105: 0 | AQ105: 0 | AR105: 0 | AS105: 0 | AT105: 0 | AV105: =ROUND(AO105*Beregn1!$G$30,4) -> 0 | AW105: =ROUND(AP105*Beregn1!$G$30,4) -> 0 | AX105: =ROUND(AQ105*Beregn1!$G$30,4) -> 0 | AY105: =ROUND(AR105*Beregn1!$G$30,4) -> 0 | AZ105: =ROUND(AS105*Beregn1!$G$30,4) -> 0 | BA105: =ROUND(AT105*Beregn1!$G$30,4) -> 0
AK106: =IF(OR(AH106=0,AH106=-1),Beregn1!$E$36,AH106) -> 41 | AL106: TRUE | AM106: =IF(AND(AK106=41,AL106=FALSE),Beregn1!$E$36,AH106) -> 0 | AO106: 0 | AP106: 0 | AQ106: 0 | AR106: 0 | AS106: 0 | AT106: 0 | AV106: =ROUND(AO106*Beregn1!$G$30,4) -> 0 | AW106: =ROUND(AP106*Beregn1!$G$30,4) -> 0 | AX106: =ROUND(AQ106*Beregn1!$G$30,4) -> 0 | AY106: =ROUND(AR106*Beregn1!$G$30,4) -> 0 | AZ106: =ROUND(AS106*Beregn1!$G$30,4) -> 0 | BA106: =ROUND(AT106*Beregn1!$G$30,4) -> 0
AK107: =IF(OR(AH107=0,AH107=-1),Beregn1!$E$36,AH107) -> 41 | AL107: TRUE | AM107: =IF(AND(AK107=41,AL107=FALSE),Beregn1!$E$36,AH107) -> 0 | AO107: 0 | AP107: 0 | AQ107: 0 | AR107: 0 | AS107: 0 | AT107: 0 | AV107: =ROUND(AO107*Beregn1!$G$30,4) -> 0 | AW107: =ROUND(AP107*Beregn1!$G$30,4) -> 0 | AX107: =ROUND(AQ107*Beregn1!$G$30,4) -> 0 | AY107: =ROUND(AR107*Beregn1!$G$30,4) -> 0 | AZ107: =ROUND(AS107*Beregn1!$G$30,4) -> 0 | BA107: =ROUND(AT107*Beregn1!$G$30,4) -> 0
AK108: =IF(OR(AH108=0,AH108=-1),Beregn1!$E$36,AH108) -> 41 | AL108: TRUE | AM108: =IF(AND(AK108=41,AL108=FALSE),Beregn1!$E$36,AH108) -> 0 | AO108: 0 | AP108: 0 | AQ108: 0 | AR108: 0 | AS108: 0 | AT108: 0 | AV108: =ROUND(AO108*Beregn1!$G$30,4) -> 0 | AW108: =ROUND(AP108*Beregn1!$G$30,4) -> 0 | AX108: =ROUND(AQ108*Beregn1!$G$30,4) -> 0 | AY108: =ROUND(AR108*Beregn1!$G$30,4) -> 0 | AZ108: =ROUND(AS108*Beregn1!$G$30,4) -> 0 | BA108: =ROUND(AT108*Beregn1!$G$30,4) -> 0
AK109: =IF(OR(AH109=0,AH109=-1),Beregn1!$E$36,AH109) -> 41 | AL109: TRUE | AM109: =IF(AND(AK109=41,AL109=FALSE),Beregn1!$E$36,AH109) -> 0 | AO109: 0 | AP109: 0 | AQ109: 0 | AR109: 0 | AS109: 0 | AT109: 0 | AV109: =ROUND(AO109*Beregn1!$G$30,4) -> 0 | AW109: =ROUND(AP109*Beregn1!$G$30,4) -> 0 | AX109: =ROUND(AQ109*Beregn1!$G$30,4) -> 0 | AY109: =ROUND(AR109*Beregn1!$G$30,4) -> 0 | AZ109: =ROUND(AS109*Beregn1!$G$30,4) -> 0 | BA109: =ROUND(AT109*Beregn1!$G$30,4) -> 0
AK110: =IF(OR(AH110=0,AH110=-1),Beregn1!$E$36,AH110) -> 41 | AL110: TRUE | AM110: =IF(AND(AK110=41,AL110=FALSE),Beregn1!$E$36,AH110) -> 0 | AO110: 0 | AP110: 0 | AQ110: 0 | AR110: 0 | AS110: 0 | AT110: 0 | AV110: =ROUND(AO110*Beregn1!$G$30,4) -> 0 | AW110: =ROUND(AP110*Beregn1!$G$30,4) -> 0 | AX110: =ROUND(AQ110*Beregn1!$G$30,4) -> 0 | AY110: =ROUND(AR110*Beregn1!$G$30,4) -> 0 | AZ110: =ROUND(AS110*Beregn1!$G$30,4) -> 0 | BA110: =ROUND(AT110*Beregn1!$G$30,4) -> 0
AK111: =IF(OR(AH111=0,AH111=-1),Beregn1!$E$36,AH111) -> 41 | AL111: TRUE | AM111: =IF(AND(AK111=41,AL111=FALSE),Beregn1!$E$36,AH111) -> 0 | AO111: 0 | AP111: 0 | AQ111: 0 | AR111: 0 | AS111: 0 | AT111: 0 | AV111: =ROUND(AO111*Beregn1!$G$30,4) -> 0 | AW111: =ROUND(AP111*Beregn1!$G$30,4) -> 0 | AX111: =ROUND(AQ111*Beregn1!$G$30,4) -> 0 | AY111: =ROUND(AR111*Beregn1!$G$30,4) -> 0 | AZ111: =ROUND(AS111*Beregn1!$G$30,4) -> 0 | BA111: =ROUND(AT111*Beregn1!$G$30,4) -> 0
AK112: =IF(OR(AH112=0,AH112=-1),Beregn1!$E$36,AH112) -> 41 | AL112: TRUE | AM112: =IF(AND(AK112=41,AL112=FALSE),Beregn1!$E$36,AH112) -> 0 | AO112: 0 | AP112: 0 | AQ112: 0 | AR112: 0 | AS112: 0 | AT112: 0 | AV112: =ROUND(AO112*Beregn1!$G$30,4) -> 0 | AW112: =ROUND(AP112*Beregn1!$G$30,4) -> 0 | AX112: =ROUND(AQ112*Beregn1!$G$30,4) -> 0 | AY112: =ROUND(AR112*Beregn1!$G$30,4) -> 0 | AZ112: =ROUND(AS112*Beregn1!$G$30,4) -> 0 | BA112: =ROUND(AT112*Beregn1!$G$30,4) -> 0
AK113: =IF(OR(AH113=0,AH113=-1),Beregn1!$E$36,AH113) -> 41 | AL113: TRUE | AM113: =IF(AND(AK113=41,AL113=FALSE),Beregn1!$E$36,AH113) -> 0 | AO113: 0 | AP113: 0 | AQ113: 0 | AR113: 0 | AS113: 0 | AT113: 0 | AV113: =ROUND(AO113*Beregn1!$G$30,4) -> 0 | AW113: =ROUND(AP113*Beregn1!$G$30,4) -> 0 | AX113: =ROUND(AQ113*Beregn1!$G$30,4) -> 0 | AY113: =ROUND(AR113*Beregn1!$G$30,4) -> 0 | AZ113: =ROUND(AS113*Beregn1!$G$30,4) -> 0 | BA113: =ROUND(AT113*Beregn1!$G$30,4) -> 0
AK114: =IF(OR(AH114=0,AH114=-1),Beregn1!$E$36,AH114) -> 41 | AL114: TRUE | AM114: =IF(AND(AK114=41,AL114=FALSE),Beregn1!$E$36,AH114) -> 0 | AO114: 0 | AP114: 0 | AQ114: 0 | AR114: 0 | AS114: 0 | AT114: 0 | AV114: =ROUND(AO114*Beregn1!$G$30,4) -> 0 | AW114: =ROUND(AP114*Beregn1!$G$30,4) -> 0 | AX114: =ROUND(AQ114*Beregn1!$G$30,4) -> 0 | AY114: =ROUND(AR114*Beregn1!$G$30,4) -> 0 | AZ114: =ROUND(AS114*Beregn1!$G$30,4) -> 0 | BA114: =ROUND(AT114*Beregn1!$G$30,4) -> 0
AK115: =IF(OR(AH115=0,AH115=-1),Beregn1!$E$36,AH115) -> 41 | AL115: TRUE | AM115: =IF(AND(AK115=41,AL115=FALSE),Beregn1!$E$36,AH115) -> 0 | AO115: 0 | AP115: 0 | AQ115: 0 | AR115: 0 | AS115: 0 | AT115: 0 | AV115: =ROUND(AO115*Beregn1!$G$30,4) -> 0 | AW115: =ROUND(AP115*Beregn1!$G$30,4) -> 0 | AX115: =ROUND(AQ115*Beregn1!$G$30,4) -> 0 | AY115: =ROUND(AR115*Beregn1!$G$30,4) -> 0 | AZ115: =ROUND(AS115*Beregn1!$G$30,4) -> 0 | BA115: =ROUND(AT115*Beregn1!$G$30,4) -> 0
AK116: =IF(OR(AH116=0,AH116=-1),Beregn1!$E$36,AH116) -> 41 | AL116: TRUE | AM116: =IF(AND(AK116=41,AL116=FALSE),Beregn1!$E$36,AH116) -> 0 | AO116: 0 | AP116: 0 | AQ116: 0 | AR116: 0 | AS116: 0 | AT116: 0 | AV116: =ROUND(AO116*Beregn1!$G$30,4) -> 0 | AW116: =ROUND(AP116*Beregn1!$G$30,4) -> 0 | AX116: =ROUND(AQ116*Beregn1!$G$30,4) -> 0 | AY116: =ROUND(AR116*Beregn1!$G$30,4) -> 0 | AZ116: =ROUND(AS116*Beregn1!$G$30,4) -> 0 | BA116: =ROUND(AT116*Beregn1!$G$30,4) -> 0
AK117: =IF(OR(AH117=0,AH117=-1),Beregn1!$E$36,AH117) -> 41 | AL117: TRUE | AM117: =IF(AND(AK117=41,AL117=FALSE),Beregn1!$E$36,AH117) -> 0 | AO117: 0 | AP117: 0 | AQ117: 0 | AR117: 0 | AS117: 0 | AT117: 0 | AV117: =ROUND(AO117*Beregn1!$G$30,4) -> 0 | AW117: =ROUND(AP117*Beregn1!$G$30,4) -> 0 | AX117: =ROUND(AQ117*Beregn1!$G$30,4) -> 0 | AY117: =ROUND(AR117*Beregn1!$G$30,4) -> 0 | AZ117: =ROUND(AS117*Beregn1!$G$30,4) -> 0 | BA117: =ROUND(AT117*Beregn1!$G$30,4) -> 0
AK118: =IF(OR(AH118=0,AH118=-1),Beregn1!$E$36,AH118) -> 41 | AL118: TRUE | AM118: =IF(AND(AK118=41,AL118=FALSE),Beregn1!$E$36,AH118) -> 0 | AO118: 0 | AP118: 0 | AQ118: 0 | AR118: 0 | AS118: 0 | AT118: 0 | AV118: =ROUND(AO118*Beregn1!$G$30,4) -> 0 | AW118: =ROUND(AP118*Beregn1!$G$30,4) -> 0 | AX118: =ROUND(AQ118*Beregn1!$G$30,4) -> 0 | AY118: =ROUND(AR118*Beregn1!$G$30,4) -> 0 | AZ118: =ROUND(AS118*Beregn1!$G$30,4) -> 0 | BA118: =ROUND(AT118*Beregn1!$G$30,4) -> 0
AK119: =IF(OR(AH119=0,AH119=-1),Beregn1!$E$36,AH119) -> 41 | AL119: TRUE | AM119: =IF(AND(AK119=41,AL119=FALSE),Beregn1!$E$36,AH119) -> 0 | AO119: 0 | AP119: 0 | AQ119: 0 | AR119: 0 | AS119: 0 | AT119: 0 | AV119: =ROUND(AO119*Beregn1!$G$30,4) -> 0 | AW119: =ROUND(AP119*Beregn1!$G$30,4) -> 0 | AX119: =ROUND(AQ119*Beregn1!$G$30,4) -> 0 | AY119: =ROUND(AR119*Beregn1!$G$30,4) -> 0 | AZ119: =ROUND(AS119*Beregn1!$G$30,4) -> 0 | BA119: =ROUND(AT119*Beregn1!$G$30,4) -> 0
AK120: =IF(OR(AH120=0,AH120=-1),Beregn1!$E$36,AH120) -> 41 | AL120: TRUE | AM120: =IF(AND(AK120=41,AL120=FALSE),Beregn1!$E$36,AH120) -> 0 | AO120: 0 | AP120: 0 | AQ120: 0 | AR120: 0 | AS120: 0 | AT120: 0 | AV120: =ROUND(AO120*Beregn1!$G$30,4) -> 0 | AW120: =ROUND(AP120*Beregn1!$G$30,4) -> 0 | AX120: =ROUND(AQ120*Beregn1!$G$30,4) -> 0 | AY120: =ROUND(AR120*Beregn1!$G$30,4) -> 0 | AZ120: =ROUND(AS120*Beregn1!$G$30,4) -> 0 | BA120: =ROUND(AT120*Beregn1!$G$30,4) -> 0
AK121: =IF(OR(AH121=0,AH121=-1),Beregn1!$E$36,AH121) -> 41 | AL121: TRUE | AM121: =IF(AND(AK121=41,AL121=FALSE),Beregn1!$E$36,AH121) -> 0 | AO121: 0 | AP121: 0 | AQ121: 0 | AR121: 0 | AS121: 0 | AT121: 0 | AV121: =ROUND(AO121*Beregn1!$G$30,4) -> 0 | AW121: =ROUND(AP121*Beregn1!$G$30,4) -> 0 | AX121: =ROUND(AQ121*Beregn1!$G$30,4) -> 0 | AY121: =ROUND(AR121*Beregn1!$G$30,4) -> 0 | AZ121: =ROUND(AS121*Beregn1!$G$30,4) -> 0 | BA121: =ROUND(AT121*Beregn1!$G$30,4) -> 0
AK122: =IF(OR(AH122=0,AH122=-1),Beregn1!$E$36,AH122) -> 41 | AL122: TRUE | AM122: =IF(AND(AK122=41,AL122=FALSE),Beregn1!$E$36,AH122) -> 0 | AO122: 0 | AP122: 0 | AQ122: 0 | AR122: 0 | AS122: 0 | AT122: 0 | AV122: =ROUND(AO122*Beregn1!$G$30,4) -> 0 | AW122: =ROUND(AP122*Beregn1!$G$30,4) -> 0 | AX122: =ROUND(AQ122*Beregn1!$G$30,4) -> 0 | AY122: =ROUND(AR122*Beregn1!$G$30,4) -> 0 | AZ122: =ROUND(AS122*Beregn1!$G$30,4) -> 0 | BA122: =ROUND(AT122*Beregn1!$G$30,4) -> 0
AK123: =IF(OR(AH123=0,AH123=-1),Beregn1!$E$36,AH123) -> 41 | AL123: TRUE | AM123: =IF(AND(AK123=41,AL123=FALSE),Beregn1!$E$36,AH123) -> 0 | AO123: 0 | AP123: 0 | AQ123: 0 | AR123: 0 | AS123: 0 | AT123: 0 | AV123: =ROUND(AO123*Beregn1!$G$30,4) -> 0 | AW123: =ROUND(AP123*Beregn1!$G$30,4) -> 0 | AX123: =ROUND(AQ123*Beregn1!$G$30,4) -> 0 | AY123: =ROUND(AR123*Beregn1!$G$30,4) -> 0 | AZ123: =ROUND(AS123*Beregn1!$G$30,4) -> 0 | BA123: =ROUND(AT123*Beregn1!$G$30,4) -> 0
AK124: =IF(OR(AH124=0,AH124=-1),Beregn1!$E$36,AH124) -> 41 | AL124: TRUE | AM124: =IF(AND(AK124=41,AL124=FALSE),Beregn1!$E$36,AH124) -> 0 | AO124: 0 | AP124: 0 | AQ124: 0 | AR124: 0 | AS124: 0 | AT124: 0 | AV124: =ROUND(AO124*Beregn1!$G$30,4) -> 0 | AW124: =ROUND(AP124*Beregn1!$G$30,4) -> 0 | AX124: =ROUND(AQ124*Beregn1!$G$30,4) -> 0 | AY124: =ROUND(AR124*Beregn1!$G$30,4) -> 0 | AZ124: =ROUND(AS124*Beregn1!$G$30,4) -> 0 | BA124: =ROUND(AT124*Beregn1!$G$30,4) -> 0
AK125: =IF(OR(AH125=0,AH125=-1),Beregn1!$E$36,AH125) -> 41 | AL125: TRUE | AM125: =IF(AND(AK125=41,AL125=FALSE),Beregn1!$E$36,AH125) -> 0 | AO125: 0 | AP125: 0 | AQ125: 0 | AR125: 0 | AS125: 0 | AT125: 0 | AV125: =ROUND(AO125*Beregn1!$G$30,4) -> 0 | AW125: =ROUND(AP125*Beregn1!$G$30,4) -> 0 | AX125: =ROUND(AQ125*Beregn1!$G$30,4) -> 0 | AY125: =ROUND(AR125*Beregn1!$G$30,4) -> 0 | AZ125: =ROUND(AS125*Beregn1!$G$30,4) -> 0 | BA125: =ROUND(AT125*Beregn1!$G$30,4) -> 0
AK126: =IF(OR(AH126=0,AH126=-1),Beregn1!$E$36,AH126) -> 41 | AL126: TRUE | AM126: =IF(AND(AK126=41,AL126=FALSE),Beregn1!$E$36,AH126) -> 0 | AO126: 0 | AP126: 0 | AQ126: 0 | AR126: 0 | AS126: 0 | AT126: 0 | AV126: =ROUND(AO126*Beregn1!$G$30,4) -> 0 | AW126: =ROUND(AP126*Beregn1!$G$30,4) -> 0 | AX126: =ROUND(AQ126*Beregn1!$G$30,4) -> 0 | AY126: =ROUND(AR126*Beregn1!$G$30,4) -> 0 | AZ126: =ROUND(AS126*Beregn1!$G$30,4) -> 0 | BA126: =ROUND(AT126*Beregn1!$G$30,4) -> 0
AK127: =IF(OR(AH127=0,AH127=-1),Beregn1!$E$36,AH127) -> 41 | AL127: TRUE | AM127: =IF(AND(AK127=41,AL127=FALSE),Beregn1!$E$36,AH127) -> 0 | AO127: 0 | AP127: 0 | AQ127: 0 | AR127: 0 | AS127: 0 | AT127: 0 | AV127: =ROUND(AO127*Beregn1!$G$30,4) -> 0 | AW127: =ROUND(AP127*Beregn1!$G$30,4) -> 0 | AX127: =ROUND(AQ127*Beregn1!$G$30,4) -> 0 | AY127: =ROUND(AR127*Beregn1!$G$30,4) -> 0 | AZ127: =ROUND(AS127*Beregn1!$G$30,4) -> 0 | BA127: =ROUND(AT127*Beregn1!$G$30,4) -> 0
AK128: =IF(OR(AH128=0,AH128=-1),Beregn1!$E$36,AH128) -> 41 | AL128: TRUE | AM128: =IF(AND(AK128=41,AL128=FALSE),Beregn1!$E$36,AH128) -> 0 | AO128: 0 | AP128: 0 | AQ128: 0 | AR128: 0 | AS128: 0 | AT128: 0 | AV128: =ROUND(AO128*Beregn1!$G$30,4) -> 0 | AW128: =ROUND(AP128*Beregn1!$G$30,4) -> 0 | AX128: =ROUND(AQ128*Beregn1!$G$30,4) -> 0 | AY128: =ROUND(AR128*Beregn1!$G$30,4) -> 0 | AZ128: =ROUND(AS128*Beregn1!$G$30,4) -> 0 | BA128: =ROUND(AT128*Beregn1!$G$30,4) -> 0
AK129: =IF(OR(AH129=0,AH129=-1),Beregn1!$E$36,AH129) -> 41 | AL129: TRUE | AM129: =IF(AND(AK129=41,AL129=FALSE),Beregn1!$E$36,AH129) -> 0 | AO129: 0 | AP129: 0 | AQ129: 0 | AR129: 0 | AS129: 0 | AT129: 0 | AV129: =ROUND(AO129*Beregn1!$G$30,4) -> 0 | AW129: =ROUND(AP129*Beregn1!$G$30,4) -> 0 | AX129: =ROUND(AQ129*Beregn1!$G$30,4) -> 0 | AY129: =ROUND(AR129*Beregn1!$G$30,4) -> 0 | AZ129: =ROUND(AS129*Beregn1!$G$30,4) -> 0 | BA129: =ROUND(AT129*Beregn1!$G$30,4) -> 0
AK130: =IF(OR(AH130=0,AH130=-1),Beregn1!$E$36,AH130) -> 41 | AL130: TRUE | AM130: =IF(AND(AK130=41,AL130=FALSE),Beregn1!$E$36,AH130) -> 0 | AO130: =INDEX($W130:$AI130,MATCH("Infiltrated",$W$1:$AI$1,0)) -> 0 | AP130: =INDEX($W130:$AI130,MATCH("Evaporated",$W$1:$AI$1,0)) -> 0 | AQ130: =INDEX($W130:$AI130,MATCH("Drained",$W$1:$AI$1,0)) -> 0 | AR130: =INDEX($W130:$AI130,MATCH("Overflow",$W$1:$AI$1,0)) -> 0 | AS130: =AM130 -> 0 | AT130: =INDEX($W130:$AI130,MATCH("Available_Volume",$W$1:$AI$1,0)) -> 0 | AV130: =ROUND(AO130*Beregn1!$G$30,4) -> 0 | AW130: =ROUND(AP130*Beregn1!$G$30,4) -> 0 | AX130: =ROUND(AQ130*Beregn1!$G$30,4) -> 0 | AY130: =ROUND(AR130*Beregn1!$G$30,4) -> 0 | AZ130: =ROUND(AS130*Beregn1!$G$30,4) -> 0 | BA130: =ROUND(AT130*Beregn1!$G$30,4) -> 0
AK131: =IF(OR(AH131=0,AH131=-1),Beregn1!$E$36,AH131) -> 41 | AL131: =ISBLANK(AH131) -> TRUE | AM131: =IF(AND(AK131=41,AL131=FALSE),Beregn1!$E$36,AH131) -> 0 | AO131: 0 | AP131: 0 | AQ131: 0 | AR131: 0 | AS131: 0 | AT131: 0 | AV131: =ROUND(AO131*Beregn1!$G$30,4) -> 0 | AW131: =ROUND(AP131*Beregn1!$G$30,4) -> 0 | AX131: =ROUND(AQ131*Beregn1!$G$30,4) -> 0 | AY131: =ROUND(AR131*Beregn1!$G$30,4) -> 0 | AZ131: =ROUND(AS131*Beregn1!$G$30,4) -> 0 | BA131: =ROUND(AT131*Beregn1!$G$30,4) -> 0
AK132: =IF(OR(AH132=0,AH132=-1),Beregn1!$E$36,AH132) -> 41 | AL132: TRUE | AM132: =IF(AND(AK132=41,AL132=FALSE),Beregn1!$E$36,AH132) -> 0 | AO132: 0 | AP132: 0 | AQ132: 0 | AR132: 0 | AS132: 0 | AT132: 0 | AV132: =ROUND(AO132*Beregn1!$G$30,4) -> 0 | AW132: =ROUND(AP132*Beregn1!$G$30,4) -> 0 | AX132: =ROUND(AQ132*Beregn1!$G$30,4) -> 0 | AY132: =ROUND(AR132*Beregn1!$G$30,4) -> 0 | AZ132: =ROUND(AS132*Beregn1!$G$30,4) -> 0 | BA132: =ROUND(AT132*Beregn1!$G$30,4) -> 0
AK133: =IF(OR(AH133=0,AH133=-1),Beregn1!$E$36,AH133) -> 41 | AL133: TRUE | AM133: =IF(AND(AK133=41,AL133=FALSE),Beregn1!$E$36,AH133) -> 0 | AO133: 0 | AP133: 0 | AQ133: 0 | AR133: 0 | AS133: 0 | AT133: 0 | AV133: =ROUND(AO133*Beregn1!$G$30,4) -> 0 | AW133: =ROUND(AP133*Beregn1!$G$30,4) -> 0 | AX133: =ROUND(AQ133*Beregn1!$G$30,4) -> 0 | AY133: =ROUND(AR133*Beregn1!$G$30,4) -> 0 | AZ133: =ROUND(AS133*Beregn1!$G$30,4) -> 0 | BA133: =ROUND(AT133*Beregn1!$G$30,4) -> 0
AK134: =IF(OR(AH134=0,AH134=-1),Beregn1!$E$36,AH134) -> 41 | AL134: TRUE | AM134: =IF(AND(AK134=41,AL134=FALSE),Beregn1!$E$36,AH134) -> 0 | AO134: 0 | AP134: 0 | AQ134: 0 | AR134: 0 | AS134: 0 | AT134: 0 | AV134: =ROUND(AO134*Beregn1!$G$30,4) -> 0 | AW134: =ROUND(AP134*Beregn1!$G$30,4) -> 0 | AX134: =ROUND(AQ134*Beregn1!$G$30,4) -> 0 | AY134: =ROUND(AR134*Beregn1!$G$30,4) -> 0 | AZ134: =ROUND(AS134*Beregn1!$G$30,4) -> 0 | BA134: =ROUND(AT134*Beregn1!$G$30,4) -> 0
AK135: =IF(OR(AH135=0,AH135=-1),Beregn1!$E$36,AH135) -> 41 | AL135: TRUE | AM135: =IF(AND(AK135=41,AL135=FALSE),Beregn1!$E$36,AH135) -> 0 | AO135: 0 | AP135: 0 | AQ135: 0 | AR135: 0 | AS135: 0 | AT135: 0 | AV135: =ROUND(AO135*Beregn1!$G$30,4) -> 0 | AW135: =ROUND(AP135*Beregn1!$G$30,4) -> 0 | AX135: =ROUND(AQ135*Beregn1!$G$30,4) -> 0 | AY135: =ROUND(AR135*Beregn1!$G$30,4) -> 0 | AZ135: =ROUND(AS135*Beregn1!$G$30,4) -> 0 | BA135: =ROUND(AT135*Beregn1!$G$30,4) -> 0
AK136: =IF(OR(AH136=0,AH136=-1),Beregn1!$E$36,AH136) -> 41 | AL136: TRUE | AM136: =IF(AND(AK136=41,AL136=FALSE),Beregn1!$E$36,AH136) -> 0 | AO136: 0 | AP136: 0 | AQ136: 0 | AR136: 0 | AS136: 0 | AT136: 0 | AV136: =ROUND(AO136*Beregn1!$G$30,4) -> 0 | AW136: =ROUND(AP136*Beregn1!$G$30,4) -> 0 | AX136: =ROUND(AQ136*Beregn1!$G$30,4) -> 0 | AY136: =ROUND(AR136*Beregn1!$G$30,4) -> 0 | AZ136: =ROUND(AS136*Beregn1!$G$30,4) -> 0 | BA136: =ROUND(AT136*Beregn1!$G$30,4) -> 0
AK137: =IF(OR(AH137=0,AH137=-1),Beregn1!$E$36,AH137) -> 41 | AL137: TRUE | AM137: =IF(AND(AK137=41,AL137=FALSE),Beregn1!$E$36,AH137) -> 0 | AO137: 0 | AP137: 0 | AQ137: 0 | AR137: 0 | AS137: 0 | AT137: 0 | AV137: =ROUND(AO137*Beregn1!$G$30,4) -> 0 | AW137: =ROUND(AP137*Beregn1!$G$30,4) -> 0 | AX137: =ROUND(AQ137*Beregn1!$G$30,4) -> 0 | AY137: =ROUND(AR137*Beregn1!$G$30,4) -> 0 | AZ137: =ROUND(AS137*Beregn1!$G$30,4) -> 0 | BA137: =ROUND(AT137*Beregn1!$G$30,4) -> 0
AK138: =IF(OR(AH138=0,AH138=-1),Beregn1!$E$36,AH138) -> 41 | AL138: TRUE | AM138: =IF(AND(AK138=41,AL138=FALSE),Beregn1!$E$36,AH138) -> 0 | AO138: 0 | AP138: 0 | AQ138: 0 | AR138: 0 | AS138: 0 | AT138: 0 | AV138: =ROUND(AO138*Beregn1!$G$30,4) -> 0 | AW138: =ROUND(AP138*Beregn1!$G$30,4) -> 0 | AX138: =ROUND(AQ138*Beregn1!$G$30,4) -> 0 | AY138: =ROUND(AR138*Beregn1!$G$30,4) -> 0 | AZ138: =ROUND(AS138*Beregn1!$G$30,4) -> 0 | BA138: =ROUND(AT138*Beregn1!$G$30,4) -> 0
AK139: =IF(OR(AH139=0,AH139=-1),Beregn1!$E$36,AH139) -> 41 | AL139: TRUE | AM139: =IF(AND(AK139=41,AL139=FALSE),Beregn1!$E$36,AH139) -> 0 | AO139: 0 | AP139: 0 | AQ139: 0 | AR139: 0 | AS139: 0 | AT139: 0 | AV139: =ROUND(AO139*Beregn1!$G$30,4) -> 0 | AW139: =ROUND(AP139*Beregn1!$G$30,4) -> 0 | AX139: =ROUND(AQ139*Beregn1!$G$30,4) -> 0 | AY139: =ROUND(AR139*Beregn1!$G$30,4) -> 0 | AZ139: =ROUND(AS139*Beregn1!$G$30,4) -> 0 | BA139: =ROUND(AT139*Beregn1!$G$30,4) -> 0
AK140: =IF(OR(AH140=0,AH140=-1),Beregn1!$E$36,AH140) -> 41 | AL140: TRUE | AM140: =IF(AND(AK140=41,AL140=FALSE),Beregn1!$E$36,AH140) -> 0 | AO140: 0 | AP140: 0 | AQ140: 0 | AR140: 0 | AS140: 0 | AT140: 0 | AV140: =ROUND(AO140*Beregn1!$G$30,4) -> 0 | AW140: =ROUND(AP140*Beregn1!$G$30,4) -> 0 | AX140: =ROUND(AQ140*Beregn1!$G$30,4) -> 0 | AY140: =ROUND(AR140*Beregn1!$G$30,4) -> 0 | AZ140: =ROUND(AS140*Beregn1!$G$30,4) -> 0 | BA140: =ROUND(AT140*Beregn1!$G$30,4) -> 0
AK141: =IF(OR(AH141=0,AH141=-1),Beregn1!$E$36,AH141) -> 41 | AL141: TRUE | AM141: =IF(AND(AK141=41,AL141=FALSE),Beregn1!$E$36,AH141) -> 0 | AO141: 0 | AP141: 0 | AQ141: 0 | AR141: 0 | AS141: 0 | AT141: 0 | AV141: =ROUND(AO141*Beregn1!$G$30,4) -> 0 | AW141: =ROUND(AP141*Beregn1!$G$30,4) -> 0 | AX141: =ROUND(AQ141*Beregn1!$G$30,4) -> 0 | AY141: =ROUND(AR141*Beregn1!$G$30,4) -> 0 | AZ141: =ROUND(AS141*Beregn1!$G$30,4) -> 0 | BA141: =ROUND(AT141*Beregn1!$G$30,4) -> 0
AK142: =IF(OR(AH142=0,AH142=-1),Beregn1!$E$36,AH142) -> 41 | AL142: TRUE | AM142: =IF(AND(AK142=41,AL142=FALSE),Beregn1!$E$36,AH142) -> 0 | AO142: 0 | AP142: 0 | AQ142: 0 | AR142: 0 | AS142: 0 | AT142: 0 | AV142: =ROUND(AO142*Beregn1!$G$30,4) -> 0 | AW142: =ROUND(AP142*Beregn1!$G$30,4) -> 0 | AX142: =ROUND(AQ142*Beregn1!$G$30,4) -> 0 | AY142: =ROUND(AR142*Beregn1!$G$30,4) -> 0 | AZ142: =ROUND(AS142*Beregn1!$G$30,4) -> 0 | BA142: =ROUND(AT142*Beregn1!$G$30,4) -> 0
AK143: =IF(OR(AH143=0,AH143=-1),Beregn1!$E$36,AH143) -> 41 | AL143: TRUE | AM143: =IF(AND(AK143=41,AL143=FALSE),Beregn1!$E$36,AH143) -> 0 | AO143: 0 | AP143: 0 | AQ143: 0 | AR143: 0 | AS143: 0 | AT143: 0 | AV143: =ROUND(AO143*Beregn1!$G$30,4) -> 0 | AW143: =ROUND(AP143*Beregn1!$G$30,4) -> 0 | AX143: =ROUND(AQ143*Beregn1!$G$30,4) -> 0 | AY143: =ROUND(AR143*Beregn1!$G$30,4) -> 0 | AZ143: =ROUND(AS143*Beregn1!$G$30,4) -> 0 | BA143: =ROUND(AT143*Beregn1!$G$30,4) -> 0
AK144: =IF(OR(AH144=0,AH144=-1),Beregn1!$E$36,AH144) -> 41 | AL144: TRUE | AM144: =IF(AND(AK144=41,AL144=FALSE),Beregn1!$E$36,AH144) -> 0 | AO144: 0 | AP144: 0 | AQ144: 0 | AR144: 0 | AS144: 0 | AT144: 0 | AV144: =ROUND(AO144*Beregn1!$G$30,4) -> 0 | AW144: =ROUND(AP144*Beregn1!$G$30,4) -> 0 | AX144: =ROUND(AQ144*Beregn1!$G$30,4) -> 0 | AY144: =ROUND(AR144*Beregn1!$G$30,4) -> 0 | AZ144: =ROUND(AS144*Beregn1!$G$30,4) -> 0 | BA144: =ROUND(AT144*Beregn1!$G$30,4) -> 0
AK145: =IF(OR(AH145=0,AH145=-1),Beregn1!$E$36,AH145) -> 41 | AL145: TRUE | AM145: =IF(AND(AK145=41,AL145=FALSE),Beregn1!$E$36,AH145) -> 0 | AO145: 0 | AP145: 0 | AQ145: 0 | AR145: 0 | AS145: 0 | AT145: 0 | AV145: =ROUND(AO145*Beregn1!$G$30,4) -> 0 | AW145: =ROUND(AP145*Beregn1!$G$30,4) -> 0 | AX145: =ROUND(AQ145*Beregn1!$G$30,4) -> 0 | AY145: =ROUND(AR145*Beregn1!$G$30,4) -> 0 | AZ145: =ROUND(AS145*Beregn1!$G$30,4) -> 0 | BA145: =ROUND(AT145*Beregn1!$G$30,4) -> 0
AK146: =IF(OR(AH146=0,AH146=-1),Beregn1!$E$36,AH146) -> 41 | AL146: TRUE | AM146: =IF(AND(AK146=41,AL146=FALSE),Beregn1!$E$36,AH146) -> 0 | AO146: 0 | AP146: 0 | AQ146: 0 | AR146: 0 | AS146: 0 | AT146: 0 | AV146: =ROUND(AO146*Beregn1!$G$30,4) -> 0 | AW146: =ROUND(AP146*Beregn1!$G$30,4) -> 0 | AX146: =ROUND(AQ146*Beregn1!$G$30,4) -> 0 | AY146: =ROUND(AR146*Beregn1!$G$30,4) -> 0 | AZ146: =ROUND(AS146*Beregn1!$G$30,4) -> 0 | BA146: =ROUND(AT146*Beregn1!$G$30,4) -> 0
AK147: =IF(OR(AH147=0,AH147=-1),Beregn1!$E$36,AH147) -> 41 | AL147: TRUE | AM147: =IF(AND(AK147=41,AL147=FALSE),Beregn1!$E$36,AH147) -> 0 | AO147: 0 | AP147: 0 | AQ147: 0 | AR147: 0 | AS147: 0 | AT147: 0 | AV147: =ROUND(AO147*Beregn1!$G$30,4) -> 0 | AW147: =ROUND(AP147*Beregn1!$G$30,4) -> 0 | AX147: =ROUND(AQ147*Beregn1!$G$30,4) -> 0 | AY147: =ROUND(AR147*Beregn1!$G$30,4) -> 0 | AZ147: =ROUND(AS147*Beregn1!$G$30,4) -> 0 | BA147: =ROUND(AT147*Beregn1!$G$30,4) -> 0
AK148: =IF(OR(AH148=0,AH148=-1),Beregn1!$E$36,AH148) -> 41 | AL148: TRUE | AM148: =IF(AND(AK148=41,AL148=FALSE),Beregn1!$E$36,AH148) -> 0 | AO148: 0 | AP148: 0 | AQ148: 0 | AR148: 0 | AS148: 0 | AT148: 0 | AV148: =ROUND(AO148*Beregn1!$G$30,4) -> 0 | AW148: =ROUND(AP148*Beregn1!$G$30,4) -> 0 | AX148: =ROUND(AQ148*Beregn1!$G$30,4) -> 0 | AY148: =ROUND(AR148*Beregn1!$G$30,4) -> 0 | AZ148: =ROUND(AS148*Beregn1!$G$30,4) -> 0 | BA148: =ROUND(AT148*Beregn1!$G$30,4) -> 0
AK149: =IF(OR(AH149=0,AH149=-1),Beregn1!$E$36,AH149) -> 41 | AL149: TRUE | AM149: =IF(AND(AK149=41,AL149=FALSE),Beregn1!$E$36,AH149) -> 0 | AO149: 0 | AP149: 0 | AQ149: 0 | AR149: 0 | AS149: 0 | AT149: 0 | AV149: =ROUND(AO149*Beregn1!$G$30,4) -> 0 | AW149: =ROUND(AP149*Beregn1!$G$30,4) -> 0 | AX149: =ROUND(AQ149*Beregn1!$G$30,4) -> 0 | AY149: =ROUND(AR149*Beregn1!$G$30,4) -> 0 | AZ149: =ROUND(AS149*Beregn1!$G$30,4) -> 0 | BA149: =ROUND(AT149*Beregn1!$G$30,4) -> 0
AK150: =IF(OR(AH150=0,AH150=-1),Beregn1!$E$36,AH150) -> 41 | AL150: TRUE | AM150: =IF(AND(AK150=41,AL150=FALSE),Beregn1!$E$36,AH150) -> 0 | AO150: 0 | AP150: 0 | AQ150: 0 | AR150: 0 | AS150: 0 | AT150: 0 | AV150: =ROUND(AO150*Beregn1!$G$30,4) -> 0 | AW150: =ROUND(AP150*Beregn1!$G$30,4) -> 0 | AX150: =ROUND(AQ150*Beregn1!$G$30,4) -> 0 | AY150: =ROUND(AR150*Beregn1!$G$30,4) -> 0 | AZ150: =ROUND(AS150*Beregn1!$G$30,4) -> 0 | BA150: =ROUND(AT150*Beregn1!$G$30,4) -> 0
AK151: =IF(OR(AH151=0,AH151=-1),Beregn1!$E$36,AH151) -> 41 | AL151: TRUE | AM151: =IF(AND(AK151=41,AL151=FALSE),Beregn1!$E$36,AH151) -> 0 | AO151: 0 | AP151: 0 | AQ151: 0 | AR151: 0 | AS151: 0 | AT151: 0 | AV151: =ROUND(AO151*Beregn1!$G$30,4) -> 0 | AW151: =ROUND(AP151*Beregn1!$G$30,4) -> 0 | AX151: =ROUND(AQ151*Beregn1!$G$30,4) -> 0 | AY151: =ROUND(AR151*Beregn1!$G$30,4) -> 0 | AZ151: =ROUND(AS151*Beregn1!$G$30,4) -> 0 | BA151: =ROUND(AT151*Beregn1!$G$30,4) -> 0
AK152: =IF(OR(AH152=0,AH152=-1),Beregn1!$E$36,AH152) -> 41 | AL152: TRUE | AM152: =IF(AND(AK152=41,AL152=FALSE),Beregn1!$E$36,AH152) -> 0 | AO152: 0 | AP152: 0 | AQ152: 0 | AR152: 0 | AS152: 0 | AT152: 0 | AV152: =ROUND(AO152*Beregn1!$G$30,4) -> 0 | AW152: =ROUND(AP152*Beregn1!$G$30,4) -> 0 | AX152: =ROUND(AQ152*Beregn1!$G$30,4) -> 0 | AY152: =ROUND(AR152*Beregn1!$G$30,4) -> 0 | AZ152: =ROUND(AS152*Beregn1!$G$30,4) -> 0 | BA152: =ROUND(AT152*Beregn1!$G$30,4) -> 0
AK153: =IF(OR(AH153=0,AH153=-1),Beregn1!$E$36,AH153) -> 41 | AL153: TRUE | AM153: =IF(AND(AK153=41,AL153=FALSE),Beregn1!$E$36,AH153) -> 0 | AO153: 0 | AP153: 0 | AQ153: 0 | AR153: 0 | AS153: 0 | AT153: 0 | AV153: =ROUND(AO153*Beregn1!$G$30,4) -> 0 | AW153: =ROUND(AP153*Beregn1!$G$30,4) -> 0 | AX153: =ROUND(AQ153*Beregn1!$G$30,4) -> 0 | AY153: =ROUND(AR153*Beregn1!$G$30,4) -> 0 | AZ153: =ROUND(AS153*Beregn1!$G$30,4) -> 0 | BA153: =ROUND(AT153*Beregn1!$G$30,4) -> 0
AK154: =IF(OR(AH154=0,AH154=-1),Beregn1!$E$36,AH154) -> 41 | AL154: TRUE | AM154: =IF(AND(AK154=41,AL154=FALSE),Beregn1!$E$36,AH154) -> 0 | AO154: 0 | AP154: 0 | AQ154: 0 | AR154: 0 | AS154: 0 | AT154: 0 | AV154: =ROUND(AO154*Beregn1!$G$30,4) -> 0 | AW154: =ROUND(AP154*Beregn1!$G$30,4) -> 0 | AX154: =ROUND(AQ154*Beregn1!$G$30,4) -> 0 | AY154: =ROUND(AR154*Beregn1!$G$30,4) -> 0 | AZ154: =ROUND(AS154*Beregn1!$G$30,4) -> 0 | BA154: =ROUND(AT154*Beregn1!$G$30,4) -> 0
AK155: =IF(OR(AH155=0,AH155=-1),Beregn1!$E$36,AH155) -> 41 | AL155: TRUE | AM155: =IF(AND(AK155=41,AL155=FALSE),Beregn1!$E$36,AH155) -> 0 | AO155: 0 | AP155: 0 | AQ155: 0 | AR155: 0 | AS155: 0 | AT155: 0 | AV155: =ROUND(AO155*Beregn1!$G$30,4) -> 0 | AW155: =ROUND(AP155*Beregn1!$G$30,4) -> 0 | AX155: =ROUND(AQ155*Beregn1!$G$30,4) -> 0 | AY155: =ROUND(AR155*Beregn1!$G$30,4) -> 0 | AZ155: =ROUND(AS155*Beregn1!$G$30,4) -> 0 | BA155: =ROUND(AT155*Beregn1!$G$30,4) -> 0
AK156: =IF(OR(AH156=0,AH156=-1),Beregn1!$E$36,AH156) -> 41 | AL156: TRUE | AM156: =IF(AND(AK156=41,AL156=FALSE),Beregn1!$E$36,AH156) -> 0 | AO156: 0 | AP156: 0 | AQ156: 0 | AR156: 0 | AS156: 0 | AT156: 0 | AV156: =ROUND(AO156*Beregn1!$G$30,4) -> 0 | AW156: =ROUND(AP156*Beregn1!$G$30,4) -> 0 | AX156: =ROUND(AQ156*Beregn1!$G$30,4) -> 0 | AY156: =ROUND(AR156*Beregn1!$G$30,4) -> 0 | AZ156: =ROUND(AS156*Beregn1!$G$30,4) -> 0 | BA156: =ROUND(AT156*Beregn1!$G$30,4) -> 0
AK157: =IF(OR(AH157=0,AH157=-1),Beregn1!$E$36,AH157) -> 41 | AL157: TRUE | AM157: =IF(AND(AK157=41,AL157=FALSE),Beregn1!$E$36,AH157) -> 0 | AO157: 0 | AP157: 0 | AQ157: 0 | AR157: 0 | AS157: 0 | AT157: 0 | AV157: =ROUND(AO157*Beregn1!$G$30,4) -> 0 | AW157: =ROUND(AP157*Beregn1!$G$30,4) -> 0 | AX157: =ROUND(AQ157*Beregn1!$G$30,4) -> 0 | AY157: =ROUND(AR157*Beregn1!$G$30,4) -> 0 | AZ157: =ROUND(AS157*Beregn1!$G$30,4) -> 0 | BA157: =ROUND(AT157*Beregn1!$G$30,4) -> 0
AK158: =IF(OR(AH158=0,AH158=-1),Beregn1!$E$36,AH158) -> 41 | AL158: TRUE | AM158: =IF(AND(AK158=41,AL158=FALSE),Beregn1!$E$36,AH158) -> 0 | AO158: 0 | AP158: 0 | AQ158: 0 | AR158: 0 | AS158: 0 | AT158: 0 | AV158: =ROUND(AO158*Beregn1!$G$30,4) -> 0 | AW158: =ROUND(AP158*Beregn1!$G$30,4) -> 0 | AX158: =ROUND(AQ158*Beregn1!$G$30,4) -> 0 | AY158: =ROUND(AR158*Beregn1!$G$30,4) -> 0 | AZ158: =ROUND(AS158*Beregn1!$G$30,4) -> 0 | BA158: =ROUND(AT158*Beregn1!$G$30,4) -> 0
AK159: =IF(OR(AH159=0,AH159=-1),Beregn1!$E$36,AH159) -> 41 | AL159: TRUE | AM159: =IF(AND(AK159=41,AL159=FALSE),Beregn1!$E$36,AH159) -> 0 | AO159: 0 | AP159: 0 | AQ159: 0 | AR159: 0 | AS159: 0 | AT159: 0 | AV159: =ROUND(AO159*Beregn1!$G$30,4) -> 0 | AW159: =ROUND(AP159*Beregn1!$G$30,4) -> 0 | AX159: =ROUND(AQ159*Beregn1!$G$30,4) -> 0 | AY159: =ROUND(AR159*Beregn1!$G$30,4) -> 0 | AZ159: =ROUND(AS159*Beregn1!$G$30,4) -> 0 | BA159: =ROUND(AT159*Beregn1!$G$30,4) -> 0
AK160: =IF(OR(AH160=0,AH160=-1),Beregn1!$E$36,AH160) -> 41 | AL160: TRUE | AM160: =IF(AND(AK160=41,AL160=FALSE),Beregn1!$E$36,AH160) -> 0 | AO160: 0 | AP160: 0 | AQ160: 0 | AR160: 0 | AS160: 0 | AT160: 0 | AV160: =ROUND(AO160*Beregn1!$G$30,4) -> 0 | AW160: =ROUND(AP160*Beregn1!$G$30,4) -> 0 | AX160: =ROUND(AQ160*Beregn1!$G$30,4) -> 0 | AY160: =ROUND(AR160*Beregn1!$G$30,4) -> 0 | AZ160: =ROUND(AS160*Beregn1!$G$30,4) -> 0 | BA160: =ROUND(AT160*Beregn1!$G$30,4) -> 0
AK161: =IF(OR(AH161=0,AH161=-1),Beregn1!$E$36,AH161) -> 41 | AL161: TRUE | AM161: =IF(AND(AK161=41,AL161=FALSE),Beregn1!$E$36,AH161) -> 0 | AO161: 0 | AP161: 0 | AQ161: 0 | AR161: 0 | AS161: 0 | AT161: 0 | AV161: =ROUND(AO161*Beregn1!$G$30,4) -> 0 | AW161: =ROUND(AP161*Beregn1!$G$30,4) -> 0 | AX161: =ROUND(AQ161*Beregn1!$G$30,4) -> 0 | AY161: =ROUND(AR161*Beregn1!$G$30,4) -> 0 | AZ161: =ROUND(AS161*Beregn1!$G$30,4) -> 0 | BA161: =ROUND(AT161*Beregn1!$G$30,4) -> 0
AK162: =IF(OR(AH162=0,AH162=-1),Beregn1!$E$36,AH162) -> 41 | AL162: TRUE | AM162: =IF(AND(AK162=41,AL162=FALSE),Beregn1!$E$36,AH162) -> 0 | AO162: 0 | AP162: 0 | AQ162: 0 | AR162: 0 | AS162: 0 | AT162: 0 | AV162: =ROUND(AO162*Beregn1!$G$30,4) -> 0 | AW162: =ROUND(AP162*Beregn1!$G$30,4) -> 0 | AX162: =ROUND(AQ162*Beregn1!$G$30,4) -> 0 | AY162: =ROUND(AR162*Beregn1!$G$30,4) -> 0 | AZ162: =ROUND(AS162*Beregn1!$G$30,4) -> 0 | BA162: =ROUND(AT162*Beregn1!$G$30,4) -> 0
AK163: =IF(OR(AH163=0,AH163=-1),Beregn1!$E$36,AH163) -> 41 | AL163: TRUE | AM163: =IF(AND(AK163=41,AL163=FALSE),Beregn1!$E$36,AH163) -> 0 | AO163: 0 | AP163: 0 | AQ163: 0 | AR163: 0 | AS163: 0 | AT163: 0 | AV163: =ROUND(AO163*Beregn1!$G$30,4) -> 0 | AW163: =ROUND(AP163*Beregn1!$G$30,4) -> 0 | AX163: =ROUND(AQ163*Beregn1!$G$30,4) -> 0 | AY163: =ROUND(AR163*Beregn1!$G$30,4) -> 0 | AZ163: =ROUND(AS163*Beregn1!$G$30,4) -> 0 | BA163: =ROUND(AT163*Beregn1!$G$30,4) -> 0
AK164: =IF(OR(AH164=0,AH164=-1),Beregn1!$E$36,AH164) -> 41 | AL164: TRUE | AM164: =IF(AND(AK164=41,AL164=FALSE),Beregn1!$E$36,AH164) -> 0 | AO164: 0 | AP164: 0 | AQ164: 0 | AR164: 0 | AS164: 0 | AT164: 0 | AV164: =ROUND(AO164*Beregn1!$G$30,4) -> 0 | AW164: =ROUND(AP164*Beregn1!$G$30,4) -> 0 | AX164: =ROUND(AQ164*Beregn1!$G$30,4) -> 0 | AY164: =ROUND(AR164*Beregn1!$G$30,4) -> 0 | AZ164: =ROUND(AS164*Beregn1!$G$30,4) -> 0 | BA164: =ROUND(AT164*Beregn1!$G$30,4) -> 0
AK165: =IF(OR(AH165=0,AH165=-1),Beregn1!$E$36,AH165) -> 41 | AL165: TRUE | AM165: =IF(AND(AK165=41,AL165=FALSE),Beregn1!$E$36,AH165) -> 0 | AO165: 0 | AP165: 0 | AQ165: 0 | AR165: 0 | AS165: 0 | AT165: 0 | AV165: =ROUND(AO165*Beregn1!$G$30,4) -> 0 | AW165: =ROUND(AP165*Beregn1!$G$30,4) -> 0 | AX165: =ROUND(AQ165*Beregn1!$G$30,4) -> 0 | AY165: =ROUND(AR165*Beregn1!$G$30,4) -> 0 | AZ165: =ROUND(AS165*Beregn1!$G$30,4) -> 0 | BA165: =ROUND(AT165*Beregn1!$G$30,4) -> 0
AK166: =IF(OR(AH166=0,AH166=-1),Beregn1!$E$36,AH166) -> 41 | AL166: TRUE | AM166: =IF(AND(AK166=41,AL166=FALSE),Beregn1!$E$36,AH166) -> 0 | AO166: 0 | AP166: 0 | AQ166: 0 | AR166: 0 | AS166: 0 | AT166: 0 | AV166: =ROUND(AO166*Beregn1!$G$30,4) -> 0 | AW166: =ROUND(AP166*Beregn1!$G$30,4) -> 0 | AX166: =ROUND(AQ166*Beregn1!$G$30,4) -> 0 | AY166: =ROUND(AR166*Beregn1!$G$30,4) -> 0 | AZ166: =ROUND(AS166*Beregn1!$G$30,4) -> 0 | BA166: =ROUND(AT166*Beregn1!$G$30,4) -> 0
AK167: =IF(OR(AH167=0,AH167=-1),Beregn1!$E$36,AH167) -> 41 | AL167: TRUE | AM167: =IF(AND(AK167=41,AL167=FALSE),Beregn1!$E$36,AH167) -> 0 | AO167: 0 | AP167: 0 | AQ167: 0 | AR167: 0 | AS167: 0 | AT167: 0 | AV167: =ROUND(AO167*Beregn1!$G$30,4) -> 0 | AW167: =ROUND(AP167*Beregn1!$G$30,4) -> 0 | AX167: =ROUND(AQ167*Beregn1!$G$30,4) -> 0 | AY167: =ROUND(AR167*Beregn1!$G$30,4) -> 0 | AZ167: =ROUND(AS167*Beregn1!$G$30,4) -> 0 | BA167: =ROUND(AT167*Beregn1!$G$30,4) -> 0
AK168: =IF(OR(AH168=0,AH168=-1),Beregn1!$E$36,AH168) -> 41 | AL168: TRUE | AM168: =IF(AND(AK168=41,AL168=FALSE),Beregn1!$E$36,AH168) -> 0 | AO168: 0 | AP168: 0 | AQ168: 0 | AR168: 0 | AS168: 0 | AT168: 0 | AV168: =ROUND(AO168*Beregn1!$G$30,4) -> 0 | AW168: =ROUND(AP168*Beregn1!$G$30,4) -> 0 | AX168: =ROUND(AQ168*Beregn1!$G$30,4) -> 0 | AY168: =ROUND(AR168*Beregn1!$G$30,4) -> 0 | AZ168: =ROUND(AS168*Beregn1!$G$30,4) -> 0 | BA168: =ROUND(AT168*Beregn1!$G$30,4) -> 0
AK169: =IF(OR(AH169=0,AH169=-1),Beregn1!$E$36,AH169) -> 41 | AL169: TRUE | AM169: =IF(AND(AK169=41,AL169=FALSE),Beregn1!$E$36,AH169) -> 0 | AO169: 0 | AP169: 0 | AQ169: 0 | AR169: 0 | AS169: 0 | AT169: 0 | AV169: =ROUND(AO169*Beregn1!$G$30,4) -> 0 | AW169: =ROUND(AP169*Beregn1!$G$30,4) -> 0 | AX169: =ROUND(AQ169*Beregn1!$G$30,4) -> 0 | AY169: =ROUND(AR169*Beregn1!$G$30,4) -> 0 | AZ169: =ROUND(AS169*Beregn1!$G$30,4) -> 0 | BA169: =ROUND(AT169*Beregn1!$G$30,4) -> 0
AK170: =IF(OR(AH170=0,AH170=-1),Beregn1!$E$36,AH170) -> 41 | AL170: TRUE | AM170: =IF(AND(AK170=41,AL170=FALSE),Beregn1!$E$36,AH170) -> 0 | AO170: 0 | AP170: 0 | AQ170: 0 | AR170: 0 | AS170: 0 | AT170: 0 | AV170: =ROUND(AO170*Beregn1!$G$30,4) -> 0 | AW170: =ROUND(AP170*Beregn1!$G$30,4) -> 0 | AX170: =ROUND(AQ170*Beregn1!$G$30,4) -> 0 | AY170: =ROUND(AR170*Beregn1!$G$30,4) -> 0 | AZ170: =ROUND(AS170*Beregn1!$G$30,4) -> 0 | BA170: =ROUND(AT170*Beregn1!$G$30,4) -> 0
AK171: =IF(OR(AH171=0,AH171=-1),Beregn1!$E$36,AH171) -> 41 | AL171: TRUE | AM171: =IF(AND(AK171=41,AL171=FALSE),Beregn1!$E$36,AH171) -> 0 | AO171: 0 | AP171: 0 | AQ171: 0 | AR171: 0 | AS171: 0 | AT171: 0 | AV171: =ROUND(AO171*Beregn1!$G$30,4) -> 0 | AW171: =ROUND(AP171*Beregn1!$G$30,4) -> 0 | AX171: =ROUND(AQ171*Beregn1!$G$30,4) -> 0 | AY171: =ROUND(AR171*Beregn1!$G$30,4) -> 0 | AZ171: =ROUND(AS171*Beregn1!$G$30,4) -> 0 | BA171: =ROUND(AT171*Beregn1!$G$30,4) -> 0
AK172: =IF(OR(AH172=0,AH172=-1),Beregn1!$E$36,AH172) -> 41 | AL172: TRUE | AM172: =IF(AND(AK172=41,AL172=FALSE),Beregn1!$E$36,AH172) -> 0 | AO172: 0 | AP172: 0 | AQ172: 0 | AR172: 0 | AS172: 0 | AT172: 0 | AV172: =ROUND(AO172*Beregn1!$G$30,4) -> 0 | AW172: =ROUND(AP172*Beregn1!$G$30,4) -> 0 | AX172: =ROUND(AQ172*Beregn1!$G$30,4) -> 0 | AY172: =ROUND(AR172*Beregn1!$G$30,4) -> 0 | AZ172: =ROUND(AS172*Beregn1!$G$30,4) -> 0 | BA172: =ROUND(AT172*Beregn1!$G$30,4) -> 0
AK173: =IF(OR(AH173=0,AH173=-1),Beregn1!$E$36,AH173) -> 41 | AL173: TRUE | AM173: =IF(AND(AK173=41,AL173=FALSE),Beregn1!$E$36,AH173) -> 0 | AO173: 0 | AP173: 0 | AQ173: 0 | AR173: 0 | AS173: 0 | AT173: 0 | AV173: =ROUND(AO173*Beregn1!$G$30,4) -> 0 | AW173: =ROUND(AP173*Beregn1!$G$30,4) -> 0 | AX173: =ROUND(AQ173*Beregn1!$G$30,4) -> 0 | AY173: =ROUND(AR173*Beregn1!$G$30,4) -> 0 | AZ173: =ROUND(AS173*Beregn1!$G$30,4) -> 0 | BA173: =ROUND(AT173*Beregn1!$G$30,4) -> 0
AK174: =IF(OR(AH174=0,AH174=-1),Beregn1!$E$36,AH174) -> 41 | AL174: TRUE | AM174: =IF(AND(AK174=41,AL174=FALSE),Beregn1!$E$36,AH174) -> 0 | AO174: 0 | AP174: 0 | AQ174: 0 | AR174: 0 | AS174: 0 | AT174: 0 | AV174: =ROUND(AO174*Beregn1!$G$30,4) -> 0 | AW174: =ROUND(AP174*Beregn1!$G$30,4) -> 0 | AX174: =ROUND(AQ174*Beregn1!$G$30,4) -> 0 | AY174: =ROUND(AR174*Beregn1!$G$30,4) -> 0 | AZ174: =ROUND(AS174*Beregn1!$G$30,4) -> 0 | BA174: =ROUND(AT174*Beregn1!$G$30,4) -> 0
AK175: =IF(OR(AH175=0,AH175=-1),Beregn1!$E$36,AH175) -> 41 | AL175: TRUE | AM175: =IF(AND(AK175=41,AL175=FALSE),Beregn1!$E$36,AH175) -> 0 | AO175: 0 | AP175: 0 | AQ175: 0 | AR175: 0 | AS175: 0 | AT175: 0 | AV175: =ROUND(AO175*Beregn1!$G$30,4) -> 0 | AW175: =ROUND(AP175*Beregn1!$G$30,4) -> 0 | AX175: =ROUND(AQ175*Beregn1!$G$30,4) -> 0 | AY175: =ROUND(AR175*Beregn1!$G$30,4) -> 0 | AZ175: =ROUND(AS175*Beregn1!$G$30,4) -> 0 | BA175: =ROUND(AT175*Beregn1!$G$30,4) -> 0
AK176: =IF(OR(AH176=0,AH176=-1),Beregn1!$E$36,AH176) -> 41 | AL176: TRUE | AM176: =IF(AND(AK176=41,AL176=FALSE),Beregn1!$E$36,AH176) -> 0 | AO176: 0 | AP176: 0 | AQ176: 0 | AR176: 0 | AS176: 0 | AT176: 0 | AV176: =ROUND(AO176*Beregn1!$G$30,4) -> 0 | AW176: =ROUND(AP176*Beregn1!$G$30,4) -> 0 | AX176: =ROUND(AQ176*Beregn1!$G$30,4) -> 0 | AY176: =ROUND(AR176*Beregn1!$G$30,4) -> 0 | AZ176: =ROUND(AS176*Beregn1!$G$30,4) -> 0 | BA176: =ROUND(AT176*Beregn1!$G$30,4) -> 0
AK177: =IF(OR(AH177=0,AH177=-1),Beregn1!$E$36,AH177) -> 41 | AL177: TRUE | AM177: =IF(AND(AK177=41,AL177=FALSE),Beregn1!$E$36,AH177) -> 0 | AO177: 0 | AP177: 0 | AQ177: 0 | AR177: 0 | AS177: 0 | AT177: 0 | AV177: =ROUND(AO177*Beregn1!$G$30,4) -> 0 | AW177: =ROUND(AP177*Beregn1!$G$30,4) -> 0 | AX177: =ROUND(AQ177*Beregn1!$G$30,4) -> 0 | AY177: =ROUND(AR177*Beregn1!$G$30,4) -> 0 | AZ177: =ROUND(AS177*Beregn1!$G$30,4) -> 0 | BA177: =ROUND(AT177*Beregn1!$G$30,4) -> 0
AK178: =IF(OR(AH178=0,AH178=-1),Beregn1!$E$36,AH178) -> 41 | AL178: TRUE | AM178: =IF(AND(AK178=41,AL178=FALSE),Beregn1!$E$36,AH178) -> 0 | AO178: 0 | AP178: 0 | AQ178: 0 | AR178: 0 | AS178: 0 | AT178: 0 | AV178: =ROUND(AO178*Beregn1!$G$30,4) -> 0 | AW178: =ROUND(AP178*Beregn1!$G$30,4) -> 0 | AX178: =ROUND(AQ178*Beregn1!$G$30,4) -> 0 | AY178: =ROUND(AR178*Beregn1!$G$30,4) -> 0 | AZ178: =ROUND(AS178*Beregn1!$G$30,4) -> 0 | BA178: =ROUND(AT178*Beregn1!$G$30,4) -> 0
AK179: =IF(OR(AH179=0,AH179=-1),Beregn1!$E$36,AH179) -> 41 | AL179: TRUE | AM179: =IF(AND(AK179=41,AL179=FALSE),Beregn1!$E$36,AH179) -> 0 | AO179: 0 | AP179: 0 | AQ179: 0 | AR179: 0 | AS179: 0 | AT179: 0 | AV179: =ROUND(AO179*Beregn1!$G$30,4) -> 0 | AW179: =ROUND(AP179*Beregn1!$G$30,4) -> 0 | AX179: =ROUND(AQ179*Beregn1!$G$30,4) -> 0 | AY179: =ROUND(AR179*Beregn1!$G$30,4) -> 0 | AZ179: =ROUND(AS179*Beregn1!$G$30,4) -> 0 | BA179: =ROUND(AT179*Beregn1!$G$30,4) -> 0
AK180: =IF(OR(AH180=0,AH180=-1),Beregn1!$E$36,AH180) -> 41 | AL180: TRUE | AM180: =IF(AND(AK180=41,AL180=FALSE),Beregn1!$E$36,AH180) -> 0 | AO180: 0 | AP180: 0 | AQ180: 0 | AR180: 0 | AS180: 0 | AT180: 0 | AV180: =ROUND(AO180*Beregn1!$G$30,4) -> 0 | AW180: =ROUND(AP180*Beregn1!$G$30,4) -> 0 | AX180: =ROUND(AQ180*Beregn1!$G$30,4) -> 0 | AY180: =ROUND(AR180*Beregn1!$G$30,4) -> 0 | AZ180: =ROUND(AS180*Beregn1!$G$30,4) -> 0 | BA180: =ROUND(AT180*Beregn1!$G$30,4) -> 0
AK181: =IF(OR(AH181=0,AH181=-1),Beregn1!$E$36,AH181) -> 41 | AL181: TRUE | AM181: =IF(AND(AK181=41,AL181=FALSE),Beregn1!$E$36,AH181) -> 0 | AO181: 0 | AP181: 0 | AQ181: 0 | AR181: 0 | AS181: 0 | AT181: 0 | AV181: =ROUND(AO181*Beregn1!$G$30,4) -> 0 | AW181: =ROUND(AP181*Beregn1!$G$30,4) -> 0 | AX181: =ROUND(AQ181*Beregn1!$G$30,4) -> 0 | AY181: =ROUND(AR181*Beregn1!$G$30,4) -> 0 | AZ181: =ROUND(AS181*Beregn1!$G$30,4) -> 0 | BA181: =ROUND(AT181*Beregn1!$G$30,4) -> 0
AK182: =IF(OR(AH182=0,AH182=-1),Beregn1!$E$36,AH182) -> 41 | AL182: TRUE | AM182: =IF(AND(AK182=41,AL182=FALSE),Beregn1!$E$36,AH182) -> 0 | AO182: 0 | AP182: 0 | AQ182: 0 | AR182: 0 | AS182: 0 | AT182: 0 | AV182: =ROUND(AO182*Beregn1!$G$30,4) -> 0 | AW182: =ROUND(AP182*Beregn1!$G$30,4) -> 0 | AX182: =ROUND(AQ182*Beregn1!$G$30,4) -> 0 | AY182: =ROUND(AR182*Beregn1!$G$30,4) -> 0 | AZ182: =ROUND(AS182*Beregn1!$G$30,4) -> 0 | BA182: =ROUND(AT182*Beregn1!$G$30,4) -> 0
AK183: =IF(OR(AH183=0,AH183=-1),Beregn1!$E$36,AH183) -> 41 | AL183: TRUE | AM183: =IF(AND(AK183=41,AL183=FALSE),Beregn1!$E$36,AH183) -> 0 | AO183: 0 | AP183: 0 | AQ183: 0 | AR183: 0 | AS183: 0 | AT183: 0 | AV183: =ROUND(AO183*Beregn1!$G$30,4) -> 0 | AW183: =ROUND(AP183*Beregn1!$G$30,4) -> 0 | AX183: =ROUND(AQ183*Beregn1!$G$30,4) -> 0 | AY183: =ROUND(AR183*Beregn1!$G$30,4) -> 0 | AZ183: =ROUND(AS183*Beregn1!$G$30,4) -> 0 | BA183: =ROUND(AT183*Beregn1!$G$30,4) -> 0
AK184: =IF(OR(AH184=0,AH184=-1),Beregn1!$E$36,AH184) -> 41 | AL184: TRUE | AM184: =IF(AND(AK184=41,AL184=FALSE),Beregn1!$E$36,AH184) -> 0 | AO184: 0 | AP184: 0 | AQ184: 0 | AR184: 0 | AS184: 0 | AT184: 0 | AV184: =ROUND(AO184*Beregn1!$G$30,4) -> 0 | AW184: =ROUND(AP184*Beregn1!$G$30,4) -> 0 | AX184: =ROUND(AQ184*Beregn1!$G$30,4) -> 0 | AY184: =ROUND(AR184*Beregn1!$G$30,4) -> 0 | AZ184: =ROUND(AS184*Beregn1!$G$30,4) -> 0 | BA184: =ROUND(AT184*Beregn1!$G$30,4) -> 0
AK185: =IF(OR(AH185=0,AH185=-1),Beregn1!$E$36,AH185) -> 41 | AL185: TRUE | AM185: =IF(AND(AK185=41,AL185=FALSE),Beregn1!$E$36,AH185) -> 0 | AO185: 0 | AP185: 0 | AQ185: 0 | AR185: 0 | AS185: 0 | AT185: 0 | AV185: =ROUND(AO185*Beregn1!$G$30,4) -> 0 | AW185: =ROUND(AP185*Beregn1!$G$30,4) -> 0 | AX185: =ROUND(AQ185*Beregn1!$G$30,4) -> 0 | AY185: =ROUND(AR185*Beregn1!$G$30,4) -> 0 | AZ185: =ROUND(AS185*Beregn1!$G$30,4) -> 0 | BA185: =ROUND(AT185*Beregn1!$G$30,4) -> 0
AK186: =IF(OR(AH186=0,AH186=-1),Beregn1!$E$36,AH186) -> 41 | AL186: TRUE | AM186: =IF(AND(AK186=41,AL186=FALSE),Beregn1!$E$36,AH186) -> 0 | AO186: 0 | AP186: 0 | AQ186: 0 | AR186: 0 | AS186: 0 | AT186: 0 | AV186: =ROUND(AO186*Beregn1!$G$30,4) -> 0 | AW186: =ROUND(AP186*Beregn1!$G$30,4) -> 0 | AX186: =ROUND(AQ186*Beregn1!$G$30,4) -> 0 | AY186: =ROUND(AR186*Beregn1!$G$30,4) -> 0 | AZ186: =ROUND(AS186*Beregn1!$G$30,4) -> 0 | BA186: =ROUND(AT186*Beregn1!$G$30,4) -> 0
AK187: =IF(OR(AH187=0,AH187=-1),Beregn1!$E$36,AH187) -> 41 | AL187: TRUE | AM187: =IF(AND(AK187=41,AL187=FALSE),Beregn1!$E$36,AH187) -> 0 | AO187: 0 | AP187: 0 | AQ187: 0 | AR187: 0 | AS187: 0 | AT187: 0 | AV187: =ROUND(AO187*Beregn1!$G$30,4) -> 0 | AW187: =ROUND(AP187*Beregn1!$G$30,4) -> 0 | AX187: =ROUND(AQ187*Beregn1!$G$30,4) -> 0 | AY187: =ROUND(AR187*Beregn1!$G$30,4) -> 0 | AZ187: =ROUND(AS187*Beregn1!$G$30,4) -> 0 | BA187: =ROUND(AT187*Beregn1!$G$30,4) -> 0
AK188: =IF(OR(AH188=0,AH188=-1),Beregn1!$E$36,AH188) -> 41 | AL188: TRUE | AM188: =IF(AND(AK188=41,AL188=FALSE),Beregn1!$E$36,AH188) -> 0 | AO188: 0 | AP188: 0 | AQ188: 0 | AR188: 0 | AS188: 0 | AT188: 0 | AV188: =ROUND(AO188*Beregn1!$G$30,4) -> 0 | AW188: =ROUND(AP188*Beregn1!$G$30,4) -> 0 | AX188: =ROUND(AQ188*Beregn1!$G$30,4) -> 0 | AY188: =ROUND(AR188*Beregn1!$G$30,4) -> 0 | AZ188: =ROUND(AS188*Beregn1!$G$30,4) -> 0 | BA188: =ROUND(AT188*Beregn1!$G$30,4) -> 0
AK189: =IF(OR(AH189=0,AH189=-1),Beregn1!$E$36,AH189) -> 41 | AL189: TRUE | AM189: =IF(AND(AK189=41,AL189=FALSE),Beregn1!$E$36,AH189) -> 0 | AO189: 0 | AP189: 0 | AQ189: 0 | AR189: 0 | AS189: 0 | AT189: 0 | AV189: =ROUND(AO189*Beregn1!$G$30,4) -> 0 | AW189: =ROUND(AP189*Beregn1!$G$30,4) -> 0 | AX189: =ROUND(AQ189*Beregn1!$G$30,4) -> 0 | AY189: =ROUND(AR189*Beregn1!$G$30,4) -> 0 | AZ189: =ROUND(AS189*Beregn1!$G$30,4) -> 0 | BA189: =ROUND(AT189*Beregn1!$G$30,4) -> 0
AK190: =IF(OR(AH190=0,AH190=-1),Beregn1!$E$36,AH190) -> 41 | AL190: TRUE | AM190: =IF(AND(AK190=41,AL190=FALSE),Beregn1!$E$36,AH190) -> 0 | AO190: 0 | AP190: 0 | AQ190: 0 | AR190: 0 | AS190: 0 | AT190: 0 | AV190: =ROUND(AO190*Beregn1!$G$30,4) -> 0 | AW190: =ROUND(AP190*Beregn1!$G$30,4) -> 0 | AX190: =ROUND(AQ190*Beregn1!$G$30,4) -> 0 | AY190: =ROUND(AR190*Beregn1!$G$30,4) -> 0 | AZ190: =ROUND(AS190*Beregn1!$G$30,4) -> 0 | BA190: =ROUND(AT190*Beregn1!$G$30,4) -> 0
AK191: =IF(OR(AH191=0,AH191=-1),Beregn1!$E$36,AH191) -> 41 | AL191: TRUE | AM191: =IF(AND(AK191=41,AL191=FALSE),Beregn1!$E$36,AH191) -> 0 | AO191: 0 | AP191: 0 | AQ191: 0 | AR191: 0 | AS191: 0 | AT191: 0 | AV191: =ROUND(AO191*Beregn1!$G$30,4) -> 0 | AW191: =ROUND(AP191*Beregn1!$G$30,4) -> 0 | AX191: =ROUND(AQ191*Beregn1!$G$30,4) -> 0 | AY191: =ROUND(AR191*Beregn1!$G$30,4) -> 0 | AZ191: =ROUND(AS191*Beregn1!$G$30,4) -> 0 | BA191: =ROUND(AT191*Beregn1!$G$30,4) -> 0
AK192: =IF(OR(AH192=0,AH192=-1),Beregn1!$E$36,AH192) -> 41 | AL192: TRUE | AM192: =IF(AND(AK192=41,AL192=FALSE),Beregn1!$E$36,AH192) -> 0 | AO192: 0 | AP192: 0 | AQ192: 0 | AR192: 0 | AS192: 0 | AT192: 0 | AV192: =ROUND(AO192*Beregn1!$G$30,4) -> 0 | AW192: =ROUND(AP192*Beregn1!$G$30,4) -> 0 | AX192: =ROUND(AQ192*Beregn1!$G$30,4) -> 0 | AY192: =ROUND(AR192*Beregn1!$G$30,4) -> 0 | AZ192: =ROUND(AS192*Beregn1!$G$30,4) -> 0 | BA192: =ROUND(AT192*Beregn1!$G$30,4) -> 0
AK193: =IF(OR(AH193=0,AH193=-1),Beregn1!$E$36,AH193) -> 41 | AL193: TRUE | AM193: =IF(AND(AK193=41,AL193=FALSE),Beregn1!$E$36,AH193) -> 0 | AO193: 0 | AP193: 0 | AQ193: 0 | AR193: 0 | AS193: 0 | AT193: 0 | AV193: =ROUND(AO193*Beregn1!$G$30,4) -> 0 | AW193: =ROUND(AP193*Beregn1!$G$30,4) -> 0 | AX193: =ROUND(AQ193*Beregn1!$G$30,4) -> 0 | AY193: =ROUND(AR193*Beregn1!$G$30,4) -> 0 | AZ193: =ROUND(AS193*Beregn1!$G$30,4) -> 0 | BA193: =ROUND(AT193*Beregn1!$G$30,4) -> 0
AK194: =IF(OR(AH194=0,AH194=-1),Beregn1!$E$36,AH194) -> 41 | AL194: TRUE | AM194: =IF(AND(AK194=41,AL194=FALSE),Beregn1!$E$36,AH194) -> 0 | AO194: =INDEX($W194:$AI194,MATCH("Infiltrated",$W$1:$AI$1,0)) -> 0 | AP194: =INDEX($W194:$AI194,MATCH("Evaporated",$W$1:$AI$1,0)) -> 0 | AQ194: =INDEX($W194:$AI194,MATCH("Drained",$W$1:$AI$1,0)) -> 0 | AR194: =INDEX($W194:$AI194,MATCH("Overflow",$W$1:$AI$1,0)) -> 0 | AS194: =AM194 -> 0 | AT194: =INDEX($W194:$AI194,MATCH("Available_Volume",$W$1:$AI$1,0)) -> 0 | AV194: =ROUND(AO194*Beregn1!$G$30,4) -> 0 | AW194: =ROUND(AP194*Beregn1!$G$30,4) -> 0 | AX194: =ROUND(AQ194*Beregn1!$G$30,4) -> 0 | AY194: =ROUND(AR194*Beregn1!$G$30,4) -> 0 | AZ194: =ROUND(AS194*Beregn1!$G$30,4) -> 0 | BA194: =ROUND(AT194*Beregn1!$G$30,4) -> 0
AK195: =IF(OR(AH195=0,AH195=-1),Beregn1!$E$36,AH195) -> 41 | AL195: =ISBLANK(AH195) -> TRUE | AM195: =IF(AND(AK195=41,AL195=FALSE),Beregn1!$E$36,AH195) -> 0 | AO195: 0 | AP195: 0 | AQ195: 0 | AR195: 0 | AS195: 0 | AT195: 0 | AV195: =ROUND(AO195*Beregn1!$G$30,4) -> 0 | AW195: =ROUND(AP195*Beregn1!$G$30,4) -> 0 | AX195: =ROUND(AQ195*Beregn1!$G$30,4) -> 0 | AY195: =ROUND(AR195*Beregn1!$G$30,4) -> 0 | AZ195: =ROUND(AS195*Beregn1!$G$30,4) -> 0 | BA195: =ROUND(AT195*Beregn1!$G$30,4) -> 0
AK196: =IF(OR(AH196=0,AH196=-1),Beregn1!$E$36,AH196) -> 41 | AL196: TRUE | AM196: =IF(AND(AK196=41,AL196=FALSE),Beregn1!$E$36,AH196) -> 0 | AO196: 0 | AP196: 0 | AQ196: 0 | AR196: 0 | AS196: 0 | AT196: 0 | AV196: =ROUND(AO196*Beregn1!$G$30,4) -> 0 | AW196: =ROUND(AP196*Beregn1!$G$30,4) -> 0 | AX196: =ROUND(AQ196*Beregn1!$G$30,4) -> 0 | AY196: =ROUND(AR196*Beregn1!$G$30,4) -> 0 | AZ196: =ROUND(AS196*Beregn1!$G$30,4) -> 0 | BA196: =ROUND(AT196*Beregn1!$G$30,4) -> 0
AK197: =IF(OR(AH197=0,AH197=-1),Beregn1!$E$36,AH197) -> 41 | AL197: TRUE | AM197: =IF(AND(AK197=41,AL197=FALSE),Beregn1!$E$36,AH197) -> 0 | AO197: 0 | AP197: 0 | AQ197: 0 | AR197: 0 | AS197: 0 | AT197: 0 | AV197: =ROUND(AO197*Beregn1!$G$30,4) -> 0 | AW197: =ROUND(AP197*Beregn1!$G$30,4) -> 0 | AX197: =ROUND(AQ197*Beregn1!$G$30,4) -> 0 | AY197: =ROUND(AR197*Beregn1!$G$30,4) -> 0 | AZ197: =ROUND(AS197*Beregn1!$G$30,4) -> 0 | BA197: =ROUND(AT197*Beregn1!$G$30,4) -> 0
AK198: =IF(OR(AH198=0,AH198=-1),Beregn1!$E$36,AH198) -> 41 | AL198: TRUE | AM198: =IF(AND(AK198=41,AL198=FALSE),Beregn1!$E$36,AH198) -> 0 | AO198: 0 | AP198: 0 | AQ198: 0 | AR198: 0 | AS198: 0 | AT198: 0 | AV198: =ROUND(AO198*Beregn1!$G$30,4) -> 0 | AW198: =ROUND(AP198*Beregn1!$G$30,4) -> 0 | AX198: =ROUND(AQ198*Beregn1!$G$30,4) -> 0 | AY198: =ROUND(AR198*Beregn1!$G$30,4) -> 0 | AZ198: =ROUND(AS198*Beregn1!$G$30,4) -> 0 | BA198: =ROUND(AT198*Beregn1!$G$30,4) -> 0
AK199: =IF(OR(AH199=0,AH199=-1),Beregn1!$E$36,AH199) -> 41 | AL199: TRUE | AM199: =IF(AND(AK199=41,AL199=FALSE),Beregn1!$E$36,AH199) -> 0 | AO199: 0 | AP199: 0 | AQ199: 0 | AR199: 0 | AS199: 0 | AT199: 0 | AV199: =ROUND(AO199*Beregn1!$G$30,4) -> 0 | AW199: =ROUND(AP199*Beregn1!$G$30,4) -> 0 | AX199: =ROUND(AQ199*Beregn1!$G$30,4) -> 0 | AY199: =ROUND(AR199*Beregn1!$G$30,4) -> 0 | AZ199: =ROUND(AS199*Beregn1!$G$30,4) -> 0 | BA199: =ROUND(AT199*Beregn1!$G$30,4) -> 0
AK200: =IF(OR(AH200=0,AH200=-1),Beregn1!$E$36,AH200) -> 41 | AL200: TRUE | AM200: =IF(AND(AK200=41,AL200=FALSE),Beregn1!$E$36,AH200) -> 0 | AO200: 0 | AP200: 0 | AQ200: 0 | AR200: 0 | AS200: 0 | AT200: 0 | AV200: =ROUND(AO200*Beregn1!$G$30,4) -> 0 | AW200: =ROUND(AP200*Beregn1!$G$30,4) -> 0 | AX200: =ROUND(AQ200*Beregn1!$G$30,4) -> 0 | AY200: =ROUND(AR200*Beregn1!$G$30,4) -> 0 | AZ200: =ROUND(AS200*Beregn1!$G$30,4) -> 0 | BA200: =ROUND(AT200*Beregn1!$G$30,4) -> 0
... 240 more rows

Sheet BA_d (hidden)
A1: A_ratio | B1: storage_volume | C1: storage_side_slope | D1: drain_coefficient | E1: Dataudtræk, 1 ↓ | F1: A_ratio | G1: storage_volume | H1: storage_side_slope | I1: drain_coefficient | J1: Evaporated | K1: Drained | L1: Overflow | M1: T_overflow | N1: Available_Volume | O1: Dataudtræk, 2 ↓ | P1: A_ratio | Q1: storage_volume | R1: storage_side_slope | S1: drain_coefficient | T1: Evaporated | U1: Drained | V1: Overflow | W1: T_overflow | X1: Available_Volume | Y1: Ret T_overflow ↓ | Z1: =W1 -> T_overflow | AA1: =W1 -> T_overflow | AB1: =W1 -> T_overflow | AC1: Output ↓ | AD1: =INDEX($P1:$X1,MATCH("Evaporated",$P$1:$X$1,0)) -> Evaporated | AE1: =INDEX($P1:$X1,MATCH("Drained",$P$1:$X$1,0)) -> Drained | AF1: =INDEX($P1:$X1,MATCH("Overflow",$P$1:$X$1,0)) -> Overflow | AG1: =AB1 -> T_overflow | AH1: =INDEX($P1:$X1,MATCH("Available_Volume",$P$1:$X$1,0)) -> Available_Volume | AI1: Lineær interpolation ↓ | AJ1: Evaporated_w | AK1: Drained_w | AL1: Overflow_w | AM1: T_overflow_w | AN1: Available_Volume_w | AP1: Evaporated_sum | AQ1: Drained_sum | AR1: Overflow_sum | AS1: T_overflow_sum | AT1: Available_Volume_sum
A2: =Beregn1!$B$131 -> 0.12 | D2: =Beregn1!F131 -> 1.8 | F2: 0.11 | G2: 820 | H2: 0.33 | I2: 1.8 | J2: 26.62 | K2: 73.41 | L2: 0 | M2: -1 | N2: 1 | P2: 0.12 | Q2: 960 | R2: 0.33 | S2: 1.8 | T2: 26.62 | U2: 73.41 | V2: 0 | W2: -1 | X2: 1 | Z2: =IF(OR(W2=0,W2=-1),Beregn1!$E$36,W2) -> 41 | AA2: =ISBLANK(W2) -> FALSE | AB2: =IF(AND(Z2=41,AA2=FALSE),Beregn1!$E$36,W2) -> 41 | AD2: =INDEX($P2:$X2,MATCH("Evaporated",$P$1:$X$1,0)) -> 26.62 | AE2: =INDEX($P2:$X2,MATCH("Drained",$P$1:$X$1,0)) -> 73.41 | AF2: =INDEX($P2:$X2,MATCH("Overflow",$P$1:$X$1,0)) -> 0 | AG2: =AB2 -> 41 | AH2: =INDEX($P2:$X2,MATCH("Available_Volume",$P$1:$X$1,0)) -> 1 | AJ2: =ROUND(AD2*Beregn1!$I$30,4) -> 13.31 | AK2: =ROUND(AE2*Beregn1!$I$30,4) -> 36.705 | AL2: =ROUND(AF2*Beregn1!$I$30,4) -> 0 | AM2: =ROUND(AG2*Beregn1!$I$30,4) -> 20.5 | AN2: =ROUND(AH2*Beregn1!$I$30,4) -> 0.5 | AP2: =SUM(AJ2:AJ300) -> 26.62 | AQ2: =SUM(AK2:AK300) -> 73.41 | AR2: =SUM(AL2:AL300) -> 0 | AS2: =SUM(AM2:AM300) -> 41 | AT2: =SUM(AN2:AN300) -> 1
A3: =Beregn1!$B$131 -> 0.12 | D3: =Beregn1!F132 -> 0 | F3: 0.11 | G3: 840 | H3: 0.33 | I3: 1.8 | J3: 26.62 | K3: 73.41 | L3: 0 | M3: -1 | N3: 1 | P3: 0.12 | Q3: 980 | R3: 0.33 | S3: 1.8 | T3: 26.62 | U3: 73.41 | V3: 0 | W3: -1 | X3: 1 | Z3: =IF(OR(W3=0,W3=-1),Beregn1!$E$36,W3) -> 41 | AA3: FALSE | AB3: =IF(AND(Z3=41,AA3=FALSE),Beregn1!$E$36,W3) -> 41 | AD3: 26.62 | AE3: 73.41 | AF3: 0 | AG3: =AB3 -> 41 | AH3: 1 | AJ3: =ROUND(AD3*Beregn1!$I$30,4) -> 13.31 | AK3: =ROUND(AE3*Beregn1!$I$30,4) -> 36.705 | AL3: =ROUND(AF3*Beregn1!$I$30,4) -> 0 | AM3: =ROUND(AG3*Beregn1!$I$30,4) -> 20.5 | AN3: =ROUND(AH3*Beregn1!$I$30,4) -> 0.5
A4: =Beregn1!$B$132 -> 0.11 | D4: =Beregn1!F131 -> 1.8 | F4: 0.11 | G4: 860 | H4: 0.33 | I4: 1.8 | J4: 26.62 | K4: 73.41 | L4: 0 | M4: -1 | N4: 1 | Z4: =IF(OR(W4=0,W4=-1),Beregn1!$E$36,W4) -> 41 | AA4: TRUE | AB4: =IF(AND(Z4=41,AA4=FALSE),Beregn1!$E$36,W4) -> 0 | AD4: 0 | AE4: 0 | AF4: 0 | AG4: 0 | AH4: 0 | AJ4: =ROUND(AD4*Beregn1!$I$30,4) -> 0 | AK4: =ROUND(AE4*Beregn1!$I$30,4) -> 0 | AL4: =ROUND(AF4*Beregn1!$I$30,4) -> 0 | AM4: =ROUND(AG4*Beregn1!$I$30,4) -> 0 | AN4: =ROUND(AH4*Beregn1!$I$30,4) -> 0
A5: =Beregn1!$B$132 -> 0.11 | D5: =Beregn1!F132 -> 0 | F5: 0.11 | G5: 880 | H5: 0.33 | I5: 1.8 | J5: 26.62 | K5: 73.41 | L5: 0 | M5: -1 | N5: 1 | Z5: =IF(OR(W5=0,W5=-1),Beregn1!$E$36,W5) -> 41 | AA5: TRUE | AB5: =IF(AND(Z5=41,AA5=FALSE),Beregn1!$E$36,W5) -> 0 | AD5: 0 | AE5: 0 | AF5: 0 | AG5: 0 | AH5: 0 | AJ5: =ROUND(AD5*Beregn1!$I$30,4) -> 0 | AK5: =ROUND(AE5*Beregn1!$I$30,4) -> 0 | AL5: =ROUND(AF5*Beregn1!$I$30,4) -> 0 | AM5: =ROUND(AG5*Beregn1!$I$30,4) -> 0 | AN5: =ROUND(AH5*Beregn1!$I$30,4) -> 0
F6: 0.12 | G6: 900 | H6: 0.33 | I6: 1.8 | J6: 26.62 | K6: 73.41 | L6: 0 | M6: -1 | N6: 1 | Z6: =IF(OR(W6=0,W6=-1),Beregn1!$E$36,W6) -> 41 | AA6: TRUE | AB6: =IF(AND(Z6=41,AA6=FALSE),Beregn1!$E$36,W6) -> 0 | AD6: 0 | AE6: 0 | AF6: 0 | AG6: 0 | AH6: 0 | AJ6: =ROUND(AD6*Beregn1!$I$30,4) -> 0 | AK6: =ROUND(AE6*Beregn1!$I$30,4) -> 0 | AL6: =ROUND(AF6*Beregn1!$I$30,4) -> 0 | AM6: =ROUND(AG6*Beregn1!$I$30,4) -> 0 | AN6: =ROUND(AH6*Beregn1!$I$30,4) -> 0
A7: A_ratio | B7: storage_volume | C7: storage_side_slope | D7: drain_coefficient | F7: 0.12 | G7: 920 | H7: 0.33 | I7: 1.8 | J7: 26.62 | K7: 73.41 | L7: 0 | M7: -1 | N7: 1 | Z7: =IF(OR(W7=0,W7=-1),Beregn1!$E$36,W7) -> 41 | AA7: TRUE | AB7: =IF(AND(Z7=41,AA7=FALSE),Beregn1!$E$36,W7) -> 0 | AD7: 0 | AE7: 0 | AF7: 0 | AG7: 0 | AH7: 0 | AJ7: =ROUND(AD7*Beregn1!$I$30,4) -> 0 | AK7: =ROUND(AE7*Beregn1!$I$30,4) -> 0 | AL7: =ROUND(AF7*Beregn1!$I$30,4) -> 0 | AM7: =ROUND(AG7*Beregn1!$I$30,4) -> 0 | AN7: =ROUND(AH7*Beregn1!$I$30,4) -> 0
A8: =Beregn1!$B$131 -> 0.12 | B8: =Beregn1!D131 -> 980 | F8: 0.12 | G8: 940 | H8: 0.33 | I8: 1.8 | J8: 26.62 | K8: 73.41 | L8: 0 | M8: -1 | N8: 1 | Z8: =IF(OR(W8=0,W8=-1),Beregn1!$E$36,W8) -> 41 | AA8: TRUE | AB8: =IF(AND(Z8=41,AA8=FALSE),Beregn1!$E$36,W8) -> 0 | AD8: 0 | AE8: 0 | AF8: 0 | AG8: 0 | AH8: 0 | AJ8: =ROUND(AD8*Beregn1!$I$30,4) -> 0 | AK8: =ROUND(AE8*Beregn1!$I$30,4) -> 0 | AL8: =ROUND(AF8*Beregn1!$I$30,4) -> 0 | AM8: =ROUND(AG8*Beregn1!$I$30,4) -> 0 | AN8: =ROUND(AH8*Beregn1!$I$30,4) -> 0
